{"text_format":"1","workbook":"xlsx","n_sheets":10,"sheets":["Product Overview","Product Details","Sources & Exchange Fees","Spot Prices","Future Prices","Fixings","Usage & Hit Calculations","Hit Estimator","Enabling Macros in Excel","Getting Help"],"not_rendered":{"charts":12,"images":16,"macros":1,"external_links":0,"defined_names":10,"comments":0,"pivot_tables":0},"unopened":[],"bounds":{"document_bytes":16777216,"sheet_cells":100000,"rows_first":2000,"rows_last":500,"rows_between":2000,"halvings":0,"cell_chars":16384,"cell_head_chars":4096},"cells_cut":0,"cells_raw":0,"read":"whole","date_system":"1900"}

{"sheet":"Product Overview","index":0,"n_rows":42,"n_cols":4,"rows_kept":42,"cut":false,"hidden":false,"merged":[[11,2,11,3],[26,2,26,3]]}
[]
[]
[]
[]
[]
[]
[]
[null,"Xignite Precious Metals Pricing API"]
[]
[]
[null,null,"Content"]
[null,null,"The XigniteMetals API is the industry-standard precious pricing API used by more than 250 firms around the world. It is designed to serve the needs of precious metal brokers, miners, refiners or anyone involved in the Gold, Silver, Palladium and Platinum business."]
[]
[null,null,"XigniteMetals provides 3 types of metal prices:"]
[]
[null,null,"Spot Prices","Spot prices are real-time prices collected from banks, brokers, and trading platforms. They correspond to the actual market price for physical delivery of the metal."]
[]
[null,null,"Future Prices","Future prices are 10 minute delayed prices collected from CME Group (NYMEX and COMEX) corresponding to the future delivery of the metal."]
[]
[null,null,"Fixings","Fixings are daily prices collected from the London Bullion Market  "]
[null,null,null,"Association and the London Platinum and Palladium Market. They are a"]
[null,null,null,"fixed trading price agreed upon by participating banks."]
[]
[null,null,"Depending on the nature of your business, you may prefer using one or several of the metal"]
[null,null,"price types above. Most firms involved in precious metal trading will use either Fixings or"]
[null,null,"Spot Prices. Firms involved in hedging or forecasting will use Future Prices."]
[null,null,"For more information about the Metal Markets, watch our Webinar."]
[]
[null,null,"Coverage"]
[null,null,"XigniteMetals provides 4 types of data:"]
[]
[null,null,"Real-Time Data","Spot prices are updated every 10 seconds and almost round the clock."]
[null,null,null,"Futures prices are delayed 10 minutes and updated when markets are open."]
[]
[null,null,"Daily Data","Fixings are available once or twice daily based on the metal. End-of-Day"]
[null,null,null,"spot prices and future prices are also supported."]
[]
[null,null,"Historical Data","Daily Spot Prices, daily Fixings and daily Futures Prices are all supported."]
[null,null,null,"Please check additional tabs for details information on those data sets."]
[]
[null,null,"Tick Data","Intraday quote information is updated in real-time and is available for the "]
[null,null,null,"current day. Tick data is only available for Spot Prices."]

{"sheet":"Product Details","index":1,"n_rows":40,"n_cols":5,"rows_kept":40,"cut":false,"hidden":false,"merged":[[31,3,31,4],[32,3,32,4],[13,3,13,4],[25,2,25,4],[28,3,28,4],[29,3,29,4],[30,3,30,4]]}
[]
[]
[]
[]
[]
[]
[]
[null,"Product Details"]
[]
[]
[null,null,"Timing and Availability"]
[null,null,"The timing of the data depends on each data type:"]
[]
[null,null,"Spot Prices","Available from Sundays 6:00 PM EST (market opening in Tokyo) to Fridays 4:30 PM EST (market close in New York). Unavailable Monday to Thursday 5:15 PM to 6:00 PM EST (All markets closed)"]
[]
[null,null,"Future Prices","Depends on the commodity and published by the exchange:"]
[null,null,null,"COMEX Gold Trading Hours","COMEX Silver Trading Hours"]
[null,null,null,"NYMEX Platinum Trading Hours","NYMEX Palladium Trading Hours"]
[null,null,null,"All metals are traded electronically and in open outcry."]
[]
[null,null,"Fixings","Gold: Available twice a day at 10:30 AM GMT and 3:00 PM GMT"]
[null,null,null,"Silver Available once a day at 12:00 PM GMT "]
[null,null,null,"Platinum: Available twice a day at 9:45 AM GMT and 2:00 PM GMT"]
[null,null,null,"Palladium: Available twice a day at 9:45 AM GMT and 2:00 PM GMT"]
[null,null,"Delivery"]
[null,null,"The data is delivered via APIs over HTTP or HTTPS (Secure) using either the SOAP or REST protocol. The data can be formatted as XML, CSV, or JSON. The output of each API is customizable to your needs."]
[]
[null,null,"Developer Resources"]
[null,null,"Documentation","https://www.xignite.com/product/gold-metal/"]
[null,null,"API List","https://www.xignite.com/product/gold-metal/api/"]
[null,null,"Price List","https://www.xignite.com/product/gold-metal/pricing/"]
[null,null,"FAQs","https://www.xignite.com/product/gold-metal/faq/"]
[null,null,"WSDL","https://www.xignite.com/xMetals.asmx?wsdl"]
[]
[null,null,"Usage Restrictions"]
[null,null,"Internal Use","No restrictions. The data can be used for any internal application."]
[null,null,"Web Display","No restrictions. The data can be displayed on any web site."]
[null,null,"Mobile Display","No restrictions. The data can be displayed on any mobile application."]
[null,null,"Redistribution","Under standard terms, the data cannot be redistributed in machine-"]
[null,null,null,"readable format or in a terminal product. Contact us if you need this."]

{"sheet":"Sources & Exchange Fees","index":2,"n_rows":37,"n_cols":12,"rows_kept":37,"cut":false,"hidden":false,"merged":[[24,2,24,4],[18,3,18,4],[11,2,11,4],[16,2,16,4],[21,2,21,4]]}
[]
[]
[]
[]
[]
[]
[]
[null,"Sources & Exchange Fees"]
[]
[]
[null,null,"Spot Prices"]
[null,null,"Xignite spot prices are collected via direct feed from two different vendors with whom we have distribution relationships: Morningstar and Six Financial Information (SFI). Xignite consolidates those two feeds to provide redundancy, reliability and liquidity. Morningstar and SFI collect their own data from the trading desks of a large number of bankers, brokers, and metal trading platforms located in the US, Europe, The Middle East and Asia. These firms are called contributors to the feed."]
[]
[]
[]
[null,null,"Contributors"]
[null,null,"Here are some examples of contributors to the Morningstar and SFI feeds:"]
[null,null,"Morningstar","UBS, Saxo Bank, CommerzBank, etc."]
[null,null,"SFI","Swiss National Bank, Deutsch Bundesbank, People's Bank of China, etc."]
[]
[null,null,"Future Prices"]
[null,null,"Xignite collects future pricing information from the CME\nGroup via feed. Xignite calculates delayed future prices\nand historical future prices from this feed."]
[]
[null,null,"Exchange Fees"]
[null,null,"CME Delayed Future prices are subject to exchange fees. The fees are $187.50/mo for either NYMEX or COMEX. Xignite collects and pays the fees back to CME as part of the exchange reporting process. Xignite charges a $12.50 processing fee on top of the CME fees."]
[]
[null,null,"Fixings"]
[null,null,"Xignite collects fixing information directly from the following sources:"]
[null,null,"Gold & Silver","London Bullion Metal Association"]
[null,null,"Platinum &","London Platinum and Palladium Association"]
[null,null,"Palladium"]
[null,null,null,null,null,null,null,null,null,null,null,"W"]
[null,null,"News"]
[null,null,"Xignite collects its metal news information from SeekingAlpha."]
[]
[null,null,"Base Metals"]
[null,null,"Xignite collects its base metal pricing information from Johnson Matthey."]

{"sheet":"Spot Prices","index":3,"n_rows":368,"n_cols":88,"rows_kept":368,"cut":false,"hidden":false,"merged":[[42,2,42,3],[42,4,42,5],[42,6,42,7],[42,8,42,9],[18,21,18,24],[20,27,20,31],[20,13,20,18],[44,13,44,18],[11,27,11,31],[12,27,12,31],[13,27,13,31],[18,17,18,20],[20,20,21,25],[44,20,45,25],[9,27,10,31],[7,14,7,24],[13,20,14,21],[13,23,14,24],[13,14,14,15],[13,17,14,18]]}
[null,null,null,null,null,null,null,null,null,null,null,null,null,null,null,null,null,null,null,null,null,null,null,null,null,null,null,null,null,null,null,null,null,null,null,null,null,null,null,null,null,null,null,null,null,null,null,null,null,"Historical Spot Prices",null,null,null,null,null,null,"Metal","Last","Bid","Ask","Date","Previous",null,"Success","Request",1.6E-2,"XAU","Open",23,12,"Market closes in 23 hrs.12 mins.",1322.65002441,1323.92004395,1323.2850341799999,1323.92004394531,1322.46997070313,"10/31/2013",1322.45,0.84,0.06,"10/1/2013",1287.3599999999999,35.93,2.79,"11/1/2012",1712.9,-389.61,-22.75]
[null,null,null,null,null,null,null,null,null,null,null,null,null,null,null,null,null,null,null,null,null,null,null,null,null,null,null,null,null,null,null,null,null,null,null,null,null,null,null,null,null,null,null,null,null,null,null,null,null,null,"XAU","XAG","XPT","XPD",null,null,"XAU",1323.2850341799999,1322.65002441,1323.92004395,"10/30/2013",1340.99]
[null,null,null,null,null,null,null,null,null,null,null,null,null,null,null,null,null,null,null,null,null,null,null,null,null,null,null,null,null,null,null,null,null,null,null,null,null,null,null,null,null,null,null,null,null,null,null,null,null,"Date","Last","Last","Last","Last","Date",null,"XAG",21.902850149999999,21.9015007,21.904199599999998,"10/30/2013",22.62]
[null,null,null,null,null,null,null,null,null,null,null,null,null,null,null,null,null,null,null,null,null,null,null,null,null,null,null,null,null,null,null,null,null,null,null,null,null,null,null,null,null,null,null,null,null,null,null,null,null,"10/30/2013",1340.99499511719,22.625,1467.5,745.5,{"$f":"+DATEVALUE(TEXT(Table26[[#This Row],[Date]],\"MM/DD/YYYY\"))","v":"2013-10-30"},null,"XPT",1450,1446,1454,"10/30/2013",1467.5]
[null,null,null,null,null,null,null,null,null,null,null,null,null,null,null,null,null,null,null,null,null,null,null,null,null,null,null,null,null,null,null,null,null,null,null,null,null,null,null,null,null,null,null,null,null,null,null,null,null,"10/29/2013",1344.3200073242199,22.4899997711182,1460.5,745.5,{"$f":"+DATEVALUE(TEXT(Table26[[#This Row],[Date]],\"MM/DD/YYYY\"))","v":"2013-10-29"},null,"XPD",738.5,734,743,"10/30/2013",745.5]
[null,null,null,null,null,null,null,null,null,null,null,null,null,null,null,null,null,null,null,null,null,null,null,null,null,null,null,null,null,null,null,null,null,null,null,null,null,null,null,null,null,null,null,null,null,null,null,null,null,"10/28/2013",1352.65002441406,22.497599601745598,1470,745.5,{"$f":"+DATEVALUE(TEXT(Table26[[#This Row],[Date]],\"MM/DD/YYYY\"))","v":"2013-10-28"}]
[null,null,null,null,null,null,null,null,null,null,null,null,null,null,null,null,null,null,null,null,null,null,null,null,null,null,null,null,null,null,null,null,null,null,null,null,null,null,null,null,null,null,null,null,null,null,null,null,null,"10/27/2013",1351.6849975585901,22.6199998855591,1454,743,{"$f":"+DATEVALUE(TEXT(Table26[[#This Row],[Date]],\"MM/DD/YYYY\"))","v":"2013-10-27"}]
[null,"Spot Prices",null,null,null,null,null,null,null,null,null,null,null,null,null,null,null,null,null,null,null,null,null,null,null,null,null,null,null,null,null,null,null,null,null,null,null,null,null,null,null,null,null,null,null,null,null,null,null,"10/26/2013",1350.73498535156,22.5436496734619,1454,742.5,{"$f":"+DATEVALUE(TEXT(Table26[[#This Row],[Date]],\"MM/DD/YYYY\"))","v":"2013-10-26"}]
[null,null,null,null,null,null,null,null,null,null,null,null,null,null,null,null,null,null,null,null,null,null,null,null,null,null,null,null,null,null,null,null,null,null,null,null,null,null,null,null,null,null,null,null,null,null,null,null,null,"10/25/2013",1350.73498535156,22.5436496734619,1454,742.5,{"$f":"+DATEVALUE(TEXT(Table26[[#This Row],[Date]],\"MM/DD/YYYY\"))","v":"2013-10-25"}]
[null,null,null,null,null,null,null,null,null,null,null,null,null,null,null,null,null,null,null,null,null,null,null,null,null,null,null,"LIVE SPOT GOLD",null,null,null,null,null,null,null,null,null,null,null,null,null,null,null,null,null,null,null,null,null,"10/24/2013",1346.5850219726599,22.725999832153299,1451.5,746.5,{"$f":"+DATEVALUE(TEXT(Table26[[#This Row],[Date]],\"MM/DD/YYYY\"))","v":"2013-10-24"}]
[null,null,"RealTime Spot Prices",null,null,null,null,null,null,null,null,null,null,null,"Spot Prices Heat Map",null,null,null,null,null,null,null,null,null,null,null,null,null,null,null,null,null,null,null,null,null,null,null,null,null,null,null,null,null,null,null,null,null,null,"10/23/2013",1332.3049926757801,22.557000160217299,1434.5,744,{"$f":"+DATEVALUE(TEXT(Table26[[#This Row],[Date]],\"MM/DD/YYYY\"))","v":"2013-10-23"}]
[null,null,"Supported Metals",null,"Gold, Silver, Platinum, Palladium",null,null,null,null,null,null,null,null,null,"The heat map below shows live real-time spot prices from our APIs:",null,null,null,null,null,null,null,null,null,null,null,null,{"$f":"+CONCATENATE(\"Spot Market is \",UPPER(BP1))","v":"Spot Market is OPEN"},null,null,null,null,null,null,null,null,null,null,null,null,null,null,null,null,null,null,null,null,null,"10/22/2013",1341.0499877929699,22.7424993515015,1450.5,754,{"$f":"+DATEVALUE(TEXT(Table26[[#This Row],[Date]],\"MM/DD/YYYY\"))","v":"2013-10-22"}]
[null,null,"Currencies",null,"USD, AUD, CAD, CHF, EUR, GBP, HKD, ZAR",null,null,null,null,null,null,null,null,null,null,"Gold",null,null,"Silver",null,null,"Platinum",null,null,"Palladium",null,null,{"$f":"+CONCATENATE(\"opens in \",BQ1,\" hrs.\",BR1,\" mins\")","v":"opens in 23 hrs.12 mins"},null,null,null,null,null,null,null,null,null,null,null,null,null,null,null,null,null,null,null,null,null,"10/21/2013",1314.84997558594,22.1955003738403,1434,751.5,{"$f":"+DATEVALUE(TEXT(Table26[[#This Row],[Date]],\"MM/DD/YYYY\"))","v":"2013-10-21"}]
[null,null,"Supported Fields",null,null,null,null,null,null,null,null,null,null,null,{"$f":"+BF2","v":1323.2850341799999},null,null,{"$f":"+BF3","v":21.902850149999999},null,null,{"$f":"+BF4","v":1450},null,null,{"$f":"+BF5","v":738.5},null,null,null,{"$f":"NOW()","v":"2013-10-31T15:07:44.200"},null,null,null,null,null,null,null,null,null,null,null,null,null,null,null,null,null,null,null,null,null,"10/20/2013",1315.34997558594,21.914999961852999,1437.5,745.5,{"$f":"+DATEVALUE(TEXT(Table26[[#This Row],[Date]],\"MM/DD/YYYY\"))","v":"2013-10-20"}]
[null,null,"Symbol",null,"Date",null,"Bid",null,"Ask",null,null,null,null,null,null,null,null,null,null,null,null,null,null,null,null,null,null,"Bid/Ask",null,{"$f":"+BT1","v":1322.65002441},null,{"$f":"+BU1","v":1323.92004395},null,null,null,null,null,null,null,null,null,null,null,null,null,null,null,null,null,"10/19/2013",1316.5800170898401,21.939999580383301,1438.5,741,{"$f":"+DATEVALUE(TEXT(Table26[[#This Row],[Date]],\"MM/DD/YYYY\"))","v":"2013-10-19"}]
[null,null,"Type",null,"Time",null,"BidTime (GMT)",null,"AskTime (GMT)",null,null,null,null,null,{"$f":"+CONCATENATE(\"B \",TEXT($BG$2,\"#,##0.00\"))","v":"B 1,322.65"},{"$f":"+$BF$2-$BJ$2","v":-17.704965820000098},null,{"$f":"+CONCATENATE(\"B \",TEXT($BG$3,\"#,##0.00\"))","v":"B 21.90"},{"$f":"+$BF$3-$BJ$3","v":-0.71714985000000198},null,{"$f":"+CONCATENATE(\"B \",TEXT($BG$4,\"#,##0.00\"))","v":"B 1,446.00"},{"$f":"+$BF$4-$BJ$4","v":-17.5},null,{"$f":"+CONCATENATE(\"B \",TEXT($BG$5,\"#,##0.00\"))","v":"B 734.00"},{"$f":"+$BF$5-$BJ$5","v":-7},null,null,"Low/High",null,{"$f":"+BW1","v":1323.92004394531},null,{"$f":"+BX1","v":1322.46997070313},null,null,null,null,null,null,null,null,null,null,null,null,null,null,null,null,null,"10/18/2013",1316.5800170898401,21.939999580383301,1438.5,741,{"$f":"+DATEVALUE(TEXT(Table26[[#This Row],[Date]],\"MM/DD/YYYY\"))","v":"2013-10-18"}]
[null,null,"Currency",null,"Rate (Mid-point)",null,null,null,null,null,null,null,null,null,{"$f":"+CONCATENATE(\"A \",TEXT($BH$2,\"#,##0.00\"))","v":"A 1,323.92"},{"$f":"+IFERROR(P16/$BJ$2,0)","v":-1.3202906673427913E-2},null,{"$f":"+CONCATENATE(\"A \",TEXT($BH$3,\"#,##0.00\"))","v":"A 21.90"},{"$f":"+IFERROR(S16/$BJ$3,0)","v":-3.1704237400530591E-2},null,{"$f":"+CONCATENATE(\"A \",TEXT($BH$4,\"#,##0.00\"))","v":"A 1,454.00"},{"$f":"+IFERROR(V16/$BJ$4,0)","v":-1.192504258943782E-2},null,{"$f":"+CONCATENATE(\"A \",TEXT($BH$5,\"#,##0.00\"))","v":"A 743.00"},{"$f":"+IFERROR(Y16/$BJ$5,0)","v":-9.3896713615023476E-3},null,null,"Change",null,{"$f":"+CA1","v":0.84},null,{"$f":"+CB1/100","v":5.9999999999999995E-4},null,null,null,null,null,null,null,null,null,null,null,null,null,null,null,null,null,"10/17/2013",1318.52001953125,21.8504991531372,1437.5,740.5,{"$f":"+DATEVALUE(TEXT(Table26[[#This Row],[Date]],\"MM/DD/YYYY\"))","v":"2013-10-17"}]
[null,null,"Availability",null,"Available from Sundays 6:00 PM EDT (market opening in Tokyo) to ",null,null,null,null,null,null,null,null,null,"To update the heat map enter your registration email or token below then click the refresh button. ",null,null,null,null,null,null,null,null,null,null,null,null,"30 Day Chg.",null,{"$f":"+CE1","v":35.93},null,{"$f":"+CF1/100","v":2.7900000000000001E-2},null,null,null,null,null,null,null,null,null,null,null,null,null,null,null,null,null,"10/16/2013",1280.63000488281,21.342499732971199,1399,717.5,{"$f":"+DATEVALUE(TEXT(Table26[[#This Row],[Date]],\"MM/DD/YYYY\"))","v":"2013-10-16"}]
[null,null,null,null,"Fridays 4:30 PM EDT (market close in New York). Unavailable Monday",null,null,null,null,null,null,null,null,null,"Registration Email: ",null,null,null,null,null,null,"Macros must be enabled in Excel",null,null,null,null,null,"1 Year Chg.",null,{"$f":"+CI1","v":-389.61},null,{"$f":"+CJ1/100","v":-0.22750000000000001},null,null,null,null,null,null,null,null,null,null,null,null,null,null,null,null,null,"10/15/2013",1279.6900024414099,21.269999504089402,1382.5,706,{"$f":"+DATEVALUE(TEXT(Table26[[#This Row],[Date]],\"MM/DD/YYYY\"))","v":"2013-10-15"}]
[null,null,null,null,"to Thursday 5:15 PM to 6:00 PM EDT (all markets closed)",null,null,null,null,null,null,null,null,null,null,null,null,null,null,null,null,null,null,null,null,null,null,null,null,null,null,null,null,null,null,null,null,null,null,null,null,null,null,null,null,null,null,null,null,"10/14/2013",1273.19995117188,21.285300254821799,1380,715,{"$f":"+DATEVALUE(TEXT(Table26[[#This Row],[Date]],\"MM/DD/YYYY\"))","v":"2013-10-14"}]
[null,null,"Frequency",null,"Updated every 10 seconds (true real-time available Q2-2013).",null,null,null,null,null,null,null,null,"Built with GetLastRealTimeMetalQuote",null,null,null,null,null,null,"Clicking on Refresh will consume 4 of your free trial hits. If you run out of free trial hits (numbers are 0), please contact us.",null,null,null,null,null,null,"Built with GetSpotMarketSummary",null,null,null,null,null,null,null,null,null,null,null,null,null,null,null,null,null,null,null,null,null,"10/13/2013",1274.7000122070301,21.334500312805201,1370.5,712.5,{"$f":"+DATEVALUE(TEXT(Table26[[#This Row],[Date]],\"MM/DD/YYYY\"))","v":"2013-10-13"}]
[null,null,null,null,null,null,null,null,null,null,null,null,null,null,null,null,null,null,null,null,null,null,null,null,null,null,null,null,null,null,null,null,null,null,null,null,null,null,null,null,null,null,null,null,null,null,null,null,null,"10/12/2013",1272.2899780273401,21.342500686645501,1372.5,713,{"$f":"+DATEVALUE(TEXT(Table26[[#This Row],[Date]],\"MM/DD/YYYY\"))","v":"2013-10-12"}]
[null,null,"Historical Spot Prices",null,null,null,null,null,null,null,null,null,null,null,null,null,null,null,null,null,null,null,null,null,null,null,null,null,null,null,null,null,null,null,null,null,null,null,null,null,null,null,null,null,null,null,null,null,null,"10/11/2013",1272.2899780273401,21.342500686645501,1372.5,713,{"$f":"+DATEVALUE(TEXT(Table26[[#This Row],[Date]],\"MM/DD/YYYY\"))","v":"2013-10-11"}]
[null,null,"Supported Fields",null,null,null,null,null,null,null,null,null,null,null,"Historical Spot Price Charts",null,null,null,null,null,null,null,null,null,null,null,null,null,null,null,null,null,null,null,null,null,null,null,null,null,null,null,null,null,null,null,null,null,null,"10/10/2013",1288.1000366210901,21.699999809265101,1386,708.5,{"$f":"+DATEVALUE(TEXT(Table26[[#This Row],[Date]],\"MM/DD/YYYY\"))","v":"2013-10-10"}]
[null,null,"Symbol",null,"Currency",null,"First",null,"High",null,null,null,null,null,"The charts below show historical spot charts created in Excel from the data served by our APIs. ",null,null,null,null,null,null,null,null,null,null,null,null,null,null,null,null,null,null,null,null,null,null,null,null,null,null,null,null,null,null,null,null,null,null,"10/9/2013",1305.59997558594,21.889999389648398,1385,703,{"$f":"+DATEVALUE(TEXT(Table26[[#This Row],[Date]],\"MM/DD/YYYY\"))","v":"2013-10-09"}]
[null,null,"Type",null,"Date (MM/DD/YYYY)",null,"Last ",null,"Low",null,null,null,null,null,"Click Refresh to update the chart with the latest end of day data. You must enter your email above.",null,null,null,null,null,null,null,null,null,null,null,null,null,null,null,null,null,null,null,null,null,null,null,null,null,null,null,null,null,null,null,null,null,null,"10/8/2013",1319.63500976563,22.325000762939499,1403.5,713.5,{"$f":"+DATEVALUE(TEXT(Table26[[#This Row],[Date]],\"MM/DD/YYYY\"))","v":"2013-10-08"}]
[null,null,"Time Range",null,"Historical USD Spot Prices are available from 1/1/1990 to present for ",null,null,null,null,null,null,null,null,null,null,null,null,null,null,null,null,null,null,null,null,null,null,null,null,null,null,null,null,null,null,null,null,null,null,null,null,null,null,null,null,null,null,null,null,"10/7/2013",1322.4500122070301,22.3120002746582,1398.5,703,{"$f":"+DATEVALUE(TEXT(Table26[[#This Row],[Date]],\"MM/DD/YYYY\"))","v":"2013-10-07"}]
[null,null,null,null,"Gold and Silver, 1/2/2004 for Platinum and 1/13/2004 for Palladium. ",null,null,null,null,null,null,null,null,null,null,null,null,null,null,null,null,null,null,null,null,null,null,null,null,null,null,null,null,null,null,null,null,null,null,null,null,null,null,null,null,null,null,null,null,"10/6/2013",1315.7000122070301,21.849450111389199,1393,702,{"$f":"+DATEVALUE(TEXT(Table26[[#This Row],[Date]],\"MM/DD/YYYY\"))","v":"2013-10-06"}]
[null,null,null,null,"Time range availability for non-USD currencies varies.",null,null,null,null,null,null,null,null,null,null,null,null,null,null,null,null,null,null,null,null,null,null,null,null,null,null,null,null,null,null,null,null,null,null,null,null,null,null,null,null,null,null,null,null,"10/5/2013",1310.8099975585901,21.730999946594199,1389,700,{"$f":"+DATEVALUE(TEXT(Table26[[#This Row],[Date]],\"MM/DD/YYYY\"))","v":"2013-10-05"}]
[null,null,"Availability",null,"Updated daily at around 12:10 AM GMT.",null,null,null,null,null,null,null,null,null,null,null,null,null,null,null,null,null,null,null,null,null,null,null,null,null,null,null,null,null,null,null,null,null,null,null,null,null,null,null,null,null,null,null,null,"10/4/2013",1310.8099975585901,21.730999946594199,1389,700,{"$f":"+DATEVALUE(TEXT(Table26[[#This Row],[Date]],\"MM/DD/YYYY\"))","v":"2013-10-04"}]
[null,null,"Charts",null,"Customizable charts are available for all metals.",null,null,null,null,null,null,null,null,null,null,null,null,null,null,null,null,null,null,null,null,null,null,null,null,null,null,null,null,null,null,null,null,null,null,null,null,null,null,null,null,null,null,null,null,"10/3/2013",1315.96997070313,21.671500205993699,1373,702.5,{"$f":"+DATEVALUE(TEXT(Table26[[#This Row],[Date]],\"MM/DD/YYYY\"))","v":"2013-10-03"}]
[null,null,"Methodology",null,"Based on the last worldwide quote at 12:00 AM GMT.",null,null,null,null,null,null,null,null,null,null,null,null,null,null,null,null,null,null,null,null,null,null,null,null,null,null,null,null,null,null,null,null,null,null,null,null,null,null,null,null,null,null,null,null,"10/2/2013",1315.9550170898401,21.7399997711182,1392.5,720,{"$f":"+DATEVALUE(TEXT(Table26[[#This Row],[Date]],\"MM/DD/YYYY\"))","v":"2013-10-02"}]
[null,null,null,null,null,null,null,null,null,null,null,null,null,null,null,null,null,null,null,null,null,null,null,null,null,null,null,null,null,null,null,null,null,null,null,null,null,null,null,null,null,null,null,null,null,null,null,null,null,"10/1/2013",1289.71496582031,21.158999443054199,1385,719.5,{"$f":"+DATEVALUE(TEXT(Table26[[#This Row],[Date]],\"MM/DD/YYYY\"))","v":"2013-10-01"}]
[null,null,"Intraday Spot Tick Data",null,null,null,null,null,null,null,null,null,null,null,null,null,null,null,null,null,null,null,null,null,null,null,null,null,null,null,null,null,null,null,null,null,null,null,null,null,null,null,null,null,null,null,null,null,null,"9/30/2013",1329.47497558594,21.6939506530762,1406,724.5,{"$f":"+DATEVALUE(TEXT(Table26[[#This Row],[Date]],\"MM/DD/YYYY\"))","v":"2013-09-30"}]
[null,null,"Fields",null,null,null,null,null,null,null,null,null,null,null,null,null,null,null,null,null,null,null,null,null,null,null,null,null,null,null,null,null,null,null,null,null,null,null,null,null,null,null,null,null,null,null,null,null,null,"9/29/2013",1340.23999023438,21.8090000152588,1420,731,{"$f":"+DATEVALUE(TEXT(Table26[[#This Row],[Date]],\"MM/DD/YYYY\"))","v":"2013-09-29"}]
[null,null,"Symbol",null,"Mid",null,"High",null,null,null,null,null,null,null,null,null,null,null,null,null,null,null,null,null,null,null,null,null,null,null,null,null,null,null,null,null,null,null,null,null,null,null,null,null,null,null,null,null,null,"9/28/2013",1336.76000976563,21.7924995422363,1420.5,730,{"$f":"+DATEVALUE(TEXT(Table26[[#This Row],[Date]],\"MM/DD/YYYY\"))","v":"2013-09-28"}]
[null,null,"Time (MM/DD/YY HH:MM:SS xM)",null,null,null,"Low",null,null,null,null,null,null,null,null,null,null,null,null,null,null,null,null,null,null,null,null,null,null,null,null,null,null,null,null,null,null,null,null,null,null,null,null,null,null,null,null,null,null,"9/27/2013",1336.76000976563,21.7924995422363,1420.5,730,{"$f":"+DATEVALUE(TEXT(Table26[[#This Row],[Date]],\"MM/DD/YYYY\"))","v":"2013-09-27"}]
[null,null,"Time Range",null,"Tick data is available for the current day (GMT) only.",null,null,null,null,null,null,null,null,null,null,null,null,null,null,null,null,null,null,null,null,null,null,null,null,null,null,null,null,null,null,null,null,null,null,null,null,null,null,null,null,null,null,null,null,"9/26/2013",1322.0499877929699,21.6759996414185,1412,721.5,{"$f":"+DATEVALUE(TEXT(Table26[[#This Row],[Date]],\"MM/DD/YYYY\"))","v":"2013-09-26"}]
[null,null,"Frequencies",null,"1 minute bars",null,"15 minute bars",null,"Single tick",null,null,null,null,null,null,null,null,null,null,null,null,null,null,null,null,null,null,null,null,null,null,null,null,null,null,null,null,null,null,null,null,null,null,null,null,null,null,null,null,"9/25/2013",1332.9500122070301,21.800000190734899,1425,723,{"$f":"+DATEVALUE(TEXT(Table26[[#This Row],[Date]],\"MM/DD/YYYY\"))","v":"2013-09-25"}]
[null,null,null,null,"5 minute bars",null,"1 hour bars",null,"Custom bars",null,null,null,null,null,null,null,null,null,null,null,null,null,null,null,null,null,null,null,null,null,null,null,null,null,null,null,null,null,null,null,null,null,null,null,null,null,null,null,null,"9/24/2013",1323.57995605469,21.7329998016357,1428.5,721.5,{"$f":"+DATEVALUE(TEXT(Table26[[#This Row],[Date]],\"MM/DD/YYYY\"))","v":"2013-09-24"}]
[null,null,null,null,null,null,null,null,null,null,null,null,null,null,null,null,null,null,null,null,null,null,null,null,null,null,null,null,null,null,null,null,null,null,null,null,null,null,null,null,null,null,null,null,null,null,null,null,null,"9/23/2013",1322.23498535156,21.664999961852999,1422.5,715.5,{"$f":"+DATEVALUE(TEXT(Table26[[#This Row],[Date]],\"MM/DD/YYYY\"))","v":"2013-09-23"}]
[null,null,"Developer Resources",null,null,null,null,null,null,null,null,null,null,null,null,null,null,null,null,null,null,null,null,null,null,null,null,null,null,null,null,null,null,null,null,null,null,null,null,null,null,null,null,null,null,null,null,null,null,"9/22/2013",1325.84997558594,21.769499778747601,1433,720,{"$f":"+DATEVALUE(TEXT(Table26[[#This Row],[Date]],\"MM/DD/YYYY\"))","v":"2013-09-22"}]
[null,null,"Real-Time Prices API",null,"Historical Prices API",null,"Intraday Tick Data API",null,"Historical Chart API",null,null,null,null,null,null,null,null,null,null,null,null,null,null,null,null,null,null,null,null,null,null,null,null,null,null,null,null,null,null,null,null,null,null,null,null,null,null,null,null,"9/21/2013",1326.1799926757801,21.779500007629402,1431.5,716.5,{"$f":"+DATEVALUE(TEXT(Table26[[#This Row],[Date]],\"MM/DD/YYYY\"))","v":"2013-09-21"}]
[null,null,null,null,null,null,null,null,null,null,null,null,null,null,null,null,null,null,null,null,null,null,null,null,null,null,null,null,null,null,null,null,null,null,null,null,null,null,null,null,null,null,null,null,null,null,null,null,null,"9/20/2013",1326.1799926757801,21.779500007629402,1431.5,716.5,{"$f":"+DATEVALUE(TEXT(Table26[[#This Row],[Date]],\"MM/DD/YYYY\"))","v":"2013-09-20"}]
[null,null,null,null,null,null,null,null,null,null,null,null,null,"Built with GetHistoricalSpotPriceRange",null,null,null,null,null,null,"Clicking on Refresh will consume 4 of your free trial hits. If you run out of free trial hits (numbers are 0), please contact us.",null,null,null,null,null,null,null,null,null,null,null,null,null,null,null,null,null,null,null,null,null,null,null,null,null,null,null,null,"9/19/2013",1367.84997558594,23.139999389648398,1467.5,736.5,{"$f":"+DATEVALUE(TEXT(Table26[[#This Row],[Date]],\"MM/DD/YYYY\"))","v":"2013-09-19"}]
[null,null,null,null,null,null,null,null,null,null,null,null,null,null,null,null,null,null,null,null,null,null,null,null,null,null,null,null,null,null,null,null,null,null,null,null,null,null,null,null,null,null,null,null,null,null,null,null,null,"9/18/2013",1362.75500488281,22.973150253295898,1465.5,719,{"$f":"+DATEVALUE(TEXT(Table26[[#This Row],[Date]],\"MM/DD/YYYY\"))","v":"2013-09-18"}]
[null,null,null,null,null,null,null,null,null,null,null,null,null,null,null,null,null,null,null,null,null,null,null,null,null,null,null,null,null,null,null,null,null,null,null,null,null,null,null,null,null,null,null,null,null,null,null,null,null,"9/17/2013",1306.90002441406,21.714999198913599,1421.5,705,{"$f":"+DATEVALUE(TEXT(Table26[[#This Row],[Date]],\"MM/DD/YYYY\"))","v":"2013-09-17"}]
[null,null,null,null,null,null,null,null,null,null,null,null,null,null,null,null,null,null,null,null,null,null,null,null,null,null,null,null,null,null,null,null,null,null,null,null,null,null,null,null,null,null,null,null,null,null,null,null,null,"9/16/2013",1314.06994628906,21.833350181579601,1438.5,706,{"$f":"+DATEVALUE(TEXT(Table26[[#This Row],[Date]],\"MM/DD/YYYY\"))","v":"2013-09-16"}]
[null,null,null,null,null,null,null,null,null,null,null,null,null,null,null,null,null,null,null,null,null,null,null,null,null,null,null,null,null,null,null,null,null,null,null,null,null,null,null,null,null,null,null,null,null,null,null,null,null,"9/15/2013",1330.7099609375,22.301500320434599,1456.5,709.5,{"$f":"+DATEVALUE(TEXT(Table26[[#This Row],[Date]],\"MM/DD/YYYY\"))","v":"2013-09-15"}]
[null,null,null,null,null,null,null,null,null,null,null,null,null,null,null,null,null,null,null,null,null,null,null,null,null,null,null,null,null,null,null,null,null,null,null,null,null,null,null,null,null,null,null,null,null,null,null,null,null,"9/14/2013",1326.4400024414099,22.219500541687001,1453.5,702,{"$f":"+DATEVALUE(TEXT(Table26[[#This Row],[Date]],\"MM/DD/YYYY\"))","v":"2013-09-14"}]
[null,null,null,null,null,null,null,null,null,null,null,null,null,null,null,null,null,null,null,null,null,null,null,null,null,null,null,null,null,null,null,null,null,null,null,null,null,null,null,null,null,null,null,null,null,null,null,null,null,"9/13/2013",1326.4400024414099,22.219500541687001,1453.5,702,{"$f":"+DATEVALUE(TEXT(Table26[[#This Row],[Date]],\"MM/DD/YYYY\"))","v":"2013-09-13"}]
[null,null,null,null,null,null,null,null,null,null,null,null,null,null,null,null,null,null,null,null,null,null,null,null,null,null,null,null,null,null,null,null,null,null,null,null,null,null,null,null,null,null,null,null,null,null,null,null,null,"9/12/2013",1323.0249633789099,21.8945007324219,1438.5,689.5,{"$f":"+DATEVALUE(TEXT(Table26[[#This Row],[Date]],\"MM/DD/YYYY\"))","v":"2013-09-12"}]
[null,null,null,null,null,null,null,null,null,null,null,null,null,null,null,null,null,null,null,null,null,null,null,null,null,null,null,null,null,null,null,null,null,null,null,null,null,null,null,null,null,null,null,null,null,null,null,null,null,"9/11/2013",1364.59997558594,23.148300170898398,1471.5,692,{"$f":"+DATEVALUE(TEXT(Table26[[#This Row],[Date]],\"MM/DD/YYYY\"))","v":"2013-09-11"}]
[null,null,null,null,null,null,null,null,null,null,null,null,null,null,null,null,null,null,null,null,null,null,null,null,null,null,null,null,null,null,null,null,null,null,null,null,null,null,null,null,null,null,null,null,null,null,null,null,null,"9/10/2013",1365.6799926757801,23.039999961852999,1473.5,696,{"$f":"+DATEVALUE(TEXT(Table26[[#This Row],[Date]],\"MM/DD/YYYY\"))","v":"2013-09-10"}]
[null,null,null,null,null,null,null,null,null,null,null,null,null,null,null,null,null,null,null,null,null,null,null,null,null,null,null,null,null,null,null,null,null,null,null,null,null,null,null,null,null,null,null,null,null,null,null,null,null,"9/9/2013",1387.3150024414099,23.719499588012699,1486.5,688,{"$f":"+DATEVALUE(TEXT(Table26[[#This Row],[Date]],\"MM/DD/YYYY\"))","v":"2013-09-09"}]
[null,null,null,null,null,null,null,null,null,null,null,null,null,null,null,null,null,null,null,null,null,null,null,null,null,null,null,null,null,null,null,null,null,null,null,null,null,null,null,null,null,null,null,null,null,null,null,null,null,"9/8/2013",1387.5,23.909999847412099,1492.5,697,{"$f":"+DATEVALUE(TEXT(Table26[[#This Row],[Date]],\"MM/DD/YYYY\"))","v":"2013-09-08"}]
[null,null,null,null,null,null,null,null,null,null,null,null,null,null,null,null,null,null,null,null,null,null,null,null,null,null,null,null,null,null,null,null,null,null,null,null,null,null,null,null,null,null,null,null,null,null,null,null,null,"9/7/2013",1391.96997070313,23.8549995422363,1494.5,697,{"$f":"+DATEVALUE(TEXT(Table26[[#This Row],[Date]],\"MM/DD/YYYY\"))","v":"2013-09-07"}]
[null,null,null,null,null,null,null,null,null,null,null,null,null,null,null,null,null,null,null,null,null,null,null,null,null,null,null,null,null,null,null,null,null,null,null,null,null,null,null,null,null,null,null,null,null,null,null,null,null,"9/6/2013",1391.96997070313,23.8549995422363,1494.5,697,{"$f":"+DATEVALUE(TEXT(Table26[[#This Row],[Date]],\"MM/DD/YYYY\"))","v":"2013-09-06"}]
[null,null,null,null,null,null,null,null,null,null,null,null,null,null,null,null,null,null,null,null,null,null,null,null,null,null,null,null,null,null,null,null,null,null,null,null,null,null,null,null,null,null,null,null,null,null,null,null,null,"9/5/2013",1367.4599609375,23.163000106811499,1485.5,685.5,{"$f":"+DATEVALUE(TEXT(Table26[[#This Row],[Date]],\"MM/DD/YYYY\"))","v":"2013-09-05"}]
[null,null,null,null,null,null,null,null,null,null,null,null,null,null,null,null,null,null,null,null,null,null,null,null,null,null,null,null,null,null,null,null,null,null,null,null,null,null,null,null,null,null,null,null,null,null,null,null,null,"9/4/2013",1391.7999877929699,23.438500404357899,1496.5,692,{"$f":"+DATEVALUE(TEXT(Table26[[#This Row],[Date]],\"MM/DD/YYYY\"))","v":"2013-09-04"}]
[null,null,null,null,null,null,null,null,null,null,null,null,null,null,null,null,null,null,null,null,null,null,null,null,null,null,null,null,null,null,null,null,null,null,null,null,null,null,null,null,null,null,null,null,null,null,null,null,null,"9/3/2013",1411.7250366210901,24.305000305175799,1536.5,716.5,{"$f":"+DATEVALUE(TEXT(Table26[[#This Row],[Date]],\"MM/DD/YYYY\"))","v":"2013-09-03"}]
[null,null,null,null,null,null,null,null,null,null,null,null,null,null,null,null,null,null,null,null,null,null,null,null,null,null,null,null,null,null,null,null,null,null,null,null,null,null,null,null,null,null,null,null,null,null,null,null,null,"9/2/2013",1391.8500366210901,24.1171007156372,1520.5,714.5,{"$f":"+DATEVALUE(TEXT(Table26[[#This Row],[Date]],\"MM/DD/YYYY\"))","v":"2013-09-02"}]
[null,null,null,null,null,null,null,null,null,null,null,null,null,null,null,null,null,null,null,null,null,null,null,null,null,null,null,null,null,null,null,null,null,null,null,null,null,null,null,null,null,null,null,null,null,null,null,null,null,"9/1/2013",1382.7100219726599,23.260999679565401,1519.5,722.5,{"$f":"+DATEVALUE(TEXT(Table26[[#This Row],[Date]],\"MM/DD/YYYY\"))","v":"2013-09-01"}]
[null,null,null,null,null,null,null,null,null,null,null,null,null,null,null,null,null,null,null,null,null,null,null,null,null,null,null,null,null,null,null,null,null,null,null,null,null,null,null,null,null,null,null,null,null,null,null,null,null,"8/31/2013",1395.25,23.527999877929702,1523,723.5,{"$f":"+DATEVALUE(TEXT(Table26[[#This Row],[Date]],\"MM/DD/YYYY\"))","v":"2013-08-31"}]
[null,null,null,null,null,null,null,null,null,null,null,null,null,null,null,null,null,null,null,null,null,null,null,null,null,null,null,null,null,null,null,null,null,null,null,null,null,null,null,null,null,null,null,null,null,null,null,null,null,"8/30/2013",1395.25,23.527999877929702,1523,723.5,{"$f":"+DATEVALUE(TEXT(Table26[[#This Row],[Date]],\"MM/DD/YYYY\"))","v":"2013-08-30"}]
[null,null,null,null,null,null,null,null,null,null,null,null,null,null,null,null,null,null,null,null,null,null,null,null,null,null,null,null,null,null,null,null,null,null,null,null,null,null,null,null,null,null,null,null,null,null,null,null,null,"8/29/2013",1405.2000122070301,23.798999786376999,1519.5,736.5,{"$f":"+DATEVALUE(TEXT(Table26[[#This Row],[Date]],\"MM/DD/YYYY\"))","v":"2013-08-29"}]
[null,null,null,null,null,null,null,null,null,null,null,null,null,null,null,null,null,null,null,null,null,null,null,null,null,null,null,null,null,null,null,null,null,null,null,null,null,null,null,null,null,null,null,null,null,null,null,null,null,"8/28/2013",1417.9500122070301,24.367000579833999,1539,745.5,{"$f":"+DATEVALUE(TEXT(Table26[[#This Row],[Date]],\"MM/DD/YYYY\"))","v":"2013-08-28"}]
[null,null,null,null,null,null,null,null,null,null,null,null,null,null,null,null,null,null,null,null,null,null,null,null,null,null,null,null,null,null,null,null,null,null,null,null,null,null,null,null,null,null,null,null,null,null,null,null,null,"8/27/2013",1417.125,24.541999816894499,1527.5,744.5,{"$f":"+DATEVALUE(TEXT(Table26[[#This Row],[Date]],\"MM/DD/YYYY\"))","v":"2013-08-27"}]
[null,null,null,null,null,null,null,null,null,null,null,null,null,null,null,null,null,null,null,null,null,null,null,null,null,null,null,null,null,null,null,null,null,null,null,null,null,null,null,null,null,null,null,null,null,null,null,null,null,"8/26/2013",1401.27001953125,24.220999717712399,1548.5,747.5,{"$f":"+DATEVALUE(TEXT(Table26[[#This Row],[Date]],\"MM/DD/YYYY\"))","v":"2013-08-26"}]
[null,null,null,null,null,null,null,null,null,null,null,null,null,null,null,null,null,null,null,null,null,null,null,null,null,null,null,null,null,null,null,null,null,null,null,null,null,null,null,null,null,null,null,null,null,null,null,null,null,"8/25/2013",1403.9349975585901,24.237999916076699,1546,753.5,{"$f":"+DATEVALUE(TEXT(Table26[[#This Row],[Date]],\"MM/DD/YYYY\"))","v":"2013-08-25"}]
[null,null,null,null,null,null,null,null,null,null,null,null,null,null,null,null,null,null,null,null,null,null,null,null,null,null,null,null,null,null,null,null,null,null,null,null,null,null,null,null,null,null,null,null,null,null,null,null,null,"8/24/2013",1397.69995117188,24.060000419616699,1540.5,750.5,{"$f":"+DATEVALUE(TEXT(Table26[[#This Row],[Date]],\"MM/DD/YYYY\"))","v":"2013-08-24"}]
[null,null,null,null,null,null,null,null,null,null,null,null,null,null,null,null,null,null,null,null,null,null,null,null,null,null,null,null,null,null,null,null,null,null,null,null,null,null,null,null,null,null,null,null,null,null,null,null,null,"8/23/2013",1397.69995117188,24.060000419616699,1540.5,750.5,{"$f":"+DATEVALUE(TEXT(Table26[[#This Row],[Date]],\"MM/DD/YYYY\"))","v":"2013-08-23"}]
[null,null,null,null,null,null,null,null,null,null,null,null,null,null,null,null,null,null,null,null,null,null,null,null,null,null,null,null,null,null,null,null,null,null,null,null,null,null,null,null,null,null,null,null,null,null,null,null,null,"8/22/2013",1378.4299926757801,23.230000495910598,1542.5,756.5,{"$f":"+DATEVALUE(TEXT(Table26[[#This Row],[Date]],\"MM/DD/YYYY\"))","v":"2013-08-22"}]
[null,null,null,null,null,null,null,null,null,null,null,null,null,null,null,null,null,null,null,null,null,null,null,null,null,null,null,null,null,null,null,null,null,null,null,null,null,null,null,null,null,null,null,null,null,null,null,null,null,"8/21/2013",1356.5850219726599,22.582250595092798,1505.5,740.5,{"$f":"+DATEVALUE(TEXT(Table26[[#This Row],[Date]],\"MM/DD/YYYY\"))","v":"2013-08-21"}]
[null,null,null,null,null,null,null,null,null,null,null,null,null,null,null,null,null,null,null,null,null,null,null,null,null,null,null,null,null,null,null,null,null,null,null,null,null,null,null,null,null,null,null,null,null,null,null,null,null,"8/20/2013",1369.5249633789099,23.0050001144409,1519.5,749.5,{"$f":"+DATEVALUE(TEXT(Table26[[#This Row],[Date]],\"MM/DD/YYYY\"))","v":"2013-08-20"}]
[null,null,null,null,null,null,null,null,null,null,null,null,null,null,null,null,null,null,null,null,null,null,null,null,null,null,null,null,null,null,null,null,null,null,null,null,null,null,null,null,null,null,null,null,null,null,null,null,null,"8/19/2013",1365.7999877929699,23.169000625610401,1512.5,753.5,{"$f":"+DATEVALUE(TEXT(Table26[[#This Row],[Date]],\"MM/DD/YYYY\"))","v":"2013-08-19"}]
[null,null,null,null,null,null,null,null,null,null,null,null,null,null,null,null,null,null,null,null,null,null,null,null,null,null,null,null,null,null,null,null,null,null,null,null,null,null,null,null,null,null,null,null,null,null,null,null,null,"8/18/2013",1376.53002929688,23.269999504089402,1527,763,{"$f":"+DATEVALUE(TEXT(Table26[[#This Row],[Date]],\"MM/DD/YYYY\"))","v":"2013-08-18"}]
[null,null,null,null,null,null,null,null,null,null,null,null,null,null,null,null,null,null,null,null,null,null,null,null,null,null,null,null,null,null,null,null,null,null,null,null,null,null,null,null,null,null,null,null,null,null,null,null,null,"8/17/2013",1376.8049926757801,23.248999595642101,1526.5,763,{"$f":"+DATEVALUE(TEXT(Table26[[#This Row],[Date]],\"MM/DD/YYYY\"))","v":"2013-08-17"}]
[null,null,null,null,null,null,null,null,null,null,null,null,null,null,null,null,null,null,null,null,null,null,null,null,null,null,null,null,null,null,null,null,null,null,null,null,null,null,null,null,null,null,null,null,null,null,null,null,null,"8/16/2013",1376.8049926757801,23.248999595642101,1526.5,763,{"$f":"+DATEVALUE(TEXT(Table26[[#This Row],[Date]],\"MM/DD/YYYY\"))","v":"2013-08-16"}]
[null,null,null,null,null,null,null,null,null,null,null,null,null,null,null,null,null,null,null,null,null,null,null,null,null,null,null,null,null,null,null,null,null,null,null,null,null,null,null,null,null,null,null,null,null,null,null,null,null,"8/15/2013",1364.8150024414099,22.9575004577637,1525,761.5,{"$f":"+DATEVALUE(TEXT(Table26[[#This Row],[Date]],\"MM/DD/YYYY\"))","v":"2013-08-15"}]
[null,null,null,null,null,null,null,null,null,null,null,null,null,null,null,null,null,null,null,null,null,null,null,null,null,null,null,null,null,null,null,null,null,null,null,null,null,null,null,null,null,null,null,null,null,null,null,null,null,"8/14/2013",1338.2100219726599,21.8800001144409,1510.5,743.5,{"$f":"+DATEVALUE(TEXT(Table26[[#This Row],[Date]],\"MM/DD/YYYY\"))","v":"2013-08-14"}]
[null,null,null,null,null,null,null,null,null,null,null,null,null,null,null,null,null,null,null,null,null,null,null,null,null,null,null,null,null,null,null,null,null,null,null,null,null,null,null,null,null,null,null,null,null,null,null,null,null,"8/13/2013",1323,21.472000122070298,1498.5,738.5,{"$f":"+DATEVALUE(TEXT(Table26[[#This Row],[Date]],\"MM/DD/YYYY\"))","v":"2013-08-13"}]
[null,null,null,null,null,null,null,null,null,null,null,null,null,null,null,null,null,null,null,null,null,null,null,null,null,null,null,null,null,null,null,null,null,null,null,null,null,null,null,null,null,null,null,null,null,null,null,null,null,"8/12/2013",1336.65002441406,21.375500679016099,1497,738,{"$f":"+DATEVALUE(TEXT(Table26[[#This Row],[Date]],\"MM/DD/YYYY\"))","v":"2013-08-12"}]
[null,null,null,null,null,null,null,null,null,null,null,null,null,null,null,null,null,null,null,null,null,null,null,null,null,null,null,null,null,null,null,null,null,null,null,null,null,null,null,null,null,null,null,null,null,null,null,null,null,"8/11/2013",1329.67004394531,20.939999580383301,1507.5,746.5,{"$f":"+DATEVALUE(TEXT(Table26[[#This Row],[Date]],\"MM/DD/YYYY\"))","v":"2013-08-11"}]
[null,null,null,null,null,null,null,null,null,null,null,null,null,null,null,null,null,null,null,null,null,null,null,null,null,null,null,null,null,null,null,null,null,null,null,null,null,null,null,null,null,null,null,null,null,null,null,null,null,"8/10/2013",1314.4500122070301,20.5494995117188,1502.5,742,{"$f":"+DATEVALUE(TEXT(Table26[[#This Row],[Date]],\"MM/DD/YYYY\"))","v":"2013-08-10"}]
[null,null,null,null,null,null,null,null,null,null,null,null,null,null,null,null,null,null,null,null,null,null,null,null,null,null,null,null,null,null,null,null,null,null,null,null,null,null,null,null,null,null,null,null,null,null,null,null,null,"8/9/2013",1314.4500122070301,20.5494995117188,1502.5,742,{"$f":"+DATEVALUE(TEXT(Table26[[#This Row],[Date]],\"MM/DD/YYYY\"))","v":"2013-08-09"}]
[null,null,null,null,null,null,null,null,null,null,null,null,null,null,null,null,null,null,null,null,null,null,null,null,null,null,null,null,null,null,null,null,null,null,null,null,null,null,null,null,null,null,null,null,null,null,null,null,null,"8/8/2013",1313.97998046875,20.282950401306199,1494.5,739.5,{"$f":"+DATEVALUE(TEXT(Table26[[#This Row],[Date]],\"MM/DD/YYYY\"))","v":"2013-08-08"}]
[null,null,null,null,null,null,null,null,null,null,null,null,null,null,null,null,null,null,null,null,null,null,null,null,null,null,null,null,null,null,null,null,null,null,null,null,null,null,null,null,null,null,null,null,null,null,null,null,null,"8/7/2013",1285.2599487304699,19.555000305175799,1437.5,723.5,{"$f":"+DATEVALUE(TEXT(Table26[[#This Row],[Date]],\"MM/DD/YYYY\"))","v":"2013-08-07"}]
[null,null,null,null,null,null,null,null,null,null,null,null,null,null,null,null,null,null,null,null,null,null,null,null,null,null,null,null,null,null,null,null,null,null,null,null,null,null,null,null,null,null,null,null,null,null,null,null,null,"8/6/2013",1282.7000122070301,19.5394992828369,1429.5,725.5,{"$f":"+DATEVALUE(TEXT(Table26[[#This Row],[Date]],\"MM/DD/YYYY\"))","v":"2013-08-06"}]
[null,null,null,null,null,null,null,null,null,null,null,null,null,null,null,null,null,null,null,null,null,null,null,null,null,null,null,null,null,null,null,null,null,null,null,null,null,null,null,null,null,null,null,null,null,null,null,null,null,"8/5/2013",1303.25,19.709499359130898,1451.5,733,{"$f":"+DATEVALUE(TEXT(Table26[[#This Row],[Date]],\"MM/DD/YYYY\"))","v":"2013-08-05"}]
[null,null,null,null,null,null,null,null,null,null,null,null,null,null,null,null,null,null,null,null,null,null,null,null,null,null,null,null,null,null,null,null,null,null,null,null,null,null,null,null,null,null,null,null,null,null,null,null,null,"8/4/2013",1314.15002441406,19.9209995269775,1449.5,731.5,{"$f":"+DATEVALUE(TEXT(Table26[[#This Row],[Date]],\"MM/DD/YYYY\"))","v":"2013-08-04"}]
[null,null,null,null,null,null,null,null,null,null,null,null,null,null,null,null,null,null,null,null,null,null,null,null,null,null,null,null,null,null,null,null,null,null,null,null,null,null,null,null,null,null,null,null,null,null,null,null,null,"8/3/2013",1311.9599609375,19.8900003433228,1449.5,731,{"$f":"+DATEVALUE(TEXT(Table26[[#This Row],[Date]],\"MM/DD/YYYY\"))","v":"2013-08-03"}]
[null,null,null,null,null,null,null,null,null,null,null,null,null,null,null,null,null,null,null,null,null,null,null,null,null,null,null,null,null,null,null,null,null,null,null,null,null,null,null,null,null,null,null,null,null,null,null,null,null,"8/2/2013",1311.9599609375,19.8900003433228,1449.5,731,{"$f":"+DATEVALUE(TEXT(Table26[[#This Row],[Date]],\"MM/DD/YYYY\"))","v":"2013-08-02"}]
[null,null,null,null,null,null,null,null,null,null,null,null,null,null,null,null,null,null,null,null,null,null,null,null,null,null,null,null,null,null,null,null,null,null,null,null,null,null,null,null,null,null,null,null,null,null,null,null,null,"8/1/2013",1303.59997558594,19.5700006484985,1437.5,734,{"$f":"+DATEVALUE(TEXT(Table26[[#This Row],[Date]],\"MM/DD/YYYY\"))","v":"2013-08-01"}]
[null,null,null,null,null,null,null,null,null,null,null,null,null,null,null,null,null,null,null,null,null,null,null,null,null,null,null,null,null,null,null,null,null,null,null,null,null,null,null,null,null,null,null,null,null,null,null,null,null,"7/31/2013",1325.2999877929699,19.8800001144409,1443,730.5,{"$f":"+DATEVALUE(TEXT(Table26[[#This Row],[Date]],\"MM/DD/YYYY\"))","v":"2013-07-31"}]
[null,null,null,null,null,null,null,null,null,null,null,null,null,null,null,null,null,null,null,null,null,null,null,null,null,null,null,null,null,null,null,null,null,null,null,null,null,null,null,null,null,null,null,null,null,null,null,null,null,"7/30/2013",1327.7050170898401,19.769999504089402,1438.5,730.5,{"$f":"+DATEVALUE(TEXT(Table26[[#This Row],[Date]],\"MM/DD/YYYY\"))","v":"2013-07-30"}]
[null,null,null,null,null,null,null,null,null,null,null,null,null,null,null,null,null,null,null,null,null,null,null,null,null,null,null,null,null,null,null,null,null,null,null,null,null,null,null,null,null,null,null,null,null,null,null,null,null,"7/29/2013",1326.2099609375,19.845499992370598,1438.5,742.5,{"$f":"+DATEVALUE(TEXT(Table26[[#This Row],[Date]],\"MM/DD/YYYY\"))","v":"2013-07-29"}]
[null,null,null,null,null,null,null,null,null,null,null,null,null,null,null,null,null,null,null,null,null,null,null,null,null,null,null,null,null,null,null,null,null,null,null,null,null,null,null,null,null,null,null,null,null,null,null,null,null,"7/28/2013",1333.1649780273401,20.00950050354,1431.5,727.5,{"$f":"+DATEVALUE(TEXT(Table26[[#This Row],[Date]],\"MM/DD/YYYY\"))","v":"2013-07-28"}]
[null,null,null,null,null,null,null,null,null,null,null,null,null,null,null,null,null,null,null,null,null,null,null,null,null,null,null,null,null,null,null,null,null,null,null,null,null,null,null,null,null,null,null,null,null,null,null,null,null,"7/27/2013",1333.26000976563,20.002449989318801,1430.5,726.5,{"$f":"+DATEVALUE(TEXT(Table26[[#This Row],[Date]],\"MM/DD/YYYY\"))","v":"2013-07-27"}]
[null,null,null,null,null,null,null,null,null,null,null,null,null,null,null,null,null,null,null,null,null,null,null,null,null,null,null,null,null,null,null,null,null,null,null,null,null,null,null,null,null,null,null,null,null,null,null,null,null,"7/26/2013",1333.26000976563,20.002449989318801,1430.5,726.5,{"$f":"+DATEVALUE(TEXT(Table26[[#This Row],[Date]],\"MM/DD/YYYY\"))","v":"2013-07-26"}]
[null,null,null,null,null,null,null,null,null,null,null,null,null,null,null,null,null,null,null,null,null,null,null,null,null,null,null,null,null,null,null,null,null,null,null,null,null,null,null,null,null,null,null,null,null,null,null,null,null,"7/25/2013",1334.75,20.295000076293899,1450.5,740,{"$f":"+DATEVALUE(TEXT(Table26[[#This Row],[Date]],\"MM/DD/YYYY\"))","v":"2013-07-25"}]
[null,null,null,null,null,null,null,null,null,null,null,null,null,null,null,null,null,null,null,null,null,null,null,null,null,null,null,null,null,null,null,null,null,null,null,null,null,null,null,null,null,null,null,null,null,null,null,null,null,"7/24/2013",1318.4500122070301,20.149999618530298,1445.5,748,{"$f":"+DATEVALUE(TEXT(Table26[[#This Row],[Date]],\"MM/DD/YYYY\"))","v":"2013-07-24"}]
[null,null,null,null,null,null,null,null,null,null,null,null,null,null,null,null,null,null,null,null,null,null,null,null,null,null,null,null,null,null,null,null,null,null,null,null,null,null,null,null,null,null,null,null,null,null,null,null,null,"7/23/2013",1343.9500122070301,20.414999961852999,1447.5,741.5,{"$f":"+DATEVALUE(TEXT(Table26[[#This Row],[Date]],\"MM/DD/YYYY\"))","v":"2013-07-23"}]
[null,null,null,null,null,null,null,null,null,null,null,null,null,null,null,null,null,null,null,null,null,null,null,null,null,null,null,null,null,null,null,null,null,null,null,null,null,null,null,null,null,null,null,null,null,null,null,null,null,"7/22/2013",1336.50500488281,20.5775003433228,1448.5,747.5,{"$f":"+DATEVALUE(TEXT(Table26[[#This Row],[Date]],\"MM/DD/YYYY\"))","v":"2013-07-22"}]
[null,null,null,null,null,null,null,null,null,null,null,null,null,null,null,null,null,null,null,null,null,null,null,null,null,null,null,null,null,null,null,null,null,null,null,null,null,null,null,null,null,null,null,null,null,null,null,null,null,"7/21/2013",1313.6000366210901,19.8699998855591,1440.5,751.5,{"$f":"+DATEVALUE(TEXT(Table26[[#This Row],[Date]],\"MM/DD/YYYY\"))","v":"2013-07-21"}]
[null,null,null,null,null,null,null,null,null,null,null,null,null,null,null,null,null,null,null,null,null,null,null,null,null,null,null,null,null,null,null,null,null,null,null,null,null,null,null,null,null,null,null,null,null,null,null,null,null,"7/20/2013",1296.28002929688,19.514999389648398,1430,747.5,{"$f":"+DATEVALUE(TEXT(Table26[[#This Row],[Date]],\"MM/DD/YYYY\"))","v":"2013-07-20"}]
[null,null,null,null,null,null,null,null,null,null,null,null,null,null,null,null,null,null,null,null,null,null,null,null,null,null,null,null,null,null,null,null,null,null,null,null,null,null,null,null,null,null,null,null,null,null,null,null,null,"7/19/2013",1296.28002929688,19.514999389648398,1430,747.5,{"$f":"+DATEVALUE(TEXT(Table26[[#This Row],[Date]],\"MM/DD/YYYY\"))","v":"2013-07-19"}]
[null,null,null,null,null,null,null,null,null,null,null,null,null,null,null,null,null,null,null,null,null,null,null,null,null,null,null,null,null,null,null,null,null,null,null,null,null,null,null,null,null,null,null,null,null,null,null,null,null,"7/18/2013",1284.14501953125,19.407499313354499,1413.5,745.5,{"$f":"+DATEVALUE(TEXT(Table26[[#This Row],[Date]],\"MM/DD/YYYY\"))","v":"2013-07-18"}]
[null,null,null,null,null,null,null,null,null,null,null,null,null,null,null,null,null,null,null,null,null,null,null,null,null,null,null,null,null,null,null,null,null,null,null,null,null,null,null,null,null,null,null,null,null,null,null,null,null,"7/17/2013",1275.3500366210901,19.3754997253418,1408.5,735.5,{"$f":"+DATEVALUE(TEXT(Table26[[#This Row],[Date]],\"MM/DD/YYYY\"))","v":"2013-07-17"}]
[null,null,null,null,null,null,null,null,null,null,null,null,null,null,null,null,null,null,null,null,null,null,null,null,null,null,null,null,null,null,null,null,null,null,null,null,null,null,null,null,null,null,null,null,null,null,null,null,null,"7/16/2013",1291.0750122070301,19.977000236511198,1423,734.5,{"$f":"+DATEVALUE(TEXT(Table26[[#This Row],[Date]],\"MM/DD/YYYY\"))","v":"2013-07-16"}]
[null,null,null,null,null,null,null,null,null,null,null,null,null,null,null,null,null,null,null,null,null,null,null,null,null,null,null,null,null,null,null,null,null,null,null,null,null,null,null,null,null,null,null,null,null,null,null,null,null,"7/15/2013",1283.2999877929699,19.936450004577601,1422,732.5,{"$f":"+DATEVALUE(TEXT(Table26[[#This Row],[Date]],\"MM/DD/YYYY\"))","v":"2013-07-15"}]
[null,null,null,null,null,null,null,null,null,null,null,null,null,null,null,null,null,null,null,null,null,null,null,null,null,null,null,null,null,null,null,null,null,null,null,null,null,null,null,null,null,null,null,null,null,null,null,null,null,"7/14/2013",1292.02001953125,20.114649772644,1417,725.5,{"$f":"+DATEVALUE(TEXT(Table26[[#This Row],[Date]],\"MM/DD/YYYY\"))","v":"2013-07-14"}]
[null,null,null,null,null,null,null,null,null,null,null,null,null,null,null,null,null,null,null,null,null,null,null,null,null,null,null,null,null,null,null,null,null,null,null,null,null,null,null,null,null,null,null,null,null,null,null,null,null,"7/13/2013",1285.6000366210901,19.9409999847412,1408,722.5,{"$f":"+DATEVALUE(TEXT(Table26[[#This Row],[Date]],\"MM/DD/YYYY\"))","v":"2013-07-13"}]
[null,null,null,null,null,null,null,null,null,null,null,null,null,null,null,null,null,null,null,null,null,null,null,null,null,null,null,null,null,null,null,null,null,null,null,null,null,null,null,null,null,null,null,null,null,null,null,null,null,"7/12/2013",1285.6000366210901,19.9409999847412,1408,722.5,{"$f":"+DATEVALUE(TEXT(Table26[[#This Row],[Date]],\"MM/DD/YYYY\"))","v":"2013-07-12"}]
[null,null,null,null,null,null,null,null,null,null,null,null,null,null,null,null,null,null,null,null,null,null,null,null,null,null,null,null,null,null,null,null,null,null,null,null,null,null,null,null,null,null,null,null,null,null,null,null,null,"7/11/2013",1285.23999023438,20.159999847412099,1411,723.5,{"$f":"+DATEVALUE(TEXT(Table26[[#This Row],[Date]],\"MM/DD/YYYY\"))","v":"2013-07-11"}]
[null,null,null,null,null,null,null,null,null,null,null,null,null,null,null,null,null,null,null,null,null,null,null,null,null,null,null,null,null,null,null,null,null,null,null,null,null,null,null,null,null,null,null,null,null,null,null,null,null,"7/10/2013",1288.6650390625,19.8704996109009,1396,725.5,{"$f":"+DATEVALUE(TEXT(Table26[[#This Row],[Date]],\"MM/DD/YYYY\"))","v":"2013-07-10"}]
[null,null,null,null,null,null,null,null,null,null,null,null,null,null,null,null,null,null,null,null,null,null,null,null,null,null,null,null,null,null,null,null,null,null,null,null,null,null,null,null,null,null,null,null,null,null,null,null,null,"7/9/2013",1250.0199584960901,19.289999961852999,1370,700,{"$f":"+DATEVALUE(TEXT(Table26[[#This Row],[Date]],\"MM/DD/YYYY\"))","v":"2013-07-09"}]
[null,null,null,null,null,null,null,null,null,null,null,null,null,null,null,null,null,null,null,null,null,null,null,null,null,null,null,null,null,null,null,null,null,null,null,null,null,null,null,null,null,null,null,null,null,null,null,null,null,"7/8/2013",1236.3400268554699,19.088500022888201,1359,695,{"$f":"+DATEVALUE(TEXT(Table26[[#This Row],[Date]],\"MM/DD/YYYY\"))","v":"2013-07-08"}]
[null,null,null,null,null,null,null,null,null,null,null,null,null,null,null,null,null,null,null,null,null,null,null,null,null,null,null,null,null,null,null,null,null,null,null,null,null,null,null,null,null,null,null,null,null,null,null,null,null,"7/7/2013",1225.4450073242199,18.970000267028801,1333,688,{"$f":"+DATEVALUE(TEXT(Table26[[#This Row],[Date]],\"MM/DD/YYYY\"))","v":"2013-07-07"}]
[null,null,null,null,null,null,null,null,null,null,null,null,null,null,null,null,null,null,null,null,null,null,null,null,null,null,null,null,null,null,null,null,null,null,null,null,null,null,null,null,null,null,null,null,null,null,null,null,null,"7/6/2013",1223.28503417969,18.9179992675781,1327,683.5,{"$f":"+DATEVALUE(TEXT(Table26[[#This Row],[Date]],\"MM/DD/YYYY\"))","v":"2013-07-06"}]
[null,null,null,null,null,null,null,null,null,null,null,null,null,null,null,null,null,null,null,null,null,null,null,null,null,null,null,null,null,null,null,null,null,null,null,null,null,null,null,null,null,null,null,null,null,null,null,null,null,"7/5/2013",1223.28503417969,18.9179992675781,1327,683.5,{"$f":"+DATEVALUE(TEXT(Table26[[#This Row],[Date]],\"MM/DD/YYYY\"))","v":"2013-07-05"}]
[null,null,null,null,null,null,null,null,null,null,null,null,null,null,null,null,null,null,null,null,null,null,null,null,null,null,null,null,null,null,null,null,null,null,null,null,null,null,null,null,null,null,null,null,null,null,null,null,null,"7/4/2013",1249.6699829101599,19.5890007019043,1342,678,{"$f":"+DATEVALUE(TEXT(Table26[[#This Row],[Date]],\"MM/DD/YYYY\"))","v":"2013-07-04"}]
[null,null,null,null,null,null,null,null,null,null,null,null,null,null,null,null,null,null,null,null,null,null,null,null,null,null,null,null,null,null,null,null,null,null,null,null,null,null,null,null,null,null,null,null,null,null,null,null,null,"7/3/2013",1255.36999511719,19.797999382019,1344,685,{"$f":"+DATEVALUE(TEXT(Table26[[#This Row],[Date]],\"MM/DD/YYYY\"))","v":"2013-07-03"}]
[null,null,null,null,null,null,null,null,null,null,null,null,null,null,null,null,null,null,null,null,null,null,null,null,null,null,null,null,null,null,null,null,null,null,null,null,null,null,null,null,null,null,null,null,null,null,null,null,null,"7/2/2013",1243.6449584960901,19.430000305175799,1372,687,{"$f":"+DATEVALUE(TEXT(Table26[[#This Row],[Date]],\"MM/DD/YYYY\"))","v":"2013-07-02"}]
[null,null,null,null,null,null,null,null,null,null,null,null,null,null,null,null,null,null,null,null,null,null,null,null,null,null,null,null,null,null,null,null,null,null,null,null,null,null,null,null,null,null,null,null,null,null,null,null,null,"7/1/2013",1253.9049682617199,19.671000480651902,1377,687.5,{"$f":"+DATEVALUE(TEXT(Table26[[#This Row],[Date]],\"MM/DD/YYYY\"))","v":"2013-07-01"}]
[null,null,null,null,null,null,null,null,null,null,null,null,null,null,null,null,null,null,null,null,null,null,null,null,null,null,null,null,null,null,null,null,null,null,null,null,null,null,null,null,null,null,null,null,null,null,null,null,null,"6/30/2013",1238.84497070313,19.895500183105501,1335,660.5,{"$f":"+DATEVALUE(TEXT(Table26[[#This Row],[Date]],\"MM/DD/YYYY\"))","v":"2013-06-30"}]
[null,null,null,null,null,null,null,null,null,null,null,null,null,null,null,null,null,null,null,null,null,null,null,null,null,null,null,null,null,null,null,null,null,null,null,null,null,null,null,null,null,null,null,null,null,null,null,null,null,"6/29/2013",1234.5650024414099,19.6875,1341,659,{"$f":"+DATEVALUE(TEXT(Table26[[#This Row],[Date]],\"MM/DD/YYYY\"))","v":"2013-06-29"}]
[null,null,null,null,null,null,null,null,null,null,null,null,null,null,null,null,null,null,null,null,null,null,null,null,null,null,null,null,null,null,null,null,null,null,null,null,null,null,null,null,null,null,null,null,null,null,null,null,null,"6/28/2013",1234.5650024414099,19.6875,1341,659,{"$f":"+DATEVALUE(TEXT(Table26[[#This Row],[Date]],\"MM/DD/YYYY\"))","v":"2013-06-28"}]
[null,null,null,null,null,null,null,null,null,null,null,null,null,null,null,null,null,null,null,null,null,null,null,null,null,null,null,null,null,null,null,null,null,null,null,null,null,null,null,null,null,null,null,null,null,null,null,null,null,"6/27/2013",1203,18.5594997406006,1317,646,{"$f":"+DATEVALUE(TEXT(Table26[[#This Row],[Date]],\"MM/DD/YYYY\"))","v":"2013-06-27"}]
[null,null,null,null,null,null,null,null,null,null,null,null,null,null,null,null,null,null,null,null,null,null,null,null,null,null,null,null,null,null,null,null,null,null,null,null,null,null,null,null,null,null,null,null,null,null,null,null,null,"6/26/2013",1229,18.617500305175799,1303.5,631,{"$f":"+DATEVALUE(TEXT(Table26[[#This Row],[Date]],\"MM/DD/YYYY\"))","v":"2013-06-26"}]
[null,null,null,null,null,null,null,null,null,null,null,null,null,null,null,null,null,null,null,null,null,null,null,null,null,null,null,null,null,null,null,null,null,null,null,null,null,null,null,null,null,null,null,null,null,null,null,null,null,"6/25/2013",1277.3099975585901,19.639499664306602,1348,664,{"$f":"+DATEVALUE(TEXT(Table26[[#This Row],[Date]],\"MM/DD/YYYY\"))","v":"2013-06-25"}]
[null,null,null,null,null,null,null,null,null,null,null,null,null,null,null,null,null,null,null,null,null,null,null,null,null,null,null,null,null,null,null,null,null,null,null,null,null,null,null,null,null,null,null,null,null,null,null,null,null,"6/24/2013",1283.67004394531,19.677000045776399,1334,662,{"$f":"+DATEVALUE(TEXT(Table26[[#This Row],[Date]],\"MM/DD/YYYY\"))","v":"2013-06-24"}]
[null,null,null,null,null,null,null,null,null,null,null,null,null,null,null,null,null,null,null,null,null,null,null,null,null,null,null,null,null,null,null,null,null,null,null,null,null,null,null,null,null,null,null,null,null,null,null,null,null,"6/23/2013",1299.7000122070301,20.194999694824201,1378,675,{"$f":"+DATEVALUE(TEXT(Table26[[#This Row],[Date]],\"MM/DD/YYYY\"))","v":"2013-06-23"}]
[null,null,null,null,null,null,null,null,null,null,null,null,null,null,null,null,null,null,null,null,null,null,null,null,null,null,null,null,null,null,null,null,null,null,null,null,null,null,null,null,null,null,null,null,null,null,null,null,null,"6/22/2013",1296.4299926757801,20.1149997711182,1376,675,{"$f":"+DATEVALUE(TEXT(Table26[[#This Row],[Date]],\"MM/DD/YYYY\"))","v":"2013-06-22"}]
[null,null,null,null,null,null,null,null,null,null,null,null,null,null,null,null,null,null,null,null,null,null,null,null,null,null,null,null,null,null,null,null,null,null,null,null,null,null,null,null,null,null,null,null,null,null,null,null,null,"6/21/2013",1296.4299926757801,20.1149997711182,1376,675,{"$f":"+DATEVALUE(TEXT(Table26[[#This Row],[Date]],\"MM/DD/YYYY\"))","v":"2013-06-21"}]
[null,null,null,null,null,null,null,null,null,null,null,null,null,null,null,null,null,null,null,null,null,null,null,null,null,null,null,null,null,null,null,null,null,null,null,null,null,null,null,null,null,null,null,null,null,null,null,null,null,"6/20/2013",1280.1599731445301,19.672199249267599,1360,661,{"$f":"+DATEVALUE(TEXT(Table26[[#This Row],[Date]],\"MM/DD/YYYY\"))","v":"2013-06-20"}]
[null,null,null,null,null,null,null,null,null,null,null,null,null,null,null,null,null,null,null,null,null,null,null,null,null,null,null,null,null,null,null,null,null,null,null,null,null,null,null,null,null,null,null,null,null,null,null,null,null,"6/19/2013",1343.99499511719,21.226499557495099,1412,693,{"$f":"+DATEVALUE(TEXT(Table26[[#This Row],[Date]],\"MM/DD/YYYY\"))","v":"2013-06-19"}]
[null,null,null,null,null,null,null,null,null,null,null,null,null,null,null,null,null,null,null,null,null,null,null,null,null,null,null,null,null,null,null,null,null,null,null,null,null,null,null,null,null,null,null,null,null,null,null,null,null,"6/18/2013",1368.0850219726599,21.6875,1443,711.5,{"$f":"+DATEVALUE(TEXT(Table26[[#This Row],[Date]],\"MM/DD/YYYY\"))","v":"2013-06-18"}]
[null,null,null,null,null,null,null,null,null,null,null,null,null,null,null,null,null,null,null,null,null,null,null,null,null,null,null,null,null,null,null,null,null,null,null,null,null,null,null,null,null,null,null,null,null,null,null,null,null,"6/17/2013",1384.34997558594,21.8800001144409,1434.5,714.5,{"$f":"+DATEVALUE(TEXT(Table26[[#This Row],[Date]],\"MM/DD/YYYY\"))","v":"2013-06-17"}]
[null,null,null,null,null,null,null,null,null,null,null,null,null,null,null,null,null,null,null,null,null,null,null,null,null,null,null,null,null,null,null,null,null,null,null,null,null,null,null,null,null,null,null,null,null,null,null,null,null,"6/16/2013",1389.86499023438,22.034999847412099,1447.5,731,{"$f":"+DATEVALUE(TEXT(Table26[[#This Row],[Date]],\"MM/DD/YYYY\"))","v":"2013-06-16"}]
[null,null,null,null,null,null,null,null,null,null,null,null,null,null,null,null,null,null,null,null,null,null,null,null,null,null,null,null,null,null,null,null,null,null,null,null,null,null,null,null,null,null,null,null,null,null,null,null,null,"6/15/2013",1390.6799926757801,22.0725002288818,1446.5,731.5,{"$f":"+DATEVALUE(TEXT(Table26[[#This Row],[Date]],\"MM/DD/YYYY\"))","v":"2013-06-15"}]
[null,null,null,null,null,null,null,null,null,null,null,null,null,null,null,null,null,null,null,null,null,null,null,null,null,null,null,null,null,null,null,null,null,null,null,null,null,null,null,null,null,null,null,null,null,null,null,null,null,"6/14/2013",1390.6799926757801,22.0725002288818,1446.5,731.5,{"$f":"+DATEVALUE(TEXT(Table26[[#This Row],[Date]],\"MM/DD/YYYY\"))","v":"2013-06-14"}]
[null,null,null,null,null,null,null,null,null,null,null,null,null,null,null,null,null,null,null,null,null,null,null,null,null,null,null,null,null,null,null,null,null,null,null,null,null,null,null,null,null,null,null,null,null,null,null,null,null,"6/13/2013",1386.15002441406,21.840999603271499,1459.5,734.5,{"$f":"+DATEVALUE(TEXT(Table26[[#This Row],[Date]],\"MM/DD/YYYY\"))","v":"2013-06-13"}]
[null,null,null,null,null,null,null,null,null,null,null,null,null,null,null,null,null,null,null,null,null,null,null,null,null,null,null,null,null,null,null,null,null,null,null,null,null,null,null,null,null,null,null,null,null,null,null,null,null,"6/12/2013",1389.03503417969,21.770999908447301,1480.5,757.5,{"$f":"+DATEVALUE(TEXT(Table26[[#This Row],[Date]],\"MM/DD/YYYY\"))","v":"2013-06-12"}]
[null,null,null,null,null,null,null,null,null,null,null,null,null,null,null,null,null,null,null,null,null,null,null,null,null,null,null,null,null,null,null,null,null,null,null,null,null,null,null,null,null,null,null,null,null,null,null,null,null,"6/11/2013",1377.63000488281,21.7329998016357,1480.5,753.5,{"$f":"+DATEVALUE(TEXT(Table26[[#This Row],[Date]],\"MM/DD/YYYY\"))","v":"2013-06-11"}]
[null,null,null,null,null,null,null,null,null,null,null,null,null,null,null,null,null,null,null,null,null,null,null,null,null,null,null,null,null,null,null,null,null,null,null,null,null,null,null,null,null,null,null,null,null,null,null,null,null,"6/10/2013",1385.5,21.897500038147001,1506.5,769.5,{"$f":"+DATEVALUE(TEXT(Table26[[#This Row],[Date]],\"MM/DD/YYYY\"))","v":"2013-06-10"}]
[null,null,null,null,null,null,null,null,null,null,null,null,null,null,null,null,null,null,null,null,null,null,null,null,null,null,null,null,null,null,null,null,null,null,null,null,null,null,null,null,null,null,null,null,null,null,null,null,null,"6/9/2013",1383.25,21.6122999191284,1499.5,754.5,{"$f":"+DATEVALUE(TEXT(Table26[[#This Row],[Date]],\"MM/DD/YYYY\"))","v":"2013-06-09"}]
[null,null,null,null,null,null,null,null,null,null,null,null,null,null,null,null,null,null,null,null,null,null,null,null,null,null,null,null,null,null,null,null,null,null,null,null,null,null,null,null,null,null,null,null,null,null,null,null,null,"6/8/2013",1383.02502441406,21.659999847412099,1502.5,757.5,{"$f":"+DATEVALUE(TEXT(Table26[[#This Row],[Date]],\"MM/DD/YYYY\"))","v":"2013-06-08"}]
[null,null,null,null,null,null,null,null,null,null,null,null,null,null,null,null,null,null,null,null,null,null,null,null,null,null,null,null,null,null,null,null,null,null,null,null,null,null,null,null,null,null,null,null,null,null,null,null,null,"6/7/2013",1383.02502441406,21.659999847412099,1502.5,757.5,{"$f":"+DATEVALUE(TEXT(Table26[[#This Row],[Date]],\"MM/DD/YYYY\"))","v":"2013-06-07"}]
[null,null,null,null,null,null,null,null,null,null,null,null,null,null,null,null,null,null,null,null,null,null,null,null,null,null,null,null,null,null,null,null,null,null,null,null,null,null,null,null,null,null,null,null,null,null,null,null,null,"6/6/2013",1412.2999877929699,22.607500076293899,1527,759.5,{"$f":"+DATEVALUE(TEXT(Table26[[#This Row],[Date]],\"MM/DD/YYYY\"))","v":"2013-06-06"}]
[null,null,null,null,null,null,null,null,null,null,null,null,null,null,null,null,null,null,null,null,null,null,null,null,null,null,null,null,null,null,null,null,null,null,null,null,null,null,null,null,null,null,null,null,null,null,null,null,null,"6/5/2013",1402.05004882813,22.533999443054199,1512.5,757.5,{"$f":"+DATEVALUE(TEXT(Table26[[#This Row],[Date]],\"MM/DD/YYYY\"))","v":"2013-06-05"}]
[null,null,null,null,null,null,null,null,null,null,null,null,null,null,null,null,null,null,null,null,null,null,null,null,null,null,null,null,null,null,null,null,null,null,null,null,null,null,null,null,null,null,null,null,null,null,null,null,null,"6/4/2013",1399.8300170898401,22.555000305175799,1494.5,752.5,{"$f":"+DATEVALUE(TEXT(Table26[[#This Row],[Date]],\"MM/DD/YYYY\"))","v":"2013-06-04"}]
[null,null,null,null,null,null,null,null,null,null,null,null,null,null,null,null,null,null,null,null,null,null,null,null,null,null,null,null,null,null,null,null,null,null,null,null,null,null,null,null,null,null,null,null,null,null,null,null,null,"6/3/2013",1413.15002441406,22.7449998855591,1497.5,759.5,{"$f":"+DATEVALUE(TEXT(Table26[[#This Row],[Date]],\"MM/DD/YYYY\"))","v":"2013-06-03"}]
[null,null,null,null,null,null,null,null,null,null,null,null,null,null,null,null,null,null,null,null,null,null,null,null,null,null,null,null,null,null,null,null,null,null,null,null,null,null,null,null,null,null,null,null,null,null,null,null,null,"6/2/2013",1389.72998046875,22.329999923706101,1460.5,749.5,{"$f":"+DATEVALUE(TEXT(Table26[[#This Row],[Date]],\"MM/DD/YYYY\"))","v":"2013-06-02"}]
[null,null,null,null,null,null,null,null,null,null,null,null,null,null,null,null,null,null,null,null,null,null,null,null,null,null,null,null,null,null,null,null,null,null,null,null,null,null,null,null,null,null,null,null,null,null,null,null,null,"6/1/2013",1387.8500366210901,22.258999824523901,1458.5,750.5,{"$f":"+DATEVALUE(TEXT(Table26[[#This Row],[Date]],\"MM/DD/YYYY\"))","v":"2013-06-01"}]
[null,null,null,null,null,null,null,null,null,null,null,null,null,null,null,null,null,null,null,null,null,null,null,null,null,null,null,null,null,null,null,null,null,null,null,null,null,null,null,null,null,null,null,null,null,null,null,null,null,"5/31/2013",1387.8500366210901,22.258999824523901,1458.5,750.5,{"$f":"+DATEVALUE(TEXT(Table26[[#This Row],[Date]],\"MM/DD/YYYY\"))","v":"2013-05-31"}]
[null,null,null,null,null,null,null,null,null,null,null,null,null,null,null,null,null,null,null,null,null,null,null,null,null,null,null,null,null,null,null,null,null,null,null,null,null,null,null,null,null,null,null,null,null,null,null,null,null,"5/30/2013",1415.5,22.840000152587901,1484.5,757.5,{"$f":"+DATEVALUE(TEXT(Table26[[#This Row],[Date]],\"MM/DD/YYYY\"))","v":"2013-05-30"}]
[null,null,null,null,null,null,null,null,null,null,null,null,null,null,null,null,null,null,null,null,null,null,null,null,null,null,null,null,null,null,null,null,null,null,null,null,null,null,null,null,null,null,null,null,null,null,null,null,null,"5/29/2013",1391.4199829101599,22.4965000152588,1454.5,749.5,{"$f":"+DATEVALUE(TEXT(Table26[[#This Row],[Date]],\"MM/DD/YYYY\"))","v":"2013-05-29"}]
[null,null,null,null,null,null,null,null,null,null,null,null,null,null,null,null,null,null,null,null,null,null,null,null,null,null,null,null,null,null,null,null,null,null,null,null,null,null,null,null,null,null,null,null,null,null,null,null,null,"5/28/2013",1380.84497070313,22.340199470520002,1458.5,755.5,{"$f":"+DATEVALUE(TEXT(Table26[[#This Row],[Date]],\"MM/DD/YYYY\"))","v":"2013-05-28"}]
[null,null,null,null,null,null,null,null,null,null,null,null,null,null,null,null,null,null,null,null,null,null,null,null,null,null,null,null,null,null,null,null,null,null,null,null,null,null,null,null,null,null,null,null,null,null,null,null,null,"5/27/2013",1394.08996582031,22.6350002288818,1451.5,737.25,{"$f":"+DATEVALUE(TEXT(Table26[[#This Row],[Date]],\"MM/DD/YYYY\"))","v":"2013-05-27"}]
[null,null,null,null,null,null,null,null,null,null,null,null,null,null,null,null,null,null,null,null,null,null,null,null,null,null,null,null,null,null,null,null,null,null,null,null,null,null,null,null,null,null,null,null,null,null,null,null,null,"5/26/2013",1387.02502441406,22.419500350952099,1454.5,730.5,{"$f":"+DATEVALUE(TEXT(Table26[[#This Row],[Date]],\"MM/DD/YYYY\"))","v":"2013-05-26"}]
[null,null,null,null,null,null,null,null,null,null,null,null,null,null,null,null,null,null,null,null,null,null,null,null,null,null,null,null,null,null,null,null,null,null,null,null,null,null,null,null,null,null,null,null,null,null,null,null,null,"5/25/2013",1386.625,22.400000572204601,1453.5,727.5,{"$f":"+DATEVALUE(TEXT(Table26[[#This Row],[Date]],\"MM/DD/YYYY\"))","v":"2013-05-25"}]
[null,null,null,null,null,null,null,null,null,null,null,null,null,null,null,null,null,null,null,null,null,null,null,null,null,null,null,null,null,null,null,null,null,null,null,null,null,null,null,null,null,null,null,null,null,null,null,null,null,"5/24/2013",1386.625,22.400000572204601,1453.5,727.5,{"$f":"+DATEVALUE(TEXT(Table26[[#This Row],[Date]],\"MM/DD/YYYY\"))","v":"2013-05-24"}]
[null,null,null,null,null,null,null,null,null,null,null,null,null,null,null,null,null,null,null,null,null,null,null,null,null,null,null,null,null,null,null,null,null,null,null,null,null,null,null,null,null,null,null,null,null,null,null,null,null,"5/23/2013",1391.9249877929699,22.593999862670898,1460,737.5,{"$f":"+DATEVALUE(TEXT(Table26[[#This Row],[Date]],\"MM/DD/YYYY\"))","v":"2013-05-23"}]
[null,null,null,null,null,null,null,null,null,null,null,null,null,null,null,null,null,null,null,null,null,null,null,null,null,null,null,null,null,null,null,null,null,null,null,null,null,null,null,null,null,null,null,null,null,null,null,null,null,"5/22/2013",1368.5599975585901,22.293499946594199,1469,745.5,{"$f":"+DATEVALUE(TEXT(Table26[[#This Row],[Date]],\"MM/DD/YYYY\"))","v":"2013-05-22"}]
[null,null,null,null,null,null,null,null,null,null,null,null,null,null,null,null,null,null,null,null,null,null,null,null,null,null,null,null,null,null,null,null,null,null,null,null,null,null,null,null,null,null,null,null,null,null,null,null,null,"5/21/2013",1374.2799682617199,22.468999862670898,1461.5,744.5,{"$f":"+DATEVALUE(TEXT(Table26[[#This Row],[Date]],\"MM/DD/YYYY\"))","v":"2013-05-21"}]
[null,null,null,null,null,null,null,null,null,null,null,null,null,null,null,null,null,null,null,null,null,null,null,null,null,null,null,null,null,null,null,null,null,null,null,null,null,null,null,null,null,null,null,null,null,null,null,null,null,"5/20/2013",1393.14501953125,22.8745002746582,1489.5,747.5,{"$f":"+DATEVALUE(TEXT(Table26[[#This Row],[Date]],\"MM/DD/YYYY\"))","v":"2013-05-20"}]
[null,null,null,null,null,null,null,null,null,null,null,null,null,null,null,null,null,null,null,null,null,null,null,null,null,null,null,null,null,null,null,null,null,null,null,null,null,null,null,null,null,null,null,null,null,null,null,null,null,"5/19/2013",1342.88000488281,21.079999923706101,1434.5,738.5,{"$f":"+DATEVALUE(TEXT(Table26[[#This Row],[Date]],\"MM/DD/YYYY\"))","v":"2013-05-19"}]
[null,null,null,null,null,null,null,null,null,null,null,null,null,null,null,null,null,null,null,null,null,null,null,null,null,null,null,null,null,null,null,null,null,null,null,null,null,null,null,null,null,null,null,null,null,null,null,null,null,"5/18/2013",1359.52502441406,22.259999275207502,1454.5,737.5,{"$f":"+DATEVALUE(TEXT(Table26[[#This Row],[Date]],\"MM/DD/YYYY\"))","v":"2013-05-18"}]
[null,null,null,null,null,null,null,null,null,null,null,null,null,null,null,null,null,null,null,null,null,null,null,null,null,null,null,null,null,null,null,null,null,null,null,null,null,null,null,null,null,null,null,null,null,null,null,null,null,"5/17/2013",1359.52502441406,22.259999275207502,1454.5,737.5,{"$f":"+DATEVALUE(TEXT(Table26[[#This Row],[Date]],\"MM/DD/YYYY\"))","v":"2013-05-17"}]
[null,null,null,null,null,null,null,null,null,null,null,null,null,null,null,null,null,null,null,null,null,null,null,null,null,null,null,null,null,null,null,null,null,null,null,null,null,null,null,null,null,null,null,null,null,null,null,null,null,"5/16/2013",1385.10498046875,22.646499633789102,1482.5,740.5,{"$f":"+DATEVALUE(TEXT(Table26[[#This Row],[Date]],\"MM/DD/YYYY\"))","v":"2013-05-16"}]
[null,null,null,null,null,null,null,null,null,null,null,null,null,null,null,null,null,null,null,null,null,null,null,null,null,null,null,null,null,null,null,null,null,null,null,null,null,null,null,null,null,null,null,null,null,null,null,null,null,"5/15/2013",1395.19494628906,22.606499671936,1492.5,728.5,{"$f":"+DATEVALUE(TEXT(Table26[[#This Row],[Date]],\"MM/DD/YYYY\"))","v":"2013-05-15"}]
[null,null,null,null,null,null,null,null,null,null,null,null,null,null,null,null,null,null,null,null,null,null,null,null,null,null,null,null,null,null,null,null,null,null,null,null,null,null,null,null,null,null,null,null,null,null,null,null,null,"5/14/2013",1427.24499511719,23.4440002441406,1503.5,730.5,{"$f":"+DATEVALUE(TEXT(Table26[[#This Row],[Date]],\"MM/DD/YYYY\"))","v":"2013-05-14"}]
[null,null,null,null,null,null,null,null,null,null,null,null,null,null,null,null,null,null,null,null,null,null,null,null,null,null,null,null,null,null,null,null,null,null,null,null,null,null,null,null,null,null,null,null,null,null,null,null,null,"5/13/2013",1432.86499023438,23.703000068664601,1483.5,717.5,{"$f":"+DATEVALUE(TEXT(Table26[[#This Row],[Date]],\"MM/DD/YYYY\"))","v":"2013-05-13"}]
[null,null,null,null,null,null,null,null,null,null,null,null,null,null,null,null,null,null,null,null,null,null,null,null,null,null,null,null,null,null,null,null,null,null,null,null,null,null,null,null,null,null,null,null,null,null,null,null,null,"5/12/2013",1441.9600219726599,23.8079996109009,1494.5,708,{"$f":"+DATEVALUE(TEXT(Table26[[#This Row],[Date]],\"MM/DD/YYYY\"))","v":"2013-05-12"}]
[null,null,null,null,null,null,null,null,null,null,null,null,null,null,null,null,null,null,null,null,null,null,null,null,null,null,null,null,null,null,null,null,null,null,null,null,null,null,null,null,null,null,null,null,null,null,null,null,null,"5/11/2013",1448.53002929688,23.875,1494.5,708,{"$f":"+DATEVALUE(TEXT(Table26[[#This Row],[Date]],\"MM/DD/YYYY\"))","v":"2013-05-11"}]
[null,null,null,null,null,null,null,null,null,null,null,null,null,null,null,null,null,null,null,null,null,null,null,null,null,null,null,null,null,null,null,null,null,null,null,null,null,null,null,null,null,null,null,null,null,null,null,null,null,"5/10/2013",1448.53002929688,23.875,1494.5,708,{"$f":"+DATEVALUE(TEXT(Table26[[#This Row],[Date]],\"MM/DD/YYYY\"))","v":"2013-05-10"}]
[null,null,null,null,null,null,null,null,null,null,null,null,null,null,null,null,null,null,null,null,null,null,null,null,null,null,null,null,null,null,null,null,null,null,null,null,null,null,null,null,null,null,null,null,null,null,null,null,null,"5/9/2013",1456.74499511719,23.703200340271,1507.5,710.010009765625,{"$f":"+DATEVALUE(TEXT(Table26[[#This Row],[Date]],\"MM/DD/YYYY\"))","v":"2013-05-09"}]
[null,null,null,null,null,null,null,null,null,null,null,null,null,null,null,null,null,null,null,null,null,null,null,null,null,null,null,null,null,null,null,null,null,null,null,null,null,null,null,null,null,null,null,null,null,null,null,null,null,"5/8/2013",1472.28503417969,23.916999816894499,1505.5,695.44000244140602,{"$f":"+DATEVALUE(TEXT(Table26[[#This Row],[Date]],\"MM/DD/YYYY\"))","v":"2013-05-08"}]
[null,null,null,null,null,null,null,null,null,null,null,null,null,null,null,null,null,null,null,null,null,null,null,null,null,null,null,null,null,null,null,null,null,null,null,null,null,null,null,null,null,null,null,null,null,null,null,null,null,"5/7/2013",1450.7000122070301,23.8649997711182,1482.5,681,{"$f":"+DATEVALUE(TEXT(Table26[[#This Row],[Date]],\"MM/DD/YYYY\"))","v":"2013-05-07"}]
[null,null,null,null,null,null,null,null,null,null,null,null,null,null,null,null,null,null,null,null,null,null,null,null,null,null,null,null,null,null,null,null,null,null,null,null,null,null,null,null,null,null,null,null,null,null,null,null,null,"5/6/2013",1470.47998046875,24.060000419616699,1505.5,696,{"$f":"+DATEVALUE(TEXT(Table26[[#This Row],[Date]],\"MM/DD/YYYY\"))","v":"2013-05-06"}]
[null,null,null,null,null,null,null,null,null,null,null,null,null,null,null,null,null,null,null,null,null,null,null,null,null,null,null,null,null,null,null,null,null,null,null,null,null,null,null,null,null,null,null,null,null,null,null,null,null,"5/5/2013",1470.5499877929699,24.1174993515015,1500.5,693,{"$f":"+DATEVALUE(TEXT(Table26[[#This Row],[Date]],\"MM/DD/YYYY\"))","v":"2013-05-05"}]
[null,null,null,null,null,null,null,null,null,null,null,null,null,null,null,null,null,null,null,null,null,null,null,null,null,null,null,null,null,null,null,null,null,null,null,null,null,null,null,null,null,null,null,null,null,null,null,null,null,"5/4/2013",1470.61999511719,24.117000579833999,1499.5,693,{"$f":"+DATEVALUE(TEXT(Table26[[#This Row],[Date]],\"MM/DD/YYYY\"))","v":"2013-05-04"}]
[null,null,null,null,null,null,null,null,null,null,null,null,null,null,null,null,null,null,null,null,null,null,null,null,null,null,null,null,null,null,null,null,null,null,null,null,null,null,null,null,null,null,null,null,null,null,null,null,null,"5/3/2013",1470.61999511719,24.117000579833999,1499.5,693,{"$f":"+DATEVALUE(TEXT(Table26[[#This Row],[Date]],\"MM/DD/YYYY\"))","v":"2013-05-03"}]
[null,null,null,null,null,null,null,null,null,null,null,null,null,null,null,null,null,null,null,null,null,null,null,null,null,null,null,null,null,null,null,null,null,null,null,null,null,null,null,null,null,null,null,null,null,null,null,null,null,"5/2/2013",1467.0249633789099,23.833000183105501,1503.5,692.86999511718795,{"$f":"+DATEVALUE(TEXT(Table26[[#This Row],[Date]],\"MM/DD/YYYY\"))","v":"2013-05-02"}]
[null,null,null,null,null,null,null,null,null,null,null,null,null,null,null,null,null,null,null,null,null,null,null,null,null,null,null,null,null,null,null,null,null,null,null,null,null,null,null,null,null,null,null,null,null,null,null,null,null,"5/1/2013",1458.98498535156,23.670000076293899,1473.5,687,{"$f":"+DATEVALUE(TEXT(Table26[[#This Row],[Date]],\"MM/DD/YYYY\"))","v":"2013-05-01"}]
[null,null,null,null,null,null,null,null,null,null,null,null,null,null,null,null,null,null,null,null,null,null,null,null,null,null,null,null,null,null,null,null,null,null,null,null,null,null,null,null,null,null,null,null,null,null,null,null,null,"4/30/2013",1475.2000122070301,24.317099571227999,1505,698,{"$f":"+DATEVALUE(TEXT(Table26[[#This Row],[Date]],\"MM/DD/YYYY\"))","v":"2013-04-30"}]
[null,null,null,null,null,null,null,null,null,null,null,null,null,null,null,null,null,null,null,null,null,null,null,null,null,null,null,null,null,null,null,null,null,null,null,null,null,null,null,null,null,null,null,null,null,null,null,null,null,"4/29/2013",1474.88500976563,24.4959506988525,1508,701.5,{"$f":"+DATEVALUE(TEXT(Table26[[#This Row],[Date]],\"MM/DD/YYYY\"))","v":"2013-04-29"}]
[null,null,null,null,null,null,null,null,null,null,null,null,null,null,null,null,null,null,null,null,null,null,null,null,null,null,null,null,null,null,null,null,null,null,null,null,null,null,null,null,null,null,null,null,null,null,null,null,null,"4/28/2013",1465,24.085150718689,1481.5,680,{"$f":"+DATEVALUE(TEXT(Table26[[#This Row],[Date]],\"MM/DD/YYYY\"))","v":"2013-04-28"}]
[null,null,null,null,null,null,null,null,null,null,null,null,null,null,null,null,null,null,null,null,null,null,null,null,null,null,null,null,null,null,null,null,null,null,null,null,null,null,null,null,null,null,null,null,null,null,null,null,null,"4/27/2013",1461.625,23.983000755310101,1477.5,679.92001342773403,{"$f":"+DATEVALUE(TEXT(Table26[[#This Row],[Date]],\"MM/DD/YYYY\"))","v":"2013-04-27"}]
[null,null,null,null,null,null,null,null,null,null,null,null,null,null,null,null,null,null,null,null,null,null,null,null,null,null,null,null,null,null,null,null,null,null,null,null,null,null,null,null,null,null,null,null,null,null,null,null,null,"4/26/2013",1461.625,23.983000755310101,1477.5,679.92001342773403,{"$f":"+DATEVALUE(TEXT(Table26[[#This Row],[Date]],\"MM/DD/YYYY\"))","v":"2013-04-26"}]
[null,null,null,null,null,null,null,null,null,null,null,null,null,null,null,null,null,null,null,null,null,null,null,null,null,null,null,null,null,null,null,null,null,null,null,null,null,null,null,null,null,null,null,null,null,null,null,null,null,"4/25/2013",1464.2799682617199,24.39794921875,1468,682,{"$f":"+DATEVALUE(TEXT(Table26[[#This Row],[Date]],\"MM/DD/YYYY\"))","v":"2013-04-25"}]
[null,null,null,null,null,null,null,null,null,null,null,null,null,null,null,null,null,null,null,null,null,null,null,null,null,null,null,null,null,null,null,null,null,null,null,null,null,null,null,null,null,null,null,null,null,null,null,null,null,"4/24/2013",1430.69995117188,23.170000076293899,1430,670,{"$f":"+DATEVALUE(TEXT(Table26[[#This Row],[Date]],\"MM/DD/YYYY\"))","v":"2013-04-24"}]
[null,null,null,null,null,null,null,null,null,null,null,null,null,null,null,null,null,null,null,null,null,null,null,null,null,null,null,null,null,null,null,null,null,null,null,null,null,null,null,null,null,null,null,null,null,null,null,null,null,"4/23/2013",1413.23999023438,22.9258003234863,1415,674,{"$f":"+DATEVALUE(TEXT(Table26[[#This Row],[Date]],\"MM/DD/YYYY\"))","v":"2013-04-23"}]
[null,null,null,null,null,null,null,null,null,null,null,null,null,null,null,null,null,null,null,null,null,null,null,null,null,null,null,null,null,null,null,null,null,null,null,null,null,null,null,null,null,null,null,null,null,null,null,null,null,"4/22/2013",1426.5499877929699,23.414999961852999,1432.5,682.25,{"$f":"+DATEVALUE(TEXT(Table26[[#This Row],[Date]],\"MM/DD/YYYY\"))","v":"2013-04-22"}]
[null,null,null,null,null,null,null,null,null,null,null,null,null,null,null,null,null,null,null,null,null,null,null,null,null,null,null,null,null,null,null,null,null,null,null,null,null,null,null,null,null,null,null,null,null,null,null,null,null,"4/21/2013",1407.09997558594,23.295000076293899,1428.5,677,{"$f":"+DATEVALUE(TEXT(Table26[[#This Row],[Date]],\"MM/DD/YYYY\"))","v":"2013-04-21"}]
[null,null,null,null,null,null,null,null,null,null,null,null,null,null,null,null,null,null,null,null,null,null,null,null,null,null,null,null,null,null,null,null,null,null,null,null,null,null,null,null,null,null,null,null,null,null,null,null,null,"4/20/2013",1406.2998222285401,23.29,1427,676.56997680664097,{"$f":"+DATEVALUE(TEXT(Table26[[#This Row],[Date]],\"MM/DD/YYYY\"))","v":"2013-04-20"}]
[null,null,null,null,null,null,null,null,null,null,null,null,null,null,null,null,null,null,null,null,null,null,null,null,null,null,null,null,null,null,null,null,null,null,null,null,null,null,null,null,null,null,null,null,null,null,null,null,null,"4/19/2013",1403.66003417969,23.264999389648398,1427,676.56997680664097,{"$f":"+DATEVALUE(TEXT(Table26[[#This Row],[Date]],\"MM/DD/YYYY\"))","v":"2013-04-19"}]
[null,null,null,null,null,null,null,null,null,null,null,null,null,null,null,null,null,null,null,null,null,null,null,null,null,null,null,null,null,null,null,null,null,null,null,null,null,null,null,null,null,null,null,null,null,null,null,null,null,"4/18/2013",1394.1950073242199,23.384449958801302,1425.5,669,{"$f":"+DATEVALUE(TEXT(Table26[[#This Row],[Date]],\"MM/DD/YYYY\"))","v":"2013-04-18"}]
[null,null,null,null,null,null,null,null,null,null,null,null,null,null,null,null,null,null,null,null,null,null,null,null,null,null,null,null,null,null,null,null,null,null,null,null,null,null,null,null,null,null,null,null,null,null,null,null,null,"4/17/2013",1378.625,23.395500183105501,1425.69995117188,663.05001831054699,{"$f":"+DATEVALUE(TEXT(Table26[[#This Row],[Date]],\"MM/DD/YYYY\"))","v":"2013-04-17"}]
[null,null,null,null,null,null,null,null,null,null,null,null,null,null,null,null,null,null,null,null,null,null,null,null,null,null,null,null,null,null,null,null,null,null,null,null,null,null,null,null,null,null,null,null,null,null,null,null,null,"4/16/2013",1374.8049926757801,23.4934997558594,1450.5,678.83499145507801,{"$f":"+DATEVALUE(TEXT(Table26[[#This Row],[Date]],\"MM/DD/YYYY\"))","v":"2013-04-16"}]
[null,null,null,null,null,null,null,null,null,null,null,null,null,null,null,null,null,null,null,null,null,null,null,null,null,null,null,null,null,null,null,null,null,null,null,null,null,null,null,null,null,null,null,null,null,null,null,null,null,"4/15/2013",1350.80004882813,22.735000610351602,1410.5,654.29998779296898,{"$f":"+DATEVALUE(TEXT(Table26[[#This Row],[Date]],\"MM/DD/YYYY\"))","v":"2013-04-15"}]
[null,null,null,null,null,null,null,null,null,null,null,null,null,null,null,null,null,null,null,null,null,null,null,null,null,null,null,null,null,null,null,null,null,null,null,null,null,null,null,null,null,null,null,null,null,null,null,null,null,"4/14/2013",1484.0099487304699,25.939999580383301,1476.5,701,{"$f":"+DATEVALUE(TEXT(Table26[[#This Row],[Date]],\"MM/DD/YYYY\"))","v":"2013-04-14"}]
[null,null,null,null,null,null,null,null,null,null,null,null,null,null,null,null,null,null,null,null,null,null,null,null,null,null,null,null,null,null,null,null,null,null,null,null,null,null,null,null,null,null,null,null,null,null,null,null,null,"4/13/2013",1478.09997558594,25.8499381044488,1482.5,706.989990234375,{"$f":"+DATEVALUE(TEXT(Table26[[#This Row],[Date]],\"MM/DD/YYYY\"))","v":"2013-04-13"}]
[null,null,null,null,null,null,null,null,null,null,null,null,null,null,null,null,null,null,null,null,null,null,null,null,null,null,null,null,null,null,null,null,null,null,null,null,null,null,null,null,null,null,null,null,null,null,null,null,null,"4/12/2013",1478.09997558594,26.012500762939499,1482.5,706.989990234375,{"$f":"+DATEVALUE(TEXT(Table26[[#This Row],[Date]],\"MM/DD/YYYY\"))","v":"2013-04-12"}]
[null,null,null,null,null,null,null,null,null,null,null,null,null,null,null,null,null,null,null,null,null,null,null,null,null,null,null,null,null,null,null,null,null,null,null,null,null,null,null,null,null,null,null,null,null,null,null,null,null,"4/11/2013",1561.6699829101599,27.6554498672485,1534,731.70001220703102,{"$f":"+DATEVALUE(TEXT(Table26[[#This Row],[Date]],\"MM/DD/YYYY\"))","v":"2013-04-11"}]
[null,null,null,null,null,null,null,null,null,null,null,null,null,null,null,null,null,null,null,null,null,null,null,null,null,null,null,null,null,null,null,null,null,null,null,null,null,null,null,null,null,null,null,null,null,null,null,null,null,"4/10/2013",1558.5650024414099,27.635649681091301,1528,721.5,{"$f":"+DATEVALUE(TEXT(Table26[[#This Row],[Date]],\"MM/DD/YYYY\"))","v":"2013-04-10"}]
[null,null,null,null,null,null,null,null,null,null,null,null,null,null,null,null,null,null,null,null,null,null,null,null,null,null,null,null,null,null,null,null,null,null,null,null,null,null,null,null,null,null,null,null,null,null,null,null,null,"4/9/2013",1586.10998535156,27.980000495910598,1548.5,727,{"$f":"+DATEVALUE(TEXT(Table26[[#This Row],[Date]],\"MM/DD/YYYY\"))","v":"2013-04-09"}]
[null,null,null,null,null,null,null,null,null,null,null,null,null,null,null,null,null,null,null,null,null,null,null,null,null,null,null,null,null,null,null,null,null,null,null,null,null,null,null,null,null,null,null,null,null,null,null,null,null,"4/8/2013",1573.47497558594,27.2944993972778,1537.5,732.04000854492199,{"$f":"+DATEVALUE(TEXT(Table26[[#This Row],[Date]],\"MM/DD/YYYY\"))","v":"2013-04-08"}]
[null,null,null,null,null,null,null,null,null,null,null,null,null,null,null,null,null,null,null,null,null,null,null,null,null,null,null,null,null,null,null,null,null,null,null,null,null,null,null,null,null,null,null,null,null,null,null,null,null,"4/7/2013",1581.64001464844,27.3769998550415,1538.5,730.5,{"$f":"+DATEVALUE(TEXT(Table26[[#This Row],[Date]],\"MM/DD/YYYY\"))","v":"2013-04-07"}]
[null,null,null,null,null,null,null,null,null,null,null,null,null,null,null,null,null,null,null,null,null,null,null,null,null,null,null,null,null,null,null,null,null,null,null,null,null,null,null,null,null,null,null,null,null,null,null,null,null,"4/6/2013",1581.80004882813,27.184999465942401,1529.5,727.95999145507801,{"$f":"+DATEVALUE(TEXT(Table26[[#This Row],[Date]],\"MM/DD/YYYY\"))","v":"2013-04-06"}]
[null,null,null,null,null,null,null,null,null,null,null,null,null,null,null,null,null,null,null,null,null,null,null,null,null,null,null,null,null,null,null,null,null,null,null,null,null,null,null,null,null,null,null,null,null,null,null,null,null,"4/5/2013",1581.80004882813,27.184999465942401,1529.5,727.95999145507801,{"$f":"+DATEVALUE(TEXT(Table26[[#This Row],[Date]],\"MM/DD/YYYY\"))","v":"2013-04-05"}]
[null,null,null,null,null,null,null,null,null,null,null,null,null,null,null,null,null,null,null,null,null,null,null,null,null,null,null,null,null,null,null,null,null,null,null,null,null,null,null,null,null,null,null,null,null,null,null,null,null,"4/4/2013",1553.74499511719,26.934700012206999,1521.5,725.5,{"$f":"+DATEVALUE(TEXT(Table26[[#This Row],[Date]],\"MM/DD/YYYY\"))","v":"2013-04-04"}]
[null,null,null,null,null,null,null,null,null,null,null,null,null,null,null,null,null,null,null,null,null,null,null,null,null,null,null,null,null,null,null,null,null,null,null,null,null,null,null,null,null,null,null,null,null,null,null,null,null,"4/3/2013",1557.6749877929699,27.022600173950199,1536.5,752.5,{"$f":"+DATEVALUE(TEXT(Table26[[#This Row],[Date]],\"MM/DD/YYYY\"))","v":"2013-04-03"}]
[null,null,null,null,null,null,null,null,null,null,null,null,null,null,null,null,null,null,null,null,null,null,null,null,null,null,null,null,null,null,null,null,null,null,null,null,null,null,null,null,null,null,null,null,null,null,null,null,null,"4/2/2013",1576.40002441406,27.289299964904799,1572.5,766.52999877929699,{"$f":"+DATEVALUE(TEXT(Table26[[#This Row],[Date]],\"MM/DD/YYYY\"))","v":"2013-04-02"}]
[null,null,null,null,null,null,null,null,null,null,null,null,null,null,null,null,null,null,null,null,null,null,null,null,null,null,null,null,null,null,null,null,null,null,null,null,null,null,null,null,null,null,null,null,null,null,null,null,null,"4/1/2013",1600.40002441406,28.074999809265101,1594,781.5,{"$f":"+DATEVALUE(TEXT(Table26[[#This Row],[Date]],\"MM/DD/YYYY\"))","v":"2013-04-01"}]
[null,null,null,null,null,null,null,null,null,null,null,null,null,null,null,null,null,null,null,null,null,null,null,null,null,null,null,null,null,null,null,null,null,null,null,null,null,null,null,null,null,null,null,null,null,null,null,null,null,"3/31/2013",1598.05004882813,28.328000068664601,1570.5,771,{"$f":"+DATEVALUE(TEXT(Table26[[#This Row],[Date]],\"MM/DD/YYYY\"))","v":"2013-03-31"}]
[null,null,null,null,null,null,null,null,null,null,null,null,null,null,null,null,null,null,null,null,null,null,null,null,null,null,null,null,null,null,null,null,null,null,null,null,null,null,null,null,null,null,null,null,null,null,null,null,null,"3/30/2013",1596.65502929688,28.354499816894499,1570.5,772,{"$f":"+DATEVALUE(TEXT(Table26[[#This Row],[Date]],\"MM/DD/YYYY\"))","v":"2013-03-30"}]
[null,null,null,null,null,null,null,null,null,null,null,null,null,null,null,null,null,null,null,null,null,null,null,null,null,null,null,null,null,null,null,null,null,null,null,null,null,null,null,null,null,null,null,null,null,null,null,null,null,"3/29/2013",1596.65502929688,28.354499816894499,1570.5,772,{"$f":"+DATEVALUE(TEXT(Table26[[#This Row],[Date]],\"MM/DD/YYYY\"))","v":"2013-03-29"}]
[null,null,null,null,null,null,null,null,null,null,null,null,null,null,null,null,null,null,null,null,null,null,null,null,null,null,null,null,null,null,null,null,null,null,null,null,null,null,null,null,null,null,null,null,null,null,null,null,null,"3/28/2013",1596.7000122070301,28.4575004577637,1570.5,772.5,{"$f":"+DATEVALUE(TEXT(Table26[[#This Row],[Date]],\"MM/DD/YYYY\"))","v":"2013-03-28"}]
[null,null,null,null,null,null,null,null,null,null,null,null,null,null,null,null,null,null,null,null,null,null,null,null,null,null,null,null,null,null,null,null,null,null,null,null,null,null,null,null,null,null,null,null,null,null,null,null,null,"3/27/2013",1605.4550170898401,28.715000152587901,1579.5,767.25,{"$f":"+DATEVALUE(TEXT(Table26[[#This Row],[Date]],\"MM/DD/YYYY\"))","v":"2013-03-27"}]
[null,null,null,null,null,null,null,null,null,null,null,null,null,null,null,null,null,null,null,null,null,null,null,null,null,null,null,null,null,null,null,null,null,null,null,null,null,null,null,null,null,null,null,null,null,null,null,null,null,"3/26/2013",1600.34997558594,28.810000419616699,1575,764.25,{"$f":"+DATEVALUE(TEXT(Table26[[#This Row],[Date]],\"MM/DD/YYYY\"))","v":"2013-03-26"}]
[null,null,null,null,null,null,null,null,null,null,null,null,null,null,null,null,null,null,null,null,null,null,null,null,null,null,null,null,null,null,null,null,null,null,null,null,null,null,null,null,null,null,null,null,null,null,null,null,null,"3/25/2013",1605.41003417969,28.8699998855591,1585.19995117188,758.04000854492199,{"$f":"+DATEVALUE(TEXT(Table26[[#This Row],[Date]],\"MM/DD/YYYY\"))","v":"2013-03-25"}]
[null,null,null,null,null,null,null,null,null,null,null,null,null,null,null,null,null,null,null,null,null,null,null,null,null,null,null,null,null,null,null,null,null,null,null,null,null,null,null,null,null,null,null,null,null,null,null,null,null,"3/24/2013",1606.9249877929699,28.6825494766235,1584,757.760009765625,{"$f":"+DATEVALUE(TEXT(Table26[[#This Row],[Date]],\"MM/DD/YYYY\"))","v":"2013-03-24"}]
[null,null,null,null,null,null,null,null,null,null,null,null,null,null,null,null,null,null,null,null,null,null,null,null,null,null,null,null,null,null,null,null,null,null,null,null,null,null,null,null,null,null,null,null,null,null,null,null,null,"3/23/2013",1609.09997558594,28.7449998855591,1583,760.5,{"$f":"+DATEVALUE(TEXT(Table26[[#This Row],[Date]],\"MM/DD/YYYY\"))","v":"2013-03-23"}]
[null,null,null,null,null,null,null,null,null,null,null,null,null,null,null,null,null,null,null,null,null,null,null,null,null,null,null,null,null,null,null,null,null,null,null,null,null,null,null,null,null,null,null,null,null,null,null,null,null,"3/22/2013",1609.09997558594,28.7449998855591,1583,760.5,{"$f":"+DATEVALUE(TEXT(Table26[[#This Row],[Date]],\"MM/DD/YYYY\"))","v":"2013-03-22"}]
[null,null,null,null,null,null,null,null,null,null,null,null,null,null,null,null,null,null,null,null,null,null,null,null,null,null,null,null,null,null,null,null,null,null,null,null,null,null,null,null,null,null,null,null,null,null,null,null,null,"3/21/2013",1615.84497070313,29.159000396728501,1581.5,754.16000366210903,{"$f":"+DATEVALUE(TEXT(Table26[[#This Row],[Date]],\"MM/DD/YYYY\"))","v":"2013-03-21"}]
[null,null,null,null,null,null,null,null,null,null,null,null,null,null,null,null,null,null,null,null,null,null,null,null,null,null,null,null,null,null,null,null,null,null,null,null,null,null,null,null,null,null,null,null,null,null,null,null,null,"3/20/2013",1606.79504394531,28.823499679565401,1577,759.98501586914097,{"$f":"+DATEVALUE(TEXT(Table26[[#This Row],[Date]],\"MM/DD/YYYY\"))","v":"2013-03-20"}]
[null,null,null,null,null,null,null,null,null,null,null,null,null,null,null,null,null,null,null,null,null,null,null,null,null,null,null,null,null,null,null,null,null,null,null,null,null,null,null,null,null,null,null,null,null,null,null,null,null,"3/19/2013",1612.34997558594,28.9340000152588,1561,737.50500488281295,{"$f":"+DATEVALUE(TEXT(Table26[[#This Row],[Date]],\"MM/DD/YYYY\"))","v":"2013-03-19"}]
[null,null,null,null,null,null,null,null,null,null,null,null,null,null,null,null,null,null,null,null,null,null,null,null,null,null,null,null,null,null,null,null,null,null,null,null,null,null,null,null,null,null,null,null,null,null,null,null,null,"3/18/2013",1605.6900024414099,28.965000152587901,1581.5,764,{"$f":"+DATEVALUE(TEXT(Table26[[#This Row],[Date]],\"MM/DD/YYYY\"))","v":"2013-03-18"}]
[null,null,null,null,null,null,null,null,null,null,null,null,null,null,null,null,null,null,null,null,null,null,null,null,null,null,null,null,null,null,null,null,null,null,null,null,null,null,null,null,null,null,null,null,null,null,null,null,null,"3/17/2013",1604.0850219726599,29.031999588012699,1589,766,{"$f":"+DATEVALUE(TEXT(Table26[[#This Row],[Date]],\"MM/DD/YYYY\"))","v":"2013-03-17"}]
[null,null,null,null,null,null,null,null,null,null,null,null,null,null,null,null,null,null,null,null,null,null,null,null,null,null,null,null,null,null,null,null,null,null,null,null,null,null,null,null,null,null,null,null,null,null,null,null,null,"3/16/2013",1592.1749877929699,28.800000190734899,1589.5,776,{"$f":"+DATEVALUE(TEXT(Table26[[#This Row],[Date]],\"MM/DD/YYYY\"))","v":"2013-03-16"}]
[null,null,null,null,null,null,null,null,null,null,null,null,null,null,null,null,null,null,null,null,null,null,null,null,null,null,null,null,null,null,null,null,null,null,null,null,null,null,null,null,null,null,null,null,null,null,null,null,null,"3/15/2013",1592.1749877929699,28.800000190734899,1589.5,776,{"$f":"+DATEVALUE(TEXT(Table26[[#This Row],[Date]],\"MM/DD/YYYY\"))","v":"2013-03-15"}]
[null,null,null,null,null,null,null,null,null,null,null,null,null,null,null,null,null,null,null,null,null,null,null,null,null,null,null,null,null,null,null,null,null,null,null,null,null,null,null,null,null,null,null,null,null,null,null,null,null,"3/14/2013",1589.75,28.815000534057599,1592.5,771,{"$f":"+DATEVALUE(TEXT(Table26[[#This Row],[Date]],\"MM/DD/YYYY\"))","v":"2013-03-14"}]
[null,null,null,null,null,null,null,null,null,null,null,null,null,null,null,null,null,null,null,null,null,null,null,null,null,null,null,null,null,null,null,null,null,null,null,null,null,null,null,null,null,null,null,null,null,null,null,null,null,"3/13/2013",1588.19494628906,28.9340000152588,1590,771.5,{"$f":"+DATEVALUE(TEXT(Table26[[#This Row],[Date]],\"MM/DD/YYYY\"))","v":"2013-03-13"}]
[null,null,null,null,null,null,null,null,null,null,null,null,null,null,null,null,null,null,null,null,null,null,null,null,null,null,null,null,null,null,null,null,null,null,null,null,null,null,null,null,null,null,null,null,null,null,null,null,null,"3/12/2013",1592.8099975585901,29.1789999008179,1596,772.5,{"$f":"+DATEVALUE(TEXT(Table26[[#This Row],[Date]],\"MM/DD/YYYY\"))","v":"2013-03-12"}]
[null,null,null,null,null,null,null,null,null,null,null,null,null,null,null,null,null,null,null,null,null,null,null,null,null,null,null,null,null,null,null,null,null,null,null,null,null,null,null,null,null,null,null,null,null,null,null,null,null,"3/11/2013",1582.47998046875,29.030000686645501,1604.5,779.510009765625,{"$f":"+DATEVALUE(TEXT(Table26[[#This Row],[Date]],\"MM/DD/YYYY\"))","v":"2013-03-11"}]
[null,null,null,null,null,null,null,null,null,null,null,null,null,null,null,null,null,null,null,null,null,null,null,null,null,null,null,null,null,null,null,null,null,null,null,null,null,null,null,null,null,null,null,null,null,null,null,null,null,"3/10/2013",1578.67504882813,28.948100090026902,1600,781,{"$f":"+DATEVALUE(TEXT(Table26[[#This Row],[Date]],\"MM/DD/YYYY\"))","v":"2013-03-10"}]
[null,null,null,null,null,null,null,null,null,null,null,null,null,null,null,null,null,null,null,null,null,null,null,null,null,null,null,null,null,null,null,null,null,null,null,null,null,null,null,null,null,null,null,null,null,null,null,null,null,"3/9/2013",1579.09997558594,28.985000610351602,1602,783,{"$f":"+DATEVALUE(TEXT(Table26[[#This Row],[Date]],\"MM/DD/YYYY\"))","v":"2013-03-09"}]
[null,null,null,null,null,null,null,null,null,null,null,null,null,null,null,null,null,null,null,null,null,null,null,null,null,null,null,null,null,null,null,null,null,null,null,null,null,null,null,null,null,null,null,null,null,null,null,null,null,"3/8/2013",1579.09997558594,28.985000610351602,1602,783,{"$f":"+DATEVALUE(TEXT(Table26[[#This Row],[Date]],\"MM/DD/YYYY\"))","v":"2013-03-08"}]
[null,null,null,null,null,null,null,null,null,null,null,null,null,null,null,null,null,null,null,null,null,null,null,null,null,null,null,null,null,null,null,null,null,null,null,null,null,null,null,null,null,null,null,null,null,null,null,null,null,"3/7/2013",1579.75,28.909999847412099,1604.5,759.010009765625,{"$f":"+DATEVALUE(TEXT(Table26[[#This Row],[Date]],\"MM/DD/YYYY\"))","v":"2013-03-07"}]
[null,null,null,null,null,null,null,null,null,null,null,null,null,null,null,null,null,null,null,null,null,null,null,null,null,null,null,null,null,null,null,null,null,null,null,null,null,null,null,null,null,null,null,null,null,null,null,null,null,"3/6/2013",1583.03002929688,28.977949142456101,1589,745,{"$f":"+DATEVALUE(TEXT(Table26[[#This Row],[Date]],\"MM/DD/YYYY\"))","v":"2013-03-06"}]
[null,null,null,null,null,null,null,null,null,null,null,null,null,null,null,null,null,null,null,null,null,null,null,null,null,null,null,null,null,null,null,null,null,null,null,null,null,null,null,null,null,null,null,null,null,null,null,null,null,"3/5/2013",1577.4049682617199,28.7616996765137,1592,737.39999389648403,{"$f":"+DATEVALUE(TEXT(Table26[[#This Row],[Date]],\"MM/DD/YYYY\"))","v":"2013-03-05"}]
[null,null,null,null,null,null,null,null,null,null,null,null,null,null,null,null,null,null,null,null,null,null,null,null,null,null,null,null,null,null,null,null,null,null,null,null,null,null,null,null,null,null,null,null,null,null,null,null,null,"3/4/2013",1575.3300170898401,28.625,1571.5,717.5,{"$f":"+DATEVALUE(TEXT(Table26[[#This Row],[Date]],\"MM/DD/YYYY\"))","v":"2013-03-04"}]
[null,null,null,null,null,null,null,null,null,null,null,null,null,null,null,null,null,null,null,null,null,null,null,null,null,null,null,null,null,null,null,null,null,null,null,null,null,null,null,null,null,null,null,null,null,null,null,null,null,"3/3/2013",1579.9500122070301,28.6751499176025,1577,725,{"$f":"+DATEVALUE(TEXT(Table26[[#This Row],[Date]],\"MM/DD/YYYY\"))","v":"2013-03-03"}]
[null,null,null,null,null,null,null,null,null,null,null,null,null,null,null,null,null,null,null,null,null,null,null,null,null,null,null,null,null,null,null,null,null,null,null,null,null,null,null,null,null,null,null,null,null,null,null,null,null,"3/2/2013",1576.98999023438,28.5800008773804,1574,723.489990234375,{"$f":"+DATEVALUE(TEXT(Table26[[#This Row],[Date]],\"MM/DD/YYYY\"))","v":"2013-03-02"}]
[null,null,null,null,null,null,null,null,null,null,null,null,null,null,null,null,null,null,null,null,null,null,null,null,null,null,null,null,null,null,null,null,null,null,null,null,null,null,null,null,null,null,null,null,null,null,null,null,null,"3/1/2013",1576.98999023438,28.5800008773804,1574,723.489990234375,{"$f":"+DATEVALUE(TEXT(Table26[[#This Row],[Date]],\"MM/DD/YYYY\"))","v":"2013-03-01"}]
[null,null,null,null,null,null,null,null,null,null,null,null,null,null,null,null,null,null,null,null,null,null,null,null,null,null,null,null,null,null,null,null,null,null,null,null,null,null,null,null,null,null,null,null,null,null,null,null,null,"2/28/2013",1581.01000976563,28.566850662231399,1586,730.5,{"$f":"+DATEVALUE(TEXT(Table26[[#This Row],[Date]],\"MM/DD/YYYY\"))","v":"2013-02-28"}]
[null,null,null,null,null,null,null,null,null,null,null,null,null,null,null,null,null,null,null,null,null,null,null,null,null,null,null,null,null,null,null,null,null,null,null,null,null,null,null,null,null,null,null,null,null,null,null,null,null,"2/27/2013",1597.2000122070301,29.0100002288818,1603,745.635009765625,{"$f":"+DATEVALUE(TEXT(Table26[[#This Row],[Date]],\"MM/DD/YYYY\"))","v":"2013-02-27"}]
[null,null,null,null,null,null,null,null,null,null,null,null,null,null,null,null,null,null,null,null,null,null,null,null,null,null,null,null,null,null,null,null,null,null,null,null,null,null,null,null,null,null,null,null,null,null,null,null,null,"2/26/2013",1613.4299926757801,29.376249313354499,1620.5,744,{"$f":"+DATEVALUE(TEXT(Table26[[#This Row],[Date]],\"MM/DD/YYYY\"))","v":"2013-02-26"}]
[null,null,null,null,null,null,null,null,null,null,null,null,null,null,null,null,null,null,null,null,null,null,null,null,null,null,null,null,null,null,null,null,null,null,null,null,null,null,null,null,null,null,null,null,null,null,null,null,null,"2/25/2013",1595.0299682617199,29.066199302673301,1613,738.5,{"$f":"+DATEVALUE(TEXT(Table26[[#This Row],[Date]],\"MM/DD/YYYY\"))","v":"2013-02-25"}]
[null,null,null,null,null,null,null,null,null,null,null,null,null,null,null,null,null,null,null,null,null,null,null,null,null,null,null,null,null,null,null,null,null,null,null,null,null,null,null,null,null,null,null,null,null,null,null,null,null,"2/24/2013",1578.80004882813,28.715499877929702,1607,739.5,{"$f":"+DATEVALUE(TEXT(Table26[[#This Row],[Date]],\"MM/DD/YYYY\"))","v":"2013-02-24"}]
[null,null,null,null,null,null,null,null,null,null,null,null,null,null,null,null,null,null,null,null,null,null,null,null,null,null,null,null,null,null,null,null,null,null,null,null,null,null,null,null,null,null,null,null,null,null,null,null,null,"2/23/2013",1581.25,28.75,1610.5,738.010009765625,{"$f":"+DATEVALUE(TEXT(Table26[[#This Row],[Date]],\"MM/DD/YYYY\"))","v":"2013-02-23"}]
[null,null,null,null,null,null,null,null,null,null,null,null,null,null,null,null,null,null,null,null,null,null,null,null,null,null,null,null,null,null,null,null,null,null,null,null,null,null,null,null,null,null,null,null,null,null,null,null,null,"2/22/2013",1581.25,28.75,1610.5,738.010009765625,{"$f":"+DATEVALUE(TEXT(Table26[[#This Row],[Date]],\"MM/DD/YYYY\"))","v":"2013-02-22"}]
[null,null,null,null,null,null,null,null,null,null,null,null,null,null,null,null,null,null,null,null,null,null,null,null,null,null,null,null,null,null,null,null,null,null,null,null,null,null,null,null,null,null,null,null,null,null,null,null,null,"2/21/2013",1578.4349975585901,28.743599891662601,1622,736,{"$f":"+DATEVALUE(TEXT(Table26[[#This Row],[Date]],\"MM/DD/YYYY\"))","v":"2013-02-21"}]
[null,null,null,null,null,null,null,null,null,null,null,null,null,null,null,null,null,null,null,null,null,null,null,null,null,null,null,null,null,null,null,null,null,null,null,null,null,null,null,null,null,null,null,null,null,null,null,null,null,"2/20/2013",1570.55004882813,28.732349395751999,1650,741.51998901367199,{"$f":"+DATEVALUE(TEXT(Table26[[#This Row],[Date]],\"MM/DD/YYYY\"))","v":"2013-02-20"}]
[null,null,null,null,null,null,null,null,null,null,null,null,null,null,null,null,null,null,null,null,null,null,null,null,null,null,null,null,null,null,null,null,null,null,null,null,null,null,null,null,null,null,null,null,null,null,null,null,null,"2/19/2013",1605.0750122070301,29.460499763488802,1691,764.5,{"$f":"+DATEVALUE(TEXT(Table26[[#This Row],[Date]],\"MM/DD/YYYY\"))","v":"2013-02-19"}]
[null,null,null,null,null,null,null,null,null,null,null,null,null,null,null,null,null,null,null,null,null,null,null,null,null,null,null,null,null,null,null,null,null,null,null,null,null,null,null,null,null,null,null,null,null,null,null,null,null,"2/18/2013",1614.15002441406,30.074749946594199,1698,764.5,{"$f":"+DATEVALUE(TEXT(Table26[[#This Row],[Date]],\"MM/DD/YYYY\"))","v":"2013-02-18"}]
[null,null,null,null,null,null,null,null,null,null,null,null,null,null,null,null,null,null,null,null,null,null,null,null,null,null,null,null,null,null,null,null,null,null,null,null,null,null,null,null,null,null,null,null,null,null,null,null,null,"2/17/2013",1612.8949584960901,29.8821506500244,1687,761.5,{"$f":"+DATEVALUE(TEXT(Table26[[#This Row],[Date]],\"MM/DD/YYYY\"))","v":"2013-02-17"}]
[null,null,null,null,null,null,null,null,null,null,null,null,null,null,null,null,null,null,null,null,null,null,null,null,null,null,null,null,null,null,null,null,null,null,null,null,null,null,null,null,null,null,null,null,null,null,null,null,null,"2/16/2013",1610.32995605469,29.819999694824201,1680,758.489990234375,{"$f":"+DATEVALUE(TEXT(Table26[[#This Row],[Date]],\"MM/DD/YYYY\"))","v":"2013-02-16"}]
[null,null,null,null,null,null,null,null,null,null,null,null,null,null,null,null,null,null,null,null,null,null,null,null,null,null,null,null,null,null,null,null,null,null,null,null,null,null,null,null,null,null,null,null,null,null,null,null,null,"2/15/2013",1610.32995605469,29.819999694824201,1680,758.489990234375,{"$f":"+DATEVALUE(TEXT(Table26[[#This Row],[Date]],\"MM/DD/YYYY\"))","v":"2013-02-15"}]
[null,null,null,null,null,null,null,null,null,null,null,null,null,null,null,null,null,null,null,null,null,null,null,null,null,null,null,null,null,null,null,null,null,null,null,null,null,null,null,null,null,null,null,null,null,null,null,null,null,"2/14/2013",1635.3350219726599,30.439449310302699,1713,763.52999877929699,{"$f":"+DATEVALUE(TEXT(Table26[[#This Row],[Date]],\"MM/DD/YYYY\"))","v":"2013-02-14"}]
[null,null,null,null,null,null,null,null,null,null,null,null,null,null,null,null,null,null,null,null,null,null,null,null,null,null,null,null,null,null,null,null,null,null,null,null,null,null,null,null,null,null,null,null,null,null,null,null,null,"2/13/2013",1644.0700073242199,30.8175001144409,1722,765.75,{"$f":"+DATEVALUE(TEXT(Table26[[#This Row],[Date]],\"MM/DD/YYYY\"))","v":"2013-02-13"}]
[null,null,null,null,null,null,null,null,null,null,null,null,null,null,null,null,null,null,null,null,null,null,null,null,null,null,null,null,null,null,null,null,null,null,null,null,null,null,null,null,null,null,null,null,null,null,null,null,null,"2/12/2013",1651.76501464844,31.164000511169402,1724,773.25,{"$f":"+DATEVALUE(TEXT(Table26[[#This Row],[Date]],\"MM/DD/YYYY\"))","v":"2013-02-12"}]
[null,null,null,null,null,null,null,null,null,null,null,null,null,null,null,null,null,null,null,null,null,null,null,null,null,null,null,null,null,null,null,null,null,null,null,null,null,null,null,null,null,null,null,null,null,null,null,null,null,"2/11/2013",1648.53002929688,30.9450006484985,1694,757.75,{"$f":"+DATEVALUE(TEXT(Table26[[#This Row],[Date]],\"MM/DD/YYYY\"))","v":"2013-02-11"}]
[null,null,null,null,null,null,null,null,null,null,null,null,null,null,null,null,null,null,null,null,null,null,null,null,null,null,null,null,null,null,null,null,null,null,null,null,null,null,null,null,null,null,null,null,null,null,null,null,null,"2/10/2013",1666.75,31.4340000152588,1715,754.75,{"$f":"+DATEVALUE(TEXT(Table26[[#This Row],[Date]],\"MM/DD/YYYY\"))","v":"2013-02-10"}]
[null,null,null,null,null,null,null,null,null,null,null,null,null,null,null,null,null,null,null,null,null,null,null,null,null,null,null,null,null,null,null,null,null,null,null,null,null,null,null,null,null,null,null,null,null,null,null,null,null,"2/9/2013",1667.26000976563,31.425000190734899,1715.5,754.5,{"$f":"+DATEVALUE(TEXT(Table26[[#This Row],[Date]],\"MM/DD/YYYY\"))","v":"2013-02-09"}]
[null,null,null,null,null,null,null,null,null,null,null,null,null,null,null,null,null,null,null,null,null,null,null,null,null,null,null,null,null,null,null,null,null,null,null,null,null,null,null,null,null,null,null,null,null,null,null,null,null,"2/8/2013",1667.26000976563,31.425000190734899,1715.5,754.5,{"$f":"+DATEVALUE(TEXT(Table26[[#This Row],[Date]],\"MM/DD/YYYY\"))","v":"2013-02-08"}]
[null,null,null,null,null,null,null,null,null,null,null,null,null,null,null,null,null,null,null,null,null,null,null,null,null,null,null,null,null,null,null,null,null,null,null,null,null,null,null,null,null,null,null,null,null,null,null,null,null,"2/7/2013",1671.24499511719,31.5,1717,751.875,{"$f":"+DATEVALUE(TEXT(Table26[[#This Row],[Date]],\"MM/DD/YYYY\"))","v":"2013-02-07"}]
[null,null,null,null,null,null,null,null,null,null,null,null,null,null,null,null,null,null,null,null,null,null,null,null,null,null,null,null,null,null,null,null,null,null,null,null,null,null,null,null,null,null,null,null,null,null,null,null,null,"2/6/2013",1678.53002929688,31.875,1736.5,763.5,{"$f":"+DATEVALUE(TEXT(Table26[[#This Row],[Date]],\"MM/DD/YYYY\"))","v":"2013-02-06"}]
[null,null,null,null,null,null,null,null,null,null,null,null,null,null,null,null,null,null,null,null,null,null,null,null,null,null,null,null,null,null,null,null,null,null,null,null,null,null,null,null,null,null,null,null,null,null,null,null,null,"2/5/2013",1674.9199829101599,31.881999969482401,1713.5,764.57000732421898,{"$f":"+DATEVALUE(TEXT(Table26[[#This Row],[Date]],\"MM/DD/YYYY\"))","v":"2013-02-05"}]
[null,null,null,null,null,null,null,null,null,null,null,null,null,null,null,null,null,null,null,null,null,null,null,null,null,null,null,null,null,null,null,null,null,null,null,null,null,null,null,null,null,null,null,null,null,null,null,null,null,"2/4/2013",1674.76501464844,31.765999794006301,1700,758.114990234375,{"$f":"+DATEVALUE(TEXT(Table26[[#This Row],[Date]],\"MM/DD/YYYY\"))","v":"2013-02-04"}]
[null,null,null,null,null,null,null,null,null,null,null,null,null,null,null,null,null,null,null,null,null,null,null,null,null,null,null,null,null,null,null,null,null,null,null,null,null,null,null,null,null,null,null,null,null,null,null,null,null,"2/3/2013",1667.3350219726599,31.824999809265101,1686,758.5,{"$f":"+DATEVALUE(TEXT(Table26[[#This Row],[Date]],\"MM/DD/YYYY\"))","v":"2013-02-03"}]
[null,null,null,null,null,null,null,null,null,null,null,null,null,null,null,null,null,null,null,null,null,null,null,null,null,null,null,null,null,null,null,null,null,null,null,null,null,null,null,null,null,null,null,null,null,null,null,null,null,"2/2/2013",1667.28002929688,31.8300008773804,1684,756.5,{"$f":"+DATEVALUE(TEXT(Table26[[#This Row],[Date]],\"MM/DD/YYYY\"))","v":"2013-02-02"}]
[null,null,null,null,null,null,null,null,null,null,null,null,null,null,null,null,null,null,null,null,null,null,null,null,null,null,null,null,null,null,null,null,null,null,null,null,null,null,null,null,null,null,null,null,null,null,null,null,null,"2/1/2013",1667.28002929688,31.8300008773804,1684,756.5,{"$f":"+DATEVALUE(TEXT(Table26[[#This Row],[Date]],\"MM/DD/YYYY\"))","v":"2013-02-01"}]
[null,null,null,null,null,null,null,null,null,null,null,null,null,null,null,null,null,null,null,null,null,null,null,null,null,null,null,null,null,null,null,null,null,null,null,null,null,null,null,null,null,null,null,null,null,null,null,null,null,"1/31/2013",1663.0499877929699,31.449999809265101,1677,743.52001953125,{"$f":"+DATEVALUE(TEXT(Table26[[#This Row],[Date]],\"MM/DD/YYYY\"))","v":"2013-01-31"}]
[null,null,null,null,null,null,null,null,null,null,null,null,null,null,null,null,null,null,null,null,null,null,null,null,null,null,null,null,null,null,null,null,null,null,null,null,null,null,null,null,null,null,null,null,null,null,null,null,null,"1/30/2013",1676.76000976563,32.0100002288818,1686,748.63000488281295,{"$f":"+DATEVALUE(TEXT(Table26[[#This Row],[Date]],\"MM/DD/YYYY\"))","v":"2013-01-30"}]
[null,null,null,null,null,null,null,null,null,null,null,null,null,null,null,null,null,null,null,null,null,null,null,null,null,null,null,null,null,null,null,null,null,null,null,null,null,null,null,null,null,null,null,null,null,null,null,null,null,"1/29/2013",1664.06005859375,31.388499259948698,1681,749.55999755859398,{"$f":"+DATEVALUE(TEXT(Table26[[#This Row],[Date]],\"MM/DD/YYYY\"))","v":"2013-01-29"}]
[null,null,null,null,null,null,null,null,null,null,null,null,null,null,null,null,null,null,null,null,null,null,null,null,null,null,null,null,null,null,null,null,null,null,null,null,null,null,null,null,null,null,null,null,null,null,null,null,null,"1/28/2013",1657.25,30.939999580383301,1668,736.510009765625,{"$f":"+DATEVALUE(TEXT(Table26[[#This Row],[Date]],\"MM/DD/YYYY\"))","v":"2013-01-28"}]
[null,null,null,null,null,null,null,null,null,null,null,null,null,null,null,null,null,null,null,null,null,null,null,null,null,null,null,null,null,null,null,null,null,null,null,null,null,null,null,null,null,null,null,null,null,null,null,null,null,"1/27/2013",1659.7200317382801,31.245450019836401,1692,741.5,{"$f":"+DATEVALUE(TEXT(Table26[[#This Row],[Date]],\"MM/DD/YYYY\"))","v":"2013-01-27"}]
[null,null,null,null,null,null,null,null,null,null,null,null,null,null,null,null,null,null,null,null,null,null,null,null,null,null,null,null,null,null,null,null,null,null,null,null,null,null,null,null,null,null,null,null,null,null,null,null,null,"1/26/2013",1658.59997558594,31.170000076293899,1694,741.010009765625,{"$f":"+DATEVALUE(TEXT(Table26[[#This Row],[Date]],\"MM/DD/YYYY\"))","v":"2013-01-26"}]
[null,null,null,null,null,null,null,null,null,null,null,null,null,null,null,null,null,null,null,null,null,null,null,null,null,null,null,null,null,null,null,null,null,null,null,null,null,null,null,null,null,null,null,null,null,null,null,null,null,"1/25/2013",1658.59997558594,31.170000076293899,1694,741.010009765625,{"$f":"+DATEVALUE(TEXT(Table26[[#This Row],[Date]],\"MM/DD/YYYY\"))","v":"2013-01-25"}]
[null,null,null,null,null,null,null,null,null,null,null,null,null,null,null,null,null,null,null,null,null,null,null,null,null,null,null,null,null,null,null,null,null,null,null,null,null,null,null,null,null,null,null,null,null,null,null,null,null,"1/24/2013",1667.89001464844,31.6644992828369,1680.5,727.5,{"$f":"+DATEVALUE(TEXT(Table26[[#This Row],[Date]],\"MM/DD/YYYY\"))","v":"2013-01-24"}]
[null,null,null,null,null,null,null,null,null,null,null,null,null,null,null,null,null,null,null,null,null,null,null,null,null,null,null,null,null,null,null,null,null,null,null,null,null,null,null,null,null,null,null,null,null,null,null,null,null,"1/23/2013",1684.97998046875,32.215999603271499,1687.5,724,{"$f":"+DATEVALUE(TEXT(Table26[[#This Row],[Date]],\"MM/DD/YYYY\"))","v":"2013-01-23"}]
[null,null,null,null,null,null,null,null,null,null,null,null,null,null,null,null,null,null,null,null,null,null,null,null,null,null,null,null,null,null,null,null,null,null,null,null,null,null,null,null,null,null,null,null,null,null,null,null,null,"1/22/2013",1692.56005859375,32.1976509094238,1700,726.5,{"$f":"+DATEVALUE(TEXT(Table26[[#This Row],[Date]],\"MM/DD/YYYY\"))","v":"2013-01-22"}]
[null,null,null,null,null,null,null,null,null,null,null,null,null,null,null,null,null,null,null,null,null,null,null,null,null,null,null,null,null,null,null,null,null,null,null,null,null,null,null,null,null,null,null,null,null,null,null,null,null,"1/21/2013",1689.5499877929699,32.008250236511202,1680,717.489990234375,{"$f":"+DATEVALUE(TEXT(Table26[[#This Row],[Date]],\"MM/DD/YYYY\"))","v":"2013-01-21"}]
[null,null,null,null,null,null,null,null,null,null,null,null,null,null,null,null,null,null,null,null,null,null,null,null,null,null,null,null,null,null,null,null,null,null,null,null,null,null,null,null,null,null,null,null,null,null,null,null,null,"1/20/2013",1684.88000488281,31.8800001144409,1669,721.02499389648403,{"$f":"+DATEVALUE(TEXT(Table26[[#This Row],[Date]],\"MM/DD/YYYY\"))","v":"2013-01-20"}]
[null,null,null,null,null,null,null,null,null,null,null,null,null,null,null,null,null,null,null,null,null,null,null,null,null,null,null,null,null,null,null,null,null,null,null,null,null,null,null,null,null,null,null,null,null,null,null,null,null,"1/19/2013",1684.88000488281,31.8800001144409,1669,721.02499389648403,{"$f":"+DATEVALUE(TEXT(Table26[[#This Row],[Date]],\"MM/DD/YYYY\"))","v":"2013-01-19"}]
[null,null,null,null,null,null,null,null,null,null,null,null,null,null,null,null,null,null,null,null,null,null,null,null,null,null,null,null,null,null,null,null,null,null,null,null,null,null,null,null,null,null,null,null,null,null,null,null,null,"1/18/2013",1684.88000488281,31.8800001144409,1669,721.02499389648403,{"$f":"+DATEVALUE(TEXT(Table26[[#This Row],[Date]],\"MM/DD/YYYY\"))","v":"2013-01-18"}]
[null,null,null,null,null,null,null,null,null,null,null,null,null,null,null,null,null,null,null,null,null,null,null,null,null,null,null,null,null,null,null,null,null,null,null,null,null,null,null,null,null,null,null,null,null,null,null,null,null,"1/17/2013",1687.32995605469,31.715000152587901,1686,723.010009765625,{"$f":"+DATEVALUE(TEXT(Table26[[#This Row],[Date]],\"MM/DD/YYYY\"))","v":"2013-01-17"}]
[null,null,null,null,null,null,null,null,null,null,null,null,null,null,null,null,null,null,null,null,null,null,null,null,null,null,null,null,null,null,null,null,null,null,null,null,null,null,null,null,null,null,null,null,null,null,null,null,null,"1/16/2013",1680.67004394531,31.4777507781982,1690.19995117188,723.72000122070301,{"$f":"+DATEVALUE(TEXT(Table26[[#This Row],[Date]],\"MM/DD/YYYY\"))","v":"2013-01-16"}]
[null,null,null,null,null,null,null,null,null,null,null,null,null,null,null,null,null,null,null,null,null,null,null,null,null,null,null,null,null,null,null,null,null,null,null,null,null,null,null,null,null,null,null,null,null,null,null,null,null,"1/15/2013",1681.43005371094,31.418000221252399,1686,712.5,{"$f":"+DATEVALUE(TEXT(Table26[[#This Row],[Date]],\"MM/DD/YYYY\"))","v":"2013-01-15"}]
[null,null,null,null,null,null,null,null,null,null,null,null,null,null,null,null,null,null,null,null,null,null,null,null,null,null,null,null,null,null,null,null,null,null,null,null,null,null,null,null,null,null,null,null,null,null,null,null,null,"1/14/2013",1668.27502441406,31.080350875854499,1656,704.48001098632801,{"$f":"+DATEVALUE(TEXT(Table26[[#This Row],[Date]],\"MM/DD/YYYY\"))","v":"2013-01-14"}]
[null,null,null,null,null,null,null,null,null,null,null,null,null,null,null,null,null,null,null,null,null,null,null,null,null,null,null,null,null,null,null,null,null,null,null,null,null,null,null,null,null,null,null,null,null,null,null,null,null,"1/13/2013",1661.19995117188,30.420000076293899,1635,703.5,{"$f":"+DATEVALUE(TEXT(Table26[[#This Row],[Date]],\"MM/DD/YYYY\"))","v":"2013-01-13"}]
[null,null,null,null,null,null,null,null,null,null,null,null,null,null,null,null,null,null,null,null,null,null,null,null,null,null,null,null,null,null,null,null,null,null,null,null,null,null,null,null,null,null,null,null,null,null,null,null,null,"1/11/2013",1662.40002441406,30.449999809265101,1631.5,701.739990234375,{"$f":"+DATEVALUE(TEXT(Table26[[#This Row],[Date]],\"MM/DD/YYYY\"))","v":"2013-01-11"}]
[null,null,null,null,null,null,null,null,null,null,null,null,null,null,null,null,null,null,null,null,null,null,null,null,null,null,null,null,null,null,null,null,null,null,null,null,null,null,null,null,null,null,null,null,null,null,null,null,null,"1/10/2013",1674.14501953125,30.839349746704102,1633,701.96002197265602,{"$f":"+DATEVALUE(TEXT(Table26[[#This Row],[Date]],\"MM/DD/YYYY\"))","v":"2013-01-10"}]
[null,null,null,null,null,null,null,null,null,null,null,null,null,null,null,null,null,null,null,null,null,null,null,null,null,null,null,null,null,null,null,null,null,null,null,null,null,null,null,null,null,null,null,null,null,null,null,null,null,"1/9/2013",1656.40502929688,30.365699768066399,1593.19995117188,687.20001220703102,{"$f":"+DATEVALUE(TEXT(Table26[[#This Row],[Date]],\"MM/DD/YYYY\"))","v":"2013-01-09"}]
[null,null,null,null,null,null,null,null,null,null,null,null,null,null,null,null,null,null,null,null,null,null,null,null,null,null,null,null,null,null,null,null,null,null,null,null,null,null,null,null,null,null,null,null,null,null,null,null,null,"1/8/2013",1661.40002441406,30.463750839233398,1582.5,673.05999755859398,{"$f":"+DATEVALUE(TEXT(Table26[[#This Row],[Date]],\"MM/DD/YYYY\"))","v":"2013-01-08"}]
[null,null,null,null,null,null,null,null,null,null,null,null,null,null,null,null,null,null,null,null,null,null,null,null,null,null,null,null,null,null,null,null,null,null,null,null,null,null,null,null,null,null,null,null,null,null,null,null,null,"1/7/2013",1649.80004882813,30.2550001144409,1559.5,672.53500366210903,{"$f":"+DATEVALUE(TEXT(Table26[[#This Row],[Date]],\"MM/DD/YYYY\"))","v":"2013-01-07"}]
[null,null,null,null,null,null,null,null,null,null,null,null,null,null,null,null,null,null,null,null,null,null,null,null,null,null,null,null,null,null,null,null,null,null,null,null,null,null,null,null,null,null,null,null,null,null,null,null,null,"1/6/2013",1656.36499023438,30.171350479126001,1562.5,691.25,{"$f":"+DATEVALUE(TEXT(Table26[[#This Row],[Date]],\"MM/DD/YYYY\"))","v":"2013-01-06"}]
[null,null,null,null,null,null,null,null,null,null,null,null,null,null,null,null,null,null,null,null,null,null,null,null,null,null,null,null,null,null,null,null,null,null,null,null,null,null,null,null,null,null,null,null,null,null,null,null,null,"1/5/2013",1656.46997070313,30.199999809265101,1561,688.5,{"$f":"+DATEVALUE(TEXT(Table26[[#This Row],[Date]],\"MM/DD/YYYY\"))","v":"2013-01-05"}]
[null,null,null,null,null,null,null,null,null,null,null,null,null,null,null,null,null,null,null,null,null,null,null,null,null,null,null,null,null,null,null,null,null,null,null,null,null,null,null,null,null,null,null,null,null,null,null,null,null,"1/4/2013",1656.46997070313,30.199999809265101,1561,688.5,{"$f":"+DATEVALUE(TEXT(Table26[[#This Row],[Date]],\"MM/DD/YYYY\"))","v":"2013-01-04"}]
[null,null,null,null,null,null,null,null,null,null,null,null,null,null,null,null,null,null,null,null,null,null,null,null,null,null,null,null,null,null,null,null,null,null,null,null,null,null,null,null,null,null,null,null,null,null,null,null,null,"1/3/2013",1661.2749633789099,30.118000030517599,1553.5,693.00500488281295,{"$f":"+DATEVALUE(TEXT(Table26[[#This Row],[Date]],\"MM/DD/YYYY\"))","v":"2013-01-03"}]
[null,null,null,null,null,null,null,null,null,null,null,null,null,null,null,null,null,null,null,null,null,null,null,null,null,null,null,null,null,null,null,null,null,null,null,null,null,null,null,null,null,null,null,null,null,null,null,null,null,"1/2/2013",1687.40002441406,31.0625,1568.5,706.5,{"$f":"+DATEVALUE(TEXT(Table26[[#This Row],[Date]],\"MM/DD/YYYY\"))","v":"2013-01-02"}]
[null,null,null,null,null,null,null,null,null,null,null,null,null,null,null,null,null,null,null,null,null,null,null,null,null,null,null,null,null,null,null,null,null,null,null,null,null,null,null,null,null,null,null,null,null,null,null,null,null,"1/1/2013",1670.96997070313,30.210999488830598,1537.5,698.61999511718795,{"$f":"+DATEVALUE(TEXT(Table26[[#This Row],[Date]],\"MM/DD/YYYY\"))","v":"2013-01-01"}]
[null,null,null,null,null,null,null,null,null,null,null,null,null,null,null,null,null,null,null,null,null,null,null,null,null,null,null,null,null,null,null,null,null,null,null,null,null,null,null,null,null,null,null,null,null,null,null,null,null,"12/31/2012",1675.82995605469,30.336999893188501,1540.5,704.50500488281295,{"$f":"+DATEVALUE(TEXT(Table26[[#This Row],[Date]],\"MM/DD/YYYY\"))","v":"2012-12-31"}]
[null,null,null,null,null,null,null,null,null,null,null,null,null,null,null,null,null,null,null,null,null,null,null,null,null,null,null,null,null,null,null,null,null,null,null,null,null,null,null,null,null,null,null,null,null,null,null,null,null,"12/30/2012",1657.3650512695301,30.077300071716301,1524.5,697,{"$f":"+DATEVALUE(TEXT(Table26[[#This Row],[Date]],\"MM/DD/YYYY\"))","v":"2012-12-30"}]
[null,null,null,null,null,null,null,null,null,null,null,null,null,null,null,null,null,null,null,null,null,null,null,null,null,null,null,null,null,null,null,null,null,null,null,null,null,null,null,null,null,null,null,null,null,null,null,null,null,"12/29/2012",1656.30004882813,30.060000419616699,1521,696.5,{"$f":"+DATEVALUE(TEXT(Table26[[#This Row],[Date]],\"MM/DD/YYYY\"))","v":"2012-12-29"}]
[null,null,null,null,null,null,null,null,null,null,null,null,null,null,null,null,null,null,null,null,null,null,null,null,null,null,null,null,null,null,null,null,null,null,null,null,null,null,null,null,null,null,null,null,null,null,null,null,null,"12/28/2012",1656.30004882813,30.060000419616699,1521,696.5,{"$f":"+DATEVALUE(TEXT(Table26[[#This Row],[Date]],\"MM/DD/YYYY\"))","v":"2012-12-28"}]
[null,null,null,null,null,null,null,null,null,null,null,null,null,null,null,null,null,null,null,null,null,null,null,null,null,null,null,null,null,null,null,null,null,null,null,null,null,null,null,null,null,null,null,null,null,null,null,null,null,"12/27/2012",1662.52001953125,30.158850669860801,1535.5,708.12997436523403,{"$f":"+DATEVALUE(TEXT(Table26[[#This Row],[Date]],\"MM/DD/YYYY\"))","v":"2012-12-27"}]
[null,null,null,null,null,null,null,null,null,null,null,null,null,null,null,null,null,null,null,null,null,null,null,null,null,null,null,null,null,null,null,null,null,null,null,null,null,null,null,null,null,null,null,null,null,null,null,null,null,"12/26/2012",1658.78503417969,30.034549713134801,1539.5,690.99499511718795,{"$f":"+DATEVALUE(TEXT(Table26[[#This Row],[Date]],\"MM/DD/YYYY\"))","v":"2012-12-26"}]
[null,null,null,null,null,null,null,null,null,null,null,null,null,null,null,null,null,null,null,null,null,null,null,null,null,null,null,null,null,null,null,null,null,null,null,null,null,null,null,null,null,null,null,null,null,null,null,null,null,"12/25/2012",1651.51501464844,29.939999580383301,1539.5,688.42001342773403,{"$f":"+DATEVALUE(TEXT(Table26[[#This Row],[Date]],\"MM/DD/YYYY\"))","v":"2012-12-25"}]
[null,null,null,null,null,null,null,null,null,null,null,null,null,null,null,null,null,null,null,null,null,null,null,null,null,null,null,null,null,null,null,null,null,null,null,null,null,null,null,null,null,null,null,null,null,null,null,null,null,"12/24/2012",1659.0349731445301,29.982500076293899,1534.5,686,{"$f":"+DATEVALUE(TEXT(Table26[[#This Row],[Date]],\"MM/DD/YYYY\"))","v":"2012-12-24"}]
[null,null,null,null,null,null,null,null,null,null,null,null,null,null,null,null,null,null,null,null,null,null,null,null,null,null,null,null,null,null,null,null,null,null,null,null,null,null,null,null,null,null,null,null,null,null,null,null,null,"12/23/2012",1658.15002441406,30.096799850463899,1540,684,{"$f":"+DATEVALUE(TEXT(Table26[[#This Row],[Date]],\"MM/DD/YYYY\"))","v":"2012-12-23"}]
[null,null,null,null,null,null,null,null,null,null,null,null,null,null,null,null,null,null,null,null,null,null,null,null,null,null,null,null,null,null,null,null,null,null,null,null,null,null,null,null,null,null,null,null,null,null,null,null,null,"12/22/2012",1656.65002441406,29.980000495910598,1541.5,680.02001953125,{"$f":"+DATEVALUE(TEXT(Table26[[#This Row],[Date]],\"MM/DD/YYYY\"))","v":"2012-12-22"}]
[null,null,null,null,null,null,null,null,null,null,null,null,null,null,null,null,null,null,null,null,null,null,null,null,null,null,null,null,null,null,null,null,null,null,null,null,null,null,null,null,null,null,null,null,null,null,null,null,null,"12/21/2012",1656.65002441406,29.980000495910598,1541.5,680.02001953125,{"$f":"+DATEVALUE(TEXT(Table26[[#This Row],[Date]],\"MM/DD/YYYY\"))","v":"2012-12-21"}]
[null,null,null,null,null,null,null,null,null,null,null,null,null,null,null,null,null,null,null,null,null,null,null,null,null,null,null,null,null,null,null,null,null,null,null,null,null,null,null,null,null,null,null,null,null,null,null,null,null,"12/20/2012",1648.68005371094,29.9774494171143,1555,679.989990234375,{"$f":"+DATEVALUE(TEXT(Table26[[#This Row],[Date]],\"MM/DD/YYYY\"))","v":"2012-12-20"}]
[null,null,null,null,null,null,null,null,null,null,null,null,null,null,null,null,null,null,null,null,null,null,null,null,null,null,null,null,null,null,null,null,null,null,null,null,null,null,null,null,null,null,null,null,null,null,null,null,null,"12/19/2012",1667.4299926757801,31.072250366210898,1588,692.60998535156295,{"$f":"+DATEVALUE(TEXT(Table26[[#This Row],[Date]],\"MM/DD/YYYY\"))","v":"2012-12-19"}]
[null,null,null,null,null,null,null,null,null,null,null,null,null,null,null,null,null,null,null,null,null,null,null,null,null,null,null,null,null,null,null,null,null,null,null,null,null,null,null,null,null,null,null,null,null,null,null,null,null,"12/18/2012",1676.3350219726599,31.765800476074201,1598.5,689.010009765625,{"$f":"+DATEVALUE(TEXT(Table26[[#This Row],[Date]],\"MM/DD/YYYY\"))","v":"2012-12-18"}]
[null,null,null,null,null,null,null,null,null,null,null,null,null,null,null,null,null,null,null,null,null,null,null,null,null,null,null,null,null,null,null,null,null,null,null,null,null,null,null,null,null,null,null,null,null,null,null,null,null,"12/17/2012",1697.1900024414099,32.266048431396499,1608.5,699.48001098632801,{"$f":"+DATEVALUE(TEXT(Table26[[#This Row],[Date]],\"MM/DD/YYYY\"))","v":"2012-12-17"}]
[null,null,null,null,null,null,null,null,null,null,null,null,null,null,null,null,null,null,null,null,null,null,null,null,null,null,null,null,null,null,null,null,null,null,null,null,null,null,null,null,null,null,null,null,null,null,null,null,null,"12/16/2012",1695.51000976563,32.315000534057603,1614,703,{"$f":"+DATEVALUE(TEXT(Table26[[#This Row],[Date]],\"MM/DD/YYYY\"))","v":"2012-12-16"}]
[null,null,null,null,null,null,null,null,null,null,null,null,null,null,null,null,null,null,null,null,null,null,null,null,null,null,null,null,null,null,null,null,null,null,null,null,null,null,null,null,null,null,null,null,null,null,null,null,null,"12/15/2012",1696.46997070313,32.2399997711182,1619,702.5,{"$f":"+DATEVALUE(TEXT(Table26[[#This Row],[Date]],\"MM/DD/YYYY\"))","v":"2012-12-15"}]
[null,null,null,null,null,null,null,null,null,null,null,null,null,null,null,null,null,null,null,null,null,null,null,null,null,null,null,null,null,null,null,null,null,null,null,null,null,null,null,null,null,null,null,null,null,null,null,null,null,"12/14/2012",1696.46997070313,32.2399997711182,1619,702.5,{"$f":"+DATEVALUE(TEXT(Table26[[#This Row],[Date]],\"MM/DD/YYYY\"))","v":"2012-12-14"}]
[null,null,null,null,null,null,null,null,null,null,null,null,null,null,null,null,null,null,null,null,null,null,null,null,null,null,null,null,null,null,null,null,null,null,null,null,null,null,null,null,null,null,null,null,null,null,null,null,null,"12/13/2012",1696.8300170898401,32.561248779296903,1615,692,{"$f":"+DATEVALUE(TEXT(Table26[[#This Row],[Date]],\"MM/DD/YYYY\"))","v":"2012-12-13"}]
[null,null,null,null,null,null,null,null,null,null,null,null,null,null,null,null,null,null,null,null,null,null,null,null,null,null,null,null,null,null,null,null,null,null,null,null,null,null,null,null,null,null,null,null,null,null,null,null,null,"12/12/2012",1709.4400024414099,33.358749389648402,1629,694.989990234375,{"$f":"+DATEVALUE(TEXT(Table26[[#This Row],[Date]],\"MM/DD/YYYY\"))","v":"2012-12-12"}]
[null,null,null,null,null,null,null,null,null,null,null,null,null,null,null,null,null,null,null,null,null,null,null,null,null,null,null,null,null,null,null,null,null,null,null,null,null,null,null,null,null,null,null,null,null,null,null,null,null,"12/11/2012",1709.28503417969,32.965000152587898,1633,694,{"$f":"+DATEVALUE(TEXT(Table26[[#This Row],[Date]],\"MM/DD/YYYY\"))","v":"2012-12-11"}]
[null,null,null,null,null,null,null,null,null,null,null,null,null,null,null,null,null,null,null,null,null,null,null,null,null,null,null,null,null,null,null,null,null,null,null,null,null,null,null,null,null,null,null,null,null,null,null,null,null,"12/10/2012",1711.65002441406,33.236351013183601,1623.5,702,{"$f":"+DATEVALUE(TEXT(Table26[[#This Row],[Date]],\"MM/DD/YYYY\"))","v":"2012-12-10"}]
[null,null,null,null,null,null,null,null,null,null,null,null,null,null,null,null,null,null,null,null,null,null,null,null,null,null,null,null,null,null,null,null,null,null,null,null,null,null,null,null,null,null,null,null,null,null,null,null,null,"12/9/2012",1703.625,33.099250793457003,1608.5,696.5,{"$f":"+DATEVALUE(TEXT(Table26[[#This Row],[Date]],\"MM/DD/YYYY\"))","v":"2012-12-09"}]
[null,null,null,null,null,null,null,null,null,null,null,null,null,null,null,null,null,null,null,null,null,null,null,null,null,null,null,null,null,null,null,null,null,null,null,null,null,null,null,null,null,null,null,null,null,null,null,null,null,"12/8/2012",1704.80004882813,33.045000076293903,1609,697,{"$f":"+DATEVALUE(TEXT(Table26[[#This Row],[Date]],\"MM/DD/YYYY\"))","v":"2012-12-08"}]
[null,null,null,null,null,null,null,null,null,null,null,null,null,null,null,null,null,null,null,null,null,null,null,null,null,null,null,null,null,null,null,null,null,null,null,null,null,null,null,null,null,null,null,null,null,null,null,null,null,"12/7/2012",1704.80004882813,33.045000076293903,1609,697,{"$f":"+DATEVALUE(TEXT(Table26[[#This Row],[Date]],\"MM/DD/YYYY\"))","v":"2012-12-07"}]
[null,null,null,null,null,null,null,null,null,null,null,null,null,null,null,null,null,null,null,null,null,null,null,null,null,null,null,null,null,null,null,null,null,null,null,null,null,null,null,null,null,null,null,null,null,null,null,null,null,"12/6/2012",1699.9500122070301,32.990848541259801,1598,694.32998657226597,{"$f":"+DATEVALUE(TEXT(Table26[[#This Row],[Date]],\"MM/DD/YYYY\"))","v":"2012-12-06"}]
[null,null,null,null,null,null,null,null,null,null,null,null,null,null,null,null,null,null,null,null,null,null,null,null,null,null,null,null,null,null,null,null,null,null,null,null,null,null,null,null,null,null,null,null,null,null,null,null,null,"12/5/2012",1692.58996582031,32.828548431396499,1581,685,{"$f":"+DATEVALUE(TEXT(Table26[[#This Row],[Date]],\"MM/DD/YYYY\"))","v":"2012-12-05"}]
[null,null,null,null,null,null,null,null,null,null,null,null,null,null,null,null,null,null,null,null,null,null,null,null,null,null,null,null,null,null,null,null,null,null,null,null,null,null,null,null,null,null,null,null,null,null,null,null,null,"12/4/2012",1695.34997558594,32.875,1583,681,{"$f":"+DATEVALUE(TEXT(Table26[[#This Row],[Date]],\"MM/DD/YYYY\"))","v":"2012-12-04"}]
[null,null,null,null,null,null,null,null,null,null,null,null,null,null,null,null,null,null,null,null,null,null,null,null,null,null,null,null,null,null,null,null,null,null,null,null,null,null,null,null,null,null,null,null,null,null,null,null,null,"12/3/2012",1716.23498535156,33.6255493164063,1607.5,690,{"$f":"+DATEVALUE(TEXT(Table26[[#This Row],[Date]],\"MM/DD/YYYY\"))","v":"2012-12-03"}]
[null,null,null,null,null,null,null,null,null,null,null,null,null,null,null,null,null,null,null,null,null,null,null,null,null,null,null,null,null,null,null,null,null,null,null,null,null,null,null,null,null,null,null,null,null,null,null,null,null,"12/2/2012",1716.82995605469,33.534999847412102,1605.5,685.5,{"$f":"+DATEVALUE(TEXT(Table26[[#This Row],[Date]],\"MM/DD/YYYY\"))","v":"2012-12-02"}]
[null,null,null,null,null,null,null,null,null,null,null,null,null,null,null,null,null,null,null,null,null,null,null,null,null,null,null,null,null,null,null,null,null,null,null,null,null,null,null,null,null,null,null,null,null,null,null,null,null,"12/1/2012",1715.09997558594,33.460000991821303,1602,683,{"$f":"+DATEVALUE(TEXT(Table26[[#This Row],[Date]],\"MM/DD/YYYY\"))","v":"2012-12-01"}]
[null,null,null,null,null,null,null,null,null,null,null,null,null,null,null,null,null,null,null,null,null,null,null,null,null,null,null,null,null,null,null,null,null,null,null,null,null,null,null,null,null,null,null,null,null,null,null,null,null,"11/30/2012",1715.09997558594,33.460000991821303,1602,683,{"$f":"+DATEVALUE(TEXT(Table26[[#This Row],[Date]],\"MM/DD/YYYY\"))","v":"2012-11-30"}]
[null,null,null,null,null,null,null,null,null,null,null,null,null,null,null,null,null,null,null,null,null,null,null,null,null,null,null,null,null,null,null,null,null,null,null,null,null,null,null,null,null,null,null,null,null,null,null,null,null,"11/29/2012",1726.14001464844,34.216751098632798,1612.5,683,{"$f":"+DATEVALUE(TEXT(Table26[[#This Row],[Date]],\"MM/DD/YYYY\"))","v":"2012-11-29"}]
[null,null,null,null,null,null,null,null,null,null,null,null,null,null,null,null,null,null,null,null,null,null,null,null,null,null,null,null,null,null,null,null,null,null,null,null,null,null,null,null,null,null,null,null,null,null,null,null,null,"11/28/2012",1722.47998046875,33.769649505615199,1610.5,673.5,{"$f":"+DATEVALUE(TEXT(Table26[[#This Row],[Date]],\"MM/DD/YYYY\"))","v":"2012-11-28"}]
[null,null,null,null,null,null,null,null,null,null,null,null,null,null,null,null,null,null,null,null,null,null,null,null,null,null,null,null,null,null,null,null,null,null,null,null,null,null,null,null,null,null,null,null,null,null,null,null,null,"11/27/2012",1741.9349975585901,34.005001068115199,1611.5,669,{"$f":"+DATEVALUE(TEXT(Table26[[#This Row],[Date]],\"MM/DD/YYYY\"))","v":"2012-11-27"}]
[null,null,null,null,null,null,null,null,null,null,null,null,null,null,null,null,null,null,null,null,null,null,null,null,null,null,null,null,null,null,null,null,null,null,null,null,null,null,null,null,null,null,null,null,null,null,null,null,null,"11/26/2012",1749.1900024414099,34.179450988769503,1613,665.489990234375,{"$f":"+DATEVALUE(TEXT(Table26[[#This Row],[Date]],\"MM/DD/YYYY\"))","v":"2012-11-26"}]
[null,null,null,null,null,null,null,null,null,null,null,null,null,null,null,null,null,null,null,null,null,null,null,null,null,null,null,null,null,null,null,null,null,null,null,null,null,null,null,null,null,null,null,null,null,null,null,null,null,"11/25/2012",1750.375,34.016901016235401,1615,666,{"$f":"+DATEVALUE(TEXT(Table26[[#This Row],[Date]],\"MM/DD/YYYY\"))","v":"2012-11-25"}]
[null,null,null,null,null,null,null,null,null,null,null,null,null,null,null,null,null,null,null,null,null,null,null,null,null,null,null,null,null,null,null,null,null,null,null,null,null,null,null,null,null,null,null,null,null,null,null,null,null,"11/24/2012",1753,33.965000152587898,1613.5,667.989990234375,{"$f":"+DATEVALUE(TEXT(Table26[[#This Row],[Date]],\"MM/DD/YYYY\"))","v":"2012-11-24"}]
[null,null,null,null,null,null,null,null,null,null,null,null,null,null,null,null,null,null,null,null,null,null,null,null,null,null,null,null,null,null,null,null,null,null,null,null,null,null,null,null,null,null,null,null,null,null,null,null,null,"11/23/2012",1753,33.965000152587898,1613.5,667.989990234375,{"$f":"+DATEVALUE(TEXT(Table26[[#This Row],[Date]],\"MM/DD/YYYY\"))","v":"2012-11-23"}]
[null,null,null,null,null,null,null,null,null,null,null,null,null,null,null,null,null,null,null,null,null,null,null,null,null,null,null,null,null,null,null,null,null,null,null,null,null,null,null,null,null,null,null,null,null,null,null,null,null,"11/22/2012",1729.75500488281,33.344999313354499,1581.5,655.5,{"$f":"+DATEVALUE(TEXT(Table26[[#This Row],[Date]],\"MM/DD/YYYY\"))","v":"2012-11-22"}]
[null,null,null,null,null,null,null,null,null,null,null,null,null,null,null,null,null,null,null,null,null,null,null,null,null,null,null,null,null,null,null,null,null,null,null,null,null,null,null,null,null,null,null,null,null,null,null,null,null,"11/21/2012",1730.72497558594,33.4039497375488,1578,647,{"$f":"+DATEVALUE(TEXT(Table26[[#This Row],[Date]],\"MM/DD/YYYY\"))","v":"2012-11-21"}]
[null,null,null,null,null,null,null,null,null,null,null,null,null,null,null,null,null,null,null,null,null,null,null,null,null,null,null,null,null,null,null,null,null,null,null,null,null,null,null,null,null,null,null,null,null,null,null,null,null,"11/20/2012",1726.76000976563,33.135848999023402,1576.5,637.01998901367199,{"$f":"+DATEVALUE(TEXT(Table26[[#This Row],[Date]],\"MM/DD/YYYY\"))","v":"2012-11-20"}]
[null,null,null,null,null,null,null,null,null,null,null,null,null,null,null,null,null,null,null,null,null,null,null,null,null,null,null,null,null,null,null,null,null,null,null,null,null,null,null,null,null,null,null,null,null,null,null,null,null,"11/19/2012",1730.22998046875,33.069999694824197,1576.5,642.49499511718795,{"$f":"+DATEVALUE(TEXT(Table26[[#This Row],[Date]],\"MM/DD/YYYY\"))","v":"2012-11-19"}]
[null,null,null,null,null,null,null,null,null,null,null,null,null,null,null,null,null,null,null,null,null,null,null,null,null,null,null,null,null,null,null,null,null,null,null,null,null,null,null,null,null,null,null,null,null,null,null,null,null,"11/18/2012",1717.875,32.433250427246101,1564,629.5,{"$f":"+DATEVALUE(TEXT(Table26[[#This Row],[Date]],\"MM/DD/YYYY\"))","v":"2012-11-18"}]
[null,null,null,null,null,null,null,null,null,null,null,null,null,null,null,null,null,null,null,null,null,null,null,null,null,null,null,null,null,null,null,null,null,null,null,null,null,null,null,null,null,null,null,null,null,null,null,null,null,"11/17/2012",1713.7999877929699,32.305000305175803,1560,627.07998657226597,{"$f":"+DATEVALUE(TEXT(Table26[[#This Row],[Date]],\"MM/DD/YYYY\"))","v":"2012-11-17"}]
[null,null,null,null,null,null,null,null,null,null,null,null,null,null,null,null,null,null,null,null,null,null,null,null,null,null,null,null,null,null,null,null,null,null,null,null,null,null,null,null,null,null,null,null,null,null,null,null,null,"11/16/2012",1713.7999877929699,32.305000305175803,1560,627.07998657226597,{"$f":"+DATEVALUE(TEXT(Table26[[#This Row],[Date]],\"MM/DD/YYYY\"))","v":"2012-11-16"}]
[null,null,null,null,null,null,null,null,null,null,null,null,null,null,null,null,null,null,null,null,null,null,null,null,null,null,null,null,null,null,null,null,null,null,null,null,null,null,null,null,null,null,null,null,null,null,null,null,null,"11/15/2012",1715.8150024414099,32.6220512390137,1570.5,632.510009765625,{"$f":"+DATEVALUE(TEXT(Table26[[#This Row],[Date]],\"MM/DD/YYYY\"))","v":"2012-11-15"}]
[null,null,null,null,null,null,null,null,null,null,null,null,null,null,null,null,null,null,null,null,null,null,null,null,null,null,null,null,null,null,null,null,null,null,null,null,null,null,null,null,null,null,null,null,null,null,null,null,null,"11/14/2012",1724.50500488281,32.618049621582003,1584.5,633.5,{"$f":"+DATEVALUE(TEXT(Table26[[#This Row],[Date]],\"MM/DD/YYYY\"))","v":"2012-11-14"}]
[null,null,null,null,null,null,null,null,null,null,null,null,null,null,null,null,null,null,null,null,null,null,null,null,null,null,null,null,null,null,null,null,null,null,null,null,null,null,null,null,null,null,null,null,null,null,null,null,null,"11/13/2012",1726.42004394531,32.528251647949197,1583.5,634.5,{"$f":"+DATEVALUE(TEXT(Table26[[#This Row],[Date]],\"MM/DD/YYYY\"))","v":"2012-11-13"}]
[null,null,null,null,null,null,null,null,null,null,null,null,null,null,null,null,null,null,null,null,null,null,null,null,null,null,null,null,null,null,null,null,null,null,null,null,null,null,null,null,null,null,null,null,null,null,null,null,null,"11/12/2012",1726.66003417969,32.350000381469698,1562.5,607.5,{"$f":"+DATEVALUE(TEXT(Table26[[#This Row],[Date]],\"MM/DD/YYYY\"))","v":"2012-11-12"}]
[null,null,null,null,null,null,null,null,null,null,null,null,null,null,null,null,null,null,null,null,null,null,null,null,null,null,null,null,null,null,null,null,null,null,null,null,null,null,null,null,null,null,null,null,null,null,null,null,null,"11/11/2012",1734.96997070313,32.698450088500998,1560.5,608.5,{"$f":"+DATEVALUE(TEXT(Table26[[#This Row],[Date]],\"MM/DD/YYYY\"))","v":"2012-11-11"}]
[null,null,null,null,null,null,null,null,null,null,null,null,null,null,null,null,null,null,null,null,null,null,null,null,null,null,null,null,null,null,null,null,null,null,null,null,null,null,null,null,null,null,null,null,null,null,null,null,null,"11/10/2012",1731,32.565000534057603,1558,608,{"$f":"+DATEVALUE(TEXT(Table26[[#This Row],[Date]],\"MM/DD/YYYY\"))","v":"2012-11-10"}]
[null,null,null,null,null,null,null,null,null,null,null,null,null,null,null,null,null,null,null,null,null,null,null,null,null,null,null,null,null,null,null,null,null,null,null,null,null,null,null,null,null,null,null,null,null,null,null,null,null,"11/9/2012",1731,32.565000534057603,1558,608,{"$f":"+DATEVALUE(TEXT(Table26[[#This Row],[Date]],\"MM/DD/YYYY\"))","v":"2012-11-09"}]
[null,null,null,null,null,null,null,null,null,null,null,null,null,null,null,null,null,null,null,null,null,null,null,null,null,null,null,null,null,null,null,null,null,null,null,null,null,null,null,null,null,null,null,null,null,null,null,null,null,"11/8/2012",1732.1649780273401,32.325901031494098,1545.5,615.51998901367199,{"$f":"+DATEVALUE(TEXT(Table26[[#This Row],[Date]],\"MM/DD/YYYY\"))","v":"2012-11-08"}]
[null,null,null,null,null,null,null,null,null,null,null,null,null,null,null,null,null,null,null,null,null,null,null,null,null,null,null,null,null,null,null,null,null,null,null,null,null,null,null,null,null,null,null,null,null,null,null,null,null,"11/7/2012",1717.0449829101599,31.818149566650401,1543.5,612,{"$f":"+DATEVALUE(TEXT(Table26[[#This Row],[Date]],\"MM/DD/YYYY\"))","v":"2012-11-07"}]
[null,null,null,null,null,null,null,null,null,null,null,null,null,null,null,null,null,null,null,null,null,null,null,null,null,null,null,null,null,null,null,null,null,null,null,null,null,null,null,null,null,null,null,null,null,null,null,null,null,"11/6/2012",1712.47497558594,31.9299993515015,1555.5,616.5,{"$f":"+DATEVALUE(TEXT(Table26[[#This Row],[Date]],\"MM/DD/YYYY\"))","v":"2012-11-06"}]
[null,null,null,null,null,null,null,null,null,null,null,null,null,null,null,null,null,null,null,null,null,null,null,null,null,null,null,null,null,null,null,null,null,null,null,null,null,null,null,null,null,null,null,null,null,null,null,null,null,"11/5/2012",1686.25,31.196499824523901,1547,613.06997680664097,{"$f":"+DATEVALUE(TEXT(Table26[[#This Row],[Date]],\"MM/DD/YYYY\"))","v":"2012-11-05"}]
[null,null,null,null,null,null,null,null,null,null,null,null,null,null,null,null,null,null,null,null,null,null,null,null,null,null,null,null,null,null,null,null,null,null,null,null,null,null,null,null,null,null,null,null,null,null,null,null,null,"11/4/2012",1681.93005371094,31.053500175476099,1550,605.5,{"$f":"+DATEVALUE(TEXT(Table26[[#This Row],[Date]],\"MM/DD/YYYY\"))","v":"2012-11-04"}]
[null,null,null,null,null,null,null,null,null,null,null,null,null,null,null,null,null,null,null,null,null,null,null,null,null,null,null,null,null,null,null,null,null,null,null,null,null,null,null,null,null,null,null,null,null,null,null,null,null,"11/3/2012",1678.0850219726599,30.925000190734899,1545,602,{"$f":"+DATEVALUE(TEXT(Table26[[#This Row],[Date]],\"MM/DD/YYYY\"))","v":"2012-11-03"}]
[null,null,null,null,null,null,null,null,null,null,null,null,null,null,null,null,null,null,null,null,null,null,null,null,null,null,null,null,null,null,null,null,null,null,null,null,null,null,null,null,null,null,null,null,null,null,null,null,null,"11/2/2012",1678.0850219726599,30.925000190734899,1545,602,{"$f":"+DATEVALUE(TEXT(Table26[[#This Row],[Date]],\"MM/DD/YYYY\"))","v":"2012-11-02"}]
[null,null,null,null,null,null,null,null,null,null,null,null,null,null,null,null,null,null,null,null,null,null,null,null,null,null,null,null,null,null,null,null,null,null,null,null,null,null,null,null,null,null,null,null,null,null,null,null,null,"11/1/2012",1716.4299926757801,32.327499389648402,1571,613,{"$f":"+DATEVALUE(TEXT(Table26[[#This Row],[Date]],\"MM/DD/YYYY\"))","v":"2012-11-01"}]
[null,null,null,null,null,null,null,null,null,null,null,null,null,null,null,null,null,null,null,null,null,null,null,null,null,null,null,null,null,null,null,null,null,null,null,null,null,null,null,null,null,null,null,null,null,null,null,null,null,"10/31/2012",1719.80004882813,32.271999359130902,1569,607,{"$f":"+DATEVALUE(TEXT(Table26[[#This Row],[Date]],\"MM/DD/YYYY\"))","v":"2012-10-31"}]
[null,null,null,null,null,null,null,null,null,null,null,null,null,null,null,null,null,null,null,null,null,null,null,null,null,null,null,null,null,null,null,null,null,null,null,null,null,null,null,null,null,null,null,null,null,null,null,null,null,null,null,null,null,null,{"$f":"+DATEVALUE(TEXT(Table26[[#This Row],[Date]],\"MM/DD/YYYY\"))","v":{"$error":"#VALUE!"}}]

{"sheet":"Future Prices","index":4,"n_rows":255,"n_cols":61,"rows_kept":255,"cut":false,"hidden":false,"merged":[[44,13,44,18],[20,27,20,31],[7,14,7,24],[9,27,10,31],[11,27,11,31],[12,27,12,31],[13,14,14,15],[13,17,14,18],[13,20,14,21],[13,23,14,24],[13,27,13,31],[44,20,45,25],[42,2,42,3],[42,4,42,5],[42,6,42,7],[42,8,42,9],[18,17,18,20],[20,13,20,18],[21,4,21,6],[22,4,22,6],[21,7,21,9],[22,7,22,9],[20,20,21,25]]}
[null,null,null,null,null,null,null,null,null,null,null,null,null,null,null,null,null,null,null,null,null,null,null,null,null,null,null,null,null,null,null,null,null,null,null,null,null,null,null,null,null,"Historical Future Prices",null,null,null,null,null,null,null,null,"Delayed Future Prices","Date","Time","High","Low","Last","Settle","Volume","Previous","Change","Percent"]
[null,null,null,null,null,null,null,null,null,null,null,null,null,null,null,null,null,null,null,null,null,null,null,null,null,null,null,null,null,null,null,null,null,null,null,null,null,null,null,null,null,"Date","XAU","XAG","XPT","XPD","Date",null,null,null,"GC","10/31/2013","5:42:10 PM",1334,1321.7,1323.6,1323.6,62,1349,-25.4,-1.883]
[null,null,null,null,null,null,null,null,null,null,null,null,null,null,null,null,null,null,null,null,null,null,null,null,null,null,null,null,null,null,null,null,null,null,null,null,null,null,null,null,null,"10/31/2013",1323.6,21.832000000000001,1445.9,736.25,{"$f":"+DATEVALUE(TEXT(Table216[[#This Row],[Date]],\"MM/DD/YYYY\"))","v":"2013-10-31"},null,null,null,"SI","10/31/2013","5:42:10 PM",22.335000000000001,21.832000000000001,21.832000000000001,21.832000000000001,22,22.946000000000002,-1.1140000000000001,-4.8550000000000004]
[null,null,null,null,null,null,null,null,null,null,null,null,null,null,null,null,null,null,null,null,null,null,null,null,null,null,null,null,null,null,null,null,null,null,null,null,null,null,null,null,null,"10/30/2013",1349,22.946000000000002,1477.4,748.95,{"$f":"+DATEVALUE(TEXT(Table216[[#This Row],[Date]],\"MM/DD/YYYY\"))","v":"2013-10-30"},null,null,null,"PL","10/31/2013","5:41:25 PM",1445.9,1445.9,1445.9,1445.9,3,1477.4,-31.5,-2.1320000000000001]
[null,null,null,null,null,null,null,null,null,null,null,null,null,null,null,null,null,null,null,null,null,null,null,null,null,null,null,null,null,null,null,null,null,null,null,null,null,null,null,null,null,"10/29/2013",1345.2,22.452000000000002,1459.1,746.05,{"$f":"+DATEVALUE(TEXT(Table216[[#This Row],[Date]],\"MM/DD/YYYY\"))","v":"2013-10-29"},null,null,null,"PA","10/31/2013","5:41:25 PM",736.25,736.25,736.25,736.25,1,748.95,-12.7,-1.696]
[null,null,null,null,null,null,null,null,null,null,null,null,null,null,null,null,null,null,null,null,null,null,null,null,null,null,null,null,null,null,null,null,null,null,null,null,null,null,null,null,null,"10/28/2013",1352,22.498000000000001,1470.1,749.45,{"$f":"+DATEVALUE(TEXT(Table216[[#This Row],[Date]],\"MM/DD/YYYY\"))","v":"2013-10-28"}]
[null,null,null,null,null,null,null,null,null,null,null,null,null,null,null,null,null,null,null,null,null,null,null,null,null,null,null,null,null,null,null,null,null,null,null,null,null,null,null,null,null,"10/25/2013",1352.4,22.603000000000002,1452.5,746.9,{"$f":"+DATEVALUE(TEXT(Table216[[#This Row],[Date]],\"MM/DD/YYYY\"))","v":"2013-10-25"}]
[null,"Future Prices",null,null,null,null,null,null,null,null,null,null,null,null,null,null,null,null,null,null,null,null,null,null,null,null,null,null,null,null,null,null,null,null,null,null,null,null,null,null,null,"10/24/2013",1350.2,22.786000000000001,1453.3,746.8,{"$f":"+DATEVALUE(TEXT(Table216[[#This Row],[Date]],\"MM/DD/YYYY\"))","v":"2013-10-24"}]
[null,null,null,null,null,null,null,null,null,null,null,null,null,null,null,null,null,null,null,null,null,null,null,null,null,null,null,null,null,null,null,null,null,null,null,null,null,null,null,null,null,"10/23/2013",1333.9,22.582000000000001,1436.7,745.1,{"$f":"+DATEVALUE(TEXT(Table216[[#This Row],[Date]],\"MM/DD/YYYY\"))","v":"2013-10-23"}]
[null,null,null,null,null,null,null,null,null,null,null,null,null,null,null,null,null,null,null,null,null,null,null,null,null,null,null,null,null,null,null,null,null,null,null,null,null,null,null,null,null,"10/22/2013",1342.5,22.754000000000001,1447.8,751.9,{"$f":"+DATEVALUE(TEXT(Table216[[#This Row],[Date]],\"MM/DD/YYYY\"))","v":"2013-10-22"}]
[null,null,"Delayed Future Quotes",null,null,null,null,null,null,null,null,null,null,null,"Delayed Future Prices Heat Map",null,null,null,null,null,null,null,null,null,null,null,null,null,null,null,null,null,null,null,null,null,null,null,null,null,null,"10/21/2013",1315.7,22.233000000000001,1435.7,749.25,{"$f":"+DATEVALUE(TEXT(Table216[[#This Row],[Date]],\"MM/DD/YYYY\"))","v":"2013-10-21"}]
[null,null,"Supported Metals",null,"COMEX Gold & Silver, NYMEX Platinum & Palladium",null,null,null,null,null,null,null,null,null,"The heat map below shows delayed future prices from our APIs:",null,null,null,null,null,null,null,null,null,null,null,null,null,null,null,null,null,null,null,null,null,null,null,null,null,null,"10/18/2013",1314.4,21.869,1434.8,739.65,{"$f":"+DATEVALUE(TEXT(Table216[[#This Row],[Date]],\"MM/DD/YYYY\"))","v":"2013-10-18"}]
[null,null,"Supported Fields",null,null,null,null,null,null,null,null,null,null,null,{"$f":"+CONCATENATE(\"Vol \",TEXT($BF$2,\"#,##0\"))","v":"Vol 62"},"Gold",null,{"$f":"+CONCATENATE(\"Vol \",TEXT($BF$3,\"#,##0\"))","v":"Vol 22"},"Silver",null,{"$f":"+CONCATENATE(\"Vol \",TEXT($BF$4,\"#,##0\"))","v":"Vol 3"},"Platinum",null,{"$f":"+CONCATENATE(\"Vol \",TEXT($BF$5,\"#,##0\"))","v":"Vol 1"},"Palladium",null,null,null,null,null,null,null,null,null,null,null,null,null,null,null,null,"10/17/2013",1322.7,21.902999999999999,1431.9,736.8,{"$f":"+DATEVALUE(TEXT(Table216[[#This Row],[Date]],\"MM/DD/YYYY\"))","v":"2013-10-17"}]
[null,null,"Symbol",null,"ExchangeSymbol",null,"Low",null,"PreviousClose",null,null,null,null,null,{"$f":"+IF($BE$2<>0,$BE$2,$BD$2)","v":1323.6},null,null,{"$f":"+IF($BE$3<>0,$BE$3,$BD$3)","v":21.832000000000001},null,null,{"$f":"+IF($BE$4<>0,$BE$4,$BD$4)","v":1445.9},null,null,{"$f":"+IF($BE$5<>0,$BE$5,$BD$5)","v":736.25},null,null,null,null,null,null,null,null,null,null,null,null,null,null,null,null,null,"10/16/2013",1282,21.32,1395.2,712.55,{"$f":"+DATEVALUE(TEXT(Table216[[#This Row],[Date]],\"MM/DD/YYYY\"))","v":"2013-10-16"}]
[null,null,"Name",null,"Date (MM/DD/YYYY)",null,"Last",null,"Change",null,null,null,null,null,null,null,null,null,null,null,null,null,null,null,null,null,null,null,null,null,null,null,null,null,null,null,null,null,null,null,null,"10/15/2013",1273,21.146000000000001,1380.4,705.3,{"$f":"+DATEVALUE(TEXT(Table216[[#This Row],[Date]],\"MM/DD/YYYY\"))","v":"2013-10-15"}]
[null,null,"Month",null,"Time (EST)",null,"Settle",null,"PercentChange",null,null,null,null,null,{"$f":"+CONCATENATE(\"H \",TEXT($BB$2,\"#,##0.00\"))","v":"H 1,334.00"},{"$f":"+$BH$2","v":-25.4},null,{"$f":"+CONCATENATE(\"H \",TEXT($BB$3,\"#,##0.00\"))","v":"H 22.34"},{"$f":"+$BH$3","v":-1.1140000000000001},null,{"$f":"+CONCATENATE(\"H \",TEXT($BB$4,\"#,##0.00\"))","v":"H 1,445.90"},{"$f":"+$BH$4","v":-31.5},null,{"$f":"+CONCATENATE(\"H \",TEXT($BB$5,\"#,##0.00\"))","v":"H 736.25"},{"$f":"+$BH$5","v":-12.7},null,null,null,null,null,null,null,null,null,null,null,null,null,null,null,null,"10/14/2013",1276.4000000000001,21.31,1380.6,714.25,{"$f":"+DATEVALUE(TEXT(Table216[[#This Row],[Date]],\"MM/DD/YYYY\"))","v":"2013-10-14"}]
[null,null,"Year",null,"Open",null,"Volume",null,"Currency",null,null,null,null,null,{"$f":"+CONCATENATE(\"L \",TEXT($BC$2,\"#,##0.00\"))","v":"L 1,321.70"},{"$f":"+$BI$2/100","v":-1.883E-2},null,{"$f":"+CONCATENATE(\"L \",TEXT($BC$3,\"#,##0.00\"))","v":"L 21.83"},{"$f":"+$BI$3/100","v":-4.8550000000000003E-2},null,{"$f":"+CONCATENATE(\"L \",TEXT($BC$4,\"#,##0.00\"))","v":"L 1,445.90"},{"$f":"+$BI$4/100","v":-2.1320000000000002E-2},null,{"$f":"+CONCATENATE(\"L \",TEXT($BC$5,\"#,##0.00\"))","v":"L 736.25"},{"$f":"+$BI$5/100","v":-1.6959999999999999E-2},null,null,null,null,null,null,null,null,null,null,null,null,null,null,null,null,"10/11/2013",1268,21.215,1372,712.3,{"$f":"+DATEVALUE(TEXT(Table216[[#This Row],[Date]],\"MM/DD/YYYY\"))","v":"2013-10-11"}]
[null,null,"Exchange",null,"High",null,"OpenInterest",null,null,null,null,null,null,null,"To update the heat map enter your registration email or token below then click the refresh button. ",null,null,null,null,null,null,null,null,null,null,null,null,null,null,null,null,null,null,null,null,null,null,null,null,null,null,"10/10/2013",1296.5999999999999,21.85,1392.3,711.55,{"$f":"+DATEVALUE(TEXT(Table216[[#This Row],[Date]],\"MM/DD/YYYY\"))","v":"2013-10-10"}]
[null,null,"Delay",null,"10 minutes (standard CME delay period)",null,null,null,null,null,null,null,null,null,"Registration Email: ",null,null,null,null,null,null,null,null,null,"Macros must be enabled in Excel",null,null,null,null,null,null,null,null,null,null,null,null,null,null,null,null,"10/9/2013",1306.9000000000001,21.846,1379.5,703.1,{"$f":"+DATEVALUE(TEXT(Table216[[#This Row],[Date]],\"MM/DD/YYYY\"))","v":"2013-10-09"}]
[null,null,"Frequency",null,"Continuously updated during market hours.",null,null,null,null,null,null,null,null,null,null,null,null,null,null,null,null,null,null,null,null,null,null,null,null,null,null,null,null,null,null,null,null,null,null,null,null,"10/8/2013",1324.2,22.396999999999998,1400.2,713.9,{"$f":"+DATEVALUE(TEXT(Table216[[#This Row],[Date]],\"MM/DD/YYYY\"))","v":"2013-10-08"}]
[null,null,"Charts",null,"Customizable static intraday charts available.",null,null,null,null,null,null,null,null,"Built with GetDelayedMetalFuture",null,null,null,null,null,null,"Clicking on Refresh will consume 4 of your free trial hits. If you run out of free trial hits (numbers are 0), please contact us.",null,null,null,null,null,null,null,null,null,null,null,null,null,null,null,null,null,null,null,null,"10/7/2013",1324.8,22.338999999999999,1398.6,704.35,{"$f":"+DATEVALUE(TEXT(Table216[[#This Row],[Date]],\"MM/DD/YYYY\"))","v":"2013-10-07"}]
[null,null,"Availability",null,"COMEX Gold Trading Hours",null,null,"COMEX Silver Trading Hours",null,null,null,null,null,null,null,null,null,null,null,null,null,null,null,null,null,null,null,null,null,null,null,null,null,null,null,null,null,null,null,null,null,"10/4/2013",1309.7,21.704999999999998,1384.7,700.95,{"$f":"+DATEVALUE(TEXT(Table216[[#This Row],[Date]],\"MM/DD/YYYY\"))","v":"2013-10-04"}]
[null,null,null,null,"NYMEX Platinum Trading Hours",null,null,"NYMEX Palladium Trading Hours",null,null,null,null,null,null,null,null,null,null,null,null,null,null,null,null,null,null,null,null,null,null,null,null,null,null,null,null,null,null,null,null,null,"10/3/2013",1317.4,21.739000000000001,1369.5,699.2,{"$f":"+DATEVALUE(TEXT(Table216[[#This Row],[Date]],\"MM/DD/YYYY\"))","v":"2013-10-03"}]
[null,null,null,null,"All metals are traded electronically and in open outcry.",null,null,null,null,null,null,null,null,null,null,null,null,null,null,null,null,null,null,null,null,null,null,null,null,null,null,null,null,null,null,null,null,null,null,null,null,"10/2/2013",1320.6,21.846,1389.8,720.2,{"$f":"+DATEVALUE(TEXT(Table216[[#This Row],[Date]],\"MM/DD/YYYY\"))","v":"2013-10-02"}]
[null,null,null,null,"Quotes available by contract or for all active contracts.",null,null,null,null,null,null,null,null,null,"Historical Future Prices Charts",null,null,null,null,null,null,null,null,null,null,null,null,null,null,null,null,null,null,null,null,null,null,null,null,null,null,"10/1/2013",1286,21.123999999999999,1381.7,717.9,{"$f":"+DATEVALUE(TEXT(Table216[[#This Row],[Date]],\"MM/DD/YYYY\"))","v":"2013-10-01"}]
[null,null,"Historical Future Quotes",null,null,null,null,null,null,null,null,null,null,null,"The charts below show historical end of day data for the front month contract by metal.",null,null,null,null,null,null,null,null,null,null,null,null,null,null,null,null,null,null,null,null,null,null,null,null,null,null,"9/30/2013",1326.5,21.655999999999999,1408.1,726.15,{"$f":"+DATEVALUE(TEXT(Table216[[#This Row],[Date]],\"MM/DD/YYYY\"))","v":"2013-09-30"}]
[null,null,"Supported Fields",null,null,null,null,null,null,null,null,null,null,null,null,null,null,null,null,null,null,null,null,null,null,null,null,null,null,null,null,null,null,null,null,null,null,null,null,null,null,"9/27/2013",1338.4,21.783000000000001,1414.9,730.8,{"$f":"+DATEVALUE(TEXT(Table216[[#This Row],[Date]],\"MM/DD/YYYY\"))","v":"2013-09-27"}]
[null,null,"Symbol",null,"ExchangeSymbol",null,"Last",null,"Change",null,null,null,null,null,null,null,null,null,null,null,null,null,null,null,null,null,null,null,null,null,null,null,null,null,null,null,null,null,null,null,null,"9/26/2013",1323.6,21.72,1410.2,722.15,{"$f":"+DATEVALUE(TEXT(Table216[[#This Row],[Date]],\"MM/DD/YYYY\"))","v":"2013-09-26"}]
[null,null,"Name",null,"Date (MM/DD/YYYY)",null,"Settle",null,"PercentChange",null,null,null,null,null,null,null,null,null,null,null,null,null,null,null,null,null,null,null,null,null,null,null,null,null,null,null,null,null,null,null,null,"9/25/2013",1335.9,21.838000000000001,1428.3,724.2,{"$f":"+DATEVALUE(TEXT(Table216[[#This Row],[Date]],\"MM/DD/YYYY\"))","v":"2013-09-25"}]
[null,null,"Month",null,"Open",null,"Volume",null,"Currency",null,null,null,null,null,null,null,null,null,null,null,null,null,null,null,null,null,null,null,null,null,null,null,null,null,null,null,null,null,null,null,null,"9/24/2013",1316,21.539000000000001,1418.3,718.35,{"$f":"+DATEVALUE(TEXT(Table216[[#This Row],[Date]],\"MM/DD/YYYY\"))","v":"2013-09-24"}]
[null,null,"Year",null,"High",null,"OpenInterest",null,null,null,null,null,null,null,null,null,null,null,null,null,null,null,null,null,null,null,null,null,null,null,null,null,null,null,null,null,null,null,null,null,null,"9/23/2013",1326.9,21.805,1425.4,716.3,{"$f":"+DATEVALUE(TEXT(Table216[[#This Row],[Date]],\"MM/DD/YYYY\"))","v":"2013-09-23"}]
[null,null,"Exchange",null,"Low",null,"PreviousClose",null,null,null,null,null,null,null,null,null,null,null,null,null,null,null,null,null,null,null,null,null,null,null,null,null,null,null,null,null,null,null,null,null,null,"9/20/2013",1332.5,21.876000000000001,1432.1,720.3,{"$f":"+DATEVALUE(TEXT(Table216[[#This Row],[Date]],\"MM/DD/YYYY\"))","v":"2013-09-20"}]
[null,null,"Availability",null,"Updated at market close (after 5:15PM EST).",null,null,null,null,null,null,null,null,null,null,null,null,null,null,null,null,null,null,null,null,null,null,null,null,null,null,null,null,null,null,null,null,null,null,null,null,"9/19/2013",1369.4,23.242000000000001,1472.4,736.55,{"$f":"+DATEVALUE(TEXT(Table216[[#This Row],[Date]],\"MM/DD/YYYY\"))","v":"2013-09-19"}]
[null,null,"Methodology",null,"Based on VWAP of trades executed on Globex during settlement",null,null,null,null,null,null,null,null,null,null,null,null,null,null,null,null,null,null,null,null,null,null,null,null,null,null,null,null,null,null,null,null,null,null,null,null,"9/18/2013",1307.8,21.513999999999999,1424.6,701.45,{"$f":"+DATEVALUE(TEXT(Table216[[#This Row],[Date]],\"MM/DD/YYYY\"))","v":"2013-09-18"}]
[null,null,null,null,"session. More info:",null,"CME Settlement Methodology",null,null,null,null,null,null,null,null,null,null,null,null,null,null,null,null,null,null,null,null,null,null,null,null,null,null,null,null,null,null,null,null,null,null,"9/17/2013",1309.5,21.734999999999999,1421.8,705.25,{"$f":"+DATEVALUE(TEXT(Table216[[#This Row],[Date]],\"MM/DD/YYYY\"))","v":"2013-09-17"}]
[null,null,null,null,"Data returned is the concatenation of all the front-month contracts",null,null,null,null,null,null,null,null,null,null,null,null,null,null,null,null,null,null,null,null,null,null,null,null,null,null,null,null,null,null,null,null,null,null,null,null,"9/16/2013",1317.9,21.963000000000001,1440.6,704.3,{"$f":"+DATEVALUE(TEXT(Table216[[#This Row],[Date]],\"MM/DD/YYYY\"))","v":"2013-09-16"}]
[null,null,null,null,"settlement information during the requested time period.",null,null,null,null,null,null,null,null,null,null,null,null,null,null,null,null,null,null,null,null,null,null,null,null,null,null,null,null,null,null,null,null,null,null,null,null,"9/13/2013",1308.4000000000001,21.67,1443.6,697.5,{"$f":"+DATEVALUE(TEXT(Table216[[#This Row],[Date]],\"MM/DD/YYYY\"))","v":"2013-09-13"}]
[null,null,"Time Range",null,"Gold","1/1/1998 to present",null,"Platinum","1/1/1994 to present",null,null,null,null,null,null,null,null,null,null,null,null,null,null,null,null,null,null,null,null,null,null,null,null,null,null,null,null,null,null,null,null,"9/12/2013",1330.4,22.099,1441.8,691.2,{"$f":"+DATEVALUE(TEXT(Table216[[#This Row],[Date]],\"MM/DD/YYYY\"))","v":"2013-09-12"}]
[null,null,null,null,"Silver","1/1/1998 to present",null,"Palladium","1/1/1994 to present",null,null,null,null,null,null,null,null,null,null,null,null,null,null,null,null,null,null,null,null,null,null,null,null,null,null,null,null,null,null,null,null,"9/11/2013",1363.9,23.120999999999999,1472.6,689.6,{"$f":"+DATEVALUE(TEXT(Table216[[#This Row],[Date]],\"MM/DD/YYYY\"))","v":"2013-09-11"}]
[null,null,"Charts",null,"Customizable static historical charts available.",null,null,null,null,null,null,null,null,null,null,null,null,null,null,null,null,null,null,null,null,null,null,null,null,null,null,null,null,null,null,null,null,null,null,null,null,"9/10/2013",1364.1,22.966000000000001,1473.2,691.05,{"$f":"+DATEVALUE(TEXT(Table216[[#This Row],[Date]],\"MM/DD/YYYY\"))","v":"2013-09-10"}]
[null,null,null,null,null,null,null,null,null,null,null,null,null,null,null,null,null,null,null,null,null,null,null,null,null,null,null,null,null,null,null,null,null,null,null,null,null,null,null,null,null,"9/9/2013",1386.8,23.667999999999999,1482.1,681.4,{"$f":"+DATEVALUE(TEXT(Table216[[#This Row],[Date]],\"MM/DD/YYYY\"))","v":"2013-09-09"}]
[null,null,"Developer Resources",null,null,null,null,null,null,null,null,null,null,null,null,null,null,null,null,null,null,null,null,null,null,null,null,null,null,null,null,null,null,null,null,null,null,null,null,null,null,"9/6/2013",1386.7,23.841999999999999,1494.8,695.45,{"$f":"+DATEVALUE(TEXT(Table216[[#This Row],[Date]],\"MM/DD/YYYY\"))","v":"2013-09-06"}]
[null,null,"Delayed Quote API",null,"Historical Quote API",null,"Intraday Chart API",null,"Historical Chart API",null,null,null,null,null,null,null,null,null,null,null,null,null,null,null,null,null,null,null,null,null,null,null,null,null,null,null,null,null,null,null,null,"9/5/2013",1373.1,23.206,1481.2,685.8,{"$f":"+DATEVALUE(TEXT(Table216[[#This Row],[Date]],\"MM/DD/YYYY\"))","v":"2013-09-05"}]
[null,null,null,null,null,null,null,null,null,null,null,null,null,null,null,null,null,null,null,null,null,null,null,null,null,null,null,null,null,null,null,null,null,null,null,null,null,null,null,null,null,"9/4/2013",1389.9,23.369,1493.8,696.6,{"$f":"+DATEVALUE(TEXT(Table216[[#This Row],[Date]],\"MM/DD/YYYY\"))","v":"2013-09-04"}]
[null,null,null,null,null,null,null,null,null,null,null,null,null,"Built with GetHistoricalMetalFutureRange",null,null,null,null,null,null,"Clicking on Refresh will consume 4 of your free trial hits. If you run out of free trial hits (numbers are 0), please contact us.",null,null,null,null,null,null,null,null,null,null,null,null,null,null,null,null,null,null,null,null,"9/3/2013",1412,24.382000000000001,1537.3,716.2,{"$f":"+DATEVALUE(TEXT(Table216[[#This Row],[Date]],\"MM/DD/YYYY\"))","v":"2013-09-03"}]
[null,null,null,null,null,null,null,null,null,null,null,null,null,null,null,null,null,null,null,null,null,null,null,null,null,null,null,null,null,null,null,null,null,null,null,null,null,null,null,null,null,"8/30/2013",1396.1,23.463000000000001,1526.2,722.1,{"$f":"+DATEVALUE(TEXT(Table216[[#This Row],[Date]],\"MM/DD/YYYY\"))","v":"2013-08-30"}]
[null,null,null,null,null,null,null,null,null,null,null,null,null,null,null,null,null,null,null,null,null,null,null,null,null,null,null,null,null,null,null,null,null,null,null,null,null,null,null,null,null,"8/29/2013",1412.9,24.09,1521.5,737.75,{"$f":"+DATEVALUE(TEXT(Table216[[#This Row],[Date]],\"MM/DD/YYYY\"))","v":"2013-08-29"}]
[null,null,null,null,null,null,null,null,null,null,null,null,null,null,null,null,null,null,null,null,null,null,null,null,null,null,null,null,null,null,null,null,null,null,null,null,null,null,null,null,null,"8/28/2013",1419,24.388999999999999,1539.2,746.05,{"$f":"+DATEVALUE(TEXT(Table216[[#This Row],[Date]],\"MM/DD/YYYY\"))","v":"2013-08-28"}]
[null,null,null,null,null,null,null,null,null,null,null,null,null,null,null,null,null,null,null,null,null,null,null,null,null,null,null,null,null,null,null,null,null,null,null,null,null,null,null,null,null,"8/27/2013",1420.6,24.649000000000001,1531.2,748.9,{"$f":"+DATEVALUE(TEXT(Table216[[#This Row],[Date]],\"MM/DD/YYYY\"))","v":"2013-08-27"}]
[null,null,null,null,null,null,null,null,null,null,null,null,null,null,null,null,null,null,null,null,null,null,null,null,null,null,null,null,null,null,null,null,null,null,null,null,null,null,null,null,null,"8/26/2013",1393,24.007999999999999,1543.6,745.55,{"$f":"+DATEVALUE(TEXT(Table216[[#This Row],[Date]],\"MM/DD/YYYY\"))","v":"2013-08-26"}]
[null,null,null,null,null,null,null,null,null,null,null,null,null,null,null,null,null,null,null,null,null,null,null,null,null,null,null,null,null,null,null,null,null,null,null,null,null,null,null,null,null,"8/23/2013",1395.7,23.733000000000001,1540.7,750.35,{"$f":"+DATEVALUE(TEXT(Table216[[#This Row],[Date]],\"MM/DD/YYYY\"))","v":"2013-08-23"}]
[null,null,null,null,null,null,null,null,null,null,null,null,null,null,null,null,null,null,null,null,null,null,null,null,null,null,null,null,null,null,null,null,null,null,null,null,null,null,null,null,null,"8/22/2013",1371.2,23.03,1539.2,754.35,{"$f":"+DATEVALUE(TEXT(Table216[[#This Row],[Date]],\"MM/DD/YYYY\"))","v":"2013-08-22"}]
[null,null,null,null,null,null,null,null,null,null,null,null,null,null,null,null,null,null,null,null,null,null,null,null,null,null,null,null,null,null,null,null,null,null,null,null,null,null,null,null,null,"8/21/2013",1370.6,22.957999999999998,1518.2,746,{"$f":"+DATEVALUE(TEXT(Table216[[#This Row],[Date]],\"MM/DD/YYYY\"))","v":"2013-08-21"}]
[null,null,null,null,null,null,null,null,null,null,null,null,null,null,null,null,null,null,null,null,null,null,null,null,null,null,null,null,null,null,null,null,null,null,null,null,null,null,null,null,null,"8/20/2013",1373.1,23.065999999999999,1524.6,748.75,{"$f":"+DATEVALUE(TEXT(Table216[[#This Row],[Date]],\"MM/DD/YYYY\"))","v":"2013-08-20"}]
[null,null,null,null,null,null,null,null,null,null,null,null,null,null,null,null,null,null,null,null,null,null,null,null,null,null,null,null,null,null,null,null,null,null,null,null,null,null,null,null,null,"8/19/2013",1366.2,23.161000000000001,1508.1,752,{"$f":"+DATEVALUE(TEXT(Table216[[#This Row],[Date]],\"MM/DD/YYYY\"))","v":"2013-08-19"}]
[null,null,null,null,null,null,null,null,null,null,null,null,null,null,null,null,null,null,null,null,null,null,null,null,null,null,null,null,null,null,null,null,null,null,null,null,null,null,null,null,null,"8/16/2013",1371.7,23.317,1526.7,762.15,{"$f":"+DATEVALUE(TEXT(Table216[[#This Row],[Date]],\"MM/DD/YYYY\"))","v":"2013-08-16"}]
[null,null,null,null,null,null,null,null,null,null,null,null,null,null,null,null,null,null,null,null,null,null,null,null,null,null,null,null,null,null,null,null,null,null,null,null,null,null,null,null,null,"8/15/2013",1361.6,22.928999999999998,1531.4,755.95,{"$f":"+DATEVALUE(TEXT(Table216[[#This Row],[Date]],\"MM/DD/YYYY\"))","v":"2013-08-15"}]
[null,null,null,null,null,null,null,null,null,null,null,null,null,null,null,null,null,null,null,null,null,null,null,null,null,null,null,null,null,null,null,null,null,null,null,null,null,null,null,null,null,"8/14/2013",1334,21.780999999999999,1504.3,739.45,{"$f":"+DATEVALUE(TEXT(Table216[[#This Row],[Date]],\"MM/DD/YYYY\"))","v":"2013-08-14"}]
[null,null,null,null,null,null,null,null,null,null,null,null,null,null,null,null,null,null,null,null,null,null,null,null,null,null,null,null,null,null,null,null,null,null,null,null,null,null,null,null,null,"8/13/2013",1321.2,21.335999999999999,1498.8,738,{"$f":"+DATEVALUE(TEXT(Table216[[#This Row],[Date]],\"MM/DD/YYYY\"))","v":"2013-08-13"}]
[null,null,null,null,null,null,null,null,null,null,null,null,null,null,null,null,null,null,null,null,null,null,null,null,null,null,null,null,null,null,null,null,null,null,null,null,null,null,null,null,null,"8/12/2013",1334.7,21.332000000000001,1497.8,736.7,{"$f":"+DATEVALUE(TEXT(Table216[[#This Row],[Date]],\"MM/DD/YYYY\"))","v":"2013-08-12"}]
[null,null,null,null,null,null,null,null,null,null,null,null,null,null,null,null,null,null,null,null,null,null,null,null,null,null,null,null,null,null,null,null,null,null,null,null,null,null,null,null,null,"8/9/2013",1312.9,20.399000000000001,1499.7,740.1,{"$f":"+DATEVALUE(TEXT(Table216[[#This Row],[Date]],\"MM/DD/YYYY\"))","v":"2013-08-09"}]
[null,null,null,null,null,null,null,null,null,null,null,null,null,null,null,null,null,null,null,null,null,null,null,null,null,null,null,null,null,null,null,null,null,null,null,null,null,null,null,null,null,"8/8/2013",1310.7,20.184000000000001,1490.7,737.65,{"$f":"+DATEVALUE(TEXT(Table216[[#This Row],[Date]],\"MM/DD/YYYY\"))","v":"2013-08-08"}]
[null,null,null,null,null,null,null,null,null,null,null,null,null,null,null,null,null,null,null,null,null,null,null,null,null,null,null,null,null,null,null,null,null,null,null,null,null,null,null,null,null,"8/7/2013",1286.0999999999999,19.498000000000001,1437.4,722.25,{"$f":"+DATEVALUE(TEXT(Table216[[#This Row],[Date]],\"MM/DD/YYYY\"))","v":"2013-08-07"}]
[null,null,null,null,null,null,null,null,null,null,null,null,null,null,null,null,null,null,null,null,null,null,null,null,null,null,null,null,null,null,null,null,null,null,null,null,null,null,null,null,null,"8/6/2013",1283.2,19.515000000000001,1426.9,721.9,{"$f":"+DATEVALUE(TEXT(Table216[[#This Row],[Date]],\"MM/DD/YYYY\"))","v":"2013-08-06"}]
[null,null,null,null,null,null,null,null,null,null,null,null,null,null,null,null,null,null,null,null,null,null,null,null,null,null,null,null,null,null,null,null,null,null,null,null,null,null,null,null,null,"8/5/2013",1302.5999999999999,19.710999999999999,1447.2,734.3,{"$f":"+DATEVALUE(TEXT(Table216[[#This Row],[Date]],\"MM/DD/YYYY\"))","v":"2013-08-05"}]
[null,null,null,null,null,null,null,null,null,null,null,null,null,null,null,null,null,null,null,null,null,null,null,null,null,null,null,null,null,null,null,null,null,null,null,null,null,null,null,null,null,"8/2/2013",1310.5999999999999,19.902999999999999,1450.6,728.8,{"$f":"+DATEVALUE(TEXT(Table216[[#This Row],[Date]],\"MM/DD/YYYY\"))","v":"2013-08-02"}]
[null,null,null,null,null,null,null,null,null,null,null,null,null,null,null,null,null,null,null,null,null,null,null,null,null,null,null,null,null,null,null,null,null,null,null,null,null,null,null,null,null,"8/1/2013",1311,19.614999999999998,1442.9,730.95,{"$f":"+DATEVALUE(TEXT(Table216[[#This Row],[Date]],\"MM/DD/YYYY\"))","v":"2013-08-01"}]
[null,null,null,null,null,null,null,null,null,null,null,null,null,null,null,null,null,null,null,null,null,null,null,null,null,null,null,null,null,null,null,null,null,null,null,null,null,null,null,null,null,"7/31/2013",1312.4,19.617000000000001,1428.4,725.45,{"$f":"+DATEVALUE(TEXT(Table216[[#This Row],[Date]],\"MM/DD/YYYY\"))","v":"2013-07-31"}]
[null,null,null,null,null,null,null,null,null,null,null,null,null,null,null,null,null,null,null,null,null,null,null,null,null,null,null,null,null,null,null,null,null,null,null,null,null,null,null,null,null,"7/30/2013",1324,19.666,1436.6,727.75,{"$f":"+DATEVALUE(TEXT(Table216[[#This Row],[Date]],\"MM/DD/YYYY\"))","v":"2013-07-30"}]
[null,null,null,null,null,null,null,null,null,null,null,null,null,null,null,null,null,null,null,null,null,null,null,null,null,null,null,null,null,null,null,null,null,null,null,null,null,null,null,null,null,"7/29/2013",1328.4,19.853999999999999,1441.8,743.75,{"$f":"+DATEVALUE(TEXT(Table216[[#This Row],[Date]],\"MM/DD/YYYY\"))","v":"2013-07-29"}]
[null,null,null,null,null,null,null,null,null,null,null,null,null,null,null,null,null,null,null,null,null,null,null,null,null,null,null,null,null,null,null,null,null,null,null,null,null,null,null,null,null,"7/26/2013",1321.7,19.765000000000001,1421.9,723.1,{"$f":"+DATEVALUE(TEXT(Table216[[#This Row],[Date]],\"MM/DD/YYYY\"))","v":"2013-07-26"}]
[null,null,null,null,null,null,null,null,null,null,null,null,null,null,null,null,null,null,null,null,null,null,null,null,null,null,null,null,null,null,null,null,null,null,null,null,null,null,null,null,null,"7/25/2013",1329,20.146999999999998,1447,739.85,{"$f":"+DATEVALUE(TEXT(Table216[[#This Row],[Date]],\"MM/DD/YYYY\"))","v":"2013-07-25"}]
[null,null,null,null,null,null,null,null,null,null,null,null,null,null,null,null,null,null,null,null,null,null,null,null,null,null,null,null,null,null,null,null,null,null,null,null,null,null,null,null,null,"7/24/2013",1319.7,20.013999999999999,1455.2,744.4,{"$f":"+DATEVALUE(TEXT(Table216[[#This Row],[Date]],\"MM/DD/YYYY\"))","v":"2013-07-24"}]
[null,null,null,null,null,null,null,null,null,null,null,null,null,null,null,null,null,null,null,null,null,null,null,null,null,null,null,null,null,null,null,null,null,null,null,null,null,null,null,null,null,"7/23/2013",1335.1,20.245999999999999,1442.1,738.55,{"$f":"+DATEVALUE(TEXT(Table216[[#This Row],[Date]],\"MM/DD/YYYY\"))","v":"2013-07-23"}]
[null,null,null,null,null,null,null,null,null,null,null,null,null,null,null,null,null,null,null,null,null,null,null,null,null,null,null,null,null,null,null,null,null,null,null,null,null,null,null,null,null,"7/22/2013",1336.4,20.498000000000001,1447,749.55,{"$f":"+DATEVALUE(TEXT(Table216[[#This Row],[Date]],\"MM/DD/YYYY\"))","v":"2013-07-22"}]
[null,null,null,null,null,null,null,null,null,null,null,null,null,null,null,null,null,null,null,null,null,null,null,null,null,null,null,null,null,null,null,null,null,null,null,null,null,null,null,null,null,"7/19/2013",1293.3,19.448,1429.7,748.65,{"$f":"+DATEVALUE(TEXT(Table216[[#This Row],[Date]],\"MM/DD/YYYY\"))","v":"2013-07-19"}]
[null,null,null,null,null,null,null,null,null,null,null,null,null,null,null,null,null,null,null,null,null,null,null,null,null,null,null,null,null,null,null,null,null,null,null,null,null,null,null,null,null,"7/18/2013",1284.5999999999999,19.376000000000001,1413.3,746.4,{"$f":"+DATEVALUE(TEXT(Table216[[#This Row],[Date]],\"MM/DD/YYYY\"))","v":"2013-07-18"}]
[null,null,null,null,null,null,null,null,null,null,null,null,null,null,null,null,null,null,null,null,null,null,null,null,null,null,null,null,null,null,null,null,null,null,null,null,null,null,null,null,null,"7/17/2013",1277.9000000000001,19.408999999999999,1411.6,734.35,{"$f":"+DATEVALUE(TEXT(Table216[[#This Row],[Date]],\"MM/DD/YYYY\"))","v":"2013-07-17"}]
[null,null,null,null,null,null,null,null,null,null,null,null,null,null,null,null,null,null,null,null,null,null,null,null,null,null,null,null,null,null,null,null,null,null,null,null,null,null,null,null,null,"7/16/2013",1290.8,19.922999999999998,1426.1,734.5,{"$f":"+DATEVALUE(TEXT(Table216[[#This Row],[Date]],\"MM/DD/YYYY\"))","v":"2013-07-16"}]
[null,null,null,null,null,null,null,null,null,null,null,null,null,null,null,null,null,null,null,null,null,null,null,null,null,null,null,null,null,null,null,null,null,null,null,null,null,null,null,null,null,"7/15/2013",1283.8,19.826000000000001,1422.5,731.05,{"$f":"+DATEVALUE(TEXT(Table216[[#This Row],[Date]],\"MM/DD/YYYY\"))","v":"2013-07-15"}]
[null,null,null,null,null,null,null,null,null,null,null,null,null,null,null,null,null,null,null,null,null,null,null,null,null,null,null,null,null,null,null,null,null,null,null,null,null,null,null,null,null,"7/12/2013",1277.8,19.779,1409.6,721.6,{"$f":"+DATEVALUE(TEXT(Table216[[#This Row],[Date]],\"MM/DD/YYYY\"))","v":"2013-07-12"}]
[null,null,null,null,null,null,null,null,null,null,null,null,null,null,null,null,null,null,null,null,null,null,null,null,null,null,null,null,null,null,null,null,null,null,null,null,null,null,null,null,null,"7/11/2013",1280.0999999999999,19.943000000000001,1421.1,716.9,{"$f":"+DATEVALUE(TEXT(Table216[[#This Row],[Date]],\"MM/DD/YYYY\"))","v":"2013-07-11"}]
[null,null,null,null,null,null,null,null,null,null,null,null,null,null,null,null,null,null,null,null,null,null,null,null,null,null,null,null,null,null,null,null,null,null,null,null,null,null,null,null,null,"7/10/2013",1247.4000000000001,19.151,1368.1,712.5,{"$f":"+DATEVALUE(TEXT(Table216[[#This Row],[Date]],\"MM/DD/YYYY\"))","v":"2013-07-10"}]
[null,null,null,null,null,null,null,null,null,null,null,null,null,null,null,null,null,null,null,null,null,null,null,null,null,null,null,null,null,null,null,null,null,null,null,null,null,null,null,null,null,"7/9/2013",1245.9000000000001,19.125,1367.1,696.05,{"$f":"+DATEVALUE(TEXT(Table216[[#This Row],[Date]],\"MM/DD/YYYY\"))","v":"2013-07-09"}]
[null,null,null,null,null,null,null,null,null,null,null,null,null,null,null,null,null,null,null,null,null,null,null,null,null,null,null,null,null,null,null,null,null,null,null,null,null,null,null,null,null,"7/8/2013",1234.9000000000001,19.024999999999999,1360.5,693.8,{"$f":"+DATEVALUE(TEXT(Table216[[#This Row],[Date]],\"MM/DD/YYYY\"))","v":"2013-07-08"}]
[null,null,null,null,null,null,null,null,null,null,null,null,null,null,null,null,null,null,null,null,null,null,null,null,null,null,null,null,null,null,null,null,null,null,null,null,null,null,null,null,null,"7/5/2013",1212.9000000000001,18.725999999999999,1324.9,675.95,{"$f":"+DATEVALUE(TEXT(Table216[[#This Row],[Date]],\"MM/DD/YYYY\"))","v":"2013-07-05"}]
[null,null,null,null,null,null,null,null,null,null,null,null,null,null,null,null,null,null,null,null,null,null,null,null,null,null,null,null,null,null,null,null,null,null,null,null,null,null,null,null,null,"7/3/2013",1252.0999999999999,19.689,1345.3,684.1,{"$f":"+DATEVALUE(TEXT(Table216[[#This Row],[Date]],\"MM/DD/YYYY\"))","v":"2013-07-03"}]
[null,null,null,null,null,null,null,null,null,null,null,null,null,null,null,null,null,null,null,null,null,null,null,null,null,null,null,null,null,null,null,null,null,null,null,null,null,null,null,null,null,"7/2/2013",1243.5999999999999,19.297999999999998,1366.3,687.1,{"$f":"+DATEVALUE(TEXT(Table216[[#This Row],[Date]],\"MM/DD/YYYY\"))","v":"2013-07-02"}]
[null,null,null,null,null,null,null,null,null,null,null,null,null,null,null,null,null,null,null,null,null,null,null,null,null,null,null,null,null,null,null,null,null,null,null,null,null,null,null,null,null,"7/1/2013",1255.9000000000001,19.559999999999999,1379.2,684.9,{"$f":"+DATEVALUE(TEXT(Table216[[#This Row],[Date]],\"MM/DD/YYYY\"))","v":"2013-07-01"}]
[null,null,null,null,null,null,null,null,null,null,null,null,null,null,null,null,null,null,null,null,null,null,null,null,null,null,null,null,null,null,null,null,null,null,null,null,null,null,null,null,null,"6/28/2013",1223.8,19.451000000000001,1336.9,659.2,{"$f":"+DATEVALUE(TEXT(Table216[[#This Row],[Date]],\"MM/DD/YYYY\"))","v":"2013-06-28"}]
[null,null,null,null,null,null,null,null,null,null,null,null,null,null,null,null,null,null,null,null,null,null,null,null,null,null,null,null,null,null,null,null,null,null,null,null,null,null,null,null,null,"6/27/2013",1211.4000000000001,18.533000000000001,1325.2,649.15,{"$f":"+DATEVALUE(TEXT(Table216[[#This Row],[Date]],\"MM/DD/YYYY\"))","v":"2013-06-27"}]
[null,null,null,null,null,null,null,null,null,null,null,null,null,null,null,null,null,null,null,null,null,null,null,null,null,null,null,null,null,null,null,null,null,null,null,null,null,null,null,null,null,"6/26/2013",1229.5999999999999,18.587,1303.7,631.70000000000005,{"$f":"+DATEVALUE(TEXT(Table216[[#This Row],[Date]],\"MM/DD/YYYY\"))","v":"2013-06-26"}]
[null,null,null,null,null,null,null,null,null,null,null,null,null,null,null,null,null,null,null,null,null,null,null,null,null,null,null,null,null,null,null,null,null,null,null,null,null,null,null,null,null,"6/25/2013",1274.8,19.526,1350,667.15,{"$f":"+DATEVALUE(TEXT(Table216[[#This Row],[Date]],\"MM/DD/YYYY\"))","v":"2013-06-25"}]
[null,null,null,null,null,null,null,null,null,null,null,null,null,null,null,null,null,null,null,null,null,null,null,null,null,null,null,null,null,null,null,null,null,null,null,null,null,null,null,null,null,"6/24/2013",1276.8,19.492999999999999,1328.1,656.1,{"$f":"+DATEVALUE(TEXT(Table216[[#This Row],[Date]],\"MM/DD/YYYY\"))","v":"2013-06-24"}]
[null,null,null,null,null,null,null,null,null,null,null,null,null,null,null,null,null,null,null,null,null,null,null,null,null,null,null,null,null,null,null,null,null,null,null,null,null,null,null,null,null,"6/21/2013",1291.5999999999999,19.957999999999998,1362.5,673.25,{"$f":"+DATEVALUE(TEXT(Table216[[#This Row],[Date]],\"MM/DD/YYYY\"))","v":"2013-06-21"}]
[null,null,null,null,null,null,null,null,null,null,null,null,null,null,null,null,null,null,null,null,null,null,null,null,null,null,null,null,null,null,null,null,null,null,null,null,null,null,null,null,null,"6/20/2013",1285.9000000000001,19.821999999999999,1363.1,663.55,{"$f":"+DATEVALUE(TEXT(Table216[[#This Row],[Date]],\"MM/DD/YYYY\"))","v":"2013-06-20"}]
[null,null,null,null,null,null,null,null,null,null,null,null,null,null,null,null,null,null,null,null,null,null,null,null,null,null,null,null,null,null,null,null,null,null,null,null,null,null,null,null,null,"6/19/2013",1373.6,21.622,1423.2,694.85,{"$f":"+DATEVALUE(TEXT(Table216[[#This Row],[Date]],\"MM/DD/YYYY\"))","v":"2013-06-19"}]
[null,null,null,null,null,null,null,null,null,null,null,null,null,null,null,null,null,null,null,null,null,null,null,null,null,null,null,null,null,null,null,null,null,null,null,null,null,null,null,null,null,"6/18/2013",1366.6,21.675999999999998,1439.4,706.8,{"$f":"+DATEVALUE(TEXT(Table216[[#This Row],[Date]],\"MM/DD/YYYY\"))","v":"2013-06-18"}]
[null,null,null,null,null,null,null,null,null,null,null,null,null,null,null,null,null,null,null,null,null,null,null,null,null,null,null,null,null,null,null,null,null,null,null,null,null,null,null,null,null,"6/17/2013",1382.8,21.757000000000001,1434.1,716.3,{"$f":"+DATEVALUE(TEXT(Table216[[#This Row],[Date]],\"MM/DD/YYYY\"))","v":"2013-06-17"}]
[null,null,null,null,null,null,null,null,null,null,null,null,null,null,null,null,null,null,null,null,null,null,null,null,null,null,null,null,null,null,null,null,null,null,null,null,null,null,null,null,null,"6/14/2013",1387.3,21.952999999999999,1446.5,729.8,{"$f":"+DATEVALUE(TEXT(Table216[[#This Row],[Date]],\"MM/DD/YYYY\"))","v":"2013-06-14"}]
[null,null,null,null,null,null,null,null,null,null,null,null,null,null,null,null,null,null,null,null,null,null,null,null,null,null,null,null,null,null,null,null,null,null,null,null,null,null,null,null,null,"6/13/2013",1377.6,21.582000000000001,1446.2,729.35,{"$f":"+DATEVALUE(TEXT(Table216[[#This Row],[Date]],\"MM/DD/YYYY\"))","v":"2013-06-13"}]
[null,null,null,null,null,null,null,null,null,null,null,null,null,null,null,null,null,null,null,null,null,null,null,null,null,null,null,null,null,null,null,null,null,null,null,null,null,null,null,null,null,"6/12/2013",1391.8,21.795999999999999,1481.4,755.25,{"$f":"+DATEVALUE(TEXT(Table216[[#This Row],[Date]],\"MM/DD/YYYY\"))","v":"2013-06-12"}]
[null,null,null,null,null,null,null,null,null,null,null,null,null,null,null,null,null,null,null,null,null,null,null,null,null,null,null,null,null,null,null,null,null,null,null,null,null,null,null,null,null,"6/11/2013",1377,21.645,1479,750.75,{"$f":"+DATEVALUE(TEXT(Table216[[#This Row],[Date]],\"MM/DD/YYYY\"))","v":"2013-06-11"}]
[null,null,null,null,null,null,null,null,null,null,null,null,null,null,null,null,null,null,null,null,null,null,null,null,null,null,null,null,null,null,null,null,null,null,null,null,null,null,null,null,null,"6/10/2013",1386.2,21.920999999999999,1505.7,767.65,{"$f":"+DATEVALUE(TEXT(Table216[[#This Row],[Date]],\"MM/DD/YYYY\"))","v":"2013-06-10"}]
[null,null,null,null,null,null,null,null,null,null,null,null,null,null,null,null,null,null,null,null,null,null,null,null,null,null,null,null,null,null,null,null,null,null,null,null,null,null,null,null,null,"6/7/2013",1383,21.736999999999998,1501.4,759.45,{"$f":"+DATEVALUE(TEXT(Table216[[#This Row],[Date]],\"MM/DD/YYYY\"))","v":"2013-06-07"}]
[null,null,null,null,null,null,null,null,null,null,null,null,null,null,null,null,null,null,null,null,null,null,null,null,null,null,null,null,null,null,null,null,null,null,null,null,null,null,null,null,null,"6/6/2013",1415.7,22.701000000000001,1528.1,760.75,{"$f":"+DATEVALUE(TEXT(Table216[[#This Row],[Date]],\"MM/DD/YYYY\"))","v":"2013-06-06"}]
[null,null,null,null,null,null,null,null,null,null,null,null,null,null,null,null,null,null,null,null,null,null,null,null,null,null,null,null,null,null,null,null,null,null,null,null,null,null,null,null,null,"6/5/2013",1398.4,22.465,1509.4,754.3,{"$f":"+DATEVALUE(TEXT(Table216[[#This Row],[Date]],\"MM/DD/YYYY\"))","v":"2013-06-05"}]
[null,null,null,null,null,null,null,null,null,null,null,null,null,null,null,null,null,null,null,null,null,null,null,null,null,null,null,null,null,null,null,null,null,null,null,null,null,null,null,null,null,"6/4/2013",1397.1,22.4,1489.9,748.85,{"$f":"+DATEVALUE(TEXT(Table216[[#This Row],[Date]],\"MM/DD/YYYY\"))","v":"2013-06-04"}]
[null,null,null,null,null,null,null,null,null,null,null,null,null,null,null,null,null,null,null,null,null,null,null,null,null,null,null,null,null,null,null,null,null,null,null,null,null,null,null,null,null,"6/3/2013",1411.7,22.715,1496.2,756.8,{"$f":"+DATEVALUE(TEXT(Table216[[#This Row],[Date]],\"MM/DD/YYYY\"))","v":"2013-06-03"}]
[null,null,null,null,null,null,null,null,null,null,null,null,null,null,null,null,null,null,null,null,null,null,null,null,null,null,null,null,null,null,null,null,null,null,null,null,null,null,null,null,null,"5/31/2013",1392.6,22.228000000000002,1460.6,751.05,{"$f":"+DATEVALUE(TEXT(Table216[[#This Row],[Date]],\"MM/DD/YYYY\"))","v":"2013-05-31"}]
[null,null,null,null,null,null,null,null,null,null,null,null,null,null,null,null,null,null,null,null,null,null,null,null,null,null,null,null,null,null,null,null,null,null,null,null,null,null,null,null,null,"5/30/2013",1411.5,22.673999999999999,1481.5,758,{"$f":"+DATEVALUE(TEXT(Table216[[#This Row],[Date]],\"MM/DD/YYYY\"))","v":"2013-05-30"}]
[null,null,null,null,null,null,null,null,null,null,null,null,null,null,null,null,null,null,null,null,null,null,null,null,null,null,null,null,null,null,null,null,null,null,null,null,null,null,null,null,null,"5/29/2013",1391.3,22.445,1451.8,747.75,{"$f":"+DATEVALUE(TEXT(Table216[[#This Row],[Date]],\"MM/DD/YYYY\"))","v":"2013-05-29"}]
[null,null,null,null,null,null,null,null,null,null,null,null,null,null,null,null,null,null,null,null,null,null,null,null,null,null,null,null,null,null,null,null,null,null,null,null,null,null,null,null,null,"5/28/2013",1379.1,22.18,1460.6,756.8,{"$f":"+DATEVALUE(TEXT(Table216[[#This Row],[Date]],\"MM/DD/YYYY\"))","v":"2013-05-28"}]
[null,null,null,null,null,null,null,null,null,null,null,null,null,null,null,null,null,null,null,null,null,null,null,null,null,null,null,null,null,null,null,null,null,null,null,null,null,null,null,null,null,"5/24/2013",1386.8,22.481999999999999,1451.9,726.05,{"$f":"+DATEVALUE(TEXT(Table216[[#This Row],[Date]],\"MM/DD/YYYY\"))","v":"2013-05-24"}]
[null,null,null,null,null,null,null,null,null,null,null,null,null,null,null,null,null,null,null,null,null,null,null,null,null,null,null,null,null,null,null,null,null,null,null,null,null,null,null,null,null,"5/23/2013",1392,22.494,1457.2,738.25,{"$f":"+DATEVALUE(TEXT(Table216[[#This Row],[Date]],\"MM/DD/YYYY\"))","v":"2013-05-23"}]
[null,null,null,null,null,null,null,null,null,null,null,null,null,null,null,null,null,null,null,null,null,null,null,null,null,null,null,null,null,null,null,null,null,null,null,null,null,null,null,null,null,"5/22/2013",1367.6,22.457999999999998,1469.2,751.75,{"$f":"+DATEVALUE(TEXT(Table216[[#This Row],[Date]],\"MM/DD/YYYY\"))","v":"2013-05-22"}]
[null,null,null,null,null,null,null,null,null,null,null,null,null,null,null,null,null,null,null,null,null,null,null,null,null,null,null,null,null,null,null,null,null,null,null,null,null,null,null,null,null,"5/21/2013",1377.8,22.442,1458.4,747.7,{"$f":"+DATEVALUE(TEXT(Table216[[#This Row],[Date]],\"MM/DD/YYYY\"))","v":"2013-05-21"}]
[null,null,null,null,null,null,null,null,null,null,null,null,null,null,null,null,null,null,null,null,null,null,null,null,null,null,null,null,null,null,null,null,null,null,null,null,null,null,null,null,null,"5/20/2013",1384.3,22.568000000000001,1484.6,750,{"$f":"+DATEVALUE(TEXT(Table216[[#This Row],[Date]],\"MM/DD/YYYY\"))","v":"2013-05-20"}]
[null,null,null,null,null,null,null,null,null,null,null,null,null,null,null,null,null,null,null,null,null,null,null,null,null,null,null,null,null,null,null,null,null,null,null,null,null,null,null,null,null,"5/17/2013",1364.9,22.338999999999999,1468,739.5,{"$f":"+DATEVALUE(TEXT(Table216[[#This Row],[Date]],\"MM/DD/YYYY\"))","v":"2013-05-17"}]
[null,null,null,null,null,null,null,null,null,null,null,null,null,null,null,null,null,null,null,null,null,null,null,null,null,null,null,null,null,null,null,null,null,null,null,null,null,null,null,null,null,"5/16/2013",1387.1,22.643000000000001,1485.6,740,{"$f":"+DATEVALUE(TEXT(Table216[[#This Row],[Date]],\"MM/DD/YYYY\"))","v":"2013-05-16"}]
[null,null,null,null,null,null,null,null,null,null,null,null,null,null,null,null,null,null,null,null,null,null,null,null,null,null,null,null,null,null,null,null,null,null,null,null,null,null,null,null,null,"5/15/2013",1396.5,22.643000000000001,1490.7,728.3,{"$f":"+DATEVALUE(TEXT(Table216[[#This Row],[Date]],\"MM/DD/YYYY\"))","v":"2013-05-15"}]
[null,null,null,null,null,null,null,null,null,null,null,null,null,null,null,null,null,null,null,null,null,null,null,null,null,null,null,null,null,null,null,null,null,null,null,null,null,null,null,null,null,"5/14/2013",1424.7,23.355,1501.9,726.4,{"$f":"+DATEVALUE(TEXT(Table216[[#This Row],[Date]],\"MM/DD/YYYY\"))","v":"2013-05-14"}]
[null,null,null,null,null,null,null,null,null,null,null,null,null,null,null,null,null,null,null,null,null,null,null,null,null,null,null,null,null,null,null,null,null,null,null,null,null,null,null,null,null,"5/13/2013",1434.5,23.67,1484.5,717.95,{"$f":"+DATEVALUE(TEXT(Table216[[#This Row],[Date]],\"MM/DD/YYYY\"))","v":"2013-05-13"}]
[null,null,null,null,null,null,null,null,null,null,null,null,null,null,null,null,null,null,null,null,null,null,null,null,null,null,null,null,null,null,null,null,null,null,null,null,null,null,null,null,null,"5/10/2013",1436.8,23.632000000000001,1486,704.6,{"$f":"+DATEVALUE(TEXT(Table216[[#This Row],[Date]],\"MM/DD/YYYY\"))","v":"2013-05-10"}]
[null,null,null,null,null,null,null,null,null,null,null,null,null,null,null,null,null,null,null,null,null,null,null,null,null,null,null,null,null,null,null,null,null,null,null,null,null,null,null,null,null,"5/9/2013",1468.8,23.879000000000001,1516.5,713.65,{"$f":"+DATEVALUE(TEXT(Table216[[#This Row],[Date]],\"MM/DD/YYYY\"))","v":"2013-05-09"}]
[null,null,null,null,null,null,null,null,null,null,null,null,null,null,null,null,null,null,null,null,null,null,null,null,null,null,null,null,null,null,null,null,null,null,null,null,null,null,null,null,null,"5/8/2013",1473.9,23.891999999999999,1505.4,697.15,{"$f":"+DATEVALUE(TEXT(Table216[[#This Row],[Date]],\"MM/DD/YYYY\"))","v":"2013-05-08"}]
[null,null,null,null,null,null,null,null,null,null,null,null,null,null,null,null,null,null,null,null,null,null,null,null,null,null,null,null,null,null,null,null,null,null,null,null,null,null,null,null,null,"5/7/2013",1449,23.771000000000001,1481.7,679.5,{"$f":"+DATEVALUE(TEXT(Table216[[#This Row],[Date]],\"MM/DD/YYYY\"))","v":"2013-05-07"}]
[null,null,null,null,null,null,null,null,null,null,null,null,null,null,null,null,null,null,null,null,null,null,null,null,null,null,null,null,null,null,null,null,null,null,null,null,null,null,null,null,null,"5/6/2013",1468.1,23.917999999999999,1508.2,696,{"$f":"+DATEVALUE(TEXT(Table216[[#This Row],[Date]],\"MM/DD/YYYY\"))","v":"2013-05-06"}]
[null,null,null,null,null,null,null,null,null,null,null,null,null,null,null,null,null,null,null,null,null,null,null,null,null,null,null,null,null,null,null,null,null,null,null,null,null,null,null,null,null,"5/3/2013",1464.3,23.975000000000001,1501.7,692.2,{"$f":"+DATEVALUE(TEXT(Table216[[#This Row],[Date]],\"MM/DD/YYYY\"))","v":"2013-05-03"}]
[null,null,null,null,null,null,null,null,null,null,null,null,null,null,null,null,null,null,null,null,null,null,null,null,null,null,null,null,null,null,null,null,null,null,null,null,null,null,null,null,null,"5/2/2013",1467.7,23.79,1500.7,692.2,{"$f":"+DATEVALUE(TEXT(Table216[[#This Row],[Date]],\"MM/DD/YYYY\"))","v":"2013-05-02"}]
[null,null,null,null,null,null,null,null,null,null,null,null,null,null,null,null,null,null,null,null,null,null,null,null,null,null,null,null,null,null,null,null,null,null,null,null,null,null,null,null,null,"5/1/2013",1446.3,23.305,1468.7,683.65,{"$f":"+DATEVALUE(TEXT(Table216[[#This Row],[Date]],\"MM/DD/YYYY\"))","v":"2013-05-01"}]
[null,null,null,null,null,null,null,null,null,null,null,null,null,null,null,null,null,null,null,null,null,null,null,null,null,null,null,null,null,null,null,null,null,null,null,null,null,null,null,null,null,"4/30/2013",1472.2,24.143999999999998,1505.4,696.7,{"$f":"+DATEVALUE(TEXT(Table216[[#This Row],[Date]],\"MM/DD/YYYY\"))","v":"2013-04-30"}]
[null,null,null,null,null,null,null,null,null,null,null,null,null,null,null,null,null,null,null,null,null,null,null,null,null,null,null,null,null,null,null,null,null,null,null,null,null,null,null,null,null,"4/29/2013",1467.4,24.122,1505.6,698.1,{"$f":"+DATEVALUE(TEXT(Table216[[#This Row],[Date]],\"MM/DD/YYYY\"))","v":"2013-04-29"}]
[null,null,null,null,null,null,null,null,null,null,null,null,null,null,null,null,null,null,null,null,null,null,null,null,null,null,null,null,null,null,null,null,null,null,null,null,null,null,null,null,null,"4/26/2013",1453.6,23.757999999999999,1475.2,680.85,{"$f":"+DATEVALUE(TEXT(Table216[[#This Row],[Date]],\"MM/DD/YYYY\"))","v":"2013-04-26"}]
[null,null,null,null,null,null,null,null,null,null,null,null,null,null,null,null,null,null,null,null,null,null,null,null,null,null,null,null,null,null,null,null,null,null,null,null,null,null,null,null,null,"4/25/2013",1461.8,24.14,1462.8,680.2,{"$f":"+DATEVALUE(TEXT(Table216[[#This Row],[Date]],\"MM/DD/YYYY\"))","v":"2013-04-25"}]
[null,null,null,null,null,null,null,null,null,null,null,null,null,null,null,null,null,null,null,null,null,null,null,null,null,null,null,null,null,null,null,null,null,null,null,null,null,null,null,null,null,"4/24/2013",1423.4,22.829000000000001,1429.8,666.45,{"$f":"+DATEVALUE(TEXT(Table216[[#This Row],[Date]],\"MM/DD/YYYY\"))","v":"2013-04-24"}]
[null,null,null,null,null,null,null,null,null,null,null,null,null,null,null,null,null,null,null,null,null,null,null,null,null,null,null,null,null,null,null,null,null,null,null,null,null,null,null,null,null,"4/23/2013",1408.6,22.812999999999999,1416.8,672.15,{"$f":"+DATEVALUE(TEXT(Table216[[#This Row],[Date]],\"MM/DD/YYYY\"))","v":"2013-04-23"}]
[null,null,null,null,null,null,null,null,null,null,null,null,null,null,null,null,null,null,null,null,null,null,null,null,null,null,null,null,null,null,null,null,null,null,null,null,null,null,null,null,null,"4/22/2013",1421,23.32,1435.8,680.75,{"$f":"+DATEVALUE(TEXT(Table216[[#This Row],[Date]],\"MM/DD/YYYY\"))","v":"2013-04-22"}]
[null,null,null,null,null,null,null,null,null,null,null,null,null,null,null,null,null,null,null,null,null,null,null,null,null,null,null,null,null,null,null,null,null,null,null,null,null,null,null,null,null,"4/19/2013",1395.3,22.954999999999998,1423.3,675.9,{"$f":"+DATEVALUE(TEXT(Table216[[#This Row],[Date]],\"MM/DD/YYYY\"))","v":"2013-04-19"}]
[null,null,null,null,null,null,null,null,null,null,null,null,null,null,null,null,null,null,null,null,null,null,null,null,null,null,null,null,null,null,null,null,null,null,null,null,null,null,null,null,null,"4/18/2013",1392,23.239000000000001,1428.4,668.65,{"$f":"+DATEVALUE(TEXT(Table216[[#This Row],[Date]],\"MM/DD/YYYY\"))","v":"2013-04-18"}]
[null,null,null,null,null,null,null,null,null,null,null,null,null,null,null,null,null,null,null,null,null,null,null,null,null,null,null,null,null,null,null,null,null,null,null,null,null,null,null,null,null,"4/17/2013",1382.2,23.300999999999998,1434.8,660.25,{"$f":"+DATEVALUE(TEXT(Table216[[#This Row],[Date]],\"MM/DD/YYYY\"))","v":"2013-04-17"}]
[null,null,null,null,null,null,null,null,null,null,null,null,null,null,null,null,null,null,null,null,null,null,null,null,null,null,null,null,null,null,null,null,null,null,null,null,null,null,null,null,null,"4/16/2013",1386.8,23.622,1450,677.05,{"$f":"+DATEVALUE(TEXT(Table216[[#This Row],[Date]],\"MM/DD/YYYY\"))","v":"2013-04-16"}]
[null,null,null,null,null,null,null,null,null,null,null,null,null,null,null,null,null,null,null,null,null,null,null,null,null,null,null,null,null,null,null,null,null,null,null,null,null,null,null,null,null,"4/15/2013",1360.6,23.355,1424.2,665.85,{"$f":"+DATEVALUE(TEXT(Table216[[#This Row],[Date]],\"MM/DD/YYYY\"))","v":"2013-04-15"}]
[null,null,null,null,null,null,null,null,null,null,null,null,null,null,null,null,null,null,null,null,null,null,null,null,null,null,null,null,null,null,null,null,null,null,null,null,null,null,null,null,null,"4/12/2013",1501,26.321999999999999,1495.3,707.95,{"$f":"+DATEVALUE(TEXT(Table216[[#This Row],[Date]],\"MM/DD/YYYY\"))","v":"2013-04-12"}]
[null,null,null,null,null,null,null,null,null,null,null,null,null,null,null,null,null,null,null,null,null,null,null,null,null,null,null,null,null,null,null,null,null,null,null,null,null,null,null,null,null,"4/11/2013",1564.3,27.684999999999999,1535.2,732.2,{"$f":"+DATEVALUE(TEXT(Table216[[#This Row],[Date]],\"MM/DD/YYYY\"))","v":"2013-04-11"}]
[null,null,null,null,null,null,null,null,null,null,null,null,null,null,null,null,null,null,null,null,null,null,null,null,null,null,null,null,null,null,null,null,null,null,null,null,null,null,null,null,null,"4/10/2013",1558.3,27.638999999999999,1529.2,719.7,{"$f":"+DATEVALUE(TEXT(Table216[[#This Row],[Date]],\"MM/DD/YYYY\"))","v":"2013-04-10"}]
[null,null,null,null,null,null,null,null,null,null,null,null,null,null,null,null,null,null,null,null,null,null,null,null,null,null,null,null,null,null,null,null,null,null,null,null,null,null,null,null,null,"4/9/2013",1586.2,27.866,1552,731.85,{"$f":"+DATEVALUE(TEXT(Table216[[#This Row],[Date]],\"MM/DD/YYYY\"))","v":"2013-04-09"}]
[null,null,null,null,null,null,null,null,null,null,null,null,null,null,null,null,null,null,null,null,null,null,null,null,null,null,null,null,null,null,null,null,null,null,null,null,null,null,null,null,null,"4/8/2013",1572,27.12,1535.9,728.65,{"$f":"+DATEVALUE(TEXT(Table216[[#This Row],[Date]],\"MM/DD/YYYY\"))","v":"2013-04-08"}]
[null,null,null,null,null,null,null,null,null,null,null,null,null,null,null,null,null,null,null,null,null,null,null,null,null,null,null,null,null,null,null,null,null,null,null,null,null,null,null,null,null,"4/5/2013",1575.4,27.201000000000001,1534.4,722.75,{"$f":"+DATEVALUE(TEXT(Table216[[#This Row],[Date]],\"MM/DD/YYYY\"))","v":"2013-04-05"}]
[null,null,null,null,null,null,null,null,null,null,null,null,null,null,null,null,null,null,null,null,null,null,null,null,null,null,null,null,null,null,null,null,null,null,null,null,null,null,null,null,null,"4/4/2013",1551.8,26.748000000000001,1516.7,724.3,{"$f":"+DATEVALUE(TEXT(Table216[[#This Row],[Date]],\"MM/DD/YYYY\"))","v":"2013-04-04"}]
[null,null,null,null,null,null,null,null,null,null,null,null,null,null,null,null,null,null,null,null,null,null,null,null,null,null,null,null,null,null,null,null,null,null,null,null,null,null,null,null,null,"4/3/2013",1552.8,26.773,1539.8,754.3,{"$f":"+DATEVALUE(TEXT(Table216[[#This Row],[Date]],\"MM/DD/YYYY\"))","v":"2013-04-03"}]
[null,null,null,null,null,null,null,null,null,null,null,null,null,null,null,null,null,null,null,null,null,null,null,null,null,null,null,null,null,null,null,null,null,null,null,null,null,null,null,null,null,"4/2/2013",1575.1,27.216999999999999,1571.8,768.25,{"$f":"+DATEVALUE(TEXT(Table216[[#This Row],[Date]],\"MM/DD/YYYY\"))","v":"2013-04-02"}]
[null,null,null,null,null,null,null,null,null,null,null,null,null,null,null,null,null,null,null,null,null,null,null,null,null,null,null,null,null,null,null,null,null,null,null,null,null,null,null,null,null,"4/1/2013",1600,27.913,1596.4,782.8,{"$f":"+DATEVALUE(TEXT(Table216[[#This Row],[Date]],\"MM/DD/YYYY\"))","v":"2013-04-01"}]
[null,null,null,null,null,null,null,null,null,null,null,null,null,null,null,null,null,null,null,null,null,null,null,null,null,null,null,null,null,null,null,null,null,null,null,null,null,null,null,null,null,"3/28/2013",1594.8,28.292000000000002,1571.2,767.1,{"$f":"+DATEVALUE(TEXT(Table216[[#This Row],[Date]],\"MM/DD/YYYY\"))","v":"2013-03-28"}]
[null,null,null,null,null,null,null,null,null,null,null,null,null,null,null,null,null,null,null,null,null,null,null,null,null,null,null,null,null,null,null,null,null,null,null,null,null,null,null,null,null,"3/27/2013",1606.2,28.577000000000002,1579.8,767.15,{"$f":"+DATEVALUE(TEXT(Table216[[#This Row],[Date]],\"MM/DD/YYYY\"))","v":"2013-03-27"}]
[null,null,null,null,null,null,null,null,null,null,null,null,null,null,null,null,null,null,null,null,null,null,null,null,null,null,null,null,null,null,null,null,null,null,null,null,null,null,null,null,null,"3/26/2013",1595.8,28.643999999999998,1566,759.6,{"$f":"+DATEVALUE(TEXT(Table216[[#This Row],[Date]],\"MM/DD/YYYY\"))","v":"2013-03-26"}]
[null,null,null,null,null,null,null,null,null,null,null,null,null,null,null,null,null,null,null,null,null,null,null,null,null,null,null,null,null,null,null,null,null,null,null,null,null,null,null,null,null,"3/25/2013",1604.6,28.785,1582.4,755.55,{"$f":"+DATEVALUE(TEXT(Table216[[#This Row],[Date]],\"MM/DD/YYYY\"))","v":"2013-03-25"}]
[null,null,null,null,null,null,null,null,null,null,null,null,null,null,null,null,null,null,null,null,null,null,null,null,null,null,null,null,null,null,null,null,null,null,null,null,null,null,null,null,null,"3/22/2013",1606.2,28.666,1580.7,759.75,{"$f":"+DATEVALUE(TEXT(Table216[[#This Row],[Date]],\"MM/DD/YYYY\"))","v":"2013-03-22"}]
[null,null,null,null,null,null,null,null,null,null,null,null,null,null,null,null,null,null,null,null,null,null,null,null,null,null,null,null,null,null,null,null,null,null,null,null,null,null,null,null,null,"3/21/2013",1613.8,29.178999999999998,1579.1,755.05,{"$f":"+DATEVALUE(TEXT(Table216[[#This Row],[Date]],\"MM/DD/YYYY\"))","v":"2013-03-21"}]
[null,null,null,null,null,null,null,null,null,null,null,null,null,null,null,null,null,null,null,null,null,null,null,null,null,null,null,null,null,null,null,null,null,null,null,null,null,null,null,null,null,"3/20/2013",1607.5,28.783000000000001,1581.5,756.4,{"$f":"+DATEVALUE(TEXT(Table216[[#This Row],[Date]],\"MM/DD/YYYY\"))","v":"2013-03-20"}]
[null,null,null,null,null,null,null,null,null,null,null,null,null,null,null,null,null,null,null,null,null,null,null,null,null,null,null,null,null,null,null,null,null,null,null,null,null,null,null,null,null,"3/19/2013",1611.3,28.81,1554.4,733.4,{"$f":"+DATEVALUE(TEXT(Table216[[#This Row],[Date]],\"MM/DD/YYYY\"))","v":"2013-03-19"}]
[null,null,null,null,null,null,null,null,null,null,null,null,null,null,null,null,null,null,null,null,null,null,null,null,null,null,null,null,null,null,null,null,null,null,null,null,null,null,null,null,null,"3/18/2013",1604.6,28.841000000000001,1578.2,762.85,{"$f":"+DATEVALUE(TEXT(Table216[[#This Row],[Date]],\"MM/DD/YYYY\"))","v":"2013-03-18"}]
[null,null,null,null,null,null,null,null,null,null,null,null,null,null,null,null,null,null,null,null,null,null,null,null,null,null,null,null,null,null,null,null,null,null,null,null,null,null,null,null,null,"3/15/2013",1592.5,28.817,1591.4,773.7,{"$f":"+DATEVALUE(TEXT(Table216[[#This Row],[Date]],\"MM/DD/YYYY\"))","v":"2013-03-15"}]
[null,null,null,null,null,null,null,null,null,null,null,null,null,null,null,null,null,null,null,null,null,null,null,null,null,null,null,null,null,null,null,null,null,null,null,null,null,null,null,null,null,"3/14/2013",1590.6,28.771999999999998,1587.8,768.8,{"$f":"+DATEVALUE(TEXT(Table216[[#This Row],[Date]],\"MM/DD/YYYY\"))","v":"2013-03-14"}]
[null,null,null,null,null,null,null,null,null,null,null,null,null,null,null,null,null,null,null,null,null,null,null,null,null,null,null,null,null,null,null,null,null,null,null,null,null,null,null,null,null,"3/13/2013",1588.3,28.922000000000001,1591.1,769.25,{"$f":"+DATEVALUE(TEXT(Table216[[#This Row],[Date]],\"MM/DD/YYYY\"))","v":"2013-03-13"}]
[null,null,null,null,null,null,null,null,null,null,null,null,null,null,null,null,null,null,null,null,null,null,null,null,null,null,null,null,null,null,null,null,null,null,null,null,null,null,null,null,null,"3/12/2013",1591.5,29.131,1593,773.4,{"$f":"+DATEVALUE(TEXT(Table216[[#This Row],[Date]],\"MM/DD/YYYY\"))","v":"2013-03-12"}]
[null,null,null,null,null,null,null,null,null,null,null,null,null,null,null,null,null,null,null,null,null,null,null,null,null,null,null,null,null,null,null,null,null,null,null,null,null,null,null,null,null,"3/11/2013",1577.8,28.812000000000001,1599.2,777.1,{"$f":"+DATEVALUE(TEXT(Table216[[#This Row],[Date]],\"MM/DD/YYYY\"))","v":"2013-03-11"}]
[null,null,null,null,null,null,null,null,null,null,null,null,null,null,null,null,null,null,null,null,null,null,null,null,null,null,null,null,null,null,null,null,null,null,null,null,null,null,null,null,null,"3/8/2013",1576.6,28.908999999999999,1601.9,780.65,{"$f":"+DATEVALUE(TEXT(Table216[[#This Row],[Date]],\"MM/DD/YYYY\"))","v":"2013-03-08"}]
[null,null,null,null,null,null,null,null,null,null,null,null,null,null,null,null,null,null,null,null,null,null,null,null,null,null,null,null,null,null,null,null,null,null,null,null,null,null,null,null,null,"3/7/2013",1574.8,28.766999999999999,1593.1,757.05,{"$f":"+DATEVALUE(TEXT(Table216[[#This Row],[Date]],\"MM/DD/YYYY\"))","v":"2013-03-07"}]
[null,null,null,null,null,null,null,null,null,null,null,null,null,null,null,null,null,null,null,null,null,null,null,null,null,null,null,null,null,null,null,null,null,null,null,null,null,null,null,null,null,"3/6/2013",1574.6,28.76,1577.8,738.05,{"$f":"+DATEVALUE(TEXT(Table216[[#This Row],[Date]],\"MM/DD/YYYY\"))","v":"2013-03-06"}]
[null,null,null,null,null,null,null,null,null,null,null,null,null,null,null,null,null,null,null,null,null,null,null,null,null,null,null,null,null,null,null,null,null,null,null,null,null,null,null,null,null,"3/5/2013",1574.6,28.562999999999999,1583.7,732.6,{"$f":"+DATEVALUE(TEXT(Table216[[#This Row],[Date]],\"MM/DD/YYYY\"))","v":"2013-03-05"}]
[null,null,null,null,null,null,null,null,null,null,null,null,null,null,null,null,null,null,null,null,null,null,null,null,null,null,null,null,null,null,null,null,null,null,null,null,null,null,null,null,null,"3/4/2013",1572.1,28.457000000000001,1564.2,712.5,{"$f":"+DATEVALUE(TEXT(Table216[[#This Row],[Date]],\"MM/DD/YYYY\"))","v":"2013-03-04"}]
[null,null,null,null,null,null,null,null,null,null,null,null,null,null,null,null,null,null,null,null,null,null,null,null,null,null,null,null,null,null,null,null,null,null,null,null,null,null,null,null,null,"3/1/2013",1571.9,28.451000000000001,1571.5,718.65,{"$f":"+DATEVALUE(TEXT(Table216[[#This Row],[Date]],\"MM/DD/YYYY\"))","v":"2013-03-01"}]
[null,null,null,null,null,null,null,null,null,null,null,null,null,null,null,null,null,null,null,null,null,null,null,null,null,null,null,null,null,null,null,null,null,null,null,null,null,null,null,null,null,"2/28/2013",1577.7,28.395,1582.4,732.6,{"$f":"+DATEVALUE(TEXT(Table216[[#This Row],[Date]],\"MM/DD/YYYY\"))","v":"2013-02-28"}]
[null,null,null,null,null,null,null,null,null,null,null,null,null,null,null,null,null,null,null,null,null,null,null,null,null,null,null,null,null,null,null,null,null,null,null,null,null,null,null,null,null,"2/27/2013",1595.2,28.943000000000001,1599,743.15,{"$f":"+DATEVALUE(TEXT(Table216[[#This Row],[Date]],\"MM/DD/YYYY\"))","v":"2013-02-27"}]
[null,null,null,null,null,null,null,null,null,null,null,null,null,null,null,null,null,null,null,null,null,null,null,null,null,null,null,null,null,null,null,null,null,null,null,null,null,null,null,null,null,"2/26/2013",1615.2,29.256,1615.4,739,{"$f":"+DATEVALUE(TEXT(Table216[[#This Row],[Date]],\"MM/DD/YYYY\"))","v":"2013-02-26"}]
[null,null,null,null,null,null,null,null,null,null,null,null,null,null,null,null,null,null,null,null,null,null,null,null,null,null,null,null,null,null,null,null,null,null,null,null,null,null,null,null,null,"2/25/2013",1586.2,28.983000000000001,1619.6,748.65,{"$f":"+DATEVALUE(TEXT(Table216[[#This Row],[Date]],\"MM/DD/YYYY\"))","v":"2013-02-25"}]
[null,null,null,null,null,null,null,null,null,null,null,null,null,null,null,null,null,null,null,null,null,null,null,null,null,null,null,null,null,null,null,null,null,null,null,null,null,null,null,null,null,"2/22/2013",1572.4,28.456,1606.3,734.9,{"$f":"+DATEVALUE(TEXT(Table216[[#This Row],[Date]],\"MM/DD/YYYY\"))","v":"2013-02-22"}]
[null,null,null,null,null,null,null,null,null,null,null,null,null,null,null,null,null,null,null,null,null,null,null,null,null,null,null,null,null,null,null,null,null,null,null,null,null,null,null,null,null,"2/21/2013",1578.2,28.695,1618.9,733.2,{"$f":"+DATEVALUE(TEXT(Table216[[#This Row],[Date]],\"MM/DD/YYYY\"))","v":"2013-02-21"}]
[null,null,null,null,null,null,null,null,null,null,null,null,null,null,null,null,null,null,null,null,null,null,null,null,null,null,null,null,null,null,null,null,null,null,null,null,null,null,null,null,null,"2/20/2013",1577.6,28.614999999999998,1646,736,{"$f":"+DATEVALUE(TEXT(Table216[[#This Row],[Date]],\"MM/DD/YYYY\"))","v":"2013-02-20"}]
[null,null,null,null,null,null,null,null,null,null,null,null,null,null,null,null,null,null,null,null,null,null,null,null,null,null,null,null,null,null,null,null,null,null,null,null,null,null,null,null,null,"2/19/2013",1603.6,29.413,1696.4,763.75,{"$f":"+DATEVALUE(TEXT(Table216[[#This Row],[Date]],\"MM/DD/YYYY\"))","v":"2013-02-19"}]
[null,null,null,null,null,null,null,null,null,null,null,null,null,null,null,null,null,null,null,null,null,null,null,null,null,null,null,null,null,null,null,null,null,null,null,null,null,null,null,null,null,"2/15/2013",1608.8,29.838999999999999,1676.6,752.75,{"$f":"+DATEVALUE(TEXT(Table216[[#This Row],[Date]],\"MM/DD/YYYY\"))","v":"2013-02-15"}]
[null,null,null,null,null,null,null,null,null,null,null,null,null,null,null,null,null,null,null,null,null,null,null,null,null,null,null,null,null,null,null,null,null,null,null,null,null,null,null,null,null,"2/14/2013",1634.7,30.343,1709.8,763.65,{"$f":"+DATEVALUE(TEXT(Table216[[#This Row],[Date]],\"MM/DD/YYYY\"))","v":"2013-02-14"}]
[null,null,null,null,null,null,null,null,null,null,null,null,null,null,null,null,null,null,null,null,null,null,null,null,null,null,null,null,null,null,null,null,null,null,null,null,null,null,null,null,null,"2/13/2013",1644.2,30.853999999999999,1728.6,771.65,{"$f":"+DATEVALUE(TEXT(Table216[[#This Row],[Date]],\"MM/DD/YYYY\"))","v":"2013-02-13"}]
[null,null,null,null,null,null,null,null,null,null,null,null,null,null,null,null,null,null,null,null,null,null,null,null,null,null,null,null,null,null,null,null,null,null,null,null,null,null,null,null,null,"2/12/2013",1648.7,31.004000000000001,1716.1,771,{"$f":"+DATEVALUE(TEXT(Table216[[#This Row],[Date]],\"MM/DD/YYYY\"))","v":"2013-02-12"}]
[null,null,null,null,null,null,null,null,null,null,null,null,null,null,null,null,null,null,null,null,null,null,null,null,null,null,null,null,null,null,null,null,null,null,null,null,null,null,null,null,null,"2/11/2013",1648.2,30.895,1695,758.2,{"$f":"+DATEVALUE(TEXT(Table216[[#This Row],[Date]],\"MM/DD/YYYY\"))","v":"2013-02-11"}]
[null,null,null,null,null,null,null,null,null,null,null,null,null,null,null,null,null,null,null,null,null,null,null,null,null,null,null,null,null,null,null,null,null,null,null,null,null,null,null,null,null,"2/8/2013",1666,31.425000000000001,1713.5,751.1,{"$f":"+DATEVALUE(TEXT(Table216[[#This Row],[Date]],\"MM/DD/YYYY\"))","v":"2013-02-08"}]
[null,null,null,null,null,null,null,null,null,null,null,null,null,null,null,null,null,null,null,null,null,null,null,null,null,null,null,null,null,null,null,null,null,null,null,null,null,null,null,null,null,"2/7/2013",1670.4,31.387,1722.3,750.05,{"$f":"+DATEVALUE(TEXT(Table216[[#This Row],[Date]],\"MM/DD/YYYY\"))","v":"2013-02-07"}]
[null,null,null,null,null,null,null,null,null,null,null,null,null,null,null,null,null,null,null,null,null,null,null,null,null,null,null,null,null,null,null,null,null,null,null,null,null,null,null,null,null,"2/6/2013",1677.7,31.861000000000001,1736.5,764.4,{"$f":"+DATEVALUE(TEXT(Table216[[#This Row],[Date]],\"MM/DD/YYYY\"))","v":"2013-02-06"}]
[null,null,null,null,null,null,null,null,null,null,null,null,null,null,null,null,null,null,null,null,null,null,null,null,null,null,null,null,null,null,null,null,null,null,null,null,null,null,null,null,null,"2/5/2013",1672.4,31.859000000000002,1705.7,765.05,{"$f":"+DATEVALUE(TEXT(Table216[[#This Row],[Date]],\"MM/DD/YYYY\"))","v":"2013-02-05"}]
[null,null,null,null,null,null,null,null,null,null,null,null,null,null,null,null,null,null,null,null,null,null,null,null,null,null,null,null,null,null,null,null,null,null,null,null,null,null,null,null,null,"2/4/2013",1675.3,31.7,1696.6,757.4,{"$f":"+DATEVALUE(TEXT(Table216[[#This Row],[Date]],\"MM/DD/YYYY\"))","v":"2013-02-04"}]
[null,null,null,null,null,null,null,null,null,null,null,null,null,null,null,null,null,null,null,null,null,null,null,null,null,null,null,null,null,null,null,null,null,null,null,null,null,null,null,null,null,"2/1/2013",1669.4,31.942,1686.2,756,{"$f":"+DATEVALUE(TEXT(Table216[[#This Row],[Date]],\"MM/DD/YYYY\"))","v":"2013-02-01"}]
[null,null,null,null,null,null,null,null,null,null,null,null,null,null,null,null,null,null,null,null,null,null,null,null,null,null,null,null,null,null,null,null,null,null,null,null,null,null,null,null,null,"1/31/2013",1660.6,31.335000000000001,1673.9,745.3,{"$f":"+DATEVALUE(TEXT(Table216[[#This Row],[Date]],\"MM/DD/YYYY\"))","v":"2013-01-31"}]
[null,null,null,null,null,null,null,null,null,null,null,null,null,null,null,null,null,null,null,null,null,null,null,null,null,null,null,null,null,null,null,null,null,null,null,null,null,null,null,null,null,"1/30/2013",1679.9,32.152000000000001,1687.8,751,{"$f":"+DATEVALUE(TEXT(Table216[[#This Row],[Date]],\"MM/DD/YYYY\"))","v":"2013-01-30"}]
[null,null,null,null,null,null,null,null,null,null,null,null,null,null,null,null,null,null,null,null,null,null,null,null,null,null,null,null,null,null,null,null,null,null,null,null,null,null,null,null,null,"1/29/2013",1660.7,31.158999999999999,1677.4,749.05,{"$f":"+DATEVALUE(TEXT(Table216[[#This Row],[Date]],\"MM/DD/YYYY\"))","v":"2013-01-29"}]
[null,null,null,null,null,null,null,null,null,null,null,null,null,null,null,null,null,null,null,null,null,null,null,null,null,null,null,null,null,null,null,null,null,null,null,null,null,null,null,null,null,"1/28/2013",1652.4,30.756,1661.2,739.8,{"$f":"+DATEVALUE(TEXT(Table216[[#This Row],[Date]],\"MM/DD/YYYY\"))","v":"2013-01-28"}]
[null,null,null,null,null,null,null,null,null,null,null,null,null,null,null,null,null,null,null,null,null,null,null,null,null,null,null,null,null,null,null,null,null,null,null,null,null,null,null,null,null,"1/25/2013",1656.4,31.18,1693.9,740.25,{"$f":"+DATEVALUE(TEXT(Table216[[#This Row],[Date]],\"MM/DD/YYYY\"))","v":"2013-01-25"}]
[null,null,null,null,null,null,null,null,null,null,null,null,null,null,null,null,null,null,null,null,null,null,null,null,null,null,null,null,null,null,null,null,null,null,null,null,null,null,null,null,null,"1/24/2013",1669.5,31.695,1682.8,725.95,{"$f":"+DATEVALUE(TEXT(Table216[[#This Row],[Date]],\"MM/DD/YYYY\"))","v":"2013-01-24"}]
[null,null,null,null,null,null,null,null,null,null,null,null,null,null,null,null,null,null,null,null,null,null,null,null,null,null,null,null,null,null,null,null,null,null,null,null,null,null,null,null,null,"1/23/2013",1686.3,32.408999999999999,1691.7,725.45,{"$f":"+DATEVALUE(TEXT(Table216[[#This Row],[Date]],\"MM/DD/YYYY\"))","v":"2013-01-23"}]
[null,null,null,null,null,null,null,null,null,null,null,null,null,null,null,null,null,null,null,null,null,null,null,null,null,null,null,null,null,null,null,null,null,null,null,null,null,null,null,null,null,"1/22/2013",1692.8,32.146999999999998,1698.4,729.15,{"$f":"+DATEVALUE(TEXT(Table216[[#This Row],[Date]],\"MM/DD/YYYY\"))","v":"2013-01-22"}]
[null,null,null,null,null,null,null,null,null,null,null,null,null,null,null,null,null,null,null,null,null,null,null,null,null,null,null,null,null,null,null,null,null,null,null,null,null,null,null,null,null,"1/18/2013",1686.6,31.902000000000001,1672.1,722,{"$f":"+DATEVALUE(TEXT(Table216[[#This Row],[Date]],\"MM/DD/YYYY\"))","v":"2013-01-18"}]
[null,null,null,null,null,null,null,null,null,null,null,null,null,null,null,null,null,null,null,null,null,null,null,null,null,null,null,null,null,null,null,null,null,null,null,null,null,null,null,null,null,"1/17/2013",1690.4,31.786000000000001,1697.8,725.4,{"$f":"+DATEVALUE(TEXT(Table216[[#This Row],[Date]],\"MM/DD/YYYY\"))","v":"2013-01-17"}]
[null,null,null,null,null,null,null,null,null,null,null,null,null,null,null,null,null,null,null,null,null,null,null,null,null,null,null,null,null,null,null,null,null,null,null,null,null,null,null,null,null,"1/16/2013",1682.7,31.513999999999999,1692.2,725.7,{"$f":"+DATEVALUE(TEXT(Table216[[#This Row],[Date]],\"MM/DD/YYYY\"))","v":"2013-01-16"}]
[null,null,null,null,null,null,null,null,null,null,null,null,null,null,null,null,null,null,null,null,null,null,null,null,null,null,null,null,null,null,null,null,null,null,null,null,null,null,null,null,null,"1/15/2013",1683.4,31.498000000000001,1688,712.6,{"$f":"+DATEVALUE(TEXT(Table216[[#This Row],[Date]],\"MM/DD/YYYY\"))","v":"2013-01-15"}]
[null,null,null,null,null,null,null,null,null,null,null,null,null,null,null,null,null,null,null,null,null,null,null,null,null,null,null,null,null,null,null,null,null,null,null,null,null,null,null,null,null,"1/14/2013",1668.9,31.08,1656.3,702.55,{"$f":"+DATEVALUE(TEXT(Table216[[#This Row],[Date]],\"MM/DD/YYYY\"))","v":"2013-01-14"}]
[null,null,null,null,null,null,null,null,null,null,null,null,null,null,null,null,null,null,null,null,null,null,null,null,null,null,null,null,null,null,null,null,null,null,null,null,null,null,null,null,null,"1/11/2013",1660,30.367000000000001,1629.3,700.7,{"$f":"+DATEVALUE(TEXT(Table216[[#This Row],[Date]],\"MM/DD/YYYY\"))","v":"2013-01-11"}]
[null,null,null,null,null,null,null,null,null,null,null,null,null,null,null,null,null,null,null,null,null,null,null,null,null,null,null,null,null,null,null,null,null,null,null,null,null,null,null,null,null,"1/10/2013",1677.3,30.875,1632.4,701.45,{"$f":"+DATEVALUE(TEXT(Table216[[#This Row],[Date]],\"MM/DD/YYYY\"))","v":"2013-01-10"}]
[null,null,null,null,null,null,null,null,null,null,null,null,null,null,null,null,null,null,null,null,null,null,null,null,null,null,null,null,null,null,null,null,null,null,null,null,null,null,null,null,null,"1/9/2013",1654.8,30.201000000000001,1597.8,687.45,{"$f":"+DATEVALUE(TEXT(Table216[[#This Row],[Date]],\"MM/DD/YYYY\"))","v":"2013-01-09"}]
[null,null,null,null,null,null,null,null,null,null,null,null,null,null,null,null,null,null,null,null,null,null,null,null,null,null,null,null,null,null,null,null,null,null,null,null,null,null,null,null,null,"1/8/2013",1661.5,30.414999999999999,1580.6,667.1,{"$f":"+DATEVALUE(TEXT(Table216[[#This Row],[Date]],\"MM/DD/YYYY\"))","v":"2013-01-08"}]
[null,null,null,null,null,null,null,null,null,null,null,null,null,null,null,null,null,null,null,null,null,null,null,null,null,null,null,null,null,null,null,null,null,null,null,null,null,null,null,null,null,"1/7/2013",1645.5,30.032,1553.8,669.25,{"$f":"+DATEVALUE(TEXT(Table216[[#This Row],[Date]],\"MM/DD/YYYY\"))","v":"2013-01-07"}]
[null,null,null,null,null,null,null,null,null,null,null,null,null,null,null,null,null,null,null,null,null,null,null,null,null,null,null,null,null,null,null,null,null,null,null,null,null,null,null,null,null,"1/4/2013",1648.1,29.896000000000001,1555.2,687.8,{"$f":"+DATEVALUE(TEXT(Table216[[#This Row],[Date]],\"MM/DD/YYYY\"))","v":"2013-01-04"}]
[null,null,null,null,null,null,null,null,null,null,null,null,null,null,null,null,null,null,null,null,null,null,null,null,null,null,null,null,null,null,null,null,null,null,null,null,null,null,null,null,null,"1/3/2013",1673.7,30.670999999999999,1576.7,696.45,{"$f":"+DATEVALUE(TEXT(Table216[[#This Row],[Date]],\"MM/DD/YYYY\"))","v":"2013-01-03"}]
[null,null,null,null,null,null,null,null,null,null,null,null,null,null,null,null,null,null,null,null,null,null,null,null,null,null,null,null,null,null,null,null,null,null,null,null,null,null,null,null,null,"1/2/2013",1687.9,30.952000000000002,1565.1,707.25,{"$f":"+DATEVALUE(TEXT(Table216[[#This Row],[Date]],\"MM/DD/YYYY\"))","v":"2013-01-02"}]
[null,null,null,null,null,null,null,null,null,null,null,null,null,null,null,null,null,null,null,null,null,null,null,null,null,null,null,null,null,null,null,null,null,null,null,null,null,null,null,null,null,"12/31/2012",1674.8,30.172999999999998,1538.7,702.65,{"$f":"+DATEVALUE(TEXT(Table216[[#This Row],[Date]],\"MM/DD/YYYY\"))","v":"2012-12-31"}]
[null,null,null,null,null,null,null,null,null,null,null,null,null,null,null,null,null,null,null,null,null,null,null,null,null,null,null,null,null,null,null,null,null,null,null,null,null,null,null,null,null,"12/28/2012",1654.9,29.92,1517.4,699.6,{"$f":"+DATEVALUE(TEXT(Table216[[#This Row],[Date]],\"MM/DD/YYYY\"))","v":"2012-12-28"}]
[null,null,null,null,null,null,null,null,null,null,null,null,null,null,null,null,null,null,null,null,null,null,null,null,null,null,null,null,null,null,null,null,null,null,null,null,null,null,null,null,null,"12/27/2012",1662.6,30.184000000000001,1531.8,707.35,{"$f":"+DATEVALUE(TEXT(Table216[[#This Row],[Date]],\"MM/DD/YYYY\"))","v":"2012-12-27"}]
[null,null,null,null,null,null,null,null,null,null,null,null,null,null,null,null,null,null,null,null,null,null,null,null,null,null,null,null,null,null,null,null,null,null,null,null,null,null,null,null,null,"12/26/2012",1659.8,29.983000000000001,1534.9,691.4,{"$f":"+DATEVALUE(TEXT(Table216[[#This Row],[Date]],\"MM/DD/YYYY\"))","v":"2012-12-26"}]
[null,null,null,null,null,null,null,null,null,null,null,null,null,null,null,null,null,null,null,null,null,null,null,null,null,null,null,null,null,null,null,null,null,null,null,null,null,null,null,null,null,"12/24/2012",1658.6,29.838999999999999,1534.9,683.55,{"$f":"+DATEVALUE(TEXT(Table216[[#This Row],[Date]],\"MM/DD/YYYY\"))","v":"2012-12-24"}]
[null,null,null,null,null,null,null,null,null,null,null,null,null,null,null,null,null,null,null,null,null,null,null,null,null,null,null,null,null,null,null,null,null,null,null,null,null,null,null,null,null,"12/21/2012",1659.1,30.141999999999999,1536.9,681.3,{"$f":"+DATEVALUE(TEXT(Table216[[#This Row],[Date]],\"MM/DD/YYYY\"))","v":"2012-12-21"}]
[null,null,null,null,null,null,null,null,null,null,null,null,null,null,null,null,null,null,null,null,null,null,null,null,null,null,null,null,null,null,null,null,null,null,null,null,null,null,null,null,null,"12/20/2012",1644.9,29.611999999999998,1546.2,679.25,{"$f":"+DATEVALUE(TEXT(Table216[[#This Row],[Date]],\"MM/DD/YYYY\"))","v":"2012-12-20"}]
[null,null,null,null,null,null,null,null,null,null,null,null,null,null,null,null,null,null,null,null,null,null,null,null,null,null,null,null,null,null,null,null,null,null,null,null,null,null,null,null,null,"12/19/2012",1666.5,31.045000000000002,1592.9,697.35,{"$f":"+DATEVALUE(TEXT(Table216[[#This Row],[Date]],\"MM/DD/YYYY\"))","v":"2012-12-19"}]
[null,null,null,null,null,null,null,null,null,null,null,null,null,null,null,null,null,null,null,null,null,null,null,null,null,null,null,null,null,null,null,null,null,null,null,null,null,null,null,null,null,"12/18/2012",1669.5,31.594999999999999,1593.7,689.85,{"$f":"+DATEVALUE(TEXT(Table216[[#This Row],[Date]],\"MM/DD/YYYY\"))","v":"2012-12-18"}]
[null,null,null,null,null,null,null,null,null,null,null,null,null,null,null,null,null,null,null,null,null,null,null,null,null,null,null,null,null,null,null,null,null,null,null,null,null,null,null,null,null,"12/17/2012",1697,32.206000000000003,1608.5,697.2,{"$f":"+DATEVALUE(TEXT(Table216[[#This Row],[Date]],\"MM/DD/YYYY\"))","v":"2012-12-17"}]
[null,null,null,null,null,null,null,null,null,null,null,null,null,null,null,null,null,null,null,null,null,null,null,null,null,null,null,null,null,null,null,null,null,null,null,null,null,null,null,null,null,"12/14/2012",1695.8,32.222999999999999,1614.5,700.8,{"$f":"+DATEVALUE(TEXT(Table216[[#This Row],[Date]],\"MM/DD/YYYY\"))","v":"2012-12-14"}]
[null,null,null,null,null,null,null,null,null,null,null,null,null,null,null,null,null,null,null,null,null,null,null,null,null,null,null,null,null,null,null,null,null,null,null,null,null,null,null,null,null,"12/13/2012",1695.6,32.28,1612.8,690.25,{"$f":"+DATEVALUE(TEXT(Table216[[#This Row],[Date]],\"MM/DD/YYYY\"))","v":"2012-12-13"}]
[null,null,null,null,null,null,null,null,null,null,null,null,null,null,null,null,null,null,null,null,null,null,null,null,null,null,null,null,null,null,null,null,null,null,null,null,null,null,null,null,null,"12/12/2012",1716.6,33.707000000000001,1646.4,699.65,{"$f":"+DATEVALUE(TEXT(Table216[[#This Row],[Date]],\"MM/DD/YYYY\"))","v":"2012-12-12"}]
[null,null,null,null,null,null,null,null,null,null,null,null,null,null,null,null,null,null,null,null,null,null,null,null,null,null,null,null,null,null,null,null,null,null,null,null,null,null,null,null,null,"12/11/2012",1708.2,32.941000000000003,1640,695.3,{"$f":"+DATEVALUE(TEXT(Table216[[#This Row],[Date]],\"MM/DD/YYYY\"))","v":"2012-12-11"}]
[null,null,null,null,null,null,null,null,null,null,null,null,null,null,null,null,null,null,null,null,null,null,null,null,null,null,null,null,null,null,null,null,null,null,null,null,null,null,null,null,null,"12/10/2012",1713,33.299999999999997,1623.3,703.25,{"$f":"+DATEVALUE(TEXT(Table216[[#This Row],[Date]],\"MM/DD/YYYY\"))","v":"2012-12-10"}]
[null,null,null,null,null,null,null,null,null,null,null,null,null,null,null,null,null,null,null,null,null,null,null,null,null,null,null,null,null,null,null,null,null,null,null,null,null,null,null,null,null,"12/7/2012",1704,33.052999999999997,1607,696.5,{"$f":"+DATEVALUE(TEXT(Table216[[#This Row],[Date]],\"MM/DD/YYYY\"))","v":"2012-12-07"}]
[null,null,null,null,null,null,null,null,null,null,null,null,null,null,null,null,null,null,null,null,null,null,null,null,null,null,null,null,null,null,null,null,null,null,null,null,null,null,null,null,null,"12/6/2012",1700.3,33.039000000000001,1600.7,695.55,{"$f":"+DATEVALUE(TEXT(Table216[[#This Row],[Date]],\"MM/DD/YYYY\"))","v":"2012-12-06"}]
[null,null,null,null,null,null,null,null,null,null,null,null,null,null,null,null,null,null,null,null,null,null,null,null,null,null,null,null,null,null,null,null,null,null,null,null,null,null,null,null,null,"12/5/2012",1692.4,32.883000000000003,1584.2,685.95,{"$f":"+DATEVALUE(TEXT(Table216[[#This Row],[Date]],\"MM/DD/YYYY\"))","v":"2012-12-05"}]
[null,null,null,null,null,null,null,null,null,null,null,null,null,null,null,null,null,null,null,null,null,null,null,null,null,null,null,null,null,null,null,null,null,null,null,null,null,null,null,null,null,"12/4/2012",1694.4,32.734000000000002,1582.9,681.1,{"$f":"+DATEVALUE(TEXT(Table216[[#This Row],[Date]],\"MM/DD/YYYY\"))","v":"2012-12-04"}]
[null,null,null,null,null,null,null,null,null,null,null,null,null,null,null,null,null,null,null,null,null,null,null,null,null,null,null,null,null,null,null,null,null,null,null,null,null,null,null,null,null,"12/3/2012",1719.6,33.680999999999997,1613.8,689.45,{"$f":"+DATEVALUE(TEXT(Table216[[#This Row],[Date]],\"MM/DD/YYYY\"))","v":"2012-12-03"}]
[null,null,null,null,null,null,null,null,null,null,null,null,null,null,null,null,null,null,null,null,null,null,null,null,null,null,null,null,null,null,null,null,null,null,null,null,null,null,null,null,null,"11/30/2012",1710.9,33.204000000000001,1604.6,686.25,{"$f":"+DATEVALUE(TEXT(Table216[[#This Row],[Date]],\"MM/DD/YYYY\"))","v":"2012-11-30"}]
[null,null,null,null,null,null,null,null,null,null,null,null,null,null,null,null,null,null,null,null,null,null,null,null,null,null,null,null,null,null,null,null,null,null,null,null,null,null,null,null,null,"11/29/2012",1727.2,34.347999999999999,1619.5,685.2,{"$f":"+DATEVALUE(TEXT(Table216[[#This Row],[Date]],\"MM/DD/YYYY\"))","v":"2012-11-29"}]
[null,null,null,null,null,null,null,null,null,null,null,null,null,null,null,null,null,null,null,null,null,null,null,null,null,null,null,null,null,null,null,null,null,null,null,null,null,null,null,null,null,"11/28/2012",1716.5,33.680999999999997,1611.7,672.9,{"$f":"+DATEVALUE(TEXT(Table216[[#This Row],[Date]],\"MM/DD/YYYY\"))","v":"2012-11-28"}]
[null,null,null,null,null,null,null,null,null,null,null,null,null,null,null,null,null,null,null,null,null,null,null,null,null,null,null,null,null,null,null,null,null,null,null,null,null,null,null,null,null,"11/27/2012",1742.2,33.981999999999999,1618.5,667.75,{"$f":"+DATEVALUE(TEXT(Table216[[#This Row],[Date]],\"MM/DD/YYYY\"))","v":"2012-11-27"}]
[null,null,null,null,null,null,null,null,null,null,null,null,null,null,null,null,null,null,null,null,null,null,null,null,null,null,null,null,null,null,null,null,null,null,null,null,null,null,null,null,null,"11/26/2012",1749.5,34.137999999999998,1611,660.7,{"$f":"+DATEVALUE(TEXT(Table216[[#This Row],[Date]],\"MM/DD/YYYY\"))","v":"2012-11-26"}]
[null,null,null,null,null,null,null,null,null,null,null,null,null,null,null,null,null,null,null,null,null,null,null,null,null,null,null,null,null,null,null,null,null,null,null,null,null,null,null,null,null,"11/23/2012",1751.3,34.110999999999997,1617.1,667,{"$f":"+DATEVALUE(TEXT(Table216[[#This Row],[Date]],\"MM/DD/YYYY\"))","v":"2012-11-23"}]
[null,null,null,null,null,null,null,null,null,null,null,null,null,null,null,null,null,null,null,null,null,null,null,null,null,null,null,null,null,null,null,null,null,null,null,null,null,null,null,null,null,"11/21/2012",1727.9,33.344000000000001,1583.9,650.70000000000005,{"$f":"+DATEVALUE(TEXT(Table216[[#This Row],[Date]],\"MM/DD/YYYY\"))","v":"2012-11-21"}]
[null,null,null,null,null,null,null,null,null,null,null,null,null,null,null,null,null,null,null,null,null,null,null,null,null,null,null,null,null,null,null,null,null,null,null,null,null,null,null,null,null,"11/20/2012",1723.2,32.923000000000002,1573,637.75,{"$f":"+DATEVALUE(TEXT(Table216[[#This Row],[Date]],\"MM/DD/YYYY\"))","v":"2012-11-20"}]
[null,null,null,null,null,null,null,null,null,null,null,null,null,null,null,null,null,null,null,null,null,null,null,null,null,null,null,null,null,null,null,null,null,null,null,null,null,null,null,null,null,"11/19/2012",1734,33.180999999999997,1583.8,644.6,{"$f":"+DATEVALUE(TEXT(Table216[[#This Row],[Date]],\"MM/DD/YYYY\"))","v":"2012-11-19"}]
[null,null,null,null,null,null,null,null,null,null,null,null,null,null,null,null,null,null,null,null,null,null,null,null,null,null,null,null,null,null,null,null,null,null,null,null,null,null,null,null,null,"11/16/2012",1714.3,32.360999999999997,1561.8,625.75,{"$f":"+DATEVALUE(TEXT(Table216[[#This Row],[Date]],\"MM/DD/YYYY\"))","v":"2012-11-16"}]
[null,null,null,null,null,null,null,null,null,null,null,null,null,null,null,null,null,null,null,null,null,null,null,null,null,null,null,null,null,null,null,null,null,null,null,null,null,null,null,null,null,"11/15/2012",1713.3,32.664999999999999,1573.3,630.4,{"$f":"+DATEVALUE(TEXT(Table216[[#This Row],[Date]],\"MM/DD/YYYY\"))","v":"2012-11-15"}]
[null,null,null,null,null,null,null,null,null,null,null,null,null,null,null,null,null,null,null,null,null,null,null,null,null,null,null,null,null,null,null,null,null,null,null,null,null,null,null,null,null,"11/14/2012",1729.5,32.871000000000002,1591.6,640.75,{"$f":"+DATEVALUE(TEXT(Table216[[#This Row],[Date]],\"MM/DD/YYYY\"))","v":"2012-11-14"}]
[null,null,null,null,null,null,null,null,null,null,null,null,null,null,null,null,null,null,null,null,null,null,null,null,null,null,null,null,null,null,null,null,null,null,null,null,null,null,null,null,null,"11/13/2012",1724.2,32.478000000000002,1586.4,635.79999999999995,{"$f":"+DATEVALUE(TEXT(Table216[[#This Row],[Date]],\"MM/DD/YYYY\"))","v":"2012-11-13"}]
[null,null,null,null,null,null,null,null,null,null,null,null,null,null,null,null,null,null,null,null,null,null,null,null,null,null,null,null,null,null,null,null,null,null,null,null,null,null,null,null,null,"11/12/2012",1730.3,32.512999999999998,1566.5,607.25,{"$f":"+DATEVALUE(TEXT(Table216[[#This Row],[Date]],\"MM/DD/YYYY\"))","v":"2012-11-12"}]
[null,null,null,null,null,null,null,null,null,null,null,null,null,null,null,null,null,null,null,null,null,null,null,null,null,null,null,null,null,null,null,null,null,null,null,null,null,null,null,null,null,"11/9/2012",1730.3,32.590000000000003,1559.4,610.25,{"$f":"+DATEVALUE(TEXT(Table216[[#This Row],[Date]],\"MM/DD/YYYY\"))","v":"2012-11-09"}]
[null,null,null,null,null,null,null,null,null,null,null,null,null,null,null,null,null,null,null,null,null,null,null,null,null,null,null,null,null,null,null,null,null,null,null,null,null,null,null,null,null,"11/8/2012",1725.4,32.231000000000002,1542.5,613.54999999999995,{"$f":"+DATEVALUE(TEXT(Table216[[#This Row],[Date]],\"MM/DD/YYYY\"))","v":"2012-11-08"}]
[null,null,null,null,null,null,null,null,null,null,null,null,null,null,null,null,null,null,null,null,null,null,null,null,null,null,null,null,null,null,null,null,null,null,null,null,null,null,null,null,null,"11/7/2012",1713.2,31.651,1539.5,609.54999999999995,{"$f":"+DATEVALUE(TEXT(Table216[[#This Row],[Date]],\"MM/DD/YYYY\"))","v":"2012-11-07"}]
[null,null,null,null,null,null,null,null,null,null,null,null,null,null,null,null,null,null,null,null,null,null,null,null,null,null,null,null,null,null,null,null,null,null,null,null,null,null,null,null,null,"11/6/2012",1714.1,32.018999999999998,1558.3,619.35,{"$f":"+DATEVALUE(TEXT(Table216[[#This Row],[Date]],\"MM/DD/YYYY\"))","v":"2012-11-06"}]
[null,null,null,null,null,null,null,null,null,null,null,null,null,null,null,null,null,null,null,null,null,null,null,null,null,null,null,null,null,null,null,null,null,null,null,null,null,null,null,null,null,"11/5/2012",1682.2,31.113,1542.7,602.20000000000005,{"$f":"+DATEVALUE(TEXT(Table216[[#This Row],[Date]],\"MM/DD/YYYY\"))","v":"2012-11-05"}]
[null,null,null,null,null,null,null,null,null,null,null,null,null,null,null,null,null,null,null,null,null,null,null,null,null,null,null,null,null,null,null,null,null,null,null,null,null,null,null,null,null,"11/2/2012",1674.1,30.835000000000001,1544.9,598.85,{"$f":"+DATEVALUE(TEXT(Table216[[#This Row],[Date]],\"MM/DD/YYYY\"))","v":"2012-11-02"}]
[null,null,null,null,null,null,null,null,null,null,null,null,null,null,null,null,null,null,null,null,null,null,null,null,null,null,null,null,null,null,null,null,null,null,null,null,null,null,null,null,null,"11/1/2012",1714.1,32.225999999999999,1573.2,611.65,{"$f":"+DATEVALUE(TEXT(Table216[[#This Row],[Date]],\"MM/DD/YYYY\"))","v":"2012-11-01"}]
[null,null,null,null,null,null,null,null,null,null,null,null,null,null,null,null,null,null,null,null,null,null,null,null,null,null,null,null,null,null,null,null,null,null,null,null,null,null,null,null,null,"10/31/2012",1717.5,32.287999999999997,1577,609,{"$f":"+DATEVALUE(TEXT(Table216[[#This Row],[Date]],\"MM/DD/YYYY\"))","v":"2012-10-31"}]

{"sheet":"Fixings","index":5,"n_rows":255,"n_cols":63,"rows_kept":255,"cut":false,"hidden":false,"merged":[[23,4,23,9],[21,4,21,9],[24,4,24,9],[23,14,24,18],[18,17,18,20],[20,13,20,18],[20,27,20,35],[44,13,44,18],[7,14,7,24],[9,27,10,35],[11,27,11,35],[13,14,14,15],[13,17,14,18],[13,20,14,21],[13,23,14,24],[20,20,21,25],[44,20,45,25]]}
[null,null,null,null,null,null,null,null,null,null,null,null,null,null,null,null,null,null,null,null,null,null,null,null,null,null,null,null,null,null,null,null,null,null,null,null,null,"Historical Fixing Prices"]
[null,null,null,null,null,null,null,null,null,null,null,null,null,null,null,null,null,null,null,null,null,null,null,null,null,null,null,null,null,null,null,null,null,null,null,null,null,"Date","XAU","XAG","XPT","XPD","Date",null,"Type","Symbol","Period","Date","Value",null,"Day of Week","Adjust","Previous",null,"Date","Previous",null,null,null,null,null,1,-2]
[null,null,null,null,null,null,null,null,null,null,null,null,null,null,null,null,null,null,null,null,null,null,null,null,null,null,null,null,null,null,null,null,null,null,null,null,null,"10/31/2013",1324,22.2,1450,742,{"$f":"+DATEVALUE(TEXT(Table81[[#This Row],[Date]],\"MM/DD/YYYY\"))","v":"2013-10-31"},null,"LondonGold","AU","Evening","10/31/2013",1324,null,{"$f":"+WEEKDAY(TEXT(Table86[[#This Row],[Date]],\"MM/DD/YYYY\"))","v":5},{"$f":"+IF(AY3=6,-2,0)","v":0},{"$f":"+DATEVALUE(TEXT(Table86[[#This Row],[Date]]+Table88[[#This Row],[Adjust]],\"MM/DD/YYYY\"))","v":"2013-10-31"},null,"10/30/2013",1354.75,{"$f":"+Table88[[#This Row],[Previous]]","v":"2013-10-31"},{"$f":"+WEEKDAY(BE3)","v":5},{"$f":"+VLOOKUP(BF3,$BJ$2:$BK$8,2,0)","v":-1},{"$f":"+BE3+BG3","v":"2013-10-30"},{"$f":"+TEXT(BH3,\"MM/DD/YYYY\")","v":"10/30/2013"},2,-1]
[null,null,null,null,null,null,null,null,null,null,null,null,null,null,null,null,null,null,null,null,null,null,null,null,null,null,null,null,null,null,null,null,null,null,null,null,null,"10/30/2013",1354.75,22.74,1477,749,{"$f":"+DATEVALUE(TEXT(Table81[[#This Row],[Date]],\"MM/DD/YYYY\"))","v":"2013-10-30"},null,"LondonSilver","AG","Evening","10/31/2013",22.2,null,{"$f":"+WEEKDAY(TEXT(Table86[[#This Row],[Date]],\"MM/DD/YYYY\"))","v":5},{"$f":"+IF(AY4=6,-2,0)","v":0},{"$f":"+DATEVALUE(TEXT(Table86[[#This Row],[Date]]+Table88[[#This Row],[Adjust]],\"MM/DD/YYYY\"))","v":"2013-10-31"},null,"10/30/2013",22.74,{"$f":"+Table88[[#This Row],[Previous]]","v":"2013-10-31"},{"$f":"+WEEKDAY(BE4)","v":5},{"$f":"+VLOOKUP(BF4,$BJ$2:$BK$8,2,0)","v":-1},{"$f":"+BE4+BG4","v":"2013-10-30"},{"$f":"+TEXT(BH4,\"MM/DD/YYYY\")","v":"10/30/2013"},3,-1]
[null,null,null,null,null,null,null,null,null,null,null,null,null,null,null,null,null,null,null,null,null,null,null,null,null,null,null,null,null,null,null,null,null,null,null,null,null,"10/29/2013",1349.25,22.31,1466,744,{"$f":"+DATEVALUE(TEXT(Table81[[#This Row],[Date]],\"MM/DD/YYYY\"))","v":"2013-10-29"},null,"LondonPlatinum","PT","Evening","10/31/2013",1450,null,{"$f":"+WEEKDAY(TEXT(Table86[[#This Row],[Date]],\"MM/DD/YYYY\"))","v":5},0,{"$f":"+DATEVALUE(TEXT(Table86[[#This Row],[Date]]+Table88[[#This Row],[Adjust]],\"MM/DD/YYYY\"))","v":"2013-10-31"},null,"10/30/2013",1477,{"$f":"+Table88[[#This Row],[Previous]]","v":"2013-10-31"},5,-1,"2013-10-30","10/30/2013",4,-1]
[null,null,null,null,null,null,null,null,null,null,null,null,null,null,null,null,null,null,null,null,null,null,null,null,null,null,null,null,null,null,null,null,null,null,null,null,null,"10/28/2013",1361,22.54,1462,742,{"$f":"+DATEVALUE(TEXT(Table81[[#This Row],[Date]],\"MM/DD/YYYY\"))","v":"2013-10-28"},null,"LondonPalladium","PD","Evening","10/31/2013",742,null,{"$f":"+WEEKDAY(TEXT(Table86[[#This Row],[Date]],\"MM/DD/YYYY\"))","v":5},0,{"$f":"+DATEVALUE(TEXT(Table86[[#This Row],[Date]]+Table88[[#This Row],[Adjust]],\"MM/DD/YYYY\"))","v":"2013-10-31"},null,"10/30/2013",749,{"$f":"+Table88[[#This Row],[Previous]]","v":"2013-10-31"},5,-1,"2013-10-30","10/30/2013",5,-1]
[null,null,null,null,null,null,null,null,null,null,null,null,null,null,null,null,null,null,null,null,null,null,null,null,null,null,null,null,null,null,null,null,null,null,null,null,null,"10/25/2013",1347.75,22.35,1440,733,{"$f":"+DATEVALUE(TEXT(Table81[[#This Row],[Date]],\"MM/DD/YYYY\"))","v":"2013-10-25"},null,null,null,null,null,null,null,null,null,null,null,null,null,null,null,null,null,null,6,-1]
[null,"Fixings",null,null,null,null,null,null,null,null,null,null,null,null,null,null,null,null,null,null,null,null,null,null,null,null,null,null,null,null,null,null,null,null,null,null,null,"10/24/2013",1344.75,22.67,1447,749,{"$f":"+DATEVALUE(TEXT(Table81[[#This Row],[Date]],\"MM/DD/YYYY\"))","v":"2013-10-24"},null,null,null,null,null,null,null,null,null,null,null,null,null,null,null,null,null,null,7,-1]
[null,null,null,null,null,null,null,null,null,null,null,null,null,null,null,null,null,null,null,null,null,null,null,null,null,null,null,null,null,null,null,null,null,null,null,null,null,"10/23/2013",1331.25,22.53,1440,748,{"$f":"+DATEVALUE(TEXT(Table81[[#This Row],[Date]],\"MM/DD/YYYY\"))","v":"2013-10-23"}]
[null,null,null,null,null,null,null,null,null,null,null,null,null,null,null,null,null,null,null,null,null,null,null,null,null,null,null,null,null,null,null,null,null,null,null,null,null,"10/22/2013",1333,22.06,1432,744,{"$f":"+DATEVALUE(TEXT(Table81[[#This Row],[Date]],\"MM/DD/YYYY\"))","v":"2013-10-22"}]
[null,null,"Daily Fixings",null,null,null,null,null,null,null,null,null,null,null,"Delayed Future Prices Heat Map",null,null,null,null,null,null,null,null,null,null,null,null,null,null,null,null,null,null,null,null,null,null,"10/21/2013",1317.5,22.09,1438,746,{"$f":"+DATEVALUE(TEXT(Table81[[#This Row],[Date]],\"MM/DD/YYYY\"))","v":"2013-10-21"}]
[null,null,"Supported Metals",null,"Gold, Silver, Platinum, Palladium",null,null,null,null,null,null,null,null,null,"The heat map below shows live delayed future prices from our APIs:",null,null,null,null,null,null,null,null,null,null,null,null,null,null,null,null,null,null,null,null,null,null,"10/18/2013",1316.5,21.87,1438,737,{"$f":"+DATEVALUE(TEXT(Table81[[#This Row],[Date]],\"MM/DD/YYYY\"))","v":"2013-10-18"}]
[null,null,"Currencies",null,"USD, GBP, EUR",null,null,null,null,null,null,null,null,null,{"$f":"+AU3","v":"Evening"},"Gold",null,{"$f":"+AU4","v":"Evening"},"Silver",null,{"$f":"+AU5","v":"Evening"},"Platinum",null,{"$f":"+AU6","v":"Evening"},"Palladium",null,null,null,null,null,null,null,null,null,null,null,null,"10/17/2013",1319.25,21.72,1420,723,{"$f":"+DATEVALUE(TEXT(Table81[[#This Row],[Date]],\"MM/DD/YYYY\"))","v":"2013-10-17"}]
[null,null,"Supported Fields",null,null,null,null,null,null,null,null,null,null,null,{"$f":"+AW3","v":1324},null,null,{"$f":"+AW4","v":22.2},null,null,{"$f":"+AW5","v":1450},null,null,{"$f":"+AW6","v":742},null,null,null,null,null,null,null,null,null,null,null,null,null,"10/16/2013",1273.5,21.32,1392,708,{"$f":"+DATEVALUE(TEXT(Table81[[#This Row],[Date]],\"MM/DD/YYYY\"))","v":"2013-10-16"}]
[null,null,"Type",null,"Currency",null,"Date",null,"Unit",null,null,null,null,null,null,null,null,null,null,null,null,null,null,null,null,null,null,null,null,null,null,null,null,null,null,null,null,"10/15/2013",1270.5,20.49,1372,707,{"$f":"+DATEVALUE(TEXT(Table81[[#This Row],[Date]],\"MM/DD/YYYY\"))","v":"2013-10-15"}]
[null,null,"Symbol",null,"Period (Morning/Evening)",null,"Value",null,"Source",null,null,null,null,null,null,{"$f":"+AW3-BD3","v":-30.75},null,null,{"$f":"+AW4-BD4","v":-0.53999999999999915},null,null,{"$f":"+AW5-BD5","v":-27},null,null,{"$f":"+AW6-BD6","v":-7},null,null,null,null,null,null,null,null,null,null,null,null,"10/14/2013",1285.5,21.52,1379,715,{"$f":"+DATEVALUE(TEXT(Table81[[#This Row],[Date]],\"MM/DD/YYYY\"))","v":"2013-10-14"}]
[null,null,"Delay",null,"5 to 10 minutes from publication by source",null,null,null,null,null,null,null,null,null,{"$f":"+AV3","v":"10/31/2013"},{"$f":"+P16/BD3","v":-2.2697914744417791E-2},null,{"$f":"+AV4","v":"10/31/2013"},{"$f":"+S16/BD4","v":-2.3746701846965663E-2},null,{"$f":"+AV5","v":"10/31/2013"},{"$f":"+V16/BD5","v":-1.8280297901150981E-2},null,{"$f":"+AV6","v":"10/31/2013"},{"$f":"+Y16/BD6","v":-9.3457943925233638E-3},null,null,null,null,null,null,null,null,null,null,null,null,"10/11/2013",1265.5,21.52,1369,712,{"$f":"+DATEVALUE(TEXT(Table81[[#This Row],[Date]],\"MM/DD/YYYY\"))","v":"2013-10-11"}]
[null,null,"Availability",null,"Gold: Available twice a day at 10:30 AM GMT and 3:00 PM GMT",null,null,null,null,null,null,null,null,null,"To update the heat map enter your registration email or token below then click the refresh button. ",null,null,null,null,null,null,null,null,null,null,null,null,null,null,null,null,null,null,null,null,null,null,"10/10/2013",1298.5,21.93,1385,705,{"$f":"+DATEVALUE(TEXT(Table81[[#This Row],[Date]],\"MM/DD/YYYY\"))","v":"2013-10-10"}]
[null,null,null,null,"Silver Available once a day at 12:00 PM GMT ",null,null,null,null,null,null,null,null,null,"Registration Email: ",null,null,null,null,null,null,null,null,null,"Macros must be enabled in Excel",null,null,null,null,null,null,null,null,null,null,null,null,"10/9/2013",1304,22.1,1385,707,{"$f":"+DATEVALUE(TEXT(Table81[[#This Row],[Date]],\"MM/DD/YYYY\"))","v":"2013-10-09"}]
[null,null,null,null,"Platinum: Available twice a day at 9:45 AM GMT and 2:00 PM GMT",null,null,null,null,null,null,null,null,null,null,null,null,null,null,null,null,null,null,null,null,null,null,null,null,null,null,null,null,null,null,null,null,"10/8/2013",1329.5,22.3,1407,712,{"$f":"+DATEVALUE(TEXT(Table81[[#This Row],[Date]],\"MM/DD/YYYY\"))","v":"2013-10-08"}]
[null,null,null,null,"Palladium: Available twice a day at 9:45 AM GMT and 2:00 PM GMT",null,null,null,null,null,null,null,null,"Built with GetLastLondonFixings",null,null,null,null,null,null,"Clicking on Refresh will consume 5 of your free trial hits. If you run out of free trial hits (numbers are 0), please contact us.",null,null,null,null,null,null,null,null,null,null,null,null,null,null,null,null,"10/7/2013",1323.5,21.77,1386,697,{"$f":"+DATEVALUE(TEXT(Table81[[#This Row],[Date]],\"MM/DD/YYYY\"))","v":"2013-10-07"}]
[null,null,"Methodology",null,"The Fixings are an open process at which market participants can ",null,null,null,null,null,null,null,null,null,null,null,null,null,null,null,null,null,null,null,null,null,null,null,null,null,null,null,null,null,null,null,null,"10/4/2013",1309.75,21.65,1386,706,{"$f":"+DATEVALUE(TEXT(Table81[[#This Row],[Date]],\"MM/DD/YYYY\"))","v":"2013-10-04"}]
[null,null,null,null,"transact business on the basis of a single quoted price. Orders can be ",null,null,null,null,null,null,null,null,null,null,null,null,null,null,null,null,null,null,null,null,null,null,null,null,null,null,null,null,null,null,null,null,"10/3/2013",1316,21.57,1373,706,{"$f":"+DATEVALUE(TEXT(Table81[[#This Row],[Date]],\"MM/DD/YYYY\"))","v":"2013-10-03"}]
[null,null,null,null,"changed throughout the proceedings as the price is moved higher and lower until such time as buyers' and sellers' orders are satisfied",null,null,null,null,null,null,null,null,null,"Historical Fixing Charts",null,null,null,null,null,null,null,null,null,null,null,null,null,null,null,null,null,null,null,null,null,null,"10/2/2013",1306.25,21.14,1389,715,{"$f":"+DATEVALUE(TEXT(Table81[[#This Row],[Date]],\"MM/DD/YYYY\"))","v":"2013-10-02"}]
[null,null,null,null,"and the price is said to be 'fixed'. ",null,null,null,null,null,null,null,null,null,null,null,null,null,null,null,null,null,null,null,null,null,null,null,null,null,null,null,null,null,null,null,null,"10/1/2013",1290.75,21.7,1377,719,{"$f":"+DATEVALUE(TEXT(Table81[[#This Row],[Date]],\"MM/DD/YYYY\"))","v":"2013-10-01"}]
[null,null,"Historical Fixings",null,null,null,null,null,null,null,null,null,null,null,"The charts below show one year of historical evening fixing data by metal.",null,null,null,null,null,null,null,null,null,null,null,null,null,null,null,null,null,null,null,null,null,null,"9/30/2013",1326.5,21.68,1411,726,{"$f":"+DATEVALUE(TEXT(Table81[[#This Row],[Date]],\"MM/DD/YYYY\"))","v":"2013-09-30"}]
[null,null,"Supported Fields",null,null,null,null,null,null,null,null,null,null,null,null,null,null,null,null,null,null,null,null,null,null,null,null,null,null,null,null,null,null,null,null,null,null,"9/27/2013",1341,21.61,1416,725,{"$f":"+DATEVALUE(TEXT(Table81[[#This Row],[Date]],\"MM/DD/YYYY\"))","v":"2013-09-27"}]
[null,null,"Type",null,"Currency",null,"Date",null,"Unit",null,null,null,null,null,null,null,null,null,null,null,null,null,null,null,null,null,null,null,null,null,null,null,null,null,null,null,null,"9/26/2013",1333,21.97,1424,724,{"$f":"+DATEVALUE(TEXT(Table81[[#This Row],[Date]],\"MM/DD/YYYY\"))","v":"2013-09-26"}]
[null,null,"Symbol",null,"Period (Morning/Evening)",null,"Value",null,"Source",null,null,null,null,null,null,null,null,null,null,null,null,null,null,null,null,null,null,null,null,null,null,null,null,null,null,null,null,"9/25/2013",1322.75,21.68,1426,719,{"$f":"+DATEVALUE(TEXT(Table81[[#This Row],[Date]],\"MM/DD/YYYY\"))","v":"2013-09-25"}]
[null,null,"Availability",null,"5 to 10 minutes from publication by source",null,null,null,null,null,null,null,null,null,null,null,null,null,null,null,null,null,null,null,null,null,null,null,null,null,null,null,null,null,null,null,null,"9/24/2013",1314.25,21.44,1422,713,{"$f":"+DATEVALUE(TEXT(Table81[[#This Row],[Date]],\"MM/DD/YYYY\"))","v":"2013-09-24"}]
[null,null,"Currencies",null,"USD, GBP, EUR",null,null,null,null,null,null,null,null,null,null,null,null,null,null,null,null,null,null,null,null,null,null,null,null,null,null,null,null,null,null,null,null,"9/23/2013",1323,21.68,1424,711,{"$f":"+DATEVALUE(TEXT(Table81[[#This Row],[Date]],\"MM/DD/YYYY\"))","v":"2013-09-23"}]
[null,null,"Time Range",null,"Gold Morning USD",null,null,"1/1/1985 to present",null,null,null,null,null,null,null,null,null,null,null,null,null,null,null,null,null,null,null,null,null,null,null,null,null,null,null,null,null,"9/20/2013",1349.25,22.74,1447,726,{"$f":"+DATEVALUE(TEXT(Table81[[#This Row],[Date]],\"MM/DD/YYYY\"))","v":"2013-09-20"}]
[null,null,null,null,"Gold Evening USD",null,null,"1/1/1973 to present",null,null,null,null,null,null,null,null,null,null,null,null,null,null,null,null,null,null,null,null,null,null,null,null,null,null,null,null,null,"9/19/2013",1365.5,23,1469,726,{"$f":"+DATEVALUE(TEXT(Table81[[#This Row],[Date]],\"MM/DD/YYYY\"))","v":"2013-09-19"}]
[null,null,null,null,"Silver Evening USD",null,null,"1/1/1975 to present",null,null,null,null,null,null,null,null,null,null,null,null,null,null,null,null,null,null,null,null,null,null,null,null,null,null,null,null,null,"9/18/2013",1301,21.47,1420,701,{"$f":"+DATEVALUE(TEXT(Table81[[#This Row],[Date]],\"MM/DD/YYYY\"))","v":"2013-09-18"}]
[null,null,null,null,"Platinum Morning USD",null,null,"4/2/1990 to present",null,null,null,null,null,null,null,null,null,null,null,null,null,null,null,null,null,null,null,null,null,null,null,null,null,null,null,null,null,"9/17/2013",1312.25,21.97,1436,708,{"$f":"+DATEVALUE(TEXT(Table81[[#This Row],[Date]],\"MM/DD/YYYY\"))","v":"2013-09-17"}]
[null,null,null,null,"Platinum Evening",null,null,"4/2/1990 to present",null,null,null,null,null,null,null,null,null,null,null,null,null,null,null,null,null,null,null,null,null,null,null,null,null,null,null,null,null,"9/16/2013",1324,21.88,1442,704,{"$f":"+DATEVALUE(TEXT(Table81[[#This Row],[Date]],\"MM/DD/YYYY\"))","v":"2013-09-16"}]
[null,null,null,null,"Palladium Morning",null,null,"4/2/1990 to present",null,null,null,null,null,null,null,null,null,null,null,null,null,null,null,null,null,null,null,null,null,null,null,null,null,null,null,null,null,"9/13/2013",1318.5,21.72,1441,700,{"$f":"+DATEVALUE(TEXT(Table81[[#This Row],[Date]],\"MM/DD/YYYY\"))","v":"2013-09-13"}]
[null,null,null,null,"Palladium Evening",null,null,"4/2/1990 to present",null,null,null,null,null,null,null,null,null,null,null,null,null,null,null,null,null,null,null,null,null,null,null,null,null,null,null,null,null,"9/12/2013",1328,22.67,1444,690,{"$f":"+DATEVALUE(TEXT(Table81[[#This Row],[Date]],\"MM/DD/YYYY\"))","v":"2013-09-12"}]
[null,null,null,null,"Data not available on weekends and holidays.",null,null,null,null,null,null,null,null,null,null,null,null,null,null,null,null,null,null,null,null,null,null,null,null,null,null,null,null,null,null,null,null,"9/11/2013",1363.75,22.91,1477,700,{"$f":"+DATEVALUE(TEXT(Table81[[#This Row],[Date]],\"MM/DD/YYYY\"))","v":"2013-09-11"}]
[null,null,"Charts",null,"Customizable static historical charts available.",null,null,null,null,null,null,null,null,null,null,null,null,null,null,null,null,null,null,null,null,null,null,null,null,null,null,null,null,null,null,null,null,"9/10/2013",1358.25,23.32,1471,690,{"$f":"+DATEVALUE(TEXT(Table81[[#This Row],[Date]],\"MM/DD/YYYY\"))","v":"2013-09-10"}]
[null,null,null,null,null,null,null,null,null,null,null,null,null,null,null,null,null,null,null,null,null,null,null,null,null,null,null,null,null,null,null,null,null,null,null,null,null,"9/9/2013",1390,23.64,1490,694,{"$f":"+DATEVALUE(TEXT(Table81[[#This Row],[Date]],\"MM/DD/YYYY\"))","v":"2013-09-09"}]
[null,null,"Developer Resources",null,null,null,null,null,null,null,null,null,null,null,null,null,null,null,null,null,null,null,null,null,null,null,null,null,null,null,null,null,null,null,null,null,null,"9/6/2013",1387,23.05,1498,699,{"$f":"+DATEVALUE(TEXT(Table81[[#This Row],[Date]],\"MM/DD/YYYY\"))","v":"2013-09-06"}]
[null,null,"Delayed Quote API",null,"Historical Quote API",null,"Historical Chart API",null,null,null,null,null,null,null,null,null,null,null,null,null,null,null,null,null,null,null,null,null,null,null,null,null,null,null,null,null,null,"9/5/2013",1385,23.52,1487,689,{"$f":"+DATEVALUE(TEXT(Table81[[#This Row],[Date]],\"MM/DD/YYYY\"))","v":"2013-09-05"}]
[null,null,null,null,null,null,null,null,null,null,null,null,null,null,null,null,null,null,null,null,null,null,null,null,null,null,null,null,null,null,null,null,null,null,null,null,null,"9/4/2013",1390,23.71,1496,699,{"$f":"+DATEVALUE(TEXT(Table81[[#This Row],[Date]],\"MM/DD/YYYY\"))","v":"2013-09-04"}]
[null,null,null,null,null,null,null,null,null,null,null,null,null,"Built with GetHistoricalFixingsRange",null,null,null,null,null,null,"Clicking on Refresh will consume 4 of your free trial hits. If you run out of free trial hits (numbers are 0), please contact us.",null,null,null,null,null,null,null,null,null,null,null,null,null,null,null,null,"9/3/2013",1399.5,24.21,1529,724,{"$f":"+DATEVALUE(TEXT(Table81[[#This Row],[Date]],\"MM/DD/YYYY\"))","v":"2013-09-03"}]
[null,null,null,null,null,null,null,null,null,null,null,null,null,null,null,null,null,null,null,null,null,null,null,null,null,null,null,null,null,null,null,null,null,null,null,null,null,"9/2/2013",1392.25,23.97,1524,724,{"$f":"+DATEVALUE(TEXT(Table81[[#This Row],[Date]],\"MM/DD/YYYY\"))","v":"2013-09-02"}]
[null,null,null,null,null,null,null,null,null,null,null,null,null,null,null,null,null,null,null,null,null,null,null,null,null,null,null,null,null,null,null,null,null,null,null,null,null,"8/30/2013",1394.75,23.64,1514,727,{"$f":"+DATEVALUE(TEXT(Table81[[#This Row],[Date]],\"MM/DD/YYYY\"))","v":"2013-08-30"}]
[null,null,null,null,null,null,null,null,null,null,null,null,null,null,null,null,null,null,null,null,null,null,null,null,null,null,null,null,null,null,null,null,null,null,null,null,null,"8/29/2013",1407.75,24.11,1527,741,{"$f":"+DATEVALUE(TEXT(Table81[[#This Row],[Date]],\"MM/DD/YYYY\"))","v":"2013-08-29"}]
[null,null,null,null,null,null,null,null,null,null,null,null,null,null,null,null,null,null,null,null,null,null,null,null,null,null,null,null,null,null,null,null,null,null,null,null,null,"8/28/2013",1419.5,24.74,1528,744,{"$f":"+DATEVALUE(TEXT(Table81[[#This Row],[Date]],\"MM/DD/YYYY\"))","v":"2013-08-28"}]
[null,null,null,null,null,null,null,null,null,null,null,null,null,null,null,null,null,null,null,null,null,null,null,null,null,null,null,null,null,null,null,null,null,null,null,null,null,"8/27/2013",1419.25,24.29,1546,747,{"$f":"+DATEVALUE(TEXT(Table81[[#This Row],[Date]],\"MM/DD/YYYY\"))","v":"2013-08-27"}]
[null,null,null,null,null,null,null,null,null,null,null,null,null,null,null,null,null,null,null,null,null,null,null,null,null,null,null,null,null,null,null,null,null,null,null,null,null,"8/23/2013",1377.5,23.06,1538,752,{"$f":"+DATEVALUE(TEXT(Table81[[#This Row],[Date]],\"MM/DD/YYYY\"))","v":"2013-08-23"}]
[null,null,null,null,null,null,null,null,null,null,null,null,null,null,null,null,null,null,null,null,null,null,null,null,null,null,null,null,null,null,null,null,null,null,null,null,null,"8/22/2013",1375.5,23.07,1523,750,{"$f":"+DATEVALUE(TEXT(Table81[[#This Row],[Date]],\"MM/DD/YYYY\"))","v":"2013-08-22"}]
[null,null,null,null,null,null,null,null,null,null,null,null,null,null,null,null,null,null,null,null,null,null,null,null,null,null,null,null,null,null,null,null,null,null,null,null,null,"8/21/2013",1363,22.94,1518,749,{"$f":"+DATEVALUE(TEXT(Table81[[#This Row],[Date]],\"MM/DD/YYYY\"))","v":"2013-08-21"}]
[null,null,null,null,null,null,null,null,null,null,null,null,null,null,null,null,null,null,null,null,null,null,null,null,null,null,null,null,null,null,null,null,null,null,null,null,null,"8/20/2013",1372.5,22.87,1512,748,{"$f":"+DATEVALUE(TEXT(Table81[[#This Row],[Date]],\"MM/DD/YYYY\"))","v":"2013-08-20"}]
[null,null,null,null,null,null,null,null,null,null,null,null,null,null,null,null,null,null,null,null,null,null,null,null,null,null,null,null,null,null,null,null,null,null,null,null,null,"8/19/2013",1365,23.23,1513,751,{"$f":"+DATEVALUE(TEXT(Table81[[#This Row],[Date]],\"MM/DD/YYYY\"))","v":"2013-08-19"}]
[null,null,null,null,null,null,null,null,null,null,null,null,null,null,null,null,null,null,null,null,null,null,null,null,null,null,null,null,null,null,null,null,null,null,null,null,null,"8/16/2013",1369.25,22.83,1524,762,{"$f":"+DATEVALUE(TEXT(Table81[[#This Row],[Date]],\"MM/DD/YYYY\"))","v":"2013-08-16"}]
[null,null,null,null,null,null,null,null,null,null,null,null,null,null,null,null,null,null,null,null,null,null,null,null,null,null,null,null,null,null,null,null,null,null,null,null,null,"8/15/2013",1329.75,22,1504,746,{"$f":"+DATEVALUE(TEXT(Table81[[#This Row],[Date]],\"MM/DD/YYYY\"))","v":"2013-08-15"}]
[null,null,null,null,null,null,null,null,null,null,null,null,null,null,null,null,null,null,null,null,null,null,null,null,null,null,null,null,null,null,null,null,null,null,null,null,null,"8/14/2013",1326.5,21.5,1491,737,{"$f":"+DATEVALUE(TEXT(Table81[[#This Row],[Date]],\"MM/DD/YYYY\"))","v":"2013-08-14"}]
[null,null,null,null,null,null,null,null,null,null,null,null,null,null,null,null,null,null,null,null,null,null,null,null,null,null,null,null,null,null,null,null,null,null,null,null,null,"8/13/2013",1328.5,21.46,1506,740,{"$f":"+DATEVALUE(TEXT(Table81[[#This Row],[Date]],\"MM/DD/YYYY\"))","v":"2013-08-13"}]
[null,null,null,null,null,null,null,null,null,null,null,null,null,null,null,null,null,null,null,null,null,null,null,null,null,null,null,null,null,null,null,null,null,null,null,null,null,"8/12/2013",1341,20.835000000000001,1503,742,{"$f":"+DATEVALUE(TEXT(Table81[[#This Row],[Date]],\"MM/DD/YYYY\"))","v":"2013-08-12"}]
[null,null,null,null,null,null,null,null,null,null,null,null,null,null,null,null,null,null,null,null,null,null,null,null,null,null,null,null,null,null,null,null,null,null,null,null,null,"8/9/2013",1309,20.309999999999999,1492,739,{"$f":"+DATEVALUE(TEXT(Table81[[#This Row],[Date]],\"MM/DD/YYYY\"))","v":"2013-08-09"}]
[null,null,null,null,null,null,null,null,null,null,null,null,null,null,null,null,null,null,null,null,null,null,null,null,null,null,null,null,null,null,null,null,null,null,null,null,null,"8/8/2013",1298.25,19.73,1465,739,{"$f":"+DATEVALUE(TEXT(Table81[[#This Row],[Date]],\"MM/DD/YYYY\"))","v":"2013-08-08"}]
[null,null,null,null,null,null,null,null,null,null,null,null,null,null,null,null,null,null,null,null,null,null,null,null,null,null,null,null,null,null,null,null,null,null,null,null,null,"8/7/2013",1282.5,19.27,1425,718,{"$f":"+DATEVALUE(TEXT(Table81[[#This Row],[Date]],\"MM/DD/YYYY\"))","v":"2013-08-07"}]
[null,null,null,null,null,null,null,null,null,null,null,null,null,null,null,null,null,null,null,null,null,null,null,null,null,null,null,null,null,null,null,null,null,null,null,null,null,"8/6/2013",1280.5,19.78,1430,724,{"$f":"+DATEVALUE(TEXT(Table81[[#This Row],[Date]],\"MM/DD/YYYY\"))","v":"2013-08-06"}]
[null,null,null,null,null,null,null,null,null,null,null,null,null,null,null,null,null,null,null,null,null,null,null,null,null,null,null,null,null,null,null,null,null,null,null,null,null,"8/5/2013",1304.75,19.760000000000002,1444,733,{"$f":"+DATEVALUE(TEXT(Table81[[#This Row],[Date]],\"MM/DD/YYYY\"))","v":"2013-08-05"}]
[null,null,null,null,null,null,null,null,null,null,null,null,null,null,null,null,null,null,null,null,null,null,null,null,null,null,null,null,null,null,null,null,null,null,null,null,null,"8/2/2013",1309.25,19.46,1436,730,{"$f":"+DATEVALUE(TEXT(Table81[[#This Row],[Date]],\"MM/DD/YYYY\"))","v":"2013-08-02"}]
[null,null,null,null,null,null,null,null,null,null,null,null,null,null,null,null,null,null,null,null,null,null,null,null,null,null,null,null,null,null,null,null,null,null,null,null,null,"8/1/2013",1315,19.72,1437,733,{"$f":"+DATEVALUE(TEXT(Table81[[#This Row],[Date]],\"MM/DD/YYYY\"))","v":"2013-08-01"}]
[null,null,null,null,null,null,null,null,null,null,null,null,null,null,null,null,null,null,null,null,null,null,null,null,null,null,null,null,null,null,null,null,null,null,null,null,null,"7/31/2013",1314.5,19.940000000000001,1433,733,{"$f":"+DATEVALUE(TEXT(Table81[[#This Row],[Date]],\"MM/DD/YYYY\"))","v":"2013-07-31"}]
[null,null,null,null,null,null,null,null,null,null,null,null,null,null,null,null,null,null,null,null,null,null,null,null,null,null,null,null,null,null,null,null,null,null,null,null,null,"7/30/2013",1324.15,19.68,1439,738,{"$f":"+DATEVALUE(TEXT(Table81[[#This Row],[Date]],\"MM/DD/YYYY\"))","v":"2013-07-30"}]
[null,null,null,null,null,null,null,null,null,null,null,null,null,null,null,null,null,null,null,null,null,null,null,null,null,null,null,null,null,null,null,null,null,null,null,null,null,"7/29/2013",1329.75,20.100000000000001,1436,731,{"$f":"+DATEVALUE(TEXT(Table81[[#This Row],[Date]],\"MM/DD/YYYY\"))","v":"2013-07-29"}]
[null,null,null,null,null,null,null,null,null,null,null,null,null,null,null,null,null,null,null,null,null,null,null,null,null,null,null,null,null,null,null,null,null,null,null,null,null,"7/26/2013",1331,20.02,1428,731,{"$f":"+DATEVALUE(TEXT(Table81[[#This Row],[Date]],\"MM/DD/YYYY\"))","v":"2013-07-26"}]
[null,null,null,null,null,null,null,null,null,null,null,null,null,null,null,null,null,null,null,null,null,null,null,null,null,null,null,null,null,null,null,null,null,null,null,null,null,"7/25/2013",1326,19.920000000000002,1443,743,{"$f":"+DATEVALUE(TEXT(Table81[[#This Row],[Date]],\"MM/DD/YYYY\"))","v":"2013-07-25"}]
[null,null,null,null,null,null,null,null,null,null,null,null,null,null,null,null,null,null,null,null,null,null,null,null,null,null,null,null,null,null,null,null,null,null,null,null,null,"7/24/2013",1335,20.395,1444,738,{"$f":"+DATEVALUE(TEXT(Table81[[#This Row],[Date]],\"MM/DD/YYYY\"))","v":"2013-07-24"}]
[null,null,null,null,null,null,null,null,null,null,null,null,null,null,null,null,null,null,null,null,null,null,null,null,null,null,null,null,null,null,null,null,null,null,null,null,null,"7/23/2013",1333.5,20.18,1424,734,{"$f":"+DATEVALUE(TEXT(Table81[[#This Row],[Date]],\"MM/DD/YYYY\"))","v":"2013-07-23"}]
[null,null,null,null,null,null,null,null,null,null,null,null,null,null,null,null,null,null,null,null,null,null,null,null,null,null,null,null,null,null,null,null,null,null,null,null,null,"7/22/2013",1327,19.95,1442,750,{"$f":"+DATEVALUE(TEXT(Table81[[#This Row],[Date]],\"MM/DD/YYYY\"))","v":"2013-07-22"}]
[null,null,null,null,null,null,null,null,null,null,null,null,null,null,null,null,null,null,null,null,null,null,null,null,null,null,null,null,null,null,null,null,null,null,null,null,null,"7/19/2013",1295.75,19.420000000000002,1422,743,{"$f":"+DATEVALUE(TEXT(Table81[[#This Row],[Date]],\"MM/DD/YYYY\"))","v":"2013-07-19"}]
[null,null,null,null,null,null,null,null,null,null,null,null,null,null,null,null,null,null,null,null,null,null,null,null,null,null,null,null,null,null,null,null,null,null,null,null,null,"7/18/2013",1283.25,19.489999999999998,1413,737,{"$f":"+DATEVALUE(TEXT(Table81[[#This Row],[Date]],\"MM/DD/YYYY\"))","v":"2013-07-18"}]
[null,null,null,null,null,null,null,null,null,null,null,null,null,null,null,null,null,null,null,null,null,null,null,null,null,null,null,null,null,null,null,null,null,null,null,null,null,"7/17/2013",1297.25,19.829999999999998,1424,734,{"$f":"+DATEVALUE(TEXT(Table81[[#This Row],[Date]],\"MM/DD/YYYY\"))","v":"2013-07-17"}]
[null,null,null,null,null,null,null,null,null,null,null,null,null,null,null,null,null,null,null,null,null,null,null,null,null,null,null,null,null,null,null,null,null,null,null,null,null,"7/16/2013",1291.5,19.95,1426,735,{"$f":"+DATEVALUE(TEXT(Table81[[#This Row],[Date]],\"MM/DD/YYYY\"))","v":"2013-07-16"}]
[null,null,null,null,null,null,null,null,null,null,null,null,null,null,null,null,null,null,null,null,null,null,null,null,null,null,null,null,null,null,null,null,null,null,null,null,null,"7/15/2013",1284.75,19.82,1410,724,{"$f":"+DATEVALUE(TEXT(Table81[[#This Row],[Date]],\"MM/DD/YYYY\"))","v":"2013-07-15"}]
[null,null,null,null,null,null,null,null,null,null,null,null,null,null,null,null,null,null,null,null,null,null,null,null,null,null,null,null,null,null,null,null,null,null,null,null,null,"7/12/2013",1279.75,19.66,1403,716,{"$f":"+DATEVALUE(TEXT(Table81[[#This Row],[Date]],\"MM/DD/YYYY\"))","v":"2013-07-12"}]
[null,null,null,null,null,null,null,null,null,null,null,null,null,null,null,null,null,null,null,null,null,null,null,null,null,null,null,null,null,null,null,null,null,null,null,null,null,"7/11/2013",1285,19.850000000000001,1401,723.5,{"$f":"+DATEVALUE(TEXT(Table81[[#This Row],[Date]],\"MM/DD/YYYY\"))","v":"2013-07-11"}]
[null,null,null,null,null,null,null,null,null,null,null,null,null,null,null,null,null,null,null,null,null,null,null,null,null,null,null,null,null,null,null,null,null,null,null,null,null,"7/10/2013",1256,19.37,1370,710,{"$f":"+DATEVALUE(TEXT(Table81[[#This Row],[Date]],\"MM/DD/YYYY\"))","v":"2013-07-10"}]
[null,null,null,null,null,null,null,null,null,null,null,null,null,null,null,null,null,null,null,null,null,null,null,null,null,null,null,null,null,null,null,null,null,null,null,null,null,"7/9/2013",1255.5,19.100000000000001,1362,699,{"$f":"+DATEVALUE(TEXT(Table81[[#This Row],[Date]],\"MM/DD/YYYY\"))","v":"2013-07-09"}]
[null,null,null,null,null,null,null,null,null,null,null,null,null,null,null,null,null,null,null,null,null,null,null,null,null,null,null,null,null,null,null,null,null,null,null,null,null,"7/8/2013",1235.25,19.16,1355,697,{"$f":"+DATEVALUE(TEXT(Table81[[#This Row],[Date]],\"MM/DD/YYYY\"))","v":"2013-07-08"}]
[null,null,null,null,null,null,null,null,null,null,null,null,null,null,null,null,null,null,null,null,null,null,null,null,null,null,null,null,null,null,null,null,null,null,null,null,null,"7/5/2013",1212.75,19.32,1327,669,{"$f":"+DATEVALUE(TEXT(Table81[[#This Row],[Date]],\"MM/DD/YYYY\"))","v":"2013-07-05"}]
[null,null,null,null,null,null,null,null,null,null,null,null,null,null,null,null,null,null,null,null,null,null,null,null,null,null,null,null,null,null,null,null,null,null,null,null,null,"7/4/2013",1251.75,19.57,1339,680,{"$f":"+DATEVALUE(TEXT(Table81[[#This Row],[Date]],\"MM/DD/YYYY\"))","v":"2013-07-04"}]
[null,null,null,null,null,null,null,null,null,null,null,null,null,null,null,null,null,null,null,null,null,null,null,null,null,null,null,null,null,null,null,null,null,null,null,null,null,"7/3/2013",1250,19.55,1361,684,{"$f":"+DATEVALUE(TEXT(Table81[[#This Row],[Date]],\"MM/DD/YYYY\"))","v":"2013-07-03"}]
[null,null,null,null,null,null,null,null,null,null,null,null,null,null,null,null,null,null,null,null,null,null,null,null,null,null,null,null,null,null,null,null,null,null,null,null,null,"7/2/2013",1252.5,19.62,1375,687,{"$f":"+DATEVALUE(TEXT(Table81[[#This Row],[Date]],\"MM/DD/YYYY\"))","v":"2013-07-02"}]
[null,null,null,null,null,null,null,null,null,null,null,null,null,null,null,null,null,null,null,null,null,null,null,null,null,null,null,null,null,null,null,null,null,null,null,null,null,"7/1/2013",1242.75,19.440000000000001,1357,678,{"$f":"+DATEVALUE(TEXT(Table81[[#This Row],[Date]],\"MM/DD/YYYY\"))","v":"2013-07-01"}]
[null,null,null,null,null,null,null,null,null,null,null,null,null,null,null,null,null,null,null,null,null,null,null,null,null,null,null,null,null,null,null,null,null,null,null,null,null,"6/28/2013",1192,18.86,1317,643,{"$f":"+DATEVALUE(TEXT(Table81[[#This Row],[Date]],\"MM/DD/YYYY\"))","v":"2013-06-28"}]
[null,null,null,null,null,null,null,null,null,null,null,null,null,null,null,null,null,null,null,null,null,null,null,null,null,null,null,null,null,null,null,null,null,null,null,null,null,"6/27/2013",1232.75,18.61,1318,643,{"$f":"+DATEVALUE(TEXT(Table81[[#This Row],[Date]],\"MM/DD/YYYY\"))","v":"2013-06-27"}]
[null,null,null,null,null,null,null,null,null,null,null,null,null,null,null,null,null,null,null,null,null,null,null,null,null,null,null,null,null,null,null,null,null,null,null,null,null,"6/26/2013",1236.25,18.670000000000002,1329,652,{"$f":"+DATEVALUE(TEXT(Table81[[#This Row],[Date]],\"MM/DD/YYYY\"))","v":"2013-06-26"}]
[null,null,null,null,null,null,null,null,null,null,null,null,null,null,null,null,null,null,null,null,null,null,null,null,null,null,null,null,null,null,null,null,null,null,null,null,null,"6/25/2013",1279,19.77,1349,672,{"$f":"+DATEVALUE(TEXT(Table81[[#This Row],[Date]],\"MM/DD/YYYY\"))","v":"2013-06-25"}]
[null,null,null,null,null,null,null,null,null,null,null,null,null,null,null,null,null,null,null,null,null,null,null,null,null,null,null,null,null,null,null,null,null,null,null,null,null,"6/24/2013",1286.75,19.649999999999999,1360,669,{"$f":"+DATEVALUE(TEXT(Table81[[#This Row],[Date]],\"MM/DD/YYYY\"))","v":"2013-06-24"}]
[null,null,null,null,null,null,null,null,null,null,null,null,null,null,null,null,null,null,null,null,null,null,null,null,null,null,null,null,null,null,null,null,null,null,null,null,null,"6/21/2013",1295.25,19.87,1365,672,{"$f":"+DATEVALUE(TEXT(Table81[[#This Row],[Date]],\"MM/DD/YYYY\"))","v":"2013-06-21"}]
[null,null,null,null,null,null,null,null,null,null,null,null,null,null,null,null,null,null,null,null,null,null,null,null,null,null,null,null,null,null,null,null,null,null,null,null,null,"6/20/2013",1292.5,20.239999999999998,1391,670,{"$f":"+DATEVALUE(TEXT(Table81[[#This Row],[Date]],\"MM/DD/YYYY\"))","v":"2013-06-20"}]
[null,null,null,null,null,null,null,null,null,null,null,null,null,null,null,null,null,null,null,null,null,null,null,null,null,null,null,null,null,null,null,null,null,null,null,null,null,"6/19/2013",1372.75,21.62,1437,706,{"$f":"+DATEVALUE(TEXT(Table81[[#This Row],[Date]],\"MM/DD/YYYY\"))","v":"2013-06-19"}]
[null,null,null,null,null,null,null,null,null,null,null,null,null,null,null,null,null,null,null,null,null,null,null,null,null,null,null,null,null,null,null,null,null,null,null,null,null,"6/18/2013",1366.75,21.8,1427,706,{"$f":"+DATEVALUE(TEXT(Table81[[#This Row],[Date]],\"MM/DD/YYYY\"))","v":"2013-06-18"}]
[null,null,null,null,null,null,null,null,null,null,null,null,null,null,null,null,null,null,null,null,null,null,null,null,null,null,null,null,null,null,null,null,null,null,null,null,null,"6/17/2013",1384.75,21.87,1443,721,{"$f":"+DATEVALUE(TEXT(Table81[[#This Row],[Date]],\"MM/DD/YYYY\"))","v":"2013-06-17"}]
[null,null,null,null,null,null,null,null,null,null,null,null,null,null,null,null,null,null,null,null,null,null,null,null,null,null,null,null,null,null,null,null,null,null,null,null,null,"6/14/2013",1391.25,21.69,1448,728,{"$f":"+DATEVALUE(TEXT(Table81[[#This Row],[Date]],\"MM/DD/YYYY\"))","v":"2013-06-14"}]
[null,null,null,null,null,null,null,null,null,null,null,null,null,null,null,null,null,null,null,null,null,null,null,null,null,null,null,null,null,null,null,null,null,null,null,null,null,"6/13/2013",1385,21.83,1458,743,{"$f":"+DATEVALUE(TEXT(Table81[[#This Row],[Date]],\"MM/DD/YYYY\"))","v":"2013-06-13"}]
[null,null,null,null,null,null,null,null,null,null,null,null,null,null,null,null,null,null,null,null,null,null,null,null,null,null,null,null,null,null,null,null,null,null,null,null,null,"6/12/2013",1382.75,21.78,1481.5,754,{"$f":"+DATEVALUE(TEXT(Table81[[#This Row],[Date]],\"MM/DD/YYYY\"))","v":"2013-06-12"}]
[null,null,null,null,null,null,null,null,null,null,null,null,null,null,null,null,null,null,null,null,null,null,null,null,null,null,null,null,null,null,null,null,null,null,null,null,null,"6/11/2013",1374.25,21.58,1487,762,{"$f":"+DATEVALUE(TEXT(Table81[[#This Row],[Date]],\"MM/DD/YYYY\"))","v":"2013-06-11"}]
[null,null,null,null,null,null,null,null,null,null,null,null,null,null,null,null,null,null,null,null,null,null,null,null,null,null,null,null,null,null,null,null,null,null,null,null,null,"6/10/2013",1383.25,21.81,1498,759,{"$f":"+DATEVALUE(TEXT(Table81[[#This Row],[Date]],\"MM/DD/YYYY\"))","v":"2013-06-10"}]
[null,null,null,null,null,null,null,null,null,null,null,null,null,null,null,null,null,null,null,null,null,null,null,null,null,null,null,null,null,null,null,null,null,null,null,null,null,"6/7/2013",1386,22.6,1505,754,{"$f":"+DATEVALUE(TEXT(Table81[[#This Row],[Date]],\"MM/DD/YYYY\"))","v":"2013-06-07"}]
[null,null,null,null,null,null,null,null,null,null,null,null,null,null,null,null,null,null,null,null,null,null,null,null,null,null,null,null,null,null,null,null,null,null,null,null,null,"6/6/2013",1400,22.62,1515,756.5,{"$f":"+DATEVALUE(TEXT(Table81[[#This Row],[Date]],\"MM/DD/YYYY\"))","v":"2013-06-06"}]
[null,null,null,null,null,null,null,null,null,null,null,null,null,null,null,null,null,null,null,null,null,null,null,null,null,null,null,null,null,null,null,null,null,null,null,null,null,"6/5/2013",1404,22.37,1503,754,{"$f":"+DATEVALUE(TEXT(Table81[[#This Row],[Date]],\"MM/DD/YYYY\"))","v":"2013-06-05"}]
[null,null,null,null,null,null,null,null,null,null,null,null,null,null,null,null,null,null,null,null,null,null,null,null,null,null,null,null,null,null,null,null,null,null,null,null,null,"6/4/2013",1399.5,22.51,1486,751,{"$f":"+DATEVALUE(TEXT(Table81[[#This Row],[Date]],\"MM/DD/YYYY\"))","v":"2013-06-04"}]
[null,null,null,null,null,null,null,null,null,null,null,null,null,null,null,null,null,null,null,null,null,null,null,null,null,null,null,null,null,null,null,null,null,null,null,null,null,"6/3/2013",1402.5,22.43,1487,755,{"$f":"+DATEVALUE(TEXT(Table81[[#This Row],[Date]],\"MM/DD/YYYY\"))","v":"2013-06-03"}]
[null,null,null,null,null,null,null,null,null,null,null,null,null,null,null,null,null,null,null,null,null,null,null,null,null,null,null,null,null,null,null,null,null,null,null,null,null,"5/31/2013",1394.5,22.57,1459,744,{"$f":"+DATEVALUE(TEXT(Table81[[#This Row],[Date]],\"MM/DD/YYYY\"))","v":"2013-05-31"}]
[null,null,null,null,null,null,null,null,null,null,null,null,null,null,null,null,null,null,null,null,null,null,null,null,null,null,null,null,null,null,null,null,null,null,null,null,null,"5/30/2013",1413.5,22.68,1464,754,{"$f":"+DATEVALUE(TEXT(Table81[[#This Row],[Date]],\"MM/DD/YYYY\"))","v":"2013-05-30"}]
[null,null,null,null,null,null,null,null,null,null,null,null,null,null,null,null,null,null,null,null,null,null,null,null,null,null,null,null,null,null,null,null,null,null,null,null,null,"5/29/2013",1382.5,22.36,1455,747,{"$f":"+DATEVALUE(TEXT(Table81[[#This Row],[Date]],\"MM/DD/YYYY\"))","v":"2013-05-29"}]
[null,null,null,null,null,null,null,null,null,null,null,null,null,null,null,null,null,null,null,null,null,null,null,null,null,null,null,null,null,null,null,null,null,null,null,null,null,"5/28/2013",1376.5,22.36,1450,733,{"$f":"+DATEVALUE(TEXT(Table81[[#This Row],[Date]],\"MM/DD/YYYY\"))","v":"2013-05-28"}]
[null,null,null,null,null,null,null,null,null,null,null,null,null,null,null,null,null,null,null,null,null,null,null,null,null,null,null,null,null,null,null,null,null,null,null,null,null,"5/24/2013",1390.25,22.38,1455,729,{"$f":"+DATEVALUE(TEXT(Table81[[#This Row],[Date]],\"MM/DD/YYYY\"))","v":"2013-05-24"}]
[null,null,null,null,null,null,null,null,null,null,null,null,null,null,null,null,null,null,null,null,null,null,null,null,null,null,null,null,null,null,null,null,null,null,null,null,null,"5/23/2013",1380.5,22.47,1455,739,{"$f":"+DATEVALUE(TEXT(Table81[[#This Row],[Date]],\"MM/DD/YYYY\"))","v":"2013-05-23"}]
[null,null,null,null,null,null,null,null,null,null,null,null,null,null,null,null,null,null,null,null,null,null,null,null,null,null,null,null,null,null,null,null,null,null,null,null,null,"5/22/2013",1408.5,22.62,1474,750,{"$f":"+DATEVALUE(TEXT(Table81[[#This Row],[Date]],\"MM/DD/YYYY\"))","v":"2013-05-22"}]
[null,null,null,null,null,null,null,null,null,null,null,null,null,null,null,null,null,null,null,null,null,null,null,null,null,null,null,null,null,null,null,null,null,null,null,null,null,"5/21/2013",1360.75,22.44,1456,741,{"$f":"+DATEVALUE(TEXT(Table81[[#This Row],[Date]],\"MM/DD/YYYY\"))","v":"2013-05-21"}]
[null,null,null,null,null,null,null,null,null,null,null,null,null,null,null,null,null,null,null,null,null,null,null,null,null,null,null,null,null,null,null,null,null,null,null,null,null,"5/20/2013",1354.75,21.66,1447,734,{"$f":"+DATEVALUE(TEXT(Table81[[#This Row],[Date]],\"MM/DD/YYYY\"))","v":"2013-05-20"}]
[null,null,null,null,null,null,null,null,null,null,null,null,null,null,null,null,null,null,null,null,null,null,null,null,null,null,null,null,null,null,null,null,null,null,null,null,null,"5/17/2013",1368.75,22.52,1470,736,{"$f":"+DATEVALUE(TEXT(Table81[[#This Row],[Date]],\"MM/DD/YYYY\"))","v":"2013-05-17"}]
[null,null,null,null,null,null,null,null,null,null,null,null,null,null,null,null,null,null,null,null,null,null,null,null,null,null,null,null,null,null,null,null,null,null,null,null,null,"5/16/2013",1381,22.26,1476,728,{"$f":"+DATEVALUE(TEXT(Table81[[#This Row],[Date]],\"MM/DD/YYYY\"))","v":"2013-05-16"}]
[null,null,null,null,null,null,null,null,null,null,null,null,null,null,null,null,null,null,null,null,null,null,null,null,null,null,null,null,null,null,null,null,null,null,null,null,null,"5/15/2013",1410,22.87,1496,727,{"$f":"+DATEVALUE(TEXT(Table81[[#This Row],[Date]],\"MM/DD/YYYY\"))","v":"2013-05-15"}]
[null,null,null,null,null,null,null,null,null,null,null,null,null,null,null,null,null,null,null,null,null,null,null,null,null,null,null,null,null,null,null,null,null,null,null,null,null,"5/14/2013",1433.75,23.44,1489,718,{"$f":"+DATEVALUE(TEXT(Table81[[#This Row],[Date]],\"MM/DD/YYYY\"))","v":"2013-05-14"}]
[null,null,null,null,null,null,null,null,null,null,null,null,null,null,null,null,null,null,null,null,null,null,null,null,null,null,null,null,null,null,null,null,null,null,null,null,null,"5/13/2013",1430.75,23.66,1485,705,{"$f":"+DATEVALUE(TEXT(Table81[[#This Row],[Date]],\"MM/DD/YYYY\"))","v":"2013-05-13"}]
[null,null,null,null,null,null,null,null,null,null,null,null,null,null,null,null,null,null,null,null,null,null,null,null,null,null,null,null,null,null,null,null,null,null,null,null,null,"5/10/2013",1426.5,23.37,1490,702,{"$f":"+DATEVALUE(TEXT(Table81[[#This Row],[Date]],\"MM/DD/YYYY\"))","v":"2013-05-10"}]
[null,null,null,null,null,null,null,null,null,null,null,null,null,null,null,null,null,null,null,null,null,null,null,null,null,null,null,null,null,null,null,null,null,null,null,null,null,"5/9/2013",1465.5,24.07,1506,695,{"$f":"+DATEVALUE(TEXT(Table81[[#This Row],[Date]],\"MM/DD/YYYY\"))","v":"2013-05-09"}]
[null,null,null,null,null,null,null,null,null,null,null,null,null,null,null,null,null,null,null,null,null,null,null,null,null,null,null,null,null,null,null,null,null,null,null,null,null,"5/8/2013",1468,23.86,1494,690,{"$f":"+DATEVALUE(TEXT(Table81[[#This Row],[Date]],\"MM/DD/YYYY\"))","v":"2013-05-08"}]
[null,null,null,null,null,null,null,null,null,null,null,null,null,null,null,null,null,null,null,null,null,null,null,null,null,null,null,null,null,null,null,null,null,null,null,null,null,"5/7/2013",1444.25,23.75,1484,682,{"$f":"+DATEVALUE(TEXT(Table81[[#This Row],[Date]],\"MM/DD/YYYY\"))","v":"2013-05-07"}]
[null,null,null,null,null,null,null,null,null,null,null,null,null,null,null,null,null,null,null,null,null,null,null,null,null,null,null,null,null,null,null,null,null,null,null,null,null,"5/3/2013",1469.25,24.25,1501,694,{"$f":"+DATEVALUE(TEXT(Table81[[#This Row],[Date]],\"MM/DD/YYYY\"))","v":"2013-05-03"}]
[null,null,null,null,null,null,null,null,null,null,null,null,null,null,null,null,null,null,null,null,null,null,null,null,null,null,null,null,null,null,null,null,null,null,null,null,null,"5/2/2013",1469.25,23.69,1487,688,{"$f":"+DATEVALUE(TEXT(Table81[[#This Row],[Date]],\"MM/DD/YYYY\"))","v":"2013-05-02"}]
[null,null,null,null,null,null,null,null,null,null,null,null,null,null,null,null,null,null,null,null,null,null,null,null,null,null,null,null,null,null,null,null,null,null,null,null,null,"5/1/2013",1454.75,23.97,1480,688,{"$f":"+DATEVALUE(TEXT(Table81[[#This Row],[Date]],\"MM/DD/YYYY\"))","v":"2013-05-01"}]
[null,null,null,null,null,null,null,null,null,null,null,null,null,null,null,null,null,null,null,null,null,null,null,null,null,null,null,null,null,null,null,null,null,null,null,null,null,"4/30/2013",1469,24.42,1507,699,{"$f":"+DATEVALUE(TEXT(Table81[[#This Row],[Date]],\"MM/DD/YYYY\"))","v":"2013-04-30"}]
[null,null,null,null,null,null,null,null,null,null,null,null,null,null,null,null,null,null,null,null,null,null,null,null,null,null,null,null,null,null,null,null,null,null,null,null,null,"4/29/2013",1467.5,24.27,1505,694,{"$f":"+DATEVALUE(TEXT(Table81[[#This Row],[Date]],\"MM/DD/YYYY\"))","v":"2013-04-29"}]
[null,null,null,null,null,null,null,null,null,null,null,null,null,null,null,null,null,null,null,null,null,null,null,null,null,null,null,null,null,null,null,null,null,null,null,null,null,"4/26/2013",1471.5,24.02,1483,681,{"$f":"+DATEVALUE(TEXT(Table81[[#This Row],[Date]],\"MM/DD/YYYY\"))","v":"2013-04-26"}]
[null,null,null,null,null,null,null,null,null,null,null,null,null,null,null,null,null,null,null,null,null,null,null,null,null,null,null,null,null,null,null,null,null,null,null,null,null,"4/25/2013",1451,23.3,1454,679,{"$f":"+DATEVALUE(TEXT(Table81[[#This Row],[Date]],\"MM/DD/YYYY\"))","v":"2013-04-25"}]
[null,null,null,null,null,null,null,null,null,null,null,null,null,null,null,null,null,null,null,null,null,null,null,null,null,null,null,null,null,null,null,null,null,null,null,null,null,"4/24/2013",1428.5,22.91,1427,674,{"$f":"+DATEVALUE(TEXT(Table81[[#This Row],[Date]],\"MM/DD/YYYY\"))","v":"2013-04-24"}]
[null,null,null,null,null,null,null,null,null,null,null,null,null,null,null,null,null,null,null,null,null,null,null,null,null,null,null,null,null,null,null,null,null,null,null,null,null,"4/23/2013",1408,23.01,1417,670,{"$f":"+DATEVALUE(TEXT(Table81[[#This Row],[Date]],\"MM/DD/YYYY\"))","v":"2013-04-23"}]
[null,null,null,null,null,null,null,null,null,null,null,null,null,null,null,null,null,null,null,null,null,null,null,null,null,null,null,null,null,null,null,null,null,null,null,null,null,"4/22/2013",1424.5,23.6,1434,683,{"$f":"+DATEVALUE(TEXT(Table81[[#This Row],[Date]],\"MM/DD/YYYY\"))","v":"2013-04-22"}]
[null,null,null,null,null,null,null,null,null,null,null,null,null,null,null,null,null,null,null,null,null,null,null,null,null,null,null,null,null,null,null,null,null,null,null,null,null,"4/19/2013",1405.5,23.66,1425,677,{"$f":"+DATEVALUE(TEXT(Table81[[#This Row],[Date]],\"MM/DD/YYYY\"))","v":"2013-04-19"}]
[null,null,null,null,null,null,null,null,null,null,null,null,null,null,null,null,null,null,null,null,null,null,null,null,null,null,null,null,null,null,null,null,null,null,null,null,null,"4/18/2013",1393.75,23.51,1432,670,{"$f":"+DATEVALUE(TEXT(Table81[[#This Row],[Date]],\"MM/DD/YYYY\"))","v":"2013-04-18"}]
[null,null,null,null,null,null,null,null,null,null,null,null,null,null,null,null,null,null,null,null,null,null,null,null,null,null,null,null,null,null,null,null,null,null,null,null,null,"4/17/2013",1392,23.31,1436,671,{"$f":"+DATEVALUE(TEXT(Table81[[#This Row],[Date]],\"MM/DD/YYYY\"))","v":"2013-04-17"}]
[null,null,null,null,null,null,null,null,null,null,null,null,null,null,null,null,null,null,null,null,null,null,null,null,null,null,null,null,null,null,null,null,null,null,null,null,null,"4/16/2013",1380,23.47,1446,681,{"$f":"+DATEVALUE(TEXT(Table81[[#This Row],[Date]],\"MM/DD/YYYY\"))","v":"2013-04-16"}]
[null,null,null,null,null,null,null,null,null,null,null,null,null,null,null,null,null,null,null,null,null,null,null,null,null,null,null,null,null,null,null,null,null,null,null,null,null,"4/15/2013",1395,23.54,1448,676,{"$f":"+DATEVALUE(TEXT(Table81[[#This Row],[Date]],\"MM/DD/YYYY\"))","v":"2013-04-15"}]
[null,null,null,null,null,null,null,null,null,null,null,null,null,null,null,null,null,null,null,null,null,null,null,null,null,null,null,null,null,null,null,null,null,null,null,null,null,"4/12/2013",1535.5,27.4,1514,715.5,{"$f":"+DATEVALUE(TEXT(Table81[[#This Row],[Date]],\"MM/DD/YYYY\"))","v":"2013-04-12"}]
[null,null,null,null,null,null,null,null,null,null,null,null,null,null,null,null,null,null,null,null,null,null,null,null,null,null,null,null,null,null,null,null,null,null,null,null,null,"4/11/2013",1565,27.57,1531.5,723,{"$f":"+DATEVALUE(TEXT(Table81[[#This Row],[Date]],\"MM/DD/YYYY\"))","v":"2013-04-11"}]
[null,null,null,null,null,null,null,null,null,null,null,null,null,null,null,null,null,null,null,null,null,null,null,null,null,null,null,null,null,null,null,null,null,null,null,null,null,"4/10/2013",1575,27.74,1533,713,{"$f":"+DATEVALUE(TEXT(Table81[[#This Row],[Date]],\"MM/DD/YYYY\"))","v":"2013-04-10"}]
[null,null,null,null,null,null,null,null,null,null,null,null,null,null,null,null,null,null,null,null,null,null,null,null,null,null,null,null,null,null,null,null,null,null,null,null,null,"4/9/2013",1577.25,27.25,1542,732,{"$f":"+DATEVALUE(TEXT(Table81[[#This Row],[Date]],\"MM/DD/YYYY\"))","v":"2013-04-09"}]
[null,null,null,null,null,null,null,null,null,null,null,null,null,null,null,null,null,null,null,null,null,null,null,null,null,null,null,null,null,null,null,null,null,null,null,null,null,"4/8/2013",1575,27.27,1532,730.5,{"$f":"+DATEVALUE(TEXT(Table81[[#This Row],[Date]],\"MM/DD/YYYY\"))","v":"2013-04-08"}]
[null,null,null,null,null,null,null,null,null,null,null,null,null,null,null,null,null,null,null,null,null,null,null,null,null,null,null,null,null,null,null,null,null,null,null,null,null,"4/5/2013",1568,26.97,1531,720,{"$f":"+DATEVALUE(TEXT(Table81[[#This Row],[Date]],\"MM/DD/YYYY\"))","v":"2013-04-05"}]
[null,null,null,null,null,null,null,null,null,null,null,null,null,null,null,null,null,null,null,null,null,null,null,null,null,null,null,null,null,null,null,null,null,null,null,null,null,"4/4/2013",1546.5,26.8,1526,737,{"$f":"+DATEVALUE(TEXT(Table81[[#This Row],[Date]],\"MM/DD/YYYY\"))","v":"2013-04-04"}]
[null,null,null,null,null,null,null,null,null,null,null,null,null,null,null,null,null,null,null,null,null,null,null,null,null,null,null,null,null,null,null,null,null,null,null,null,null,"4/3/2013",1574.75,27.19,1569,765,{"$f":"+DATEVALUE(TEXT(Table81[[#This Row],[Date]],\"MM/DD/YYYY\"))","v":"2013-04-03"}]
[null,null,null,null,null,null,null,null,null,null,null,null,null,null,null,null,null,null,null,null,null,null,null,null,null,null,null,null,null,null,null,null,null,null,null,null,null,"4/2/2013",1583.5,27.96,1579,773,{"$f":"+DATEVALUE(TEXT(Table81[[#This Row],[Date]],\"MM/DD/YYYY\"))","v":"2013-04-02"}]
[null,null,null,null,null,null,null,null,null,null,null,null,null,null,null,null,null,null,null,null,null,null,null,null,null,null,null,null,null,null,null,null,null,null,null,null,null,"3/28/2013",1598.25,28.64,1576,770,{"$f":"+DATEVALUE(TEXT(Table81[[#This Row],[Date]],\"MM/DD/YYYY\"))","v":"2013-03-28"}]
[null,null,null,null,null,null,null,null,null,null,null,null,null,null,null,null,null,null,null,null,null,null,null,null,null,null,null,null,null,null,null,null,null,null,null,null,null,"3/27/2013",1603,28.33,1575,760,{"$f":"+DATEVALUE(TEXT(Table81[[#This Row],[Date]],\"MM/DD/YYYY\"))","v":"2013-03-27"}]
[null,null,null,null,null,null,null,null,null,null,null,null,null,null,null,null,null,null,null,null,null,null,null,null,null,null,null,null,null,null,null,null,null,null,null,null,null,"3/26/2013",1598,28.83,1565,757,{"$f":"+DATEVALUE(TEXT(Table81[[#This Row],[Date]],\"MM/DD/YYYY\"))","v":"2013-03-26"}]
[null,null,null,null,null,null,null,null,null,null,null,null,null,null,null,null,null,null,null,null,null,null,null,null,null,null,null,null,null,null,null,null,null,null,null,null,null,"3/25/2013",1599.25,28.67,1575,761,{"$f":"+DATEVALUE(TEXT(Table81[[#This Row],[Date]],\"MM/DD/YYYY\"))","v":"2013-03-25"}]
[null,null,null,null,null,null,null,null,null,null,null,null,null,null,null,null,null,null,null,null,null,null,null,null,null,null,null,null,null,null,null,null,null,null,null,null,null,"3/22/2013",1607.75,29.06,1580,754,{"$f":"+DATEVALUE(TEXT(Table81[[#This Row],[Date]],\"MM/DD/YYYY\"))","v":"2013-03-22"}]
[null,null,null,null,null,null,null,null,null,null,null,null,null,null,null,null,null,null,null,null,null,null,null,null,null,null,null,null,null,null,null,null,null,null,null,null,null,"3/21/2013",1613.75,28.91,1583,761,{"$f":"+DATEVALUE(TEXT(Table81[[#This Row],[Date]],\"MM/DD/YYYY\"))","v":"2013-03-21"}]
[null,null,null,null,null,null,null,null,null,null,null,null,null,null,null,null,null,null,null,null,null,null,null,null,null,null,null,null,null,null,null,null,null,null,null,null,null,"3/20/2013",1607.5,28.9,1566,747,{"$f":"+DATEVALUE(TEXT(Table81[[#This Row],[Date]],\"MM/DD/YYYY\"))","v":"2013-03-20"}]
[null,null,null,null,null,null,null,null,null,null,null,null,null,null,null,null,null,null,null,null,null,null,null,null,null,null,null,null,null,null,null,null,null,null,null,null,null,"3/19/2013",1610.75,28.85,1579,761,{"$f":"+DATEVALUE(TEXT(Table81[[#This Row],[Date]],\"MM/DD/YYYY\"))","v":"2013-03-19"}]
[null,null,null,null,null,null,null,null,null,null,null,null,null,null,null,null,null,null,null,null,null,null,null,null,null,null,null,null,null,null,null,null,null,null,null,null,null,"3/18/2013",1603.75,28.8,1580,765,{"$f":"+DATEVALUE(TEXT(Table81[[#This Row],[Date]],\"MM/DD/YYYY\"))","v":"2013-03-18"}]
[null,null,null,null,null,null,null,null,null,null,null,null,null,null,null,null,null,null,null,null,null,null,null,null,null,null,null,null,null,null,null,null,null,null,null,null,null,"3/15/2013",1595.5,28.91,1593,774,{"$f":"+DATEVALUE(TEXT(Table81[[#This Row],[Date]],\"MM/DD/YYYY\"))","v":"2013-03-15"}]
[null,null,null,null,null,null,null,null,null,null,null,null,null,null,null,null,null,null,null,null,null,null,null,null,null,null,null,null,null,null,null,null,null,null,null,null,null,"3/14/2013",1586,28.64,1583,766,{"$f":"+DATEVALUE(TEXT(Table81[[#This Row],[Date]],\"MM/DD/YYYY\"))","v":"2013-03-14"}]
[null,null,null,null,null,null,null,null,null,null,null,null,null,null,null,null,null,null,null,null,null,null,null,null,null,null,null,null,null,null,null,null,null,null,null,null,null,"3/13/2013",1589.25,29.12,1595,773,{"$f":"+DATEVALUE(TEXT(Table81[[#This Row],[Date]],\"MM/DD/YYYY\"))","v":"2013-03-13"}]
[null,null,null,null,null,null,null,null,null,null,null,null,null,null,null,null,null,null,null,null,null,null,null,null,null,null,null,null,null,null,null,null,null,null,null,null,null,"3/12/2013",1594,29.25,1604,774,{"$f":"+DATEVALUE(TEXT(Table81[[#This Row],[Date]],\"MM/DD/YYYY\"))","v":"2013-03-12"}]
[null,null,null,null,null,null,null,null,null,null,null,null,null,null,null,null,null,null,null,null,null,null,null,null,null,null,null,null,null,null,null,null,null,null,null,null,null,"3/11/2013",1579,28.9,1594,774,{"$f":"+DATEVALUE(TEXT(Table81[[#This Row],[Date]],\"MM/DD/YYYY\"))","v":"2013-03-11"}]
[null,null,null,null,null,null,null,null,null,null,null,null,null,null,null,null,null,null,null,null,null,null,null,null,null,null,null,null,null,null,null,null,null,null,null,null,null,"3/8/2013",1581.75,28.78,1588,769,{"$f":"+DATEVALUE(TEXT(Table81[[#This Row],[Date]],\"MM/DD/YYYY\"))","v":"2013-03-08"}]
[null,null,null,null,null,null,null,null,null,null,null,null,null,null,null,null,null,null,null,null,null,null,null,null,null,null,null,null,null,null,null,null,null,null,null,null,null,"3/7/2013",1579.5,29.01,1596,755,{"$f":"+DATEVALUE(TEXT(Table81[[#This Row],[Date]],\"MM/DD/YYYY\"))","v":"2013-03-07"}]
[null,null,null,null,null,null,null,null,null,null,null,null,null,null,null,null,null,null,null,null,null,null,null,null,null,null,null,null,null,null,null,null,null,null,null,null,null,"3/6/2013",1574,28.74,1590,739,{"$f":"+DATEVALUE(TEXT(Table81[[#This Row],[Date]],\"MM/DD/YYYY\"))","v":"2013-03-06"}]
[null,null,null,null,null,null,null,null,null,null,null,null,null,null,null,null,null,null,null,null,null,null,null,null,null,null,null,null,null,null,null,null,null,null,null,null,null,"3/5/2013",1579.75,28.93,1587,728,{"$f":"+DATEVALUE(TEXT(Table81[[#This Row],[Date]],\"MM/DD/YYYY\"))","v":"2013-03-05"}]
[null,null,null,null,null,null,null,null,null,null,null,null,null,null,null,null,null,null,null,null,null,null,null,null,null,null,null,null,null,null,null,null,null,null,null,null,null,"3/4/2013",1574.25,28.69,1578,724,{"$f":"+DATEVALUE(TEXT(Table81[[#This Row],[Date]],\"MM/DD/YYYY\"))","v":"2013-03-04"}]
[null,null,null,null,null,null,null,null,null,null,null,null,null,null,null,null,null,null,null,null,null,null,null,null,null,null,null,null,null,null,null,null,null,null,null,null,null,"3/1/2013",1582.25,28.01,1579,721,{"$f":"+DATEVALUE(TEXT(Table81[[#This Row],[Date]],\"MM/DD/YYYY\"))","v":"2013-03-01"}]
[null,null,null,null,null,null,null,null,null,null,null,null,null,null,null,null,null,null,null,null,null,null,null,null,null,null,null,null,null,null,null,null,null,null,null,null,null,"2/28/2013",1588.5,28.95,1598,744,{"$f":"+DATEVALUE(TEXT(Table81[[#This Row],[Date]],\"MM/DD/YYYY\"))","v":"2013-02-28"}]
[null,null,null,null,null,null,null,null,null,null,null,null,null,null,null,null,null,null,null,null,null,null,null,null,null,null,null,null,null,null,null,null,null,null,null,null,null,"2/27/2013",1604.25,29.07,1609,741,{"$f":"+DATEVALUE(TEXT(Table81[[#This Row],[Date]],\"MM/DD/YYYY\"))","v":"2013-02-27"}]
[null,null,null,null,null,null,null,null,null,null,null,null,null,null,null,null,null,null,null,null,null,null,null,null,null,null,null,null,null,null,null,null,null,null,null,null,null,"2/26/2013",1590.5,28.75,1605,740,{"$f":"+DATEVALUE(TEXT(Table81[[#This Row],[Date]],\"MM/DD/YYYY\"))","v":"2013-02-26"}]
[null,null,null,null,null,null,null,null,null,null,null,null,null,null,null,null,null,null,null,null,null,null,null,null,null,null,null,null,null,null,null,null,null,null,null,null,null,"2/25/2013",1586.25,29.17,1620,748,{"$f":"+DATEVALUE(TEXT(Table81[[#This Row],[Date]],\"MM/DD/YYYY\"))","v":"2013-02-25"}]
[null,null,null,null,null,null,null,null,null,null,null,null,null,null,null,null,null,null,null,null,null,null,null,null,null,null,null,null,null,null,null,null,null,null,null,null,null,"2/22/2013",1576.5,28.79,1611,732,{"$f":"+DATEVALUE(TEXT(Table81[[#This Row],[Date]],\"MM/DD/YYYY\"))","v":"2013-02-22"}]
[null,null,null,null,null,null,null,null,null,null,null,null,null,null,null,null,null,null,null,null,null,null,null,null,null,null,null,null,null,null,null,null,null,null,null,null,null,"2/21/2013",1577,28.72,1607,722,{"$f":"+DATEVALUE(TEXT(Table81[[#This Row],[Date]],\"MM/DD/YYYY\"))","v":"2013-02-21"}]
[null,null,null,null,null,null,null,null,null,null,null,null,null,null,null,null,null,null,null,null,null,null,null,null,null,null,null,null,null,null,null,null,null,null,null,null,null,"2/20/2013",1588.5,29.11,1659,754,{"$f":"+DATEVALUE(TEXT(Table81[[#This Row],[Date]],\"MM/DD/YYYY\"))","v":"2013-02-20"}]
[null,null,null,null,null,null,null,null,null,null,null,null,null,null,null,null,null,null,null,null,null,null,null,null,null,null,null,null,null,null,null,null,null,null,null,null,null,"2/19/2013",1607.75,30,1685,763,{"$f":"+DATEVALUE(TEXT(Table81[[#This Row],[Date]],\"MM/DD/YYYY\"))","v":"2013-02-19"}]
[null,null,null,null,null,null,null,null,null,null,null,null,null,null,null,null,null,null,null,null,null,null,null,null,null,null,null,null,null,null,null,null,null,null,null,null,null,"2/18/2013",1610.75,30,1692,759,{"$f":"+DATEVALUE(TEXT(Table81[[#This Row],[Date]],\"MM/DD/YYYY\"))","v":"2013-02-18"}]
[null,null,null,null,null,null,null,null,null,null,null,null,null,null,null,null,null,null,null,null,null,null,null,null,null,null,null,null,null,null,null,null,null,null,null,null,null,"2/15/2013",1612.25,30.18,1676,754,{"$f":"+DATEVALUE(TEXT(Table81[[#This Row],[Date]],\"MM/DD/YYYY\"))","v":"2013-02-15"}]
[null,null,null,null,null,null,null,null,null,null,null,null,null,null,null,null,null,null,null,null,null,null,null,null,null,null,null,null,null,null,null,null,null,null,null,null,null,"2/14/2013",1646,30.88,1724,770,{"$f":"+DATEVALUE(TEXT(Table81[[#This Row],[Date]],\"MM/DD/YYYY\"))","v":"2013-02-14"}]
[null,null,null,null,null,null,null,null,null,null,null,null,null,null,null,null,null,null,null,null,null,null,null,null,null,null,null,null,null,null,null,null,null,null,null,null,null,"2/13/2013",1645,31.035,1730,773,{"$f":"+DATEVALUE(TEXT(Table81[[#This Row],[Date]],\"MM/DD/YYYY\"))","v":"2013-02-13"}]
[null,null,null,null,null,null,null,null,null,null,null,null,null,null,null,null,null,null,null,null,null,null,null,null,null,null,null,null,null,null,null,null,null,null,null,null,null,"2/12/2013",1647.5,30.84,1708,765,{"$f":"+DATEVALUE(TEXT(Table81[[#This Row],[Date]],\"MM/DD/YYYY\"))","v":"2013-02-12"}]
[null,null,null,null,null,null,null,null,null,null,null,null,null,null,null,null,null,null,null,null,null,null,null,null,null,null,null,null,null,null,null,null,null,null,null,null,null,"2/11/2013",1652,31.16,1708,749,{"$f":"+DATEVALUE(TEXT(Table81[[#This Row],[Date]],\"MM/DD/YYYY\"))","v":"2013-02-11"}]
[null,null,null,null,null,null,null,null,null,null,null,null,null,null,null,null,null,null,null,null,null,null,null,null,null,null,null,null,null,null,null,null,null,null,null,null,null,"2/8/2013",1668.25,31.52,1714,746,{"$f":"+DATEVALUE(TEXT(Table81[[#This Row],[Date]],\"MM/DD/YYYY\"))","v":"2013-02-08"}]
[null,null,null,null,null,null,null,null,null,null,null,null,null,null,null,null,null,null,null,null,null,null,null,null,null,null,null,null,null,null,null,null,null,null,null,null,null,"2/7/2013",1668,31.75,1736,764.5,{"$f":"+DATEVALUE(TEXT(Table81[[#This Row],[Date]],\"MM/DD/YYYY\"))","v":"2013-02-07"}]
[null,null,null,null,null,null,null,null,null,null,null,null,null,null,null,null,null,null,null,null,null,null,null,null,null,null,null,null,null,null,null,null,null,null,null,null,null,"2/6/2013",1674.25,31.7,1724,764,{"$f":"+DATEVALUE(TEXT(Table81[[#This Row],[Date]],\"MM/DD/YYYY\"))","v":"2013-02-06"}]
[null,null,null,null,null,null,null,null,null,null,null,null,null,null,null,null,null,null,null,null,null,null,null,null,null,null,null,null,null,null,null,null,null,null,null,null,null,"2/5/2013",1673.5,32.01,1702,756,{"$f":"+DATEVALUE(TEXT(Table81[[#This Row],[Date]],\"MM/DD/YYYY\"))","v":"2013-02-05"}]
[null,null,null,null,null,null,null,null,null,null,null,null,null,null,null,null,null,null,null,null,null,null,null,null,null,null,null,null,null,null,null,null,null,null,null,null,null,"2/4/2013",1666,31.51,1696,749,{"$f":"+DATEVALUE(TEXT(Table81[[#This Row],[Date]],\"MM/DD/YYYY\"))","v":"2013-02-04"}]
[null,null,null,null,null,null,null,null,null,null,null,null,null,null,null,null,null,null,null,null,null,null,null,null,null,null,null,null,null,null,null,null,null,null,null,null,null,"2/1/2013",1669,31.43,1687,745,{"$f":"+DATEVALUE(TEXT(Table81[[#This Row],[Date]],\"MM/DD/YYYY\"))","v":"2013-02-01"}]
[null,null,null,null,null,null,null,null,null,null,null,null,null,null,null,null,null,null,null,null,null,null,null,null,null,null,null,null,null,null,null,null,null,null,null,null,null,"1/31/2013",1664.75,32.03,1672,739,{"$f":"+DATEVALUE(TEXT(Table81[[#This Row],[Date]],\"MM/DD/YYYY\"))","v":"2013-01-31"}]
[null,null,null,null,null,null,null,null,null,null,null,null,null,null,null,null,null,null,null,null,null,null,null,null,null,null,null,null,null,null,null,null,null,null,null,null,null,"1/30/2013",1677.5,31.35,1688,756,{"$f":"+DATEVALUE(TEXT(Table81[[#This Row],[Date]],\"MM/DD/YYYY\"))","v":"2013-01-30"}]
[null,null,null,null,null,null,null,null,null,null,null,null,null,null,null,null,null,null,null,null,null,null,null,null,null,null,null,null,null,null,null,null,null,null,null,null,null,"1/29/2013",1663.5,31.06,1673,739,{"$f":"+DATEVALUE(TEXT(Table81[[#This Row],[Date]],\"MM/DD/YYYY\"))","v":"2013-01-29"}]
[null,null,null,null,null,null,null,null,null,null,null,null,null,null,null,null,null,null,null,null,null,null,null,null,null,null,null,null,null,null,null,null,null,null,null,null,null,"1/28/2013",1656.5,30.87,1681,742,{"$f":"+DATEVALUE(TEXT(Table81[[#This Row],[Date]],\"MM/DD/YYYY\"))","v":"2013-01-28"}]
[null,null,null,null,null,null,null,null,null,null,null,null,null,null,null,null,null,null,null,null,null,null,null,null,null,null,null,null,null,null,null,null,null,null,null,null,null,"1/25/2013",1660,31.56,1678,725,{"$f":"+DATEVALUE(TEXT(Table81[[#This Row],[Date]],\"MM/DD/YYYY\"))","v":"2013-01-25"}]
[null,null,null,null,null,null,null,null,null,null,null,null,null,null,null,null,null,null,null,null,null,null,null,null,null,null,null,null,null,null,null,null,null,null,null,null,null,"1/24/2013",1671,31.85,1680,722,{"$f":"+DATEVALUE(TEXT(Table81[[#This Row],[Date]],\"MM/DD/YYYY\"))","v":"2013-01-24"}]
[null,null,null,null,null,null,null,null,null,null,null,null,null,null,null,null,null,null,null,null,null,null,null,null,null,null,null,null,null,null,null,null,null,null,null,null,null,"1/23/2013",1690.25,32.229999999999997,1698.5,725,{"$f":"+DATEVALUE(TEXT(Table81[[#This Row],[Date]],\"MM/DD/YYYY\"))","v":"2013-01-23"}]
[null,null,null,null,null,null,null,null,null,null,null,null,null,null,null,null,null,null,null,null,null,null,null,null,null,null,null,null,null,null,null,null,null,null,null,null,null,"1/22/2013",1690.5,31.94,1687,717,{"$f":"+DATEVALUE(TEXT(Table81[[#This Row],[Date]],\"MM/DD/YYYY\"))","v":"2013-01-22"}]
[null,null,null,null,null,null,null,null,null,null,null,null,null,null,null,null,null,null,null,null,null,null,null,null,null,null,null,null,null,null,null,null,null,null,null,null,null,"1/21/2013",1687.5,31.9,1671,715,{"$f":"+DATEVALUE(TEXT(Table81[[#This Row],[Date]],\"MM/DD/YYYY\"))","v":"2013-01-21"}]
[null,null,null,null,null,null,null,null,null,null,null,null,null,null,null,null,null,null,null,null,null,null,null,null,null,null,null,null,null,null,null,null,null,null,null,null,null,"1/18/2013",1688.5,31.82,1677,722,{"$f":"+DATEVALUE(TEXT(Table81[[#This Row],[Date]],\"MM/DD/YYYY\"))","v":"2013-01-18"}]
[null,null,null,null,null,null,null,null,null,null,null,null,null,null,null,null,null,null,null,null,null,null,null,null,null,null,null,null,null,null,null,null,null,null,null,null,null,"1/17/2013",1675,31.5,1683,725,{"$f":"+DATEVALUE(TEXT(Table81[[#This Row],[Date]],\"MM/DD/YYYY\"))","v":"2013-01-17"}]
[null,null,null,null,null,null,null,null,null,null,null,null,null,null,null,null,null,null,null,null,null,null,null,null,null,null,null,null,null,null,null,null,null,null,null,null,null,"1/16/2013",1676.25,31.23,1678,714,{"$f":"+DATEVALUE(TEXT(Table81[[#This Row],[Date]],\"MM/DD/YYYY\"))","v":"2013-01-16"}]
[null,null,null,null,null,null,null,null,null,null,null,null,null,null,null,null,null,null,null,null,null,null,null,null,null,null,null,null,null,null,null,null,null,null,null,null,null,"1/15/2013",1680.5,31.19,1690,709,{"$f":"+DATEVALUE(TEXT(Table81[[#This Row],[Date]],\"MM/DD/YYYY\"))","v":"2013-01-15"}]
[null,null,null,null,null,null,null,null,null,null,null,null,null,null,null,null,null,null,null,null,null,null,null,null,null,null,null,null,null,null,null,null,null,null,null,null,null,"1/14/2013",1666.5,30.76,1658,706,{"$f":"+DATEVALUE(TEXT(Table81[[#This Row],[Date]],\"MM/DD/YYYY\"))","v":"2013-01-14"}]
[null,null,null,null,null,null,null,null,null,null,null,null,null,null,null,null,null,null,null,null,null,null,null,null,null,null,null,null,null,null,null,null,null,null,null,null,null,"1/11/2013",1657.5,30.67,1626,693.5,{"$f":"+DATEVALUE(TEXT(Table81[[#This Row],[Date]],\"MM/DD/YYYY\"))","v":"2013-01-11"}]
[null,null,null,null,null,null,null,null,null,null,null,null,null,null,null,null,null,null,null,null,null,null,null,null,null,null,null,null,null,null,null,null,null,null,null,null,null,"1/10/2013",1675,30.49,1621,701,{"$f":"+DATEVALUE(TEXT(Table81[[#This Row],[Date]],\"MM/DD/YYYY\"))","v":"2013-01-10"}]
[null,null,null,null,null,null,null,null,null,null,null,null,null,null,null,null,null,null,null,null,null,null,null,null,null,null,null,null,null,null,null,null,null,null,null,null,null,"1/9/2013",1657.75,30.39,1593,681,{"$f":"+DATEVALUE(TEXT(Table81[[#This Row],[Date]],\"MM/DD/YYYY\"))","v":"2013-01-09"}]
[null,null,null,null,null,null,null,null,null,null,null,null,null,null,null,null,null,null,null,null,null,null,null,null,null,null,null,null,null,null,null,null,null,null,null,null,null,"1/8/2013",1656,30.39,1567,673,{"$f":"+DATEVALUE(TEXT(Table81[[#This Row],[Date]],\"MM/DD/YYYY\"))","v":"2013-01-08"}]
[null,null,null,null,null,null,null,null,null,null,null,null,null,null,null,null,null,null,null,null,null,null,null,null,null,null,null,null,null,null,null,null,null,null,null,null,null,"1/7/2013",1645.25,30.14,1551,675.5,{"$f":"+DATEVALUE(TEXT(Table81[[#This Row],[Date]],\"MM/DD/YYYY\"))","v":"2013-01-07"}]
[null,null,null,null,null,null,null,null,null,null,null,null,null,null,null,null,null,null,null,null,null,null,null,null,null,null,null,null,null,null,null,null,null,null,null,null,null,"1/4/2013",1648,29.32,1557,689,{"$f":"+DATEVALUE(TEXT(Table81[[#This Row],[Date]],\"MM/DD/YYYY\"))","v":"2013-01-04"}]
[null,null,null,null,null,null,null,null,null,null,null,null,null,null,null,null,null,null,null,null,null,null,null,null,null,null,null,null,null,null,null,null,null,null,null,null,null,"1/3/2013",1679.5,30.91,1572,697,{"$f":"+DATEVALUE(TEXT(Table81[[#This Row],[Date]],\"MM/DD/YYYY\"))","v":"2013-01-03"}]
[null,null,null,null,null,null,null,null,null,null,null,null,null,null,null,null,null,null,null,null,null,null,null,null,null,null,null,null,null,null,null,null,null,null,null,null,null,"1/2/2013",1693.75,30.87,1566,711,{"$f":"+DATEVALUE(TEXT(Table81[[#This Row],[Date]],\"MM/DD/YYYY\"))","v":"2013-01-02"}]
[null,null,null,null,null,null,null,null,null,null,null,null,null,null,null,null,null,null,null,null,null,null,null,null,null,null,null,null,null,null,null,null,null,null,null,null,null,"12/28/2012",1657.5,29.95,1527,704,{"$f":"+DATEVALUE(TEXT(Table81[[#This Row],[Date]],\"MM/DD/YYYY\"))","v":"2012-12-28"}]
[null,null,null,null,null,null,null,null,null,null,null,null,null,null,null,null,null,null,null,null,null,null,null,null,null,null,null,null,null,null,null,null,null,null,null,null,null,"12/27/2012",1655.5,30.15,1536,700,{"$f":"+DATEVALUE(TEXT(Table81[[#This Row],[Date]],\"MM/DD/YYYY\"))","v":"2012-12-27"}]
[null,null,null,null,null,null,null,null,null,null,null,null,null,null,null,null,null,null,null,null,null,null,null,null,null,null,null,null,null,null,null,null,null,null,null,null,null,"12/21/2012",1651.5,29.75,1533,675,{"$f":"+DATEVALUE(TEXT(Table81[[#This Row],[Date]],\"MM/DD/YYYY\"))","v":"2012-12-21"}]
[null,null,null,null,null,null,null,null,null,null,null,null,null,null,null,null,null,null,null,null,null,null,null,null,null,null,null,null,null,null,null,null,null,null,null,null,null,"12/20/2012",1650.5,30.19,1575,685,{"$f":"+DATEVALUE(TEXT(Table81[[#This Row],[Date]],\"MM/DD/YYYY\"))","v":"2012-12-20"}]
[null,null,null,null,null,null,null,null,null,null,null,null,null,null,null,null,null,null,null,null,null,null,null,null,null,null,null,null,null,null,null,null,null,null,null,null,null,"12/19/2012",1665,29.89,1597,695,{"$f":"+DATEVALUE(TEXT(Table81[[#This Row],[Date]],\"MM/DD/YYYY\"))","v":"2012-12-19"}]
[null,null,null,null,null,null,null,null,null,null,null,null,null,null,null,null,null,null,null,null,null,null,null,null,null,null,null,null,null,null,null,null,null,null,null,null,null,"12/18/2012",1694,31.12,1611,697,{"$f":"+DATEVALUE(TEXT(Table81[[#This Row],[Date]],\"MM/DD/YYYY\"))","v":"2012-12-18"}]
[null,null,null,null,null,null,null,null,null,null,null,null,null,null,null,null,null,null,null,null,null,null,null,null,null,null,null,null,null,null,null,null,null,null,null,null,null,"12/17/2012",1695.75,31.37,1606,697,{"$f":"+DATEVALUE(TEXT(Table81[[#This Row],[Date]],\"MM/DD/YYYY\"))","v":"2012-12-17"}]
[null,null,null,null,null,null,null,null,null,null,null,null,null,null,null,null,null,null,null,null,null,null,null,null,null,null,null,null,null,null,null,null,null,null,null,null,null,"12/14/2012",1696.25,32.380000000000003,1613,700,{"$f":"+DATEVALUE(TEXT(Table81[[#This Row],[Date]],\"MM/DD/YYYY\"))","v":"2012-12-14"}]
[null,null,null,null,null,null,null,null,null,null,null,null,null,null,null,null,null,null,null,null,null,null,null,null,null,null,null,null,null,null,null,null,null,null,null,null,null,"12/13/2012",1692.75,32.21,1607,682,{"$f":"+DATEVALUE(TEXT(Table81[[#This Row],[Date]],\"MM/DD/YYYY\"))","v":"2012-12-13"}]
[null,null,null,null,null,null,null,null,null,null,null,null,null,null,null,null,null,null,null,null,null,null,null,null,null,null,null,null,null,null,null,null,null,null,null,null,null,"12/12/2012",1716.25,32.520000000000003,1639,697,{"$f":"+DATEVALUE(TEXT(Table81[[#This Row],[Date]],\"MM/DD/YYYY\"))","v":"2012-12-12"}]
[null,null,null,null,null,null,null,null,null,null,null,null,null,null,null,null,null,null,null,null,null,null,null,null,null,null,null,null,null,null,null,null,null,null,null,null,null,"12/11/2012",1710,32.69,1631,695,{"$f":"+DATEVALUE(TEXT(Table81[[#This Row],[Date]],\"MM/DD/YYYY\"))","v":"2012-12-11"}]
[null,null,null,null,null,null,null,null,null,null,null,null,null,null,null,null,null,null,null,null,null,null,null,null,null,null,null,null,null,null,null,null,null,null,null,null,null,"12/10/2012",1712.5,33.1,1622,699,{"$f":"+DATEVALUE(TEXT(Table81[[#This Row],[Date]],\"MM/DD/YYYY\"))","v":"2012-12-10"}]
[null,null,null,null,null,null,null,null,null,null,null,null,null,null,null,null,null,null,null,null,null,null,null,null,null,null,null,null,null,null,null,null,null,null,null,null,null,"12/7/2012",1701.5,33.17,1600,698,{"$f":"+DATEVALUE(TEXT(Table81[[#This Row],[Date]],\"MM/DD/YYYY\"))","v":"2012-12-07"}]
[null,null,null,null,null,null,null,null,null,null,null,null,null,null,null,null,null,null,null,null,null,null,null,null,null,null,null,null,null,null,null,null,null,null,null,null,null,"12/6/2012",1694.25,33.340000000000003,1582,686,{"$f":"+DATEVALUE(TEXT(Table81[[#This Row],[Date]],\"MM/DD/YYYY\"))","v":"2012-12-06"}]
[null,null,null,null,null,null,null,null,null,null,null,null,null,null,null,null,null,null,null,null,null,null,null,null,null,null,null,null,null,null,null,null,null,null,null,null,null,"12/5/2012",1694,32.85,1587,681,{"$f":"+DATEVALUE(TEXT(Table81[[#This Row],[Date]],\"MM/DD/YYYY\"))","v":"2012-12-05"}]
[null,null,null,null,null,null,null,null,null,null,null,null,null,null,null,null,null,null,null,null,null,null,null,null,null,null,null,null,null,null,null,null,null,null,null,null,null,"12/4/2012",1697.75,32.83,1587,680,{"$f":"+DATEVALUE(TEXT(Table81[[#This Row],[Date]],\"MM/DD/YYYY\"))","v":"2012-12-04"}]
[null,null,null,null,null,null,null,null,null,null,null,null,null,null,null,null,null,null,null,null,null,null,null,null,null,null,null,null,null,null,null,null,null,null,null,null,null,"12/3/2012",1720,33.07,1599,682,{"$f":"+DATEVALUE(TEXT(Table81[[#This Row],[Date]],\"MM/DD/YYYY\"))","v":"2012-12-03"}]
[null,null,null,null,null,null,null,null,null,null,null,null,null,null,null,null,null,null,null,null,null,null,null,null,null,null,null,null,null,null,null,null,null,null,null,null,null,"11/30/2012",1726,33.299999999999997,1612,685,{"$f":"+DATEVALUE(TEXT(Table81[[#This Row],[Date]],\"MM/DD/YYYY\"))","v":"2012-11-30"}]
[null,null,null,null,null,null,null,null,null,null,null,null,null,null,null,null,null,null,null,null,null,null,null,null,null,null,null,null,null,null,null,null,null,null,null,null,null,"11/29/2012",1725,33.42,1620,682,{"$f":"+DATEVALUE(TEXT(Table81[[#This Row],[Date]],\"MM/DD/YYYY\"))","v":"2012-11-29"}]
[null,null,null,null,null,null,null,null,null,null,null,null,null,null,null,null,null,null,null,null,null,null,null,null,null,null,null,null,null,null,null,null,null,null,null,null,null,"11/28/2012",1708,34.28,1589,651,{"$f":"+DATEVALUE(TEXT(Table81[[#This Row],[Date]],\"MM/DD/YYYY\"))","v":"2012-11-28"}]
[null,null,null,null,null,null,null,null,null,null,null,null,null,null,null,null,null,null,null,null,null,null,null,null,null,null,null,null,null,null,null,null,null,null,null,null,null,"11/27/2012",1746.25,33.76,1619,670,{"$f":"+DATEVALUE(TEXT(Table81[[#This Row],[Date]],\"MM/DD/YYYY\"))","v":"2012-11-27"}]
[null,null,null,null,null,null,null,null,null,null,null,null,null,null,null,null,null,null,null,null,null,null,null,null,null,null,null,null,null,null,null,null,null,null,null,null,null,"11/26/2012",1750.5,33.85,1613,667.5,{"$f":"+DATEVALUE(TEXT(Table81[[#This Row],[Date]],\"MM/DD/YYYY\"))","v":"2012-11-26"}]
[null,null,null,null,null,null,null,null,null,null,null,null,null,null,null,null,null,null,null,null,null,null,null,null,null,null,null,null,null,null,null,null,null,null,null,null,null,"11/23/2012",1734.5,34.049999999999997,1584,657.5,{"$f":"+DATEVALUE(TEXT(Table81[[#This Row],[Date]],\"MM/DD/YYYY\"))","v":"2012-11-23"}]
[null,null,null,null,null,null,null,null,null,null,null,null,null,null,null,null,null,null,null,null,null,null,null,null,null,null,null,null,null,null,null,null,null,null,null,null,null,"11/22/2012",1731,34.08,1582,657,{"$f":"+DATEVALUE(TEXT(Table81[[#This Row],[Date]],\"MM/DD/YYYY\"))","v":"2012-11-22"}]
[null,null,null,null,null,null,null,null,null,null,null,null,null,null,null,null,null,null,null,null,null,null,null,null,null,null,null,null,null,null,null,null,null,null,null,null,null,"11/21/2012",1724,33.409999999999997,1572,640,{"$f":"+DATEVALUE(TEXT(Table81[[#This Row],[Date]],\"MM/DD/YYYY\"))","v":"2012-11-21"}]
[null,null,null,null,null,null,null,null,null,null,null,null,null,null,null,null,null,null,null,null,null,null,null,null,null,null,null,null,null,null,null,null,null,null,null,null,null,"11/20/2012",1732.25,33.29,1577,640,{"$f":"+DATEVALUE(TEXT(Table81[[#This Row],[Date]],\"MM/DD/YYYY\"))","v":"2012-11-20"}]
[null,null,null,null,null,null,null,null,null,null,null,null,null,null,null,null,null,null,null,null,null,null,null,null,null,null,null,null,null,null,null,null,null,null,null,null,null,"11/19/2012",1730.5,33.01,1572,642,{"$f":"+DATEVALUE(TEXT(Table81[[#This Row],[Date]],\"MM/DD/YYYY\"))","v":"2012-11-19"}]
[null,null,null,null,null,null,null,null,null,null,null,null,null,null,null,null,null,null,null,null,null,null,null,null,null,null,null,null,null,null,null,null,null,null,null,null,null,"11/16/2012",1713.5,33.19,1554,623,{"$f":"+DATEVALUE(TEXT(Table81[[#This Row],[Date]],\"MM/DD/YYYY\"))","v":"2012-11-16"}]
[null,null,null,null,null,null,null,null,null,null,null,null,null,null,null,null,null,null,null,null,null,null,null,null,null,null,null,null,null,null,null,null,null,null,null,null,null,"11/15/2012",1710,32.67,1578,639,{"$f":"+DATEVALUE(TEXT(Table81[[#This Row],[Date]],\"MM/DD/YYYY\"))","v":"2012-11-15"}]
[null,null,null,null,null,null,null,null,null,null,null,null,null,null,null,null,null,null,null,null,null,null,null,null,null,null,null,null,null,null,null,null,null,null,null,null,null,"11/14/2012",1725.75,32.270000000000003,1583,643,{"$f":"+DATEVALUE(TEXT(Table81[[#This Row],[Date]],\"MM/DD/YYYY\"))","v":"2012-11-14"}]
[null,null,null,null,null,null,null,null,null,null,null,null,null,null,null,null,null,null,null,null,null,null,null,null,null,null,null,null,null,null,null,null,null,null,null,null,null,"11/13/2012",1726.25,32.57,1585,617,{"$f":"+DATEVALUE(TEXT(Table81[[#This Row],[Date]],\"MM/DD/YYYY\"))","v":"2012-11-13"}]
[null,null,null,null,null,null,null,null,null,null,null,null,null,null,null,null,null,null,null,null,null,null,null,null,null,null,null,null,null,null,null,null,null,null,null,null,null,"11/12/2012",1735.25,32.479999999999997,1567,611,{"$f":"+DATEVALUE(TEXT(Table81[[#This Row],[Date]],\"MM/DD/YYYY\"))","v":"2012-11-12"}]
[null,null,null,null,null,null,null,null,null,null,null,null,null,null,null,null,null,null,null,null,null,null,null,null,null,null,null,null,null,null,null,null,null,null,null,null,null,"11/9/2012",1738.25,32.58,1559,612,{"$f":"+DATEVALUE(TEXT(Table81[[#This Row],[Date]],\"MM/DD/YYYY\"))","v":"2012-11-09"}]
[null,null,null,null,null,null,null,null,null,null,null,null,null,null,null,null,null,null,null,null,null,null,null,null,null,null,null,null,null,null,null,null,null,null,null,null,null,"11/8/2012",1717,32.630000000000003,1544,612,{"$f":"+DATEVALUE(TEXT(Table81[[#This Row],[Date]],\"MM/DD/YYYY\"))","v":"2012-11-08"}]
[null,null,null,null,null,null,null,null,null,null,null,null,null,null,null,null,null,null,null,null,null,null,null,null,null,null,null,null,null,null,null,null,null,null,null,null,null,"11/7/2012",1715.25,32.159999999999997,1556,617,{"$f":"+DATEVALUE(TEXT(Table81[[#This Row],[Date]],\"MM/DD/YYYY\"))","v":"2012-11-07"}]
[null,null,null,null,null,null,null,null,null,null,null,null,null,null,null,null,null,null,null,null,null,null,null,null,null,null,null,null,null,null,null,null,null,null,null,null,null,"11/6/2012",1691,31.7,1543,617,{"$f":"+DATEVALUE(TEXT(Table81[[#This Row],[Date]],\"MM/DD/YYYY\"))","v":"2012-11-06"}]
[null,null,null,null,null,null,null,null,null,null,null,null,null,null,null,null,null,null,null,null,null,null,null,null,null,null,null,null,null,null,null,null,null,null,null,null,null,"11/5/2012",1683.5,32.14,1544,598,{"$f":"+DATEVALUE(TEXT(Table81[[#This Row],[Date]],\"MM/DD/YYYY\"))","v":"2012-11-05"}]
[null,null,null,null,null,null,null,null,null,null,null,null,null,null,null,null,null,null,null,null,null,null,null,null,null,null,null,null,null,null,null,null,null,null,null,null,null,"11/2/2012",1685,31.4,1552,608,{"$f":"+DATEVALUE(TEXT(Table81[[#This Row],[Date]],\"MM/DD/YYYY\"))","v":"2012-11-02"}]
[null,null,null,null,null,null,null,null,null,null,null,null,null,null,null,null,null,null,null,null,null,null,null,null,null,null,null,null,null,null,null,null,null,null,null,null,null,"11/1/2012",1716.25,30.91,1575,614,{"$f":"+DATEVALUE(TEXT(Table81[[#This Row],[Date]],\"MM/DD/YYYY\"))","v":"2012-11-01"}]
[null,null,null,null,null,null,null,null,null,null,null,null,null,null,null,null,null,null,null,null,null,null,null,null,null,null,null,null,null,null,null,null,null,null,null,null,null,null,null,31.92]
[null,null,null,null,null,null,null,null,null,null,null,null,null,null,null,null,null,null,null,null,null,null,null,null,null,null,null,null,null,null,null,null,null,null,null,null,null,null,null,32.659999999999997]

{"sheet":"Usage & Hit Calculations","index":6,"n_rows":35,"n_cols":6,"rows_kept":35,"cut":false,"hidden":false,"merged":[[11,2,11,5],[26,2,26,5],[29,2,29,5],[19,2,19,5],[34,2,34,5]]}
[]
[]
[]
[]
[]
[]
[]
[null,"Usage & Hit Calculations"]
[]
[]
[null,null,"Usage "]
[null,null,"XigniteMetals is priced on a usage basis. It is therefore important to understand how the use of the various APIs is going to affect your consumption. The subscription you choose will give you access to a certain number of hits (or credits) per month. The different APIs you will implement will consume these hits differently but consistently across different types of APIs. It is important to understand the difference between a request (an API call), a symbol, or a contract since a request can include multiple symbols or return many contracts:"]
[null,null,null,"Spot Prices","Future Prices","Fixings"]
[null,null,"Real-Time APIs","1 hit per symbol","1 hit per contract","1 hit per symbol"]
[null,null,"Historical APIS","1 hit per symbol","1 hit per symbol","1 hit per symbol"]
[null,null,"Chart APIs","1 hit per request","1 hit per request","1 hit per request"]
[null,null,"Tick APIs","1 hit per request","1 hit per request","1 hit per request"]
[]
[null,null,"Note that certain XigniteMetals APIs have a unique hit count associated with them (e.g. "]
[null,null,"GetSpotMarketSummary).\n"]
[]
[null,null,"On-Demand vs Caching"]
[null,null,"There are two basic ways for your application to request data: "]
[null,null,"On-Demand","Your application pulls the data anytime it needs it."]
[null,null,"Caching","Your application pulls and saves data so that it can use it many times."]
[]
[null,null,"Of course, the more often data updates, the less practical it is to cache the data because it becomes stale. For instance you may choose to pull real-time data on-demand or every few minutes but cache historical data that updates only once a day."]
[]
[null,null,"Example"]
[null,null,"Let's say you want to build a widget for your web site showing real-time and historical metal prices. You decide to update the data every minute for each of the 4 metals and cache it. You will also pull historical data for each metal once a day. Your usage would be:"]
[null,null,"Real-Time","4 metals * 60 mn/hr * 111 market hours/week * 4.3 weeks/mo = 114,552 hits"]
[null,null,"Caching","4 metals * 21 days/mo = 84 hits"]
[]
[null,null,"So you would require a subscription that allows you at least a total of 114,636 hits monthly."]
[null,null,"For additional help, use the Hit Estimator in the next tab."]

{"sheet":"Hit Estimator","index":7,"n_rows":69,"n_cols":55,"rows_kept":69,"cut":false,"hidden":false,"merged":[[43,5,43,6]]}
[null,null,null,null,null,null,null,null,null,null,null,null,null,null,null,null,null,null,null,null,null,null,null,null,null,null,null,null,null,null,null,null,null,null,null,null,null,null,null,null,null,null,"Yes",1,1,1,"sec","am","8 hrs/day",{"$f":"5*8*4.3*3600","v":619200},"day",21,100,"8 hrs/day",{"$f":"5*8*4.3*3600","v":619200}]
[null,null,null,null,null,null,null,null,null,null,null,null,null,null,null,null,null,null,null,null,null,null,null,null,null,null,null,null,null,null,null,null,null,null,null,null,null,null,null,null,null,null,"No",2,2,{"$f":"+AT1+1","v":2},"min","pm","16 hrs/day",{"$f":"5*16*4.3*3600","v":1238400},"week",4,500,"16 hrs/day",{"$f":"5*16*4.3*3600","v":1238400}]
[null,null,null,null,null,null,null,null,null,null,null,null,null,null,null,null,null,null,null,null,null,null,null,null,null,null,null,null,null,null,null,null,null,null,null,null,null,null,null,null,null,null,null,3,3,{"$f":"+AT2+1","v":3},"hr","both","mkt hours",{"$f":"111*4.3*3600","v":1718279.9999999998},"month",1,1000,"mkt hours",{"$f":"23.25*5*4.3*3600","v":1799550}]
[null,null,null,null,null,null,null,null,null,null,null,null,null,null,null,null,null,null,null,null,null,null,null,null,null,null,null,null,null,null,null,null,null,null,null,null,null,null,null,null,null,null,null,null,4,4,"day",null,"page views",null,null,null,2500,"page views"]
[null,null,null,null,null,null,null,null,null,null,null,null,null,null,null,null,null,null,null,null,null,null,null,null,null,null,null,null,null,null,null,null,null,null,null,null,null,null,null,null,null,null,null,null,5,5,null,null,null,null,null,null,5000]
[null,null,null,null,null,null,null,null,null,null,null,null,null,null,null,null,null,null,null,null,null,null,null,null,null,null,null,null,null,null,null,null,null,null,null,null,null,null,null,null,null,null,null,null,6,6]
[null,null,null,null,null,null,null,null,null,null,null,null,null,null,null,null,null,null,null,null,null,null,null,null,null,null,null,null,null,null,null,null,null,null,null,null,null,null,null,null,null,null,null,null,7,7]
[null,"Hit Estimator",null,null,null,null,null,null,null,null,null,null,null,null,null,null,null,null,null,null,null,null,null,null,null,null,null,null,null,null,null,null,null,null,null,null,null,null,null,null,null,null,null,null,8,8]
[null,null,null,null,null,null,null,null,null,null,null,null,null,null,null,null,null,null,null,null,null,null,null,null,null,null,null,null,null,null,null,null,null,null,null,null,null,null,null,null,null,null,null,null,null,9]
[null,null,null,null,null,null,null,null,null,null,null,null,null,null,null,null,null,null,null,null,null,null,null,null,null,null,null,null,null,null,null,null,null,null,null,null,null,null,null,null,null,null,null,null,null,10]
[null,null,"Options",null,null,null,null,null,null,null,null,null,null,"Help",null,null,null,null,null,null,null,null,null,null,null,null,null,null,null,null,null,null,null,null,null,null,null,null,null,null,null,null,null,null,null,11]
[null,null,"Please fill out the information below to estimate your hit count based on your usage. ",null,null,null,null,null,null,null,null,null,null,"Please see below for additional information on how to use this Hit Estimator.",null,null,null,null,null,null,null,null,null,null,null,null,null,null,null,null,null,null,null,null,null,null,null,null,null,null,null,null,null,null,null,12]
[null,null,"What data will you be pulling?",null,null,null,null,null,null,null,null,null,null,null,null,null,null,null,null,null,null,null,null,null,null,null,null,null,null,null,null,null,null,null,null,null,null,null,null,null,null,null,null,null,null,13]
[null,null,"Spot Prices",null,null,"Future Prices",null,null,"Fixings",null,null,null,null,null,null,null,null,null,null,null,null,null,null,null,null,null,null,null,null,null,null,null,null,null,null,null,null,null,null,null,null,null,null,null,null,14]
[null,null,"Real-time","Yes",null,"Delayed","No",null,"Daily","No",null,null,null,"Choose Yes if you plan to pull the corresponding type of data for this price type.",null,null,null,null,null,null,null,null,null,null,null,null,null,null,null,null,null,null,null,null,null,null,null,null,null,null,null,null,null,null,null,15]
[null,null,"Historical","No",null,"Historical","No",null,"Historical","No",null,null,null,"Choose Yes if you plan to pull historical data for this price type.",null,null,null,null,null,null,null,null,null,null,null,null,null,null,null,null,null,null,null,null,null,null,null,null,null,null,null,null,null,null,null,16]
[null,null,"Charts","No",null,"Charts","No",null,"Charts","No",null,null,null,"Choose Yes if you plan to generate charts for this price type.",null,null,null,null,null,null,null,null,null,null,null,null,null,null,null,null,null,null,null,null,null,null,null,null,null,null,null,null,null,null,null,17]
[null,null,"Gold","Yes",null,"Gold","Yes",null,"Gold","Yes",null,null,null,"Choose Yes if you plan to pull gold prices.",null,null,null,null,null,null,null,null,null,null,null,null,null,null,null,null,null,null,null,null,null,null,null,null,null,null,null,null,null,null,null,18]
[null,null,"Silver","Yes",null,"Silver","Yes",null,"Silver","Yes",null,null,null,"Choose Yes if you plan to pull silver prices.",null,null,null,null,null,null,null,null,null,null,null,null,null,null,null,null,null,null,null,null,null,null,null,null,null,null,null,null,null,null,null,19]
[null,null,"Platinum","Yes",null,"Platinum","Yes",null,"Platinum","Yes",null,null,null,"Choose Yes if you plan to pull platinum prices.",null,null,null,null,null,null,null,null,null,null,null,null,null,null,null,null,null,null,null,null,null,null,null,null,null,null,null,null,null,null,null,20]
[null,null,"Palladium","Yes",null,"Palladium","Yes",null,"Palladium","No",null,null,null,"Choose Yes if you plan to pull palladium prices.",null,null,null,null,null,null,null,null,null,null,null,null,null,null,null,null,null,null,null,null,null,null,null,null,null,null,null,null,null,null,null,21]
[null,null,"Currencies",2,null,null,null,null,"Currencies",1,null,null,null,"Choose number of currencies you want to pull (where applicable).",null,null,null,null,null,null,null,null,null,null,null,null,null,null,null,null,null,null,null,null,null,null,null,null,null,null,null,null,null,null,null,22]
[null,null,"How often will you be updating data for each metal?",null,null,null,null,null,"am/pm","both",null,null,null,"Choose whether you will pull AM prices, PM prices or both (Fixings only).",null,null,null,null,null,null,null,null,null,null,null,null,null,null,null,null,null,null,null,null,null,null,null,null,null,null,null,null,null,null,null,23]
[null,null,"Spot Prices",null,null,"Future Prices",null,null,"Fixings",null,null,null,null,null,null,null,null,null,null,null,null,null,null,null,null,null,null,null,null,null,null,null,null,null,null,null,null,null,null,null,null,null,null,null,null,24]
[null,null,"Every",20,"sec","Every",5,"sec","Every","day",null,null,null,"Choose how often you will update the data. For Spots and Futures, you can choose to update a certain number of time per second, minute or more. For Fixings, you can update daily, weekly or monthly.",null,null,null,null,null,null,null,null,null,null,null,null,null,null,null,null,null,null,null,null,null,null,null,null,null,null,null,null,null,null,null,25]
[null,null,"Duration","mkt hours",null,"Duration","8 hrs/day",null,null,null,null,null,null,"Choose the time window when you want to update the data. For Spots and Futures you can choose 8hrs/day, 16hrs/day or the complete market hours for that price type. You can also choose Page Views if you plan to pull the data every time a page is displayed on your site.",null,null,null,null,null,null,null,null,null,null,null,null,null,null,null,null,null,null,null,null,null,null,null,null,null,null,null,null,null,null,null,26]
[null,null,"Page Views",0,"/mo","Page Views",0,"/mo",null,null,null,null,null,"If you chose Page Views above, enter the number of page views per month for your web site.",null,null,null,null,null,null,null,null,null,null,null,null,null,null,null,null,null,null,null,null,null,null,null,null,null,null,null,null,null,null,null,27]
[null,null,"How often will you be updating historical data for each metal?",null,null,null,null,null,null,null,null,null,null,null,null,null,null,null,null,null,null,null,null,null,null,null,null,null,null,null,null,null,null,null,null,null,null,null,null,null,null,null,null,null,null,28]
[null,null,"Spot Prices",null,null,"Future Prices",null,null,"Fixings",null,null,null,null,null,null,null,null,null,null,null,null,null,null,null,null,null,null,null,null,null,null,null,null,null,null,null,null,null,null,null,null,null,null,null,null,29]
[null,null,"Times per day",1,null,"Times per day",1,null,"Times per day",1,null,null,null,"Choose how many times per day you plan to pull historical data for each metal. ",null,null,null,null,null,null,null,null,null,null,null,null,null,null,null,null,null,null,null,null,null,null,null,null,null,null,null,null,null,null,null,30]
[null,null,"How often will you be generating charts per dayfor each metal?",null,null,null,null,null,null,null,null,null,null,null,null,null,null,null,null,null,null,null,null,null,null,null,null,null,null,null,null,null,null,null,null,null,null,null,null,null,null,null,null,null,null,31]
[null,null,"Spot Prices",null,null,"Future Prices",null,null,"Fixings",null,null,null,null,null,null,null,null,null,null,null,null,null,null,null,null,null,null,null,null,null,null,null,null,null,null,null,null,null,null,null,null,null,null,null,null,32]
[null,null,"Historical",1,null,"Historical",1,null,"Historical",1,null,null,null,"Choose how many times per day you plan to create historical charts for each metal. ",null,null,null,null,null,null,null,null,null,null,null,null,null,null,null,null,null,null,null,null,null,null,null,null,null,null,null,null,null,null,null,33]
[null,null,"Intraday",1,null,null,null,null,null,null,null,null,null,"Choose how many times per day you plan to create intraday charts for each metal (only applies to Spot Prices).",null,null,null,null,null,null,null,null,null,null,null,null,null,null,null,null,null,null,null,null,null,null,null,null,null,null,null,null,null,null,null,34]
[null,null,null,null,null,null,null,null,null,null,null,null,null,null,null,null,null,null,null,null,null,null,null,null,null,null,null,null,null,null,null,null,null,null,null,null,null,null,null,null,null,null,null,null,null,35]
[null,null,"Results",null,null,null,null,null,null,null,null,null,null,null,null,null,null,null,null,null,null,null,null,null,null,null,null,null,null,null,null,null,null,null,null,null,null,null,null,null,null,null,null,null,null,36]
[null,null,"Spot Prices",null,null,"Future Prices",null,null,"Fixings",null,null,null,null,null,null,null,null,null,null,null,null,null,null,null,null,null,null,null,null,null,null,null,null,null,null,null,null,null,null,null,null,null,null,null,null,37]
[null,null,"Price Types",{"$f":"(+IF(D21=\"Yes\",1,0)+IF(D20=\"Yes\",1,0)+IF(D19=\"Yes\",1,0)+IF(D18=\"Yes\",1,0))*D22","v":8},null,"Price Types",{"$f":"(+IF(G21=\"Yes\",1,0)+IF(G20=\"Yes\",1,0)+IF(G19=\"Yes\",1,0)+IF(G18=\"Yes\",1,0))","v":4},null,"Price Types",{"$f":"(+IF(J21=\"Yes\",1,0)+IF(J20=\"Yes\",1,0)+IF(J18=\"Yes\",1,0))*IF(J23=\"am\",1,IF(J23=\"pm\",1,2))*J22+IF(J19=\"Yes\",1,0)*J22","v":5},null,null,null,"The number of price types you will pull based on the metal, currencies and am/pm options you chose above.",null,null,null,null,null,null,null,null,null,null,null,null,null,null,null,null,null,null,null,null,null,null,null,null,null,null,null,null,null,null,null,38]
[null,null,"Real-time Hits",{"$f":"+IF(D15=\"Yes\",IF(D26=\"page views\",D27*D38,VLOOKUP(D26,AW1:AX3,2,0)*D51*D38),0)","v":687312},null,"Delayed Hits",{"$f":"IF(G15=\"Yes\",+IF(G26=\"page views\",G27*G38,VLOOKUP(G26,BB1:BC3,2,0)*G51*G38),0)","v":0},null,"Daily Hits",{"$f":"+IF(J15=\"Yes\",J38*VLOOKUP(J25,AY1:AZ3,2,0),0)","v":0},null,null,null,"The number of corresponding hits you will consume based on the options you chose.",null,null,null,null,null,null,null,null,null,null,null,null,null,null,null,null,null,null,null,null,null,null,null,null,null,null,null,null,null,null,null,39]
[null,null,"Historical Hits",{"$f":"+IF(D16=\"Yes\",D38*D30*21,0)","v":0},null,"Historical Hits",{"$f":"+IF(G16=\"Yes\",G38*G30*21,0)","v":0},null,"Historical Hits",{"$f":"+IF(J16=\"Yes\",J38*J30*21,0)","v":0},null,null,null,"The number of historical hits you will consume based on the options you chose.",null,null,null,null,null,null,null,null,null,null,null,null,null,null,null,null,null,null,null,null,null,null,null,null,null,null,null,null,null,null,null,40]
[null,null,"Chart Hits",{"$f":"+IF(D17=\"Yes\",D38*(D33+D34)*21,0)","v":0},null,"Chart Hits",{"$f":"+IF(G17=\"Yes\",G38*(G33+G34)*21,0)","v":0},null,"Chart Hits",{"$f":"+IF(J17=\"Yes\",J38*(J33+J34)*21,0)","v":0},null,null,null,"The number of chart hits you will consume based on the options you chose.",null,null,null,null,null,null,null,null,null,null,null,null,null,null,null,null,null,null,null,null,null,null,null,null,null,null,null,null,null,null,null,41]
[null,null,"Total",{"$f":"+SUM(D39:D41)","v":687312},null,"Total",{"$f":"+SUM(G39:G41)","v":0},null,"Total",{"$f":"+SUM(J39:J41)","v":0},null,null,null,null,null,null,null,null,null,null,null,null,null,null,null,null,null,null,null,null,null,null,null,null,null,null,null,null,null,null,null,null,null,null,null,42]
[null,null,null,null,null,null,null,null,null,null,null,null,null,null,null,null,null,null,null,null,null,null,null,null,null,null,null,null,null,null,null,null,null,null,null,null,null,null,null,null,null,null,null,null,null,43]
[null,null,"GRAND TOTAL",null,null,{"$f":"+J42+G42+D42","v":687312},null,null,"Subscription",{"$f":"+IF(F44<=600,\"600\", IF(F44<=6000,\"6,000\",IF(F44<=60000,\"60,000\",IF(F44<=600000,\"600K\",IF(F44<=6000000,\"6M\",\"Call Us\")))))","v":"6M"},null,null,null,"The total number of hits you will consume based on the assumptions above as well as the recommended subscription level you would need.",null,null,null,null,null,null,null,null,null,null,null,null,null,null,null,null,null,null,null,null,null,null,null,null,null,null,null,null,null,null,null,44]
[null,null,null,null,null,null,null,null,null,null,null,null,null,null,null,null,null,null,null,null,null,null,null,null,null,null,null,null,null,null,null,null,null,null,null,null,null,null,null,null,null,null,null,null,null,45]
[null,null,null,null,null,null,null,null,null,null,null,null,null,null,null,null,null,null,null,null,null,null,null,null,null,null,null,null,null,null,null,null,null,null,null,null,null,null,null,null,null,null,null,null,null,46]
[null,null,null,null,null,null,null,null,null,null,null,null,null,null,null,null,null,null,null,null,null,null,null,null,null,null,null,null,null,null,null,null,null,null,null,null,null,null,null,null,null,null,null,null,null,47]
[null,null,null,null,null,null,null,null,null,null,null,null,null,null,null,null,null,null,null,null,null,null,null,null,null,null,null,null,null,null,null,null,null,null,null,null,null,null,null,null,null,null,null,null,null,48]
[null,null,null,null,null,null,null,null,null,null,null,null,null,null,null,null,null,null,null,null,null,null,null,null,null,null,null,null,null,null,null,null,null,null,null,null,null,null,null,null,null,null,null,null,null,49]
[null,null,null,null,null,null,null,null,null,null,null,null,null,null,null,null,null,null,null,null,null,null,null,null,null,null,null,null,null,null,null,null,null,null,null,null,null,null,null,null,null,null,null,null,null,50]
[null,null,null,{"$f":"+IF(E25=\"sec\",1/D25,+IF(E25=\"min\",1/(D25*60),IF(E25=\"hr\",1/(D25*60*60))))","v":0.05},null,null,{"$f":"+IF(H25=\"sec\",1/G25,+IF(H25=\"min\",1/(G25*60),IF(H25=\"hr\",1/(G25*60*60))))","v":0.2},null,null,null,null,null,null,null,null,null,null,null,null,null,null,null,null,null,null,null,null,null,null,null,null,null,null,null,null,null,null,null,null,null,null,null,null,null,null,51]
[null,null,null,null,null,null,null,null,null,null,null,null,null,null,null,null,null,null,null,null,null,null,null,null,null,null,null,null,null,null,null,null,null,null,null,null,null,null,null,null,null,null,null,null,null,52]
[null,null,null,null,null,null,null,null,null,null,null,null,null,null,null,null,null,null,null,null,null,null,null,null,null,null,null,null,null,null,null,null,null,null,null,null,null,null,null,null,null,null,null,null,null,53]
[null,null,null,null,null,null,null,null,null,null,null,null,null,null,null,null,null,null,null,null,null,null,null,null,null,null,null,null,null,null,null,null,null,null,null,null,null,null,null,null,null,null,null,null,null,54]
[null,null,null,null,null,null,null,null,null,null,null,null,null,null,null,null,null,null,null,null,null,null,null,null,null,null,null,null,null,null,null,null,null,null,null,null,null,null,null,null,null,null,null,null,null,55]
[null,null,null,null,null,null,null,null,null,null,null,null,null,null,null,null,null,null,null,null,null,null,null,null,null,null,null,null,null,null,null,null,null,null,null,null,null,null,null,null,null,null,null,null,null,56]
[null,null,null,null,null,null,null,null,null,null,null,null,null,null,null,null,null,null,null,null,null,null,null,null,null,null,null,null,null,null,null,null,null,null,null,null,null,null,null,null,null,null,null,null,null,57]
[null,null,null,null,null,null,null,null,null,null,null,null,null,null,null,null,null,null,null,null,null,null,null,null,null,null,null,null,null,null,null,null,null,null,null,null,null,null,null,null,null,null,null,null,null,58]
[null,null,null,null,null,null,null,null,null,null,null,null,null,null,null,null,null,null,null,null,null,null,null,null,null,null,null,null,null,null,null,null,null,null,null,null,null,null,null,null,null,null,null,null,null,59]
[null,null,null,null,null,null,null,null,null,null,null,null,null,null,null,null,null,null,null,null,null,null,null,null,null,null,null,null,null,null,null,null,null,null,null,null,null,null,null,null,null,null,null,null,null,60]
[null,null,null,null,null,null,null,null,null,null,null,null,null,null,null,null,null,null,null,null,null,null,null,null,null,null,null,null,null,null,null,null,null,null,null,null,null,null,null,null,null,null,null,null,null,70]
[null,null,null,null,null,null,null,null,null,null,null,null,null,null,null,null,null,null,null,null,null,null,null,null,null,null,null,null,null,null,null,null,null,null,null,null,null,null,null,null,null,null,null,null,null,80]
[null,null,null,null,null,null,null,null,null,null,null,null,null,null,null,null,null,null,null,null,null,null,null,null,null,null,null,null,null,null,null,null,null,null,null,null,null,null,null,null,null,null,null,null,null,90]
[null,null,null,null,null,null,null,null,null,null,null,null,null,null,null,null,null,null,null,null,null,null,null,null,null,null,null,null,null,null,null,null,null,null,null,null,null,null,null,null,null,null,null,null,null,100]
[null,null,null,null,null,null,null,null,null,null,null,null,null,null,null,null,null,null,null,null,null,null,null,null,null,null,null,null,null,null,null,null,null,null,null,null,null,null,null,null,null,null,null,null,null,250]
[null,null,null,null,null,null,null,null,null,null,null,null,null,null,null,null,null,null,null,null,null,null,null,null,null,null,null,null,null,null,null,null,null,null,null,null,null,null,null,null,null,null,null,null,null,500]
[null,null,null,null,null,null,null,null,null,null,null,null,null,null,null,null,null,null,null,null,null,null,null,null,null,null,null,null,null,null,null,null,null,null,null,null,null,null,null,null,null,null,null,null,null,1000]
[null,null,null,null,null,null,null,null,null,null,null,null,null,null,null,null,null,null,null,null,null,null,null,null,null,null,null,null,null,null,null,null,null,null,null,null,null,null,null,null,null,null,null,null,null,5000]
[null,null,null,null,null,null,null,null,null,null,null,null,null,null,null,null,null,null,null,null,null,null,null,null,null,null,null,null,null,null,null,null,null,null,null,null,null,null,null,null,null,null,null,null,null,10000]

{"sheet":"Enabling Macros in Excel","index":8,"n_rows":42,"n_cols":5,"rows_kept":42,"cut":false,"hidden":false,"merged":[[12,3,12,4],[13,3,13,4]]}
[]
[]
[]
[]
[]
[]
[]
[null,"Enabling Macros In Excel 2010"]
[]
[]
[null,null,"To enable macros in Excel, follow these steps:"]
[null,null,"(1) Click the \"File\" menu then \"Options\""]
[]
[]
[]
[]
[null,null,"(2) Click \"Trust Center\""]
[]
[]
[]
[]
[]
[null,null,"(3) Click \"Trust Center Settings\"",null,"(4) Click \"Macro Settings\""]
[]
[]
[]
[]
[]
[]
[null,null,"(5) Click \"Enable all macros\""]
[]
[]
[]
[]
[]
[]
[]
[]
[]
[]
[]
[null,null,"(6) Click \"OK\""]

{"sheet":"Getting Help","index":9,"n_rows":40,"n_cols":5,"rows_kept":40,"cut":false,"hidden":false,"merged":[[27,4,29,4],[13,4,18,4],[21,4,25,4]]}
[]
[]
[]
[]
[]
[]
[]
[null,"Getting Help"]
[]
[]
[null,null,"If you need help, please use these resources:"]
[]
[null,null,"Support"]
[null,null,"Web Support","support home page","If you already are a customer, use our support resources. Do not contact your sales rep for product questions otherwise we may not be able to track your issues correctly."]
[null,null,"Email Support","support@xignite.com "]
[null,null,"Call Support","Monday-Friday 8:30am-5:30pm PST "]
[null,null,null,"Toll-Free: 1 (866) 965-7627 "]
[null,null,null,"Phone: (650) 655-3700 "]
[null,null,null,"Fax: (650) 655-3703"]
[]
[null,null,"Sales"]
[null,null,"Email us","sales@xignite.com ","Contact sales if you have any questions about free trials, upgrades, new service subscriptions, or questions about your subscriptions."]
[]
[]
[]
[]
[null,null,"Accounting"]
[null,null,"Email us","accounting@xignite.com","Contact accounting with any questions about billing or collections."]
[]
[]
[null,null,"Where To Find Us"]
[null,null,"Headquarters","1825 South Grant Street, Suite 100 ","Directions"]
[null,null,null,"San Mateo, CA 94402, U.S.A."]
[null,null,null,"Phone: (650) 655-3700 "]
[null,null,null,"Fax: (650) 655-3703"]
[]
[null,null,"New York","48 Wall Street, Suite 1100 ","Directions"]
[null,null,null,"New York, NY 10005 U.S.A."]
[null,null,null,"Phone: (212) 918-4979 "]
[null,null,null,"Fax: (212) 918-4403"]